Workbook

Sheet Intro_SR_2023_Stag_SM_Nonlife
A1: =list_of_sheets!B5 -> 1 | B1: =_SST_template_name -> SST-Template für die Schadenversicherung | E1: 2023
B3: Version | C3: Stagflation | E3: =DATE(current_year,2,21) -> 2023-02-21
B6: Sprache auswählen; Choisir la langue; Select language | E6: DE
B8: =_VU_name -> Name der Versicherungsgesellschaft | E8: Mustergesellschaft
B10: =_GrossNet -> Brutto- oder Nettomodellierung | E10: Netto | F10: =IF(LEFT($E$10,1)="n",1,0) -> 1
B12: =_SST_currency -> SST-Währung | E12: CHF
B14: =VLOOKUP("T.01.26",Translation,IF(Language="DE",2,IF(Language="FR",3,4)),FALSE) -> Elementarschadenversicherung (ES-Pool Mitglied / übrige ES-AVO-Versicherer) | E14: ES-Pool | F14: =IF($E$14="ES-Pool",1,0) -> 1
B16: =VLOOKUP("T.01.27",Translation,IF(Language="DE",2,IF(Language="FR",3,4)),FALSE) -> Mietkautionsmonoliner | E16: nein | F16: =IF(LEFT($E$16,1)="n",0,1) -> 0
B20: =_comment -> Bemerkungen
B21: =VLOOKUP("T.01.21",Translation,IF(Language="DE",2,IF(Language="FR",3,4)),FALSE) -> Dieses SST-Template enthält Tabellenblätter mit verschiedenen Registerfarben. Es wird die folgende Farbenkonvention verwendet:
B23: =_data -> Angaben | C23: =VLOOKUP("T.01.22",Translation,IF(Language="DE",2,IF(Language="FR",3,4)),FALSE) -> Tabellenblätter, die vom Versicherungsunternehmen auszufüllen sind.
B24: =_parameters -> Parameter | C24: =VLOOKUP("T.01.23",Translation,IF(Language="DE",2,IF(Language="FR",3,4)),FALSE) -> Tabellenblätter mit Informationen, Parametern oder Berechnungen. Diese Tabellenblätter sind in der Regel nicht zu ändern.
B26: =_input -> Eingabe | C26: =VLOOKUP("T.01.24",Translation,IF(Language="DE",2,IF(Language="FR",3,4)),FALSE) -> Eingabefelder: In diesen Feldern werden versicherungsspezifische Angaben erwartet.
C28: =VLOOKUP("T.01.25",Translation,IF(Language="DE",2,IF(Language="FR",3,4)),FALSE) -> In diesen Feldern werden direkte versicherungsspezifische Eingaben für weitere Berechnungen verlinkt.
B30: =VLOOKUP("T.01.29",Translation,IF(Language="DE",2,IF(Language="FR",3,4)),FALSE) -> Vor dem Hochladen auf die EHP muss diese Datei als Exceldatei ohne Makros abgespeichert werden.

Sheet Update
A1: =list_of_sheets!B6 -> 2 | B1: =_Update -> Aktualisierungsliste
B4: =_number -> Nr. | C4: =VLOOKUP("T.02.01",Translation,IF(Language="DE",2,IF(Language="FR",3,4)),FALSE) -> Datum | D4: =_sheet -> Tabellenblatt | E4: =VLOOKUP("T.02.02",Translation,IF(Language="DE",2,IF(Language="FR",3,4)),FALSE) -> Zelle/Bereich | F4: =VLOOKUP("T.02.03",Translation,IF(Language="DE",2,IF(Language="FR",3,4)),FALSE) -> Bemerkung
B5: 1 | C5: 31.10.2021 | D5: NL_Input_SST_Template | E5: E91:E95 | F5: Korrektur Verlinkung der diskontierten Werte statt der undiskontierten Werte
B6: 2 | C6: 31.10.2021 | D6: NL_Input_SST_Template | E6: E99 | F6: Korrektur, dass in dieser Zelle ein Wert angezeigt wird, auch wenn das Blatt NL_Distributitons leer ist.
B7: 3 | C7: 31.10.2021 | D7: Intro_SR_2020_SM_Nonlife | E7: Zeile 18 | F7: Löschen der Inputs für die Option Overdispersion des SST 2021
B8: 4 | C8: 31.10.2021 | D8: NL_Default_Parameter | E8: Block Elementarschadenversicherung | F8: Löschen der Poissonparameter
B9: 5 | C9: 31.10.2021 | D9: NL_Insurance_Risk_default | E9: I69:K70 | F9: Anpassen der Formeln durch Wegfall der Poisson-option für die Elementarschadenversicherung des SST 2021
B10: 6 | C10: 31.10.2021 | D10: NL_Distributions | E10: C5 | F10: Anpassen der Überschrift für die Grossschadenverteilung
B11: 7 | C11: 31.10.2021 | D11: NL_MVM | E11: K8:N12 | F11: Löschung dieser Informationszellen ohne Auswirkung auf Berechnungen
B12: 8 | C12: 31.10.2022 | D12: NL_Input_SST_Template | F12: Einführung benannter Bereiche für Eingabebereiche
B13: 9 | C13: 31.10.2022 | D13: NL_Distributions | F13: Einführung benannter Bereiche für Eingabebereiche
B14: 10 | C14: 31.10.2022 | D14: NL_MVM | F14: Einführung benannter Bereiche für Eingabebereiche
B15: 11 | C15: 31.10.2022 | D15: NL_ExpecdtRes | F15: Einführung benannter Bereiche für Eingabebereiche
B16: 12 | C16: 31.10.2022 | D16: NL_UVG | F16: Einführung benannter Bereiche für Eingabebereiche
B17: 13 | C17: 31.10.2022 | D17: Names | F17: Einfügen eines neuen Tabellenblatts mit der Übersicht aller im Tool verwendeten Bereichsnamen
B18: 14 | C18: 2022-12-09 | D18: Inflationparam | F18: Einfügen eines neuen Tabellenblattes mit den Parametern für das Stagflationsszenario
B19: 15 | C19: 2022-12-09 | D19: NL_Default_Parameter | E19: E59:E69, E78, F89:G91 | F19: Anpassen der Frequenzparameter der Gross-, Kumulschäden und für den ESP
B20: 16 | C20: 2022-12-09 | D20: NL_Insurance_Risk | E20: Spalte E | F20: Anpassen der Berechnung der Normalschäden für Schweizer Geschäft für inflationierte Exposure
B21: 17 | C21: 2022-12-09 | D21: NL_Insurance_Risk_default | E21: E26:E55 | F21: Anpassen der Berechnung der Normalschäden für Schweizer Geschäft für inflationierte Exposure
B22: 18 | C22: 2022-12-09 | D22: NL_Segments_CH_direct | E22: Spalten BE:BH in den Bereichen für die Zahlungsmuster für PY, CY, URR | F22: Anpassung der Berechnung der Barwertfaktoren und neu: Berechnung der Inflationsfaktoren
B23: 19 | C23: 2022-12-09 | D23: NL_Segments_CH_direct | E23: Eingabeblock: PY_Inputs, Spalte G | F23: Berechnung des inflationierten Exposure für PY Risk
B24: 20 | C24: 2022-12-09 | D24: NL_Segments_Non-CH_direct | E24: Eingabeblock: PY_Inputs, Spalte G | F24: Berechnung des inflationierten Exposure für PY Risk
B25: 21 | C25: 2022-12-09 | D25: NL_Segments_active_RI | E25: Eingabeblock: PY_Inputs, Spalte H | F25: Berechnung des inflationierten Exposure für PY Risk
B26: 22 | C26: 2022-12-09 | D26: NL_Insurance_Risk_default | E26: H57:H58 | F26: Berechnung des Diskontfaktors als gewichtetes Mittel
B27: 23 | C27: 2022-12-09 | D27: NL_Insurance_Risk | E27: Spalte H Zeile für Total CY und Total URR | F27: Berechnung des Diskontfaktors als gewichtetes Mittel für CY_total und URR_total
B28: 24 | C28: 2023-12-31 | D28: NL_ExpecdtRes | E28: B20:K30 | F28: Berechnung des erwarteten Ergebnisses nur basierend auf Inflationsschock ohne Rezession
B29: 25 | C29: 2022-12-09 | D29: Inputparam | E29: B72:C74 | F29: Parameter für Rezessionsschock
B30: 26 | C30: 2022-12-09 | D30: NL_Segments_CH_direct | E30: PY_Pattern, CY_Pattern, URR1Yr_Pattern, URR_Pattern | F30: Berechnung des neuen normailisierten totalen Auszahlungsmuster nach Inflationierung aggregiert über alle LOBs
B31: 27 | C31: 2022-12-09 | D31: NL_Segments_Non-CH_direct | E31: PY_Pattern, CY_Pattern, URR1Yr_Pattern, URR_Pattern | F31: Berechnung des neuen normailisierten totalen Auszahlungsmuster nach Inflationierung aggregiert über alle LOBs
B32: 28 | C32: 2022-12-09 | D32: NL_Segments_active_RI | E32: PY_Pattern, CY_Pattern, URR1Yr_Pattern, URR_Pattern | F32: Berechnung des neuen normailisierten totalen Auszahlungsmuster nach Inflationierung aggregiert über alle LOBs
B33: 29 | C33: 2022-12-09 | D33: NL_Segments_Non-CH_direct | E33: Spalten BD:BH in den Bereichen für die Zahlungsmuster für PY, CY, URR | F33: Anpassung der Berechnung der Barwertfaktoren und neu: Berechnung der Inflationsfaktoren
B34: 30 | C34: 2022-12-09 | D34: NL_Insurance_Risk | E34: Non-CH | F34: Berechnung des inflationierten Exposure für CY und URR Risiko
B35: 31 | C35: 2022-12-09 | D35: NL_Insurance_Risk | E35: Non-CH und ActiveRI | F35: Berechnung des Diskontfaktors als gewichtetes Mittel für CY_total und URR_total
B36: 32 | C36: 2022-12-09 | D36: NL_Input_SST_Template | E36: F99 | F36: Multiplikation mit Inflationsfaktor eingefügt
B37: 33 | C37: 2022-12-09 | D37: NL_Input_SST_Template | E37: Eingabeblock Iia | F37: Multiplikation mit Inflationsfaktor eingefügt
B38: 34 | C38: 2022-12-09 | D38: NL_Input_SST_Template | E38: B112 | F38: Bezeichnung angepasst
B39: 35 | C39: 2022-12-09 | D39: NL_MVM | E39: E11:G12 | F39: Multiplikation mit Inflationsfaktor eingefügt
B40: 36 | C40: 2022-12-09 | D40: NL_MVM | E40: E8:G8 | F40: Bezeichnung angepasst
B41: 37 | C41: 2023-01-31 | D41: Inputparam | F41: phi 10/10 Zinksurve aktualisiert
B42: 38 | C42: 2023-02-21 | D42: Inputparam | F42: phi 10/10 Zinksurve aktualisiert konform zu geschockter Zinskurve
B43: 39 | C43: 2023-02-21 | D43: Inputparam | F43: UVG-Sensitivitäten konform zu geschockter Zinskurve

Sheet list_of_sheets
A1: 3 | B1: =_list_of_sheets -> Liste der Arbeitsblätter
B3: =_number -> Nr. | C3: =_sheet -> Tabellenblatt | D3: =_titel -> Titel
B5: 1 | C5: Intro_SM_Nonlife | D5: =_SST_template_name -> SST-Template für die Schadenversicherung
B6: 2 | C6: Update | D6: =_Update -> Aktualisierungsliste
B7: 3 | C7: list_of_sheets | D7: =_list_of_sheets -> Liste der Arbeitsblätter
B8: 4 | C8: Glossary | D8: =_Glossary -> Glossar: Deutsch - Französisch - Englisch
B9: 5 | C9: Inputparam | D9: =_Inputparameter -> Finanzvariablen und SST-Parameter
B10: 5* | C10: Inflationparam | D10: =_Inflationparameter -> Inflation Parameter
B11: 6 | C11: NL_LOB | D11: =_NL_LOB -> Schadenversicherung: SST-Standardversicherungsbranchen
B12: 7 | C12: NL_SST_Default_Payment_Pattern | D12: =_NL_SST_Default_Runoff_Pattern -> Schadenversicherung: Default-Zahlungsmuster
B13: 8 | C13: NL_Default_Parameter | D13: =_NL_Default_Parameter -> Schadenversicherung: Default-Parameter
B14: 9 | C14: NL_Default_Correlations | D14: =_NL_DefaultCorr -> Schadenversicherung: Default-Korrelationsmatrix
B15: 10 | C15: NL_Segments_CH_direct | D15: =_NL_Segments_CH_direct -> Schadenversicherung: Schweizer Direktgeschäft (inklusive Geschäft, das innerhalb des Direktversicherungsabkommen und Elementarschadensversicherungsabkommen in Liechtenstein geschrieben wird)
B16: 11 | C16: NL_Segments_Non-CH_direct | D16: =_NL_Segments_Non_CH_direct -> Schadenversicherung: Ausländisches Direktgeschäft
B17: 12 | C17: NL_Segments_active_RI | D17: =_NL_Segments_active_RI -> Schadenversicherung: Aktive Rückversicherung
B18: 13 | C18: NL_UVG | D18: =_NL_UVG -> Schadenversicherung: UVG
B19: 14 | C19: NL_Insurance_Risk | D19: =_NL_IR -> Schadenversicherung: Berechnung des Versicherungsrisikos für PY-Schäden, CY-Normalschäden und URR-Schäden
B20: 15 | C20: NL_Insurance_Risk_default | D20: =_NL_IR_default -> Schadenversicherung: Versicherungsrisiko Default
B21: 16 | C21: NL_MVM | D21: =_NL_MVM -> Schadenversicherung: Mindestbetrag
B22: 17 | C22: NL_ExpecdtRes | D22: =_NL_Result -> Schadenversicherung: Erwartetes versicherungstechnisches Ergebnis
B23: 18 | C23: NL_Distributions | D23: =_NL_Distr -> Schadenversicherung: Verteilungen
B24: 19 | C24: NL_Input_SST_Template | D24: =_Input_Market_risk -> Schadenversicherung: Eingaben für das Marktrisikostandardmodell und die Aggregation
B25: 20 | C25: NL_Tests | D25: Hilfsblatt: Checks
C26: ValuesCH | D26: =_ValuesCH -> Hilfsblatt: Sicherung der Eingabewerte aus NL_CH_Direct
C27: ValuesNonCH | D27: =_ValuesNonCH -> Hilfsblatt: Sicherung der Eingabewerte aus NL_Non_CH_Direct
C28: ValuesRI | D28: =_ValuesRI -> Hilfsblatt: Sicherung der Eingabewerte aus NL_Active_RI
C29: Names | D29: Angabe aller benannten Bereiche / Zellen im Template

Sheet Glossary
A1: =list_of_sheets!B8 -> 4 | B1: =_Glossary -> Glossar: Deutsch - Französisch - Englisch
B4: Label | C4: Value | D4: Label | E4: Deutsch | F4: Français | G4: English
B6: ="_" & $D6 -> _SST_template_name | C6: =IF(Language="EN",$G6,IF(Language="DE",$E6,$F6)) -> SST-Template für die Schadenversicherung | D6: SST_template_name | E6: SST-Template für die Schadenversicherung | F6: Template SST pour l'assurance dommages | G6: SST template for non-life insurance
B7: _explanation | C7: Erklärungen | D7: explanation | E7: Erklärungen | F7: Explications | G7: Explanations
B8: _comment | C8: Bemerkungen | D8: comment | E8: Bemerkungen | F8: Remarques | G8: Comment
B9: _data | C9: Angaben | D9: data | E9: Angaben | F9: données | G9: Data
B10: _parameters | C10: Parameter | D10: parameters | E10: Parameter | F10: paramètres | G10: Parameters
B11: _input | C11: Eingabe | D11: input | E11: Eingabe | F11: entrée | G11: Input
B12: ="_" & $D12 -> _GrossNet | C12: =IF(Language="EN",$G12,IF(Language="DE",$E12,$F12)) -> Brutto- oder Nettomodellierung | D12: GrossNet | E12: Brutto- oder Nettomodellierung | F12: modélisation brutte ou nette | G12: Gross or net modelling
E13: Beschreibung | F13: description | G13: Description
E14: Wert | F14: valeur | G14: Value
E15: Exponierung | F15: exposition | G15: Exposure
B16: ="_" & $D16 -> _million | C16: =IF(Language="EN",$G16,IF(Language="DE",$E16,$F16)) -> in Mio. | D16: million | E16: in Mio. | F16: en mio. | G16: in million
E17: Schaden | F17: Dommages | G17: Non-life
E18: Kranken | F18: Maladie | G18: Health
B19: =_SST_currency -> SST-Währung | C19: =IF(Language="EN",$G19,IF(Language="DE",$E19,$F19)) -> SST-Währung | D19: SST_currency | E19: SST-Währung | F19: Monnaie du SST | G19: SST currency
E20: Erwartetes versicherungstechnisches Ergebnis | F20: Résultat d'assurance attendu | G20: Expected insurance result
B21: ="_" & $D21 -> _VU_name | C21: =IF(Language="EN",$G21,IF(Language="DE",$E21,$F21)) -> Name der Versicherungsgesellschaft | D21: VU_name | E21: Name der Versicherungsgesellschaft | F21: Nom de la société d'assurance | G21: Name of the insurance company
D22: T.01.21 | E22: Dieses SST-Template enthält Tabellenblätter mit verschiedenen Registerfarben. Es wird die folgende Farbenkonvention verwendet: | F22: Ce template SST contient des feuilles avec des onglets de différentes couleurs. La convention suivante s'applique: | G22: This SST template includes worksheets with different tab colors. The following color convention is used.
D23: T.01.22 | E23: Tabellenblätter, die vom Versicherungsunternehmen auszufüllen sind. | F23: Feuilles que la société d'assurance doit compléter. | G23: Worksheets that are to be completed by the insurance company.
D24: T.01.23 | E24: Tabellenblätter mit Informationen, Parametern oder Berechnungen. Diese Tabellenblätter sind in der Regel nicht zu ändern. | F24: Feuilles avec informations, paramètres ou calculs. En principe ces feuilles ne doivent pas être modifiées. | G24: Worksheets with information, parameters or calculations. Normally, these worksheets are not to be modified.
D25: T.01.24 | E25: Eingabefelder: In diesen Feldern werden versicherungsspezifische Angaben erwartet. | F25: Champs d'entrée: dans ces cellules les données spécifiques à la société d'assurance doivent être entrées. | G25: Input fields: These cells ask for insurance company specific information.
D26: T.01.25 | E26: In diesen Feldern werden direkte versicherungsspezifische Eingaben für weitere Berechnungen verlinkt. | F26: Champs reliés aux informations spécifiques à la société d'assurance pour emploi dans d'autres calculs. | G26: In these cells information will be linked from direct inputs for further calculations.
D27: T.01.26 | E27: Elementarschadenversicherung (ES-Pool Mitglied / übrige ES-AVO-Versicherer) | F27: Dommages dus à des événements naturels (pool DN / autres assureurs DN-OS) | G27: Swiss natural perils insurance (ES-Pool Member / other ES-AVO-Insurer)
D28: T.01.27 | E28: Mietkautionsmonoliner | F28: Monoliner en garantie de loyer | G28: Monoliner for surety insurance of rent deposits
D29: T.01.28 | E29: Modellierung der Overdispersion | F29: Modélisation de la overdispersion | G29: Modelling of overdispersion
D30: T.01.29 | E30: Vor dem Hochladen auf die EHP muss diese Datei als Exceldatei ohne Makros abgespeichert werden. | F30: Avant d'être téléchargé sur l'EHP, ce fichier doit être sauvegardé sous forme de fichier Excel sans macros. | G30: Before uploading to the EHP, this file must be saved as an Excel file without macros.
B31: ="_" & $D31 -> _MarketRisk | C31: Marktrisiko | D31: MarketRisk | E31: Marktrisiko | F31: Risques de marché | G31: Market risk
B32: ="_" & $D32 -> _CreditRisk | C32: Kreditrisiko | D32: CreditRisk | E32: Kreditrisiko | F32: Risques de crédit | G32: Credit risk
E33: Versicherungsrisiko - Leben | F33: Risques d'assurance - vie | G33: Insurance risk - life
E34: Versicherungsrisiko - Schaden | F34: Risques d'assurance - dommage | G34: Insurance risk - non-life
E35: Versicherungsrisiko - Kranken | F35: Risques d'assurance - maladie | G35: Insurance risk - health
E36: Versicherungsrisiko - Rückversicherung | F36: Risques d'assurance - réassurance | G36: Insurance risk - reinsurance
E37: Versicherungsrisiko - Rückversicherungscaptives | F37: Risques d'assurance - captives de réassurance | G37: Insurance risk - reinsurance captives
E38: Versicherungsrisiko - Naturkatastrophenrisiken | F38: Risques d'assurance - risques de catastrophes naturelles | G38: Insurance risk - natural catastrophe risks
B39: ="_" & $D39 -> _URR_Option | C39: URR-Modellierung: | D39: URR_Option | E39: URR-Modellierung: | F39: modélisation URR: | G39: URR modelling:
A40: f
B41: ="_" & $D41 -> _Update | C41: Aktualisierungsliste | D41: Update | E41: Aktualisierungsliste | F41: Liste des mises-à-jour | G41: Update list
D42: T.02.01 | E42: Datum | F42: Date | G42: Date
D43: T.02.02 | E43: Zelle/Bereich | F43: Cellule/plage | G43: Cell/range
D44: T.02.03 | E44: Bemerkung | F44: Remarque | G44: Comment
B46: ="_" & $D46 -> _list_of_sheets | C46: Liste der Arbeitsblätter | D46: list_of_sheets | E46: Liste der Arbeitsblätter | F46: Liste des feuilles de calculs | G46: List of worksheets
B47: _sheet | C47: Tabellenblatt | D47: sheet | E47: Tabellenblatt | F47: Feuille de calcul | G47: Worksheet
B48: _number | C48: Nr. | D48: number | E48: Nr. | F48: n° | G48: No.
B49: _titel | C49: Titel | D49: titel | E49: Titel | F49: Titre | G49: Title
B50: _ValuesCH | C50: =IF(Language="EN",$G50,IF(Language="DE",$E50,$F50)) -> Hilfsblatt: Sicherung der Eingabewerte aus NL_CH_Direct | D50: ValuesCH | E50: Hilfsblatt: Sicherung der Eingabewerte aus NL_CH_Direct | F50: Feuille auxiliaire: préservation des valeurs en entrée de NL_CH_Direct | G50: Auxiliary Sheet: Preservation of inputvalues from NL_CH_Direct
B51: _ValuesNonCH | C51: =IF(Language="EN",$G51,IF(Language="DE",$E51,$F51)) -> Hilfsblatt: Sicherung der Eingabewerte aus NL_Non_CH_Direct | D51: ValuesNonCH | E51: Hilfsblatt: Sicherung der Eingabewerte aus NL_Non_CH_Direct | F51: Feuille auxiliaire: préservation des valeurs en entrée de NL_Non_CH_Direct | G51: Auxiliary Sheet: Preservation of inputvalues from NL_Non_CH_Direct
B52: _ValuesRI | C52: =IF(Language="EN",$G52,IF(Language="DE",$E52,$F52)) -> Hilfsblatt: Sicherung der Eingabewerte aus NL_Active_RI | D52: ValuesRI | E52: Hilfsblatt: Sicherung der Eingabewerte aus NL_Active_RI | F52: Feuille auxiliaire: préservation des valeurs en entrée de NL_Active_RI | G52: Auxiliary Sheet: Preservation of inputvalues from ActiveRI
B54: ="_" & $D54 -> _Glossary | C54: Glossar: Deutsch - Französisch - Englisch | D54: Glossary | E54: Glossar: Deutsch - Französisch - Englisch | F54: Glossaire : allemand - français - anglais | G54: Glossary: German - French - English
B57: ="_" & $D57 -> _Inputparameter | C57: Finanzvariablen und SST-Parameter | D57: Inputparameter | E57: Finanzvariablen und SST-Parameter | F57: Variables financières et paramètres SST | G57: Financial variables and SST parameters
B58: _RiskfreeRates | C58: Risikolose Zinskurven r(t) per 31.12.2022 | D58: RiskfreeRates | E58: ="Risikolose Zinskurven r(t) per 31.12."& current_year-1 -> Risikolose Zinskurven r(t) per 31.12.2022 | F58: ="Taux d'interêt sans risque r(t) au 31.12." & current_year-1 -> Taux d'interêt sans risque r(t) au 31.12.2022 | G58: ="Risk-free interest rates r(t) as of 31.12." & current_year-1 -> Risk-free interest rates r(t) as of 31.12.2022
B59: _Diskontfaktoren | C59: Diskontfaktoren auf Basis der risikolose Zinskurven r(t); Diskontfunktion n(t) = (1+r(t))^(-t) | D59: Diskontfaktoren | E59: Diskontfaktoren auf Basis der risikolose Zinskurven r(t); Diskontfunktion n(t) = (1+r(t))^(-t) | F59: Facteurs d'actualisation basés sur les taux d'interêts sans risque r(t); fonction d'actualisation n(t) = (1+r(t))^(-t) | G59: Discount factors based on the risk-free interest rates r(t); discount function n(t) = (1+r(t))^(-t)
B60: _ExchangeRates | C60: =IF(Language="EN",$G60,IF(Language="DE",$E60,$F60)) -> Wechselkurse per 31.12.2022 | D60: ExchangeRates | E60: ="Wechselkurse per 31.12."& current_year-1 -> Wechselkurse per 31.12.2022 | F60: ="Taux de change au 31.12."& current_year-1 -> Taux de change au 31.12.2022 | G60: ="Foreign exchange rates as of 31.12."& current_year-1 -> Foreign exchange rates as of 31.12.2022
B61: _YieldCurve | C61: Zinskurve | D61: YieldCurve | E61: Zinskurve | F61: courbe de taux | G61: yield curve
B62: ="_" & $D62 -> _CPI_CH | C62: =IF(Language="EN",$G62,IF(Language="DE",$E62,$F62)) -> Verbraucherpreisinflation CHF | D62: CPI_CH | E62: Verbraucherpreisinflation CHF | F62: Inflation de l'indice des prix à la consommation CHF | G62: Consumer price inflation CHF
B63: ="_" & $D63 -> _CHF_TrueInterest | C63: =IF(Language="EN",$G63,IF(Language="DE",$E63,$F63)) -> CHF-Kurve der realen Zinssätze | D63: CHF_TrueInterest | E63: CHF-Kurve der realen Zinssätze | F63: courbe de taux d'intérêt réels CHF | G63: CHF real yield curve
B64: ="_" & $D64 -> _CHF_TrueInterest_Diskont | C64: =IF(Language="EN",$G64,IF(Language="DE",$E64,$F64)) -> Diskontfaktoren CHF-Realzinskurve | D64: CHF_TrueInterest_Diskont | E64: Diskontfaktoren CHF-Realzinskurve | F64: facteurs d'actualisation basés sur les taux d'interêt réels CHF | G64: Discount factor of CHF real yield curve
B65: ="_" & $D65 -> _Currency | C65: =IF(Language="EN",$G65,IF(Language="DE",$E65,$F65)) -> Währung | D65: Currency | E65: Währung | F65: monnaie | G65: Currency
B66: ="_" & $D66 -> _ConvidenceLevel | C66: =IF(Language="EN",$G66,IF(Language="DE",$E66,$F66)) -> Konfidenzniveau | D66: ConvidenceLevel | E66: Konfidenzniveau | F66: Niveau de confiance | G66: Confidence level
D67: T.05.01 | E67: UVG: phi(10/10) - Zinskurve und reale Zinskurve i(t) mit entsprechenden Diskontfaktoren | F67: LAA: courbe de taux phi(10/10) et courbe de taux d'interêt réels i(t) avec facteurs d'actualisation correspondants | G67: UVG: phi(10/10) - yield curve and real yield curve i(t) with corresponding discount factors
D68: T.05.02 | E68: UVG: Differenz zwischen den Diskontfaktoren bezüglich risikoloser Zinskurve r(t) und den Diskontfaktoren bezüglich phi(10/10) - Zinskurve (pro Laufzeit) für ausgelenkte risikolose Zinsen r(t) | F68: LAA: Différence entre facteurs d'actualisation relatifs aux taux sans risque et ceux relatifs aux courbes de taux phi(10/10), par échéance, pour les taux sans risque déviés r(t) | G68: UVG: Difference between discount factors with risk-free rates and discount factors with phi(10/10) yield curve w.r.t deflected risk-free rates r(t)
D69: T.05.03 | E69: Quelle: Technische Beschreibung zum SST-Standardmodell Schadenversicherung, Anhang UVG | F69: Source: Décrit dans la description technique du modèle standard SST dommages, annexe LAA | G69: Source: Technical description of the SST standard model for non-life insurance: appendix UVG.
D70: T.05.04 | E70: Kapitalkosten (CoC, über der risikofreien Rate für ein Jahr) zur Berechnung des Mindestbetrags | F70: Coûts du capital (CoC, excédant le taux sans risque pour une année) pour le calcul de montant minimum | G70: Cost of capital (CoC, over risk-free interest rate for one year) for the calculation of the market value margin
D71: T.05.05 | E71: Quelle: Für CHF: FINMA-Berechnungen basieren auf SNB Daten. Alle anderen Währungen: FINMA-Berechnungen basierend auf Bloomberg Daten. | F71: Source: Pour les CHF: les calculs de la FINMA sont basés sur les données de la BNS. Pour les autres devises: les calculs de la FINMA sont basés sur les données de Bloomberg. | G71: Source: for CHF: FINMA calculations based on SNB data. All other currencies: FINMA calculations based on Bloomberg data.
D72: T.05.06 | E72: Rezession - Annahmen - Reduktion des erwarteten versicherungstechnischen Ergebnisses in % | F72: Récession - hypothèses - réduction du résultat d'assurance attendu en % | G72: Recession - Assumptions - Reduction of the expected technical insurance result in %
D73: T.05.07 | E73: Reduktion Erwartetes Ergebnis | F73: Réduction du résultat d'assurance attendu | G73: Reduction of expected Result
B75: ="_" & $D75 -> _Inflationparameter | C75: =IF(Language="EN",$G75,IF(Language="DE",$E75,$F75)) -> Inflation Parameter | D75: Inflationparameter | E75: Inflation Parameter | F75: Paramètres d'inflation | G75: Inflation parameter
B76: _Inflationrates | C76: Delta Erwartete Inflationsraten (forward rates) per 31.12.2022 | D76: Inflationrates | E76: ="Delta Erwartete Inflationsraten (forward rates) per 31.12."& current_year-1 -> Delta Erwartete Inflationsraten (forward rates) per 31.12.2022 | F76: ="Delta Taux d'inflation attendu (forward rates) au 31.12." & current_year -> Delta Taux d'inflation attendu (forward rates) au 31.12.2023 | G76: ="Delta expected inflation rates (forward rates) as of 31/12/"& current_year-1 -> Delta expected inflation rates (forward rates) as of 31/12/2022
B77: _year | C77: Jahr | D77: year | E77: Jahr | F77: anneé | G77: Year
B78: ="_" & $D78 -> _CPI_CH_chg | C78: =IF(Language="EN",$G78,IF(Language="DE",$E78,$F78)) -> Modifikation der Verbraucherpreisinflation CHF | D78: CPI_CH_chg | E78: Modifikation der Verbraucherpreisinflation CHF | F78: Modification de l'inflation de l'indice des prix à la consommation CHF | G78: Change in consumer price inflation CHF
B79: _CPI_EU_chg | C79: Modifikation der Verbraucherpreisinflation EUR | D79: CPI_EU_chg | E79: Modifikation der Verbraucherpreisinflation EUR | F79: Modification de l'inflation de l'indice des prix à la consommation EUR | G79: Change in consumer price inflation EUR
B80: _Wages_CH_chg | C80: Modifikation der Lohnkosteninflation CHF | D80: Wages_CH_chg | E80: Modifikation der Lohnkosteninflation CHF | F80: Modification de l'inflation des salaires CHF | G80: Change in wages inflation CHF
B81: _Wages_EU_chg | C81: Modifikation der Lohnkosteninflation EUR | D81: Wages_EU_chg | E81: Modifikation der Lohnkosteninflation EUR | F81: Modification de l'inflation des salaires EUR | G81: Change in wages inflation index EUR
B82: _InflationFactors | C82: Inflationsfaktoren f_Infl(t) auf Basis der Deltainflationsparameter r_Infl(t) pro SST-Standardversicherungsbranche | D82: InflationFactors | E82: ="Inflationsfaktoren f_Infl(t) auf Basis der Deltainflationsparameter r_Infl(t) pro " & _NL_LOB_default -> Inflationsfaktoren f_Infl(t) auf Basis der Deltainflationsparameter r_Infl(t) pro SST-Standardversicherungsbranche | F82: Facteurs d'inflation f_Infl(t) basés sur le delta taux d'inflation r_Infl(t) par branche standard SST | G82: ="Inflation factors f_Infl(t) based on the delta inflation parameter r_Infl(t) by " & _NL_LOB_default -> Inflation factors f_Infl(t) based on the delta inflation parameter r_Infl(t) by SST-Standardversicherungsbranche
B83: _Inflationrates_per_LOB | C83: Delta Erwartete Inflationsraten (forward rates) pro SST-Standardversicherungsbranche per 31.12.2022 | D83: Inflationrates_per_LOB | E83: ="Delta Erwartete Inflationsraten (forward rates) pro " & _NL_LOB_default & " per 31.12."& current_year-1 -> Delta Erwartete Inflationsraten (forward rates) pro SST-Standardversicherungsbranche per 31.12.2022 | F83: ="Delta Taux d'inflation attendu (forward rates) au 31.12." & current_year & " par " & _NL_LOB_default -> Delta Taux d'inflation attendu (forward rates) au 31.12.2023 par SST-Standardversicherungsbranche | G83: ="Delta expected inflation rates (forward rates) as of 31/12/"& current_year-1 & " by " & _NL_LOB_default -> Delta expected inflation rates (forward rates) as of 31/12/2022 by SST-Standardversicherungsbranche
B84: _Mix_per_LOB_PY | C84: Gewichte der Inflationsparameter pro SST-Standardversicherungsbranche für PY | D84: Mix_per_LOB_PY | E84: ="Gewichte der Inflationsparameter pro " & _NL_LOB_default & " für PY" -> Gewichte der Inflationsparameter pro SST-Standardversicherungsbranche für PY | F84: ="Poids des paramètres d'inflation par " & _NL_LOB_default & " pour PY" -> Poids des paramètres d'inflation par SST-Standardversicherungsbranche pour PY | G84: ="Weights of inflation parameter by " & _NL_LOB_default & " for PY" -> Weights of inflation parameter by SST-Standardversicherungsbranche for PY
B85: _Mix_per_LOB_CY | C85: Gewichte der Inflationsparameter pro SST-Standardversicherungsbranche für CY | D85: Mix_per_LOB_CY | E85: ="Gewichte der Inflationsparameter pro " & _NL_LOB_default & " für CY" -> Gewichte der Inflationsparameter pro SST-Standardversicherungsbranche für CY | F85: ="Poids des paramètres d'inflation par " & _NL_LOB_default & " pour CY" -> Poids des paramètres d'inflation par SST-Standardversicherungsbranche pour CY | G85: ="Weights of inflation parameter by " & _NL_LOB_default & " for CY" -> Weights of inflation parameter by SST-Standardversicherungsbranche for CY
B86: _Mix_per_LOB_URR | C86: Gewichte der Inflationsparameter pro SST-Standardversicherungsbranche für URR | D86: Mix_per_LOB_URR | E86: ="Gewichte der Inflationsparameter pro " & _NL_LOB_default & " für URR" -> Gewichte der Inflationsparameter pro SST-Standardversicherungsbranche für URR | F86: ="Poids des paramètres d'inflation par " & _NL_LOB_default & " pour URR" -> Poids des paramètres d'inflation par SST-Standardversicherungsbranche pour URR | G86: ="Weights of inflation parameter by " & _NL_LOB_default & " for URR" -> Weights of inflation parameter by SST-Standardversicherungsbranche for URR
B87: ="_" & $D87 -> _Inflationfactors_NonCH | C87: =IF(Language="EN",$G87,IF(Language="DE",$E87,$F87)) -> Inflationsfaktoren f_Infl(t) auf Basis der Deltainflationsparameter r_Infl(t) pro LOB für Nichtschweizer Direktgeschäft | D87: Inflationfactors_NonCH | E87: ="Inflationsfaktoren f_Infl(t) auf Basis der Deltainflationsparameter r_Infl(t) pro LOB für Nichtschweizer Direktgeschäft" -> Inflationsfaktoren f_Infl(t) auf Basis der Deltainflationsparameter r_Infl(t) pro LOB für Nichtschweizer Direktgeschäft | F87: ="Facteurs d'inflation f_Infl(t) basés sur le delta taux d'inflation r_Infl(t) par LOB pour les affaires étrangères non suisses" -> Facteurs d'inflation f_Infl(t) basés sur le delta taux d'inflation r_Infl(t) par LOB pour les affaires étrangères non suisses | G87: ="Inflation factors f_Infl(t) based on the delta inflation parameter r_Infl(t) by LOB for Non-Swiss direct business" -> Inflation factors f_Infl(t) based on the delta inflation parameter r_Infl(t) by LOB for Non-Swiss direct business
B88: _Inflationfactors_ARI | C88: Inflationsfaktoren f_Infl(t) auf Basis der Deltainflationsparameter r_Infl(t) pro LOB für Aktive Rückversicherung | D88: Inflationfactors_ARI | E88: ="Inflationsfaktoren f_Infl(t) auf Basis der Deltainflationsparameter r_Infl(t) pro LOB für Aktive Rückversicherung" -> Inflationsfaktoren f_Infl(t) auf Basis der Deltainflationsparameter r_Infl(t) pro LOB für Aktive Rückversicherung | F88: ="Facteurs d'inflation f_Infl(t) basés sur le delta taux d'inflation r_Infl(t) par LOB pour la réassurance active" -> Facteurs d'inflation f_Infl(t) basés sur le delta taux d'inflation r_Infl(t) par LOB pour la réassurance active | G88: ="Inflation factors f_Infl(t) based on the delta inflation parameter r_Infl(t) by LOB for active reinsurance business" -> Inflation factors f_Infl(t) based on the delta inflation parameter r_Infl(t) by LOB for active reinsurance business
B89: _StandRe_g_factor | C89: StandRe g Faktor pro LOB und Vertragstyp: proportional / nicht-proportional | D89: StandRe_g_factor | E89: StandRe g Faktor pro LOB und Vertragstyp: proportional / nicht-proportional | F89: StandRe facteur g par LOB et treaty type proportional / non-proportional | G89: StandRe g factor by LOB and treaty type: proportional / non-proportional
B90: _Non_CH_lookup | C90: Inflationssegment für Non_CH-Direct | D90: Non_CH_lookup | E90: Inflationssegment für Non_CH-Direct | F90: le segment de l'inflation pour Non_CH-Direct | G90: Segment for inflation for Non_CH-Direct
B91: _ARI_lookup | C91: Inflationssegment für ActiveRI | D91: ARI_lookup | E91: Inflationssegment für ActiveRI | F91: le segment de l'inflation pour ActiveRI | G91: Segment for inflation for ActiveRI
B94: ="_" & $D94 -> _NL_LOB | C94: =IF(Language="EN",$G94,IF(Language="DE",$E94,$F94)) -> Schadenversicherung: SST-Standardversicherungsbranchen | D94: NL_LOB | E94: Schadenversicherung: SST-Standardversicherungsbranchen | F94: Assurance dommages: branches standard SST | G94: Non-life: SST lines of business
B95: ="_" & $D95 -> _MTPL | C95: MFH | D95: MTPL | E95: MFH | F95: responsabilité civile véhicules à moteur | G95: Motor liability
B96: _MOD | C96: MFK | D96: MOD | E96: MFK | F96: casco véhicules à moteur | G96: Motor hull
B97: _Fire | C97: Sach | D97: Fire | E97: Sach | F97: biens (choses) | G97: Property
B98: _Fire_with_Elementar | C98: Sach inkl. Elementarschadenpool | D98: Fire_with_Elementar | E98: Sach inkl. Elementarschadenpool | F98: biens incluant le pool des dommages dus à des événements naturels | G98: Property including natural perils pool
B99: _Fire_no_Elementar | C99: Sach ohne Elementarschadenpool | D99: Fire_no_Elementar | E99: Sach ohne Elementarschadenpool | F99: biens excluant le pool des dommages dus à des événements naturels | G99: Property excluding natural perils pool
B100: _GL | C100: Haftpflicht | D100: GL | E100: Haftpflicht | F100: responsabilité civile | G100: General liability
B101: _AccMandatory | C101: UVG | D101: AccMandatory | E101: UVG | F101: LAA | G101: Accident, mandatory
B102: _AccMandatory_Annuities | C102: UVG-Renten | D102: AccMandatory_Annuities | E102: UVG-Renten | F102: LAA, rentes | G102: Accident, mandatory, annuities
B103: _AccMandatory_noAnnuities | C103: UVG, nicht verrentete Fälle | D103: AccMandatory_noAnnuities | E103: UVG, nicht verrentete Fälle | F103: LAA, cas sans rentes | G103: Accident, mandatory, no annuities
B104: _AccOptional | C104: Unfall ohne UVG | D104: AccOptional | E104: Unfall ohne UVG | F104: accidents sans LAA | G104: Accident, optional
B105: _Health_Collective | C105: Kollektivtaggeld | D105: Health_Collective | E105: Kollektivtaggeld | F105: collective indemnités journalières | G105: Collective workers compensation
B106: _Health_Individual | C106: Einzelkranken | D106: Health_Individual | E106: Einzelkranken | F106: maladie individuelle | G106: Individual health
B107: _Marine | C107: Transport | D107: Marine | E107: Transport | F107: transports | G107: Transport
B108: _Aviation | C108: Luftfahrt | D108: Aviation | E108: Luftfahrt | F108: aviation | G108: Aviation
B109: _CreditSurety | C109: Finanz und Kaution | D109: CreditSurety | E109: Finanz und Kaution | F109: financement et caution | G109: Credit & Surety
B110: _CautionMonoliner | C110: Mietkautionsmonoliner | D110: CautionMonoliner | E110: Mietkautionsmonoliner | F110: Monoliner en garantie de loyer | G110: Monoliner for surety insurance of rent deposits
B111: _Legal | C111: Rechtsschutz | D111: Legal | E111: Rechtsschutz | F111: protection juridique | G111: Legal
B112: _Others | C112: Andere | D112: Others | E112: Andere | F112: autres | G112: Others
B113: _Description | C113: Erläuterung | D113: Description | E113: Erläuterung | F113: Explication | G113: Description
B115: ="_" & $D115 -> _NL_SST_Default_Runoff_Pattern | C115: =IF(Language="EN",$G115,IF(Language="DE",$E115,$F115)) -> Schadenversicherung: Default-Zahlungsmuster | D115: NL_SST_Default_Runoff_Pattern | E115: Schadenversicherung: Default-Zahlungsmuster | F115: Assurance dommages: cadences de liquidation par défaut | G115: Non-life: Standard payment patterns
B116: ="_" & $D116 -> _DevYr | C116: Abwicklungsjahr | D116: DevYr | E116: Abwicklungsjahr | F116: année de liquidation | G116: Development year
B117: _IncPP | C117: Inkrementelle Zahlungsmuster | D117: IncPP | E117: Inkrementelle Zahlungsmuster | F117: Cadence de paiements incrémentielle | G117: Incremental payment pattern for claims
B118: _CumPP | C118: Kumulative Zahlungsmuster | D118: CumPP | E118: Kumulative Zahlungsmuster | F118: Cadence de paiements cumulative | G118: Cumulative payment pattern for claims
B119: _ResPP | C119: Standardauszahlungsmuster der Rückstellungen | D119: ResPP | E119: Standardauszahlungsmuster der Rückstellungen | F119: Cadence de liquidation par défaut des provisions pour sinistres | G119: Default payment pattern of year end provisions for claims
B120: _ForOneAccYr_ex5b | C120: für ein Schadenjahr (ausser 5b) | D120: ForOneAccYr_ex5b | E120: für ein Schadenjahr (ausser 5b) | F120: pour une année d'occurence (sauf 5b) | G120: of one accident year (except for 5b)
B121: _KurzFrist | C121: Kurzfristleistungen | D121: KurzFrist | E121: Kurzfristleistungen | F121: prestations à court terme | G121: short-term benefits
B122: _LangFrist | C122: Langfristleistungen | D122: LangFrist | E122: Langfristleistungen | F122: prestations à long terme | G122: long-term benefits
B123: _PV_Factor | C123: Barwertfaktor | D123: PV_Factor | E123: Barwertfaktor | F123: facteur d'actualisation | G123: Present value factor
B124: _PV_Factor_Infl | C124: adjustierter Barwertfaktor nach Inflation | D124: PV_Factor_Infl | E124: adjustierter Barwertfaktor nach Inflation | F124: facteur d'actualisation ajusté après inflation | G124: adjusted present value factor after inflation
B125: _Inflation_Factor_CY_default | C125: Default Inflationsfaktor für CY | D125: Inflation_Factor_CY_default | E125: Default Inflationsfaktor für CY | F125: facteur d'inflation par défaut pour CY | G125: Default inflation factor for CY
B126: _Inflation_Factor | C126: Inflationsfaktor (Gesamteffekt) | D126: Inflation_Factor | E126: Inflationsfaktor (Gesamteffekt) | F126: facteur d'inflation (effet total) | G126: Inflation factor (total effect)
B127: _payments_in | C127: falls Zahlungen in | D127: payments_in | E127: falls Zahlungen in | F127: si les paiements sont en | G127: if all payments are in
D128: T.07.01 | E128: Für ausgewählte SST-Standardversicherungsbranchen werden Default-Auszahlungsmuster zur Verfügung gestellt. | F128: Des cadences de liquidation par défault sont mises à disposition pour les branches standard SST sélectionnées. | G128: Default payment pattern are provided for specific SST lines of business.
D129: T.07.02 | E129: Deren Verwendung ist zulässig im Fall, dass die unternehmenseigene Datenbasis zur Berechnung von Abwicklungsmustern nicht ausreichend ist. | F129: Leur emploi peut être admis si les propres données de la société d'assurance sont insuffisantes pour en tirer des cadences de liquidation. | G129: These can be utilized in case the company's data history is insufficient.
D130: T.07.03 | E130: Standardabwicklungsmuster der Rückstellungen für ein Schadenjahr (ausser 5b) | F130: Cadence de liquidation par défaut des provisions pour sinistres pour une année d'occurence (sauf 5b) | G130: Default development pattern of year end provisions for claims for a single accident year (except for 5b)
B132: ="_" & $D132 -> _NL_Default_Parameter | C132: =IF(Language="EN",$G132,IF(Language="DE",$E132,$F132)) -> Schadenversicherung: Default-Parameter | D132: NL_Default_Parameter | E132: Schadenversicherung: Default-Parameter | F132: Assurance dommages: valeurs par défaut des paramètres | G132: Non-life: Default parameters
B133: _NL_LOB_default | C133: SST-Standardversicherungsbranche | D133: NL_LOB_default | E133: SST-Standardversicherungsbranche | F133: branche standard SST | G133: SST line of business
B134: _Model_risk | C134: Modellrisiko | D134: Model_risk | E134: Modellrisiko | F134: risque de modèle | G134: Model risk
B135: _Parameter_risk | C135: Parameterrisiko | D135: Parameter_risk | E135: Parameterrisiko | F135: risque de paramètre | G135: Parameter risk
B136: _Estimation_Risk | C136: Zufallsrisiko | D136: Estimation_Risk | E136: Zufallsrisiko | F136: risque aléatoire | G136: Estimation risk
B137: _CV | C137: Variationskoeffizient | D137: CV | E137: Variationskoeffizient | F137: coefficient de variation | G137: Coefficient of variation
B138: _Attritional | C138: Normalschäden | D138: Attritional | E138: Normalschäden | F138: sinistres ordinaires | G138: Attritional claims
B139: _Large | C139: Grossschäden | D139: Large | E139: Grossschäden | F139: grand sinistres | G139: Large claims
B140: _Event | C140: Kumulschäden | D140: Event | E140: Kumulschäden | F140: sinistres événementiels | G140: Event claims
B141: _ES_AVO_param | C141: Parameter für Elementarschadenversicherung | D141: ES_AVO_param | E141: Parameter für Elementarschadenversicherung | F141: paramètres pour dommages dus à des événements naturels | G141: Parameter for Swiss natural perils
B142: _ESV | C142: Elementarschadenversicherung ES-AVO | D142: ESV | E142: Elementarschadenversicherung ES-AVO | F142: dommages dus à des événements naturels DN-OS | G142: Swiss natural perils insurance ES-AVO
B143: _ESP | C143: Elementarschadenpool | D143: ESP | E143: Elementarschadenpool | F143: pool des dommages dus à des événements naturels | G143: Swiss natural perils pool
B144: _ESP_in_Parenthesis | C144: (Elementarschadenpool) | D144: ESP_in_Parenthesis | E144: (Elementarschadenpool) | F144: (pool des dommages dus à des événements naturels) | G144: (Swiss natural perils pool)
B145: _Claims | C145: Schäden | D145: Claims | E145: Schäden | F145: sinistres | G145: Claims
B146: _for_single_risks | C146: für Einzelschäden kleiner als | D146: for_single_risks | E146: für Einzelschäden kleiner als | F146: pour sinistres individuels inférieurs à | G146: for single risks less than
B147: _risk | C147: Risiko | D147: risk | E147: Risiko | F147: risque | G147: Risk
B148: _CY_EL_No_market | C148: Erwartete Anzahl der Ereignisse (Marktgrossschäden) | D148: CY_EL_No_market | E148: Erwartete Anzahl der Ereignisse (Marktgrossschäden) | F148: nombre attendu d'événements (sinistres touchant au marché) | G148: Expected number of events (market loss)
B149: _ScaleParameter | C149: Skalierungsparameter | D149: ScaleParameter | E149: Skalierungsparameter | F149: paramètre d'échelle | G149: Scale parameter
B150: _CY_EL_lwrBd | C150: Marktgrossschadengrenze (untere Grenze der Paretoverteilung) | D150: CY_EL_lwrBd | E150: Marktgrossschadengrenze (untere Grenze der Paretoverteilung) | F150: seuil des sinistres touchant au marché (limite inférieure de la distribution de Pareto) | G150: Market loss threshold (lower bound of Pareto distribution)
B151: _CY_EL_uprBd | C151: Obere Grenze der Paretoverteilung | D151: CY_EL_uprBd | E151: Obere Grenze der Paretoverteilung | F151: limite supérieure de la distribution de Pareto | G151: Upper bound of Pareto distribution
D152: T.08.01 | E152: Anteil der Anzahl Grossschäden bezüglich der Anzahl der Normalschäden bei einer Grossschadengrenze von | F152: Quotient du nombre de grands sinistres rapportés au nombre de sinistres ordinaires, pour un seuil de grands sinsitres de | G152: Portion of number of large losses to number of normal losses at large loss threshold of
D153: T.08.02 | E153: Einzelschadenverteilung: Pareto - a bei einer Grossschadengrenze von | F153: Distribution des sinistres individuels: Pareto-alpha pour un seuil de grands sinsitres de | G153: Single risk dsitribution: Pareto-alpha at a large loss threshold of
D154: T.08.03 | E154: unlimitiert, (nicht UVG: 20-50 Mio. CHF) | F154: illimité (non LAA: 10-50 mio. CHF) | G154: unlimited (Non-UVG: 10-50 million CHF)
D155: T.08.04 | E155: Übrige Elementarschäden | F155: autres dommages naturels | G155: Other natural perils
D156: T.08.05 | E156: Zielgruppe | F156: groupe cible | G156: Target group
D157: T.08.06 | E157: ESP - Mitglied | F157: membre du pool DN | G157: ESP - member
D158: T.08.07 | E158: übrige ES-AVO Versicherer | F158: autres assureurs DN-OS | G158: other ES-AVO insurer
D159: T.08.08 | E159: Alle | F159: tous | G159: All
B161: ="_" & $D161 -> _NL_DefaultCorr | C161: =IF(Language="EN",$G161,IF(Language="DE",$E161,$F161)) -> Schadenversicherung: Default-Korrelationsmatrix | D161: NL_DefaultCorr | E161: Schadenversicherung: Default-Korrelationsmatrix | F161: Assurance dommages: matrice de corrélations | G161: Non-life: Default correlation matrix
B164: ="_" & $D164 -> _NL_Segments_CH_direct | C164: =IF(Language="EN",$G164,IF(Language="DE",$E164,$F164)) -> Schadenversicherung: Schweizer Direktgeschäft (inklusive Geschäft, das innerhalb des Direktversicherungsabkommen und Elementarschadensversicherungsabkommen in Liechtenstein geschrieben wird) | D164: NL_Segments_CH_direct | E164: Schadenversicherung: Schweizer Direktgeschäft (inklusive Geschäft, das innerhalb des Direktversicherungsabkommen und Elementarschadensversicherungsabkommen in Liechtenstein geschrieben wird) | F164: Assurance dommages: Affaires suisses directes (y compris affaires souscrites au Liechtenstein sous l'accord sur l'assurance directe et l'accord sur l'assurance des dommages dus à des événements naturels ) | G164: Non-life: Swiss insurance business (inclusive business, which is written in Liechtenstein according to the International agreement with the Principality of Liechtenstein on direct insurance and the International agreement with the Principality of Liechtenstein on insurance against natural disasters)
B165: _gross | C165: brutto | D165: gross | E165: brutto | F165: brut | G165: gross
B166: _net | C166: netto | D166: net | E166: netto | F166: net | G166: net
B167: _All_LOBs | C167: Alle Branchen | D167: All_LOBs | E167: Alle Branchen | F167: toutes les branches | G167: All LOBs
B168: _All_LOBs_infl | C168: Alle Branchen inflationiert | D168: All_LOBs_infl | E168: Alle Branchen inflationiert | F168: toutes les branches avec inflation | G168: All LOBs inflationed
B169: _infl | C169: inflationiert | D169: infl | E169: inflationiert | F169: avec inflation | G169: inflationed
B170: _NoSegments | C170: Anzahl Segmente | D170: NoSegments | E170: Anzahl Segmente | F170: nombre de segments | G170: Number of segments
B171: _Own_segments | C171: Eigene Untersegmente | D171: Own_segments | E171: Eigene Untersegmente | F171: propre sous-segments | G171: Own sub segmentation
B172: _segment | C172: Segment | D172: segment | E172: Segment | F172: segment | G172: Segment
B173: _nominal | C173: nominal | D173: nominal | E173: nominal | F173: nominal | G173: nominal
B174: _undisc | C174: nicht diskontiert | D174: undisc | E174: nicht diskontiert | F174: non actualisé | G174: undiscounted
B175: _disc | C175: diskontiert | D175: disc | E175: diskontiert | F175: actualisé | G175: discounted
B176: ="_" & $D176 -> _PY_risk_used | C176: für SST-Risikomessung benutzt, nicht diskontiert | D176: PY_risk_used | E176: für SST-Risikomessung benutzt, nicht diskontiert | F176: retenu pour la mesure du risque SST, non actualisé | G176: used for SST risk calculation, undiscounted
B177: ="_" & $D177 -> _PY_risk_used_infl | C177: für SST-Risikomessung benutzt, nicht diskontiert, inflationiert | D177: PY_risk_used_infl | E177: für SST-Risikomessung benutzt, nicht diskontiert, inflationiert | F177: retenu pour la mesure du risque SST, non actualisé, avec inflation | G177: used for SST risk calculation, undiscounted, inflationed
B178: ="_" & $D178 -> _PY_risk_used_disc | C178: für SST-Risikomessung benutzt, diskontiert | D178: PY_risk_used_disc | E178: für SST-Risikomessung benutzt, diskontiert | F178: retenu pour la mesure du risque SST, actualisé | G178: used for SST risk calculation, discounted
B179: _PY_distr | C179: PY-Schadenverteilung mit Diskonteffekt | D179: PY_distr | E179: PY-Schadenverteilung mit Diskonteffekt | F179: Distribution PY avec actualisation | G179: PY-distribution with discounting effect
B180: _WP | C180: Geschriebene Prämie | D180: WP | E180: Geschriebene Prämie | F180: prime souscrite | G180: Written premium
B181: _EPI | C181: Verdiente Prämie | D181: EPI | E181: Verdiente Prämie | F181: prime acquise | G181: Earned premium
B182: _UnearnedPrem | C182: Unverdiente Prämie | D182: UnearnedPrem | E182: Unverdiente Prämie | F182: prime non acquise | G182: Unearned premium
B183: _Costs | C183: Betriebs- und Verwaltungskosten | D183: Costs | E183: Betriebs- und Verwaltungskosten | F183: frais d'exploitation et administratifs | G183: Management and administrative costs
B184: _CostsUPR | C184: Betriebs- und Verwaltungskosten bezüglich unverdienter Prämie | D184: CostsUPR | E184: Betriebs- und Verwaltungskosten bezüglich unverdienter Prämie | F184: frais d'exploitation et administratifs relatifs aux primes non acquises | G184: Management and administrative costs (UPR)
B185: _ExpectedIncWP | C185: Erwarteter aggregierter Schadenaufwand bezüglich geschriebener Prämie | D185: ExpectedIncWP | E185: Erwarteter aggregierter Schadenaufwand bezüglich geschriebener Prämie | F185: charge agrégée des sinistres attendue relative aux primes souscrites | G185: Expected annual incurred loss w.r.t written premium
B186: _ExpectedInc | C186: Erwarteter aggregierter Schadenaufwand bezüglich verdienter Prämie | D186: ExpectedInc | E186: Erwarteter aggregierter Schadenaufwand bezüglich verdienter Prämie | F186: charge agrégée des sinistres attendue relative aux primes acquises | G186: Expected annual incurred loss w.r.t earned premium
B187: _Res_in | C187: Eingangsschadenrückstellung (1.1.2023) | D187: Res_in | E187: ="Eingangsschadenrückstellung (1.1."&current_year & ")" -> Eingangsschadenrückstellung (1.1.2023) | F187: ="Provisions pour sinistres initiales au 1.1."&current_year -> Provisions pour sinistres initiales au 1.1.2023 | G187: ="Opening reserves as at 1.1."& current_year -> Opening reserves as at 1.1.2023
B188: _EX | C188: Erwartungswert | D188: EX | E188: Erwartungswert | F188: valeur attendue | G188: Expectation
B189: _EX_LN | C189: Erwartungswert der Lognormalverteilung | D189: EX_LN | E189: Erwartungswert der Lognormalverteilung | F189: valeur attendue de la distribution lognormale | G189: Expectation of the lognormal distribution
B190: _ES | C190: Risiko (Expected Shortfall) | D190: ES | E190: Risiko (Expected Shortfall) | F190: risque (expected shortfall) | G190: Expected shortfall
B191: _ES_centred | C191: Zentriertes Risiko (Expected Shortfall) | D191: ES_centred | E191: Zentriertes Risiko (Expected Shortfall) | F191: risque centré (expected shortfall) | G191: Centred expected shortfall
B192: _TotalLoss | C192: Gesamtschadenaufwand | D192: TotalLoss | E192: Gesamtschadenaufwand | F192: charge agrégée des sinistres totale | G192: Total aggregated losses
B193: _TotalLossURR | C193: Erwarteter aggregierter Schadenaufwand bezüglich unverdienter Prämie | D193: TotalLossURR | E193: Erwarteter aggregierter Schadenaufwand bezüglich unverdienter Prämie | F193: charge agrégée des sinistres attendue relative aux primes non acquises | G193: Total aggregated losses w.r.t. UPR
B194: _CY_Attr | C194: CY-Normalschäden | D194: CY_Attr | E194: CY-Normalschäden | F194: sinistres ordinaires CY | G194: CY - attritional losses
B195: _CY_Attr_No | C195: CY: Erwartete Anzahl der Normalschäden | D195: CY_Attr_No | E195: CY: Erwartete Anzahl der Normalschäden | F195: nombre attendu de sinistres ordinaires CY | G195: CY: Expected number of attritional losses
B196: ="_" & $D196 -> _CY_Attr_distr | C196: =IF(Language="EN",$G196,IF(Language="DE",$E196,$F196)) -> Normalschadenverteilung | D196: CY_Attr_distr | E196: Normalschadenverteilung | F196: Distribution annuelle des sinistres ordinaires | G196: Distribution of attritional losses
B197: _CY_Attr_disc_distr | C197: Normalschadenverteilung mit Diskonteffekt | D197: CY_Attr_disc_distr | E197: Normalschadenverteilung mit Diskonteffekt | F197: Distribution annuelle des sinistres ordinaires actualisés | G197: Distribution of discounted attritional losses
B198: _CY_LargeLosses | C198: CY-Grossschäden | D198: CY_LargeLosses | E198: CY-Grossschäden | F198: grands sinistres CY | G198: CY - large losses
B199: _CY_LL_No_default | C199: Erwartungswert der Anzahl Grossschäden (SST-Defaultwert) | D199: CY_LL_No_default | E199: Erwartungswert der Anzahl Grossschäden (SST-Defaultwert) | F199: nombre attendu de grands sinistres (valeur SST par défaut) | G199: Expected number of large losses
B200: _CY_LL_No | C200: Erwartungswert der Anzahl Grossschäden | D200: CY_LL_No | E200: Erwartungswert der Anzahl Grossschäden | F200: nombre attendu de grands sinistres | G200: Expected number of large losses
B201: _proposal | C201: Vorschlag | D201: proposal | E201: Vorschlag | F201: proposition | G201: proposal
B202: _CY_LL_Threshold_CH_Direct | C202: CY: benutzte Grenze zwischen Gross- und Normalschäden (0.5, 1, 2 oder 5 Mio. CHF) | D202: CY_LL_Threshold_CH_Direct | E202: CY: benutzte Grenze zwischen Gross- und Normalschäden (0.5, 1, 2 oder 5 Mio. CHF) | F202: seuil retenu des grands sinistres CY (0.5, 1, 2 ou 5 mio. CHF) | G202: CY: Selected threshold of large claims (0.5, 1, 2 or 5 m CHF)
B203: _CY_LL_PML | C203: grösster möglicher Grossschaden (Einzel- bzw. Ereignisschaden PML) | D203: CY_LL_PML | E203: grösster möglicher Grossschaden (Einzel- bzw. Ereignisschaden PML) | F203: sinistre maximal probable (PML) (individuel ou PML par événement) | G203: Probable maximum loss (single loss or event PML)
B205: _CY_LL_distr | C205: Jahresgrossschadenverteilung | D205: CY_LL_distr | E205: Jahresgrossschadenverteilung | F205: Distribution annuelle des grands sinistres | G205: Distribution of large losses
B206: _CY_LL_disc_distr | C206: Jahresgrossschadenverteilung mit Diskonteffekt | D206: CY_LL_disc_distr | E206: Jahresgrossschadenverteilung mit Diskonteffekt | F206: Distribution annuelle des grands sinistres actualisés | G206: Distribution of discounted large losses
B207: _CY_LL_alpha_default | C207: Einzelschadenverteilung: Paretoparameter (SST-Defaultwert) | D207: CY_LL_alpha_default | E207: Einzelschadenverteilung: Paretoparameter (SST-Defaultwert) | F207: distribution des sinistres individuels: paramètre de Pareto (valeur SST par défaut) | G207: Distribution of single losses: Pareto parameter
B208: _CY_LL_alpha | C208: Einzelschadenverteilung: Paretoparameter | D208: CY_LL_alpha | E208: Einzelschadenverteilung: Paretoparameter | F208: distribution des sinistres individuels: paramètre de Pareto | G208: Distribution of single losses: Pareto parameter
B209: _MarketEvent | C209: CY - marktweite Kumulschäden | D209: MarketEvent | E209: CY - marktweite Kumulschäden | F209: sinistres événementiels CY touchant au marché | G209: CY market event losses
B210: _MarketShare | C210: Marktanteil oder Poolanteil | D210: MarketShare | E210: Marktanteil oder Poolanteil | F210: part de marché ou part du pool | G210: market share or pool participation
B211: _Market | C211: Branche / Mitgliedschaft | D211: Market | E211: Branche / Mitgliedschaft | F211: branche / affiliation | G211: LOB / Affiliation
B212: _CY_EL_disc_distr | C212: eigene Jahreskumulschadenverteilung | D212: CY_EL_disc_distr | E212: eigene Jahreskumulschadenverteilung | F212: propre distribution sur l'année des sinistres événementiels touchant au marché | G212: own distribution of annual aggregated event losses
B213: _URR_disc_distr | C213: URR-Schadenverteilung, Risiko mit Diskonteffekt | D213: URR_disc_distr | E213: URR-Schadenverteilung, Risiko mit Diskonteffekt | F213: Distribution des sinistres URR, avec actualisation | G213: Distribution of URR, discounted
B214: _IncPP_PY | C214: Benutzte inkrementelle Zahlungsmuster der vorjährigen Anfalljahre (PY = prior (accident) years, d.h. vor 2023) | D214: IncPP_PY | E214: ="Benutzte inkrementelle Zahlungsmuster der vorjährigen Anfalljahre (PY = prior (accident) years, d.h. vor " & current_year & ")" -> Benutzte inkrementelle Zahlungsmuster der vorjährigen Anfalljahre (PY = prior (accident) years, d.h. vor 2023) | F214: ="cadence de paiements incrémentielle sélectionnée pour les années d'occurrence précédentes (PY = prior years, i.e. avant " & current_year & ")" -> cadence de paiements incrémentielle sélectionnée pour les années d'occurrence précédentes (PY = prior years, i.e. avant 2023) | G214: ="Applied incremental payment pattern for prior (accident) years (PY-claims, i.e. before " & current_year & ")" -> Applied incremental payment pattern for prior (accident) years (PY-claims, i.e. before 2023)
B215: _IncPP_CY | C215: Benutzte inkrementelle Abwicklungsmuster des aktuellen Anfalljahres (CY = current (accident) year, d.h. 2023) | D215: IncPP_CY | E215: ="Benutzte inkrementelle Abwicklungsmuster des aktuellen Anfalljahres (CY = current (accident) year, d.h. " & current_year & ")" -> Benutzte inkrementelle Abwicklungsmuster des aktuellen Anfalljahres (CY = current (accident) year, d.h. 2023) | F215: ="cadence de liquidation incrémentielle sélectionnée pour l'année d'occurrence courante (CY = current year, i.e. " & current_year & ")" -> cadence de liquidation incrémentielle sélectionnée pour l'année d'occurrence courante (CY = current year, i.e. 2023) | G215: ="Applied incremental payment pattern for current (accident) years (CY-claims, i.e. equals " & current_year & ")" -> Applied incremental payment pattern for current (accident) years (CY-claims, i.e. equals 2023)
B216: _IncPP_URR_1yr | C216: Benutzte inkrementelle Abwicklungsmuster für ein zukünftiges Anfalljahr (URR = claims for unexpired risks in one future (accident) year, d.h. nach 2023) | D216: IncPP_URR_1yr | E216: ="Benutzte inkrementelle Abwicklungsmuster für ein zukünftiges Anfalljahr (URR = claims for unexpired risks in one future (accident) year, d.h. nach " & current_year & ")" -> Benutzte inkrementelle Abwicklungsmuster für ein zukünftiges Anfalljahr (URR = claims for unexpired risks in one future (accident) year, d.h. nach 2023) | F216: ="cadence de liquidation incrémentielle sélectionnée pour une année d'occurrence future (sinistres URR, i.e. après " & current_year & ")" -> cadence de liquidation incrémentielle sélectionnée pour une année d'occurrence future (sinistres URR, i.e. après 2023) | G216: ="Applied incremental payment pattern for one future accident year (URR-claims, i.e. after " & current_year & ")" -> Applied incremental payment pattern for one future accident year (URR-claims, i.e. after 2023)
... 238 more rows

Sheet Inputparam
A1: 5 | B1: =_Inputparameter -> Finanzvariablen und SST-Parameter
B4: =_RiskfreeRates -> Risikolose Zinskurven r(t) per 31.12.2022
B5: =VLOOKUP("T.05.05",Translation,IF(Language="DE",2,IF(Language="FR",3,4)),FALSE) -> Quelle: Für CHF: FINMA-Berechnungen basieren auf SNB Daten. Alle anderen Währungen: FINMA-Berechnungen basierend auf Bloomberg Daten.
B7: =_maturity -> Fälligkeit (in Jahren) | C7: 1 | D7: 2 | E7: 3 | F7: 4 | G7: 5 | H7: 6 | I7: 7 | J7: 8 | K7: 9 | L7: 10 | M7: 11 | N7: 12 | O7: 13 | P7: 14 | Q7: 15 | R7: 16 | S7: 17 | T7: 18 | U7: 19 | V7: 20 | W7: 21 | X7: 22 | Y7: 23 | Z7: 24 | AA7: 25 | AB7: 26 | AC7: 27 | AD7: 28 | AE7: 29 | AF7: 30 | AG7: 31 | AH7: 32 | AI7: 33 | AJ7: 34 | AK7: 35 | AL7: 36 | AM7: 37 | AN7: 38 | AO7: 39 | AP7: 40 | AQ7: 41 | AR7: 42 | AS7: 43 | AT7: 44 | AU7: 45 | AV7: 46 | AW7: 47 | AX7: 48 | AY7: 49 | AZ7: 50
B8: CHF | C8: 0.03309041301 | D8: 0.032906848 | E8: 0.03254472121 | F8: 0.03215427067 | G8: 0.03179736075 | H8: 0.03149566602 | I8: 0.03125958975 | J8: 0.03109557583 | K8: 0.03100862864 | L8: 0.03100340862 | M8: 0.03107420335 | N8: 0.0311791433 | O8: 0.03127885847 | P8: 0.03134321563 | Q8: 0.03134789151 | R8: 0.03127886408 | S8: 0.03114840699 | T8: 0.03097150532 | U8: 0.03075978457 | V8: 0.03052233844 | W8: 0.030266325 | X8: 0.02999740399 | Y8: 0.02972006307 | Z8: 0.02943786468 | AA8: 0.02915363544 | AB8: 0.02886961304 | AC8: 0.0285875614 | AD8: 0.02830886184 | AE8: 0.02803458563 | AF8: 0.02776555233 | AG8: 0.02750237688 | AH8: 0.0272455078 | AI8: 0.02699525832 | AJ8: 0.02675183188 | AK8: 0.02651534304 | AL8: 0.02628583464 | AM8: 0.02606329195 | AN8: 0.02584765439 | AO8: 0.02563882513 | AP8: 0.02543667903 | AQ8: 0.02524106924 | AR8: 0.02505183255 | AS8: 0.02486879391 | AT8: 0.02469177 | AU8: 0.02452057228 | AV8: 0.0243550094 | AW8: 0.02419488918 | AX8: 0.0240400202 | AY8: 0.02389021307 | AZ8: 0.02374528147
B9: EUR | C9: 0.0682646113 | D9: 0.06759964541 | E9: 0.06606471438 | F9: 0.0642505621 | G9: 0.06241259259 | H9: 0.06064580462 | I9: 0.05899798981 | J9: 0.05749822084 | K9: 0.05616660539 | L9: 0.05501849957 | M9: 0.05405596842 | N9: 0.05324276917 | O9: 0.05254474002 | P9: 0.05193727661 | Q9: 0.05140212658 | R9: 0.05092538743 | S9: 0.05049621068 | T9: 0.05010593692 | U9: 0.04974750253 | V9: 0.04941502253 | W9: 0.04910349089 | X9: 0.04880856063 | Y9: 0.04852637947 | Z9: 0.04825346486 | AA9: 0.04798660748 | AB9: 0.04772279569 | AC9: 0.04745915586 | AD9: 0.04719290503 | AE9: 0.04692131337 | AF9: 0.04664167503 | AG9: 0.04635229812 | AH9: 0.04605534603 | AI9: 0.04575351974 | AJ9: 0.0454490746 | AK9: 0.04514388702 | AL9: 0.04483951091 | AM9: 0.04453722575 | AN9: 0.04423807748 | AO9: 0.04394291343 | AP9: 0.0436524122 | AQ9: 0.04336710917 | AR9: 0.04308741844 | AS9: 0.04281365156 | AT9: 0.0425460336 | AU9: 0.04228471691 | AV9: 0.04202979292 | AW9: 0.04178130223 | AX9: 0.04153924327 | AY9: 0.04130357964 | AZ9: 0.04107424645
B10: USD | C10: 0.06422616585 | D10: 0.06279656121 | E10: 0.06029101385 | F10: 0.05752902216 | G10: 0.05486111894 | H10: 0.05241477272 | I10: 0.0502489534 | J10: 0.04839402568 | K10: 0.04686627227 | L10: 0.04567482908 | M10: 0.04480645356 | N10: 0.04418263731 | O10: 0.04373391713 | P10: 0.04341156168 | Q10: 0.04318042654 | R10: 0.04301452658 | S10: 0.04289419561 | T10: 0.04280420962 | U10: 0.04273251473 | V10: 0.04266934576 | W10: 0.04260660418 | X10: 0.04253741239 | Y10: 0.0424557909 | Z10: 0.0423564234 | AA10: 0.04223448622 | AB10: 0.04208552659 | AC10: 0.04190537887 | AD10: 0.04169011154 | AE10: 0.04143599979 | AF10: 0.04113952012 | AG10: 0.0407999799 | AH10: 0.04042665245 | AI10: 0.0400297628 | AJ10: 0.0396179133 | AK10: 0.03919829993 | AL10: 0.0387769075 | AM10: 0.03835868472 | AN10: 0.03794770029 | AO10: 0.03754728122 | AP10: 0.03716013465 | AQ10: 0.03678845473 | AR10: 0.03643401598 | AS10: 0.03609825464 | AT10: 0.03578233955 | AU10: 0.03548723394 | AV10: 0.03521374949 | AW10: 0.03496259407 | AX10: 0.03473441423 | AY10: 0.03452983368 | AZ10: 0.03434948895
B11: GBP | C11: 0.08350287054 | D11: 0.08187567872 | E11: 0.07910258434 | F11: 0.07607283724 | G11: 0.07316485585 | H11: 0.07051441772 | I11: 0.06818221244 | J11: 0.06619735414 | K11: 0.06457339761 | L11: 0.06331606465 | M11: 0.06240761873 | N11: 0.06176273634 | O11: 0.06130679023 | P11: 0.06098770111 | Q11: 0.06076816056 | R11: 0.0606208181 | S11: 0.0605251983 | T11: 0.06046566684 | U11: 0.06043005394 | V11: 0.06040870158 | W11: 0.06039379119 | X11: 0.06037886116 | Y11: 0.06035845554 | Z11: 0.06032786548 | AA11: 0.06028293738 | AB11: 0.0602199302 | AC11: 0.06013540992 | AD11: 0.0600261726 | AE11: 0.05988919042 | AF11: 0.05972157645 | AG11: 0.05952242764 | AH11: 0.0592979154 | AI11: 0.0590549316 | AJ11: 0.05879927855 | AK11: 0.05853582953 | AL11: 0.05826866784 | AM11: 0.05800120718 | AN11: 0.05773629605 | AO11: 0.05747630811 | AP11: 0.05722322042 | AQ11: 0.0569786812 | AR11: 0.05674406854 | AS11: 0.05652054132 | AT11: 0.05630908355 | AU11: 0.05611054306 | AV11: 0.05592566552 | AW11: 0.05575512464 | AX11: 0.05559954918 | AY11: 0.05545954767 | AZ11: 0.05533573128
B12: =IF(ISNUMBER(MATCH(sst_curr,$B$8:$B$11,0)),"",sst_curr) -> 
B14: =_Diskontfaktoren -> Diskontfaktoren auf Basis der risikolose Zinskurven r(t); Diskontfunktion n(t) = (1+r(t))^(-t)
B16: =_maturity -> Fälligkeit (in Jahren) | C16: 1 | D16: =1+C16 -> 2 | E16: 3 | F16: 4 | G16: 5 | H16: 6 | I16: 7 | J16: 8 | K16: 9 | L16: 10 | M16: 11 | N16: 12 | O16: 13 | P16: 14 | Q16: 15 | R16: 16 | S16: 17 | T16: 18 | U16: 19 | V16: 20 | W16: 21 | X16: 22 | Y16: 23 | Z16: 24 | AA16: 25 | AB16: 26 | AC16: 27 | AD16: 28 | AE16: 29 | AF16: 30 | AG16: 31 | AH16: 32 | AI16: 33 | AJ16: 34 | AK16: 35 | AL16: 36 | AM16: 37 | AN16: 38 | AO16: 39 | AP16: 40 | AQ16: 41 | AR16: 42 | AS16: 43 | AT16: 44 | AU16: 45 | AV16: 46 | AW16: 47 | AX16: 48 | AY16: 49 | AZ16: 50
B17: CHF | C17: =(1+C8)^(-C$16) -> 0.9679694898 | D17: =(1+D8)^(-D$16) -> 0.9372979918 | E17: 0.9083921818 | F17: 0.8810925814 | G17: 0.8551217183 | H17: 0.8302245178 | I17: 0.8061651115 | J17: 0.782723932 | K17: 0.7596950565 | L17: 0.736883766 | M17: 0.7141852323 | N17: 0.6918159262 | O17: 0.670055088 | P17: 0.6491648185 | Q17: 0.6293934577 | R17: 0.6109168833 | S17: 0.5936630542 | T17: 0.5775107618 | U17: 0.5623518713 | V17: 0.5480898925 | W17: 0.534638708 | X17: 0.52192144 | Y17: 0.5098694415 | Z17: 0.4984213977 | AA17: 0.4875225261 | AB17: 0.4771238637 | AC17: 0.4671816328 | AD17: 0.4576566755 | AE17: 0.4485139509 | AF17: 0.4397220867 | AG17: 0.4312529801 | AH17: 0.4230814423 | AI17: 0.415184882 | AJ17: 0.4075430237 | AK17: 0.400137656 | AL17: 0.3929524088 | AM17: 0.3859725533 | AN17: 0.3791848251 | AO17: 0.3725772662 | AP17: 0.3661390838 | AQ17: 0.3598605255 | AR17: 0.3537327673 | AS17: 0.3477478143 | AT17: 0.3418984118 | AU17: 0.3361779667 | AV17: 0.330580477 | AW17: 0.3251004691 | AX17: 0.3197329421 | AY17: 0.3144733178 | AZ17: 0.3093173967
B18: EUR | C18: =(1+C9)^(-C$16) -> 0.9360976573 | D18: =(1+D9)^(-D$16) -> 0.8773707633 | E18: 0.8253711668 | F18: 0.779514947 | G18: 0.7388120185 | H18: 0.7023890449 | I18: 0.6694745159 | J18: 0.6393855793 | K18: 0.6115164104 | L18: 0.5853279333 | M18: 0.5604019155 | N18: 0.5366092628 | O18: 0.5138929406 | P18: 0.4922006337 | Q18: 0.4714842977 | R18: 0.4516997642 | S18: 0.432806393 | T18: 0.4147667666 | U18: 0.3975464216 | V18: 0.3811136134 | W18: 0.3654391104 | X18: 0.3504960135 | Y18: 0.3362596006 | Z18: 0.3227071903 | AA18: 0.3098180258 | AB18: 0.2975731751 | AC18: 0.2859554467 | AD18: 0.2749493194 | AE18: 0.2645408847 | AF18: 0.2547178013 | AG18: 0.2454619006 | AH18: 0.2367286236 | AI18: 0.2284714541 | AJ18: 0.2206490155 | AK18: 0.2132244654 | AL18: 0.206164963 | AM18: 0.1994412 | AN18: 0.1930269877 | AO18: 0.1868988932 | AP18: 0.1810359189 | AQ18: 0.1754192207 | AR18: 0.1700318594 | AS18: 0.1648585818 | AT18: 0.1598856273 | AU18: 0.1551005588 | AV18: 0.1504921119 | AW18: 0.1460500636 | AX18: 0.1417651154 | AY18: 0.1376287907 | AZ18: 0.1336333442
B19: USD | C19: =(1+C10)^(-C$16) -> 0.9396498903 | D19: =(1+D10)^(-D$16) -> 0.8853188657 | E19: 0.8389281319 | F19: 0.7995227413 | G19: 0.7656381673 | H19: 0.7360009691 | I19: 0.7095029377 | J19: 0.6851784584 | K19: 0.6621846784 | L19: 0.6397841248 | M19: 0.6174555357 | N19: 0.5952266811 | O19: 0.5732349289 | P19: 0.5515958303 | Q19: 0.5304061545 | R19: 0.5097465397 | S19: 0.4896838087 | T19: 0.4702729922 | U19: 0.4515590967 | V19: 0.4335786498 | W19: 0.4163610522 | X19: 0.39992976 | Y19: 0.3843033207 | Z19: 0.3694962807 | AA19: 0.3555199833 | AB19: 0.342383269 | AC19: 0.3300930932 | AD19: 0.3186550728 | AE19: 0.3080739695 | AF19: 0.298354121 | AG19: 0.2894772711 | AH19: 0.2813409791 | AI19: 0.2738354454 | AJ19: 0.2668654564 | AK19: 0.2603484728 | AL19: 0.2542129592 | AM19: 0.2483969238 | AN19: 0.2428466416 | AO19: 0.2375155392 | AP19: 0.2323632182 | AQ19: 0.2273546027 | AR19: 0.2224591924 | AS19: 0.2176504097 | AT19: 0.2129050278 | AU19: 0.2082026694 | AV19: 0.2035253676 | AW19: 0.1988571804 | AX19: 0.1941838515 | AY19: 0.1894925119 | AZ19: 0.1847714171
B20: GBP | C20: =(1+C11)^(-C$16) -> 0.9229324879 | D20: =(1+D11)^(-D$16) -> 0.8543686118 | E20: 0.7958144161 | F20: 0.7458187967 | G20: 0.7025347169 | H20: 0.664423333 | I20: 0.6302061076 | J20: 0.5988239979 | K20: 0.5694026901 | L20: 0.5412230037 | M20: 0.5138035009 | N20: 0.48715846 | O20: 0.4613895383 | P20: 0.4365712229 | Q20: 0.4127554956 | R20: 0.3899757871 | S20: 0.3682503241 | T20: 0.3475849581 | U20: 0.3279755536 | V20: 0.3094099981 | W20: 0.2918698937 | X20: 0.2753319743 | Y20: 0.2597692918 | Z20: 0.245152205 | AA20: 0.2314492009 | AB20: 0.2186275753 | AC20: 0.2066539922 | AD20: 0.1954949422 | AE20: 0.1851171161 | AF20: 0.1754877048 | AG20: 0.1665655646 | AH20: 0.1582778841 | AI20: 0.1505531797 | AJ20: 0.1433297528 | AK20: 0.1365542766 | AL20: 0.1301805872 | AM20: 0.1241686503 | AN20: 0.1184836762 | AO20: 0.1130953634 | AP20: 0.107977252 | AQ20: 0.1031061706 | AR20: 0.0984617633 | AS20: 0.09402608552 | AT20: 0.08978325872 | AU20: 0.08571917498 | AV20: 0.08182124467 | AW20: 0.07807818084 | AX20: 0.07447981489 | AY20: 0.07101693905 | AZ20: 0.06768117179
B21: =B12 ->  | C21: =(1+C12)^(-C$16) -> 1 | D21: 1 | E21: 1 | F21: 1 | G21: 1 | H21: 1 | I21: 1 | J21: 1 | K21: 1 | L21: 1 | M21: 1 | N21: 1 | O21: 1 | P21: 1 | Q21: 1 | R21: 1 | S21: 1 | T21: 1 | U21: 1 | V21: 1 | W21: 1 | X21: 1 | Y21: 1 | Z21: 1 | AA21: 1 | AB21: 1 | AC21: 1 | AD21: 1 | AE21: 1 | AF21: 1 | AG21: 1 | AH21: 1 | AI21: 1 | AJ21: 1 | AK21: 1 | AL21: 1 | AM21: 1 | AN21: 1 | AO21: 1 | AP21: 1 | AQ21: 1 | AR21: 1 | AS21: 1 | AT21: 1 | AU21: 1 | AV21: 1 | AW21: 1 | AX21: 1 | AY21: 1 | AZ21: 1
B23: =VLOOKUP("T.05.01",Translation,IF(Language="DE",2,IF(Language="FR",3,4)),FALSE) -> UVG: phi(10/10) - Zinskurve und reale Zinskurve i(t) mit entsprechenden Diskontfaktoren
B24: =VLOOKUP("T.05.03",Translation,IF(Language="DE",2,IF(Language="FR",3,4)),FALSE) -> Quelle: Technische Beschreibung zum SST-Standardmodell Schadenversicherung, Anhang UVG
B26: =_maturity -> Fälligkeit (in Jahren) | C26: 1 | D26: =C26+1 -> 2 | E26: =D26+1 -> 3 | F26: 4 | G26: 5 | H26: 6 | I26: 7 | J26: 8 | K26: 9 | L26: 10 | M26: 11 | N26: 12 | O26: 13 | P26: 14 | Q26: 15 | R26: 16 | S26: 17 | T26: 18 | U26: 19 | V26: 20 | W26: 21 | X26: 22 | Y26: 23 | Z26: 24 | AA26: 25 | AB26: 26 | AC26: 27 | AD26: 28 | AE26: 29 | AF26: 30 | AG26: 31 | AH26: 32 | AI26: 33 | AJ26: 34 | AK26: 35 | AL26: 36 | AM26: 37 | AN26: 38 | AO26: 39 | AP26: 40 | AQ26: 41 | AR26: 42 | AS26: 43 | AT26: 44 | AU26: 45 | AV26: 46 | AW26: 47 | AX26: 48 | AY26: 49 | AZ26: 50
B28: j10/10-Zinskurve | C28: 0.0007652608081 | D28: 0.00184484893 | E28: 0.002989551379 | F28: 0.004348468435 | G28: 0.00584929361 | H28: 0.007377951456 | I28: 0.008906233885 | J28: 0.01049808785 | K28: 0.01213437918 | L28: 0.01377566277 | M28: 0.01532399072 | N28: 0.01660816532 | O28: 0.0176846935 | P28: 0.01859243453 | Q28: 0.01935867663 | R28: 0.02000334984 | S28: 0.02054188944 | T28: 0.02098707801 | U28: 0.02134990473 | V28: 0.02164007473 | W28: 0.0218663816 | X28: 0.0220369885 | Y28: 0.02215959669 | Z28: 0.02224138442 | AA28: 0.02228890846 | AB28: 0.02230801949 | AC28: 0.02230378622 | AD28: 0.02228046202 | AE28: 0.02224159455 | AF28: 0.02219014787 | AG28: 0.02212860142 | AH28: 0.02205903082 | AI28: 0.02198317408 | AJ28: 0.02190248629 | AK28: 0.02181818488 | AL28: 0.02173128729 | AM28: 0.02164264235 | AN28: 0.02155295665 | AO28: 0.02146281658 | AP28: 0.02137270697 | AQ28: 0.02128302676 | AR28: 0.02119410221 | AS28: 0.0211093209 | AT28: 0.02102839985 | AU28: 0.02095108129 | AV28: 0.02087712988 | AW28: 0.02080633036 | AX28: 0.02073848542 | AY28: 0.0206734139 | AZ28: 0.02061094915
B29: Diskontfaktoren j10/10-Zinskurve | C29: =(1+C28)^(-C26) -> 0.9992353244 | D29: 0.9963204875 | E29: 0.9910847044 | F29: 0.9827935859 | G29: 0.9712598221 | H29: 0.9568532864 | I29: 0.9398193048 | J29: 0.9198479222 | K29: 0.8971321259 | L29: 0.8721303274 | M29: 0.8459581348 | N29: 0.820647927 | O29: 0.7962104014 | P29: 0.7726694715 | Q29: 0.7500576437 | R29: 0.7284075375 | S29: 0.7077433461 | T29: 0.6880746858 | U29: 0.6693965939 | V29: 0.6516908098 | W29: 0.6349267987 | X29: 0.6190625046 | Y29: 0.6040455096 | Z29: 0.5898165915 | AA29: 0.5763134811 | AB29: 0.5634742079 | AC29: 0.5512401345 | AD29: 0.5395582084 | AE29: 0.5283808892 | AF29: 0.5176655641 | AG29: 0.5073740248 | AH29: 0.4974719993 | AI29: =(1+AI28)^(-AI26) -> 0.4879287336 | AJ29: 0.4787166174 | AK29: 0.4698108494 | AL29: 0.4611891386 | AM29: 0.4528314364 | AN29: 0.4447196982 | AO29: 0.4368376695 | AP29: 0.4291706957 | AQ29: 0.4217055511 | AR29: 0.4144302877 | AS29: 0.4072805371 | AT29: 0.4002541339 | AU29: 0.3933489503 | AV29: 0.3865628949 | AW29: 0.3798939125 | AX29: 0.3733399833 | AY29: 0.3668991226 | AZ29: 0.3605693795
B31: =_CPI_CH -> Verbraucherpreisinflation CHF | C31: 0.02425407454 | D31: 0.01824500502 | E31: 0.0141466885 | F31: 0.01142895204 | G31: 0.009692458711 | H31: 0.008642217461 | I31: 0.008063529776 | J31: 0.007802079356 | K31: 0.00774823599 | L31: 0.007825040116 | M31: 0.007979181371 | N31: 0.008174317105 | O31: 0.008386174535 | P31: 0.008598989774 | Q31: 0.008802936984 | R31: 0.008992284315 | S31: 0.009164079623 | T31: 0.009317220142 | U31: 0.009451799009 | V31: 0.009568650497 | W31: 0.00966903714 | X31: 0.009754437695 | Y31: 0.009826406325 | Z31: 0.00988648173 | AA31: 0.009936130999 | AB31: 0.009976717351 | AC31: 0.01000948403 | AD31: 0.01003554896 | AE31: 0.01005590629 | AF31: 0.01007143226 | AG31: 0.01008289344 | AH31: 0.01009095632 | AI31: 0.01009619709 | AJ31: 0.01009911154 | AK31: 0.01010012425 | AL31: 0.01009959732 | AM31: 0.01009783824 | AN31: 0.01009510708 | AO31: 0.01009162284 | AP31: 0.01008756911 | AQ31: 0.01008309908 | AR31: 0.01007833988 | AS31: 0.01007339637 | AT31: 0.01006835452 | AU31: 0.01006328418 | AV31: 0.0100582416 | AW31: 0.01005327157 | AX31: 0.01004840921 | AY31: 0.01004368156 | AZ31: 0.0100391089
B32: =_CHF_TrueInterest -> CHF-Kurve der realen Zinssätze | C32: =C8-C31 -> 0.008836338467 | D32: =D8-D31 -> 0.01466184298 | E32: =E8-E31 -> 0.01839803271 | F32: =F8-F31 -> 0.02072531863 | G32: 0.02210490204 | H32: 0.02285344856 | I32: 0.02319605998 | J32: 0.02329349648 | K32: 0.02326039265 | L32: 0.02317836851 | M32: 0.02309502198 | N32: 0.0230048262 | O32: 0.02289268393 | P32: 0.02274422585 | Q32: 0.02254495452 | R32: 0.02228657976 | S32: 0.02198432736 | T32: 0.02165428518 | U32: 0.02130798557 | V32: 0.02095368795 | W32: 0.02059728786 | X32: 0.02024296629 | Y32: 0.01989365674 | Z32: 0.01955138295 | AA32: 0.01921750444 | AB32: 0.01889289568 | AC32: 0.01857807737 | AD32: 0.01827331288 | AE32: 0.01797867934 | AF32: 0.01769412008 | AG32: 0.01741948344 | AH32: 0.01715455148 | AI32: =AI8-AI31 -> 0.01689906122 | AJ32: 0.01665272034 | AK32: 0.01641521879 | AL32: 0.01618623732 | AM32: 0.01596545371 | AN32: 0.01575254731 | AO32: 0.01554720229 | AP32: 0.01534910992 | AQ32: 0.01515797015 | AR32: 0.01497349268 | AS32: 0.01479539753 | AT32: 0.01462341548 | AU32: 0.01445728811 | AV32: 0.0142967678 | AW32: 0.01414161761 | AX32: 0.01399161099 | AY32: 0.01384653151 | AZ32: 0.01370617256
B33: =_CHF_TrueInterest_Diskont -> Diskontfaktoren CHF-Realzinskurve | C33: =(1+C32)^(-C26) -> 0.9912410585 | D33: 0.9713088426 | E33: 0.9467762279 | F33: 0.9212223172 | G33: 0.8964429252 | H33: 0.8732116427 | I33: 0.8517026255 | J33: 0.8317604925 | K33: 0.8130636066 | L33: 0.7952185469 | M33: 0.7779009699 | N33: 0.7611457191 | O33: 0.745090556 | P33: 0.7298968549 | Q33: 0.7157541055 | R33: 0.7028092148 | S33: 0.6909521819 | T33: 0.680030988 | U33: 0.6699188139 | V33: 0.6605096315 | W33: 0.6517145126 | X33: 0.6434585767 | Y33: 0.6356784873 | Z33: 0.6283204086 | AA33: 0.6213383431 | AB33: 0.614692782 | AC33: 0.6083496081 | AD33: 0.6022792052 | AE33: 0.5964557322 | AF33: 0.5908565317 | AG33: 0.5854616446 | AH33: 0.580253412 | AI33: =(1+AI32)^(-AI26) -> 0.5752161469 | AJ33: 0.5703358612 | AK33: 0.565600039 | AL33: 0.5609974466 | AM33: 0.556517972 | AN33: 0.5521524902 | AO33: 0.547892747 | AP33: 0.5437312605 | AQ33: 0.5396612365 | AR33: 0.5356764942 | AS33: 0.5317714029 | AT33: 0.5279408255 | AU33: 0.5241800699 | AV33: 0.5204848452 | AW33: 0.5168512236 | AX33: 0.5132756065 | AY33: 0.5097546935 | AZ33: 0.506285456
B35: =VLOOKUP("T.05.02",Translation,IF(Language="DE",2,IF(Language="FR",3,4)),FALSE) -> UVG: Differenz zwischen den Diskontfaktoren bezüglich risikoloser Zinskurve r(t) und den Diskontfaktoren bezüglich phi(10/10) - Zinskurve (pro Laufzeit) für ausgelenkte risikolose Zinsen r(t)
B36: =VLOOKUP("T.05.03",Translation,IF(Language="DE",2,IF(Language="FR",3,4)),FALSE) -> Quelle: Technische Beschreibung zum SST-Standardmodell Schadenversicherung, Anhang UVG
B38: CHF Zeros 1-5 Y
B39: =_down -> nach unten | C39: -0.0218046034 | D39: -0.04060675168 | E39: -0.05568121837 | F39: -0.06632050112 | G39: -0.07250248768 | H39: -0.1247332306 | I39: -0.1304050714 | J39: -0.1325928267 | K39: -0.1317066495 | L39: -0.128407233 | M39: -0.1239127856 | N39: -0.1200193257 | O39: -0.1165306742 | P39: -0.1132714907 | Q39: -0.110080404 | R39: -0.106861514 | S39: -0.1037526898 | T39: -0.1005233328 | U39: -0.09727668777 | V39: -0.09409125052 | W39: -0.09102304934 | X39: -0.08810751976 | Y39: -0.08536165582 | Z39: -0.08278841412 | AA39: -0.08038121673 | AB39: -0.07812796036 | AC39: -0.07601464124 | AD39: -0.07402813855 | AE39: -0.07215664669 | AF39: -0.07038954704 | AG39: -0.06871729159 | AH39: -0.06713129722 | AI39: -0.06562384994 | AJ39: -0.06418801799 | AK39: -0.06281757328 | AL39: -0.06150692027 | AM39: -0.06025103169 | AN39: -0.05904539054 | AO39: -0.05788593777 | AP39: -0.05676902507 | AQ39: -0.05569137244 | AR39: -0.05465002998 | AS39: -0.05358956369 | AT39: -0.05251509441 | AU39: -0.05143111835 | AV39: -0.05034157677 | AW39: -0.04924991804 | AX39: -0.04815915284 | AY39: -0.04707190332 | AZ39: -0.04599044683
B40: =_up -> nach oben | C40: -0.04054565804 | D40: -0.07691104084 | E40: -0.1086801211 | F40: -0.1354227786 | G40: -0.1573532123 | H40: -0.128506546 | I40: -0.1368770833 | J40: -0.1416248643 | K40: -0.1431372938 | L40: -0.1420596014 | M40: -0.1396140601 | N40: -0.1376360956 | O40: -0.1357832459 | P40: -0.133752499 | Q40: -0.1312714852 | R40: -0.1281478236 | S40: -0.1244351281 | T40: -0.1206309923 | U40: -0.116838516 | V40: -0.1131356612 | W40: -0.1095775641 | X40: -0.106198431 | Y40: -0.1030137243 | Z40: -0.1000246698 | AA40: -0.09722286998 | AB40: -0.09459441053 | AC40: -0.09212357415 | AD40: -0.08979568964 | AE40: -0.08759756211 | AF40: -0.08551732769 | AG40: -0.0835443218 | AH40: -0.08166895978 | AI40: -0.07988262891 | AJ40: -0.07817759057 | AK40: -0.07654689192 | AL40: -0.07498428599 | AM40: -0.07348415963 | AN40: -0.07204146854 | AO40: -0.07065167863 | AP40: -0.06931071337 | AQ40: -0.06801490624 | AR40: -0.06676095819 | AS40: -0.06549155419 | AT40: -0.06421175179 | AU40: -0.06292598502 | AV40: -0.06163813402 | AW40: -0.06035158711 | AX40: -0.05906929593 | AY40: -0.05779382464 | AZ40: -0.05652739359
B42: CHF Zeros 6-19 Y
B43: =_down -> nach unten | C43: -0.03126583457 | D43: -0.06001690135 | E43: -0.08575770461 | F43: -0.1079748886 | G43: -0.1267976286 | H43: -0.09290024977 | I43: -0.09978579507 | J43: -0.1040996975 | K43: -0.1061356585 | L43: -0.1064562619 | M43: -0.1062443232 | N43: -0.1047620511 | O43: -0.1016618609 | P43: -0.09663946762 | Q43: -0.08942571443 | R43: -0.07984637587 | S43: -0.06802457968 | T43: -0.05457492844 | U43: -0.03969611711 | V43: -0.1415922919 | W43: -0.1278755014 | X43: -0.1155884879 | Y43: -0.1046887744 | Z43: -0.09512502863 | AA43: -0.08684231635 | AB43: -0.07978644552 | AC43: -0.07390764653 | AD43: -0.06916325266 | AE43: -0.06551798436 | AF43: -0.06294374441 | AG43: -0.06141951652 | AH43: -0.05997594718 | AI43: -0.05860576472 | AJ43: -0.05730243453 | AK43: -0.05606008525 | AL43: -0.05487344195 | AM43: -0.05373776573 | AN43: -0.05264879914 | AO43: -0.05160271692 | AP43: -0.05059608154 | AQ43: -0.04962580325 | AR43: -0.04868910397 | AS43: -0.04773147556 | AT43: -0.04675807001 | AU43: -0.04577341413 | AV43: -0.04478147926 | AW43: -0.04378574332 | AX43: -0.04278924605 | AY43: -0.04179463815 | AZ43: -0.04080422504
B44: =_up -> nach oben | C44: -0.03126583457 | D44: -0.05803007107 | E44: -0.07964103569 | F44: -0.09547828016 | G44: -0.1056185095 | H44: -0.1573943001 | I44: -0.1639014721 | J44: -0.1659358653 | K44: -0.1640425808 | L44: -0.1590050181 | M44: -0.1521218816 | N44: -0.1473894134 | O44: -0.1445258592 | P44: -0.143289425 | Q44: -0.1434735327 | R44: -0.1449517954 | S44: -0.1478184261 | T44: -0.151833904 | U44: -0.1570848173 | V44: -0.06738792299 | W44: -0.07345114984 | X44: -0.07874289743 | Y44: -0.08327168448 | Z44: -0.0870317762 | AA44: -0.0900077092 | AB44: -0.09217870926 | AC44: -0.09352301232 | AD44: -0.09402151386 | AE44: -0.09365908445 | AF44: -0.09242526913 | AG44: -0.09031492872 | AH44: -0.08830743001 | AI44: -0.08639374989 | AJ44: -0.0845657813 | AK44: -0.08281624043 | AL44: -0.08113858286 | AM44: -0.0795269279 | AN44: -0.07797599045 | AO44: -0.07648101952 | AP44: -0.07503774301 | AQ44: -0.07364231794 | AR44: -0.0722912858 | AS44: -0.07092647259 | AT44: -0.06955290699 | AU44: -0.06817499462 | AV44: -0.06679658772 | AW44: -0.06542104716 | AX44: -0.06405129767 | AY44: -0.0626898769 | AZ44: -0.06133897916
B46: CHF Zeros 20-50 Y
B47: =_down -> nach unten | C47: -0.03126583457 | D47: -0.0590224957 | E47: -0.08269252254 | F47: -0.1017010046 | G47: -0.1161381038 | H47: -0.1266287686 | I47: -0.1336541933 | J47: -0.1371239902 | K47: -0.1374370695 | L47: -0.1352465614 | M47: -0.1317729025 | N47: -0.1304187886 | O47: -0.1308624566 | P47: -0.1328235509 | Q47: -0.1360571705 | R47: -0.1404062934 | S47: -0.1459707205 | T47: -0.1529037969 | U47: -0.1613515939 | V47: -0.05343111959 | W47: -0.06183324108 | X47: -0.06943275825 | Y47: -0.07621707567 | Z47: -0.08215570494 | AA47: -0.08720504148 | AB47: -0.0913133146 | AC47: -0.09442572593 | AD47: -0.09648904407 | AE47: -0.09745346139 | AF47: -0.09727375174 | AG47: -0.09591041113 | AH47: -0.09463152872 | AI47: -0.09342917649 | AJ47: -0.09229617789 | AK47: -0.09122603956 | AL47: -0.09021288874 | AM47: -0.08925141606 | AN47: -0.08833682325 | AO47: -0.08746477538 | AP47: -0.08663135728 | AQ47: -0.08583303392 | AR47: -0.08506661423 | AS47: -0.08424761837 | AT47: -0.08338274348 | AU47: -0.08247799915 | AV47: -0.08153877678 | AW47: -0.08056991196 | AX47: -0.07957574056 | AY47: -0.07856014918 | AZ47: -0.07752662047
B48: =_up -> nach oben | C48: -0.03126583457 | D48: -0.0590224957 | E48: -0.08269252254 | F48: -0.1017010046 | G48: -0.1161381038 | H48: -0.1266287686 | I48: -0.1336541933 | J48: -0.1371239902 | K48: -0.1374370695 | L48: -0.1352465614 | M48: -0.1317729025 | N48: -0.1272359424 | O48: -0.1214443243 | P48: -0.114244966 | Q48: -0.1055131827 | R48: -0.09520095237 | S48: -0.08350221989 | T48: -0.07064700771 | U48: -0.05683864113 | V48: -0.1385195391 | W48: -0.1252158292 | X48: -0.113367446 | Y48: -0.1028991723 | Z48: -0.09373084802 | AA48: -0.08578188754 | AB48: -0.07897482089 | AC48: -0.0732381096 | AD48: -0.06850801383 | AE48: -0.06472848258 | AF48: -0.06185066426 | AG48: -0.05983251465 | AH48: -0.0579173335 | AI48: -0.05609655768 | AJ48: -0.05436251518 | AK48: -0.05270832811 | AL48: -0.05112782616 | AM48: -0.04961546923 | AN48: -0.04816627845 | AO48: -0.04677577466 | AP48: -0.04543992359 | AQ48: -0.04415508704 | AR48: -0.04291797945 | AS48: -0.04169037172 | AT48: -0.04047556966 | AU48: -0.03927635025 | AV48: -0.03809502832 | AW48: -0.0369335152 | AX48: -0.0357933704 | AY48: -0.03467584699 | AZ48: -0.03358193155
B50: =_ExchangeRates -> Wechselkurse per 31.12.2022
B52: =_Currency -> Währung | C52: =_Currency & " / CHF" -> Währung / CHF
B53: CHF | C53: 1
B54: EUR | C54: 0.940082
B55: USD | C55: 0.878275
B56: GBP | C56: 1.00683
B57: JPY | C57: 0.00698346
B60: =VLOOKUP("T.05.04",Translation,IF(Language="DE",2,IF(Language="FR",3,4)),FALSE) -> Kapitalkosten (CoC, über der risikofreien Rate für ein Jahr) zur Berechnung des Mindestbetrags
B62: CoC | C62: 0.06
B65: =_ConvidenceLevel -> Konfidenzniveau
B67: Alpha | C67: 0.01
B68: =_ConvidenceLevel -> Konfidenzniveau | C68: =1-C67 -> 0.99
B70: =VLOOKUP("T.05.06",Translation,IF(Language="DE",2,IF(Language="FR",3,4)),FALSE) -> Rezession - Annahmen - Reduktion des erwarteten versicherungstechnischen Ergebnisses in %
B72: =VLOOKUP("T.05.07",Translation,IF(Language="DE",2,IF(Language="FR",3,4)),FALSE) -> Reduktion Erwartetes Ergebnis
B73: Total | C73: -0.25

Sheet Inflationparam
A1: 5* | B1: =_Inflationparameter -> Inflation Parameter
B3: Inflationsraten und und kumulierte Inflationsfaktoren für EUR Konsumentenpreisindex
B5: =_year -> Jahr | D5: 2023 | E5: 2024 | F5: 2025 | G5: 2026 | H5: 2027 | I5: 2028 | J5: 2029 | K5: 2030 | L5: 2031 | M5: 2032 | N5: 2033 | O5: 2034 | P5: 2035 | Q5: 2036 | R5: 2037 | S5: 2038 | T5: 2039 | U5: 2040 | V5: 2041 | W5: 2042 | X5: 2043 | Y5: 2044 | Z5: 2045 | AA5: 2046 | AB5: 2047 | AC5: 2048 | AD5: 2049 | AE5: 2050 | AF5: 2051 | AG5: 2052 | AH5: 2053 | AI5: 2054 | AJ5: 2055 | AK5: 2056 | AL5: 2057 | AM5: 2058 | AN5: 2059 | AO5: 2060 | AP5: 2061 | AQ5: 2062 | AR5: 2063 | AS5: 2064 | AT5: 2065 | AU5: 2066 | AV5: 2067 | AW5: 2068 | AX5: 2069 | AY5: 2070 | AZ5: 2071 | BA5: 2072
B6: Modifikation der Verbraucherpreisinflation CHF | D6: 0.03 | E6: 0.05 | F6: 0.06 | G6: 0.05 | H6: 0.03 | I6: 0.024 | J6: 0.01 | K6: 0 | L6: 0 | M6: 0 | N6: 0 | O6: 0 | P6: 0 | Q6: 0 | R6: 0 | S6: 0 | T6: 0 | U6: 0 | V6: 0 | W6: 0 | X6: 0 | Y6: 0 | Z6: 0 | AA6: 0 | AB6: 0 | AC6: 0 | AD6: 0 | AE6: 0 | AF6: 0 | AG6: 0 | AH6: 0 | AI6: 0 | AJ6: 0 | AK6: 0 | AL6: 0 | AM6: 0 | AN6: 0 | AO6: 0 | AP6: 0 | AQ6: 0 | AR6: 0 | AS6: 0 | AT6: 0 | AU6: 0 | AV6: 0 | AW6: 0 | AX6: 0 | AY6: 0 | AZ6: 0 | BA6: 0
B7: Modifikation der Verbraucherpreisinflation EUR | D7: 0.07 | E7: 0.085 | F7: 0.1 | G7: 0.08 | H7: 0.05 | I7: 0.03 | J7: 0.01 | K7: 0 | L7: 0 | M7: 0 | N7: 0 | O7: 0 | P7: 0 | Q7: 0 | R7: 0 | S7: 0 | T7: 0 | U7: 0 | V7: 0 | W7: 0 | X7: 0 | Y7: 0 | Z7: 0 | AA7: 0 | AB7: 0 | AC7: 0 | AD7: 0 | AE7: 0 | AF7: 0 | AG7: 0 | AH7: 0 | AI7: 0 | AJ7: 0 | AK7: 0 | AL7: 0 | AM7: 0 | AN7: 0 | AO7: 0 | AP7: 0 | AQ7: 0 | AR7: 0 | AS7: 0 | AT7: 0 | AU7: 0 | AV7: 0 | AW7: 0 | AX7: 0 | AY7: 0 | AZ7: 0 | BA7: 0
B9: StandRe g factor by LOB and treaty type proportional and non-proportional
D11: g factor
B12: =_number -> Nr. | C12: LOB | D12: proportional (prop) | E12: non-propotional (NP)
B13: 1 | C13: Accident and Health | D13: 1.3 | E13: 1.5
B14: 2 | C14: Motor | D14: 1.2 | E14: 1.8
B15: 3 | C15: Marine, Aviation and Other Transport | D15: 1 | E15: 1.1
B16: 4 | C16: Property | D16: 1.1 | E16: 1.2
B17: 5 | C17: Financial Losses | D17: 0.8 | E17: 1.2
B18: 6 | C18: General Liability | D18: 1.15 | E18: 1.5
B19: 7 | C19: Other Non-Life | D19: 1 | E19: 1.5
B21: =_InflationFactors -> Inflationsfaktoren f_Infl(t) auf Basis der Deltainflationsparameter r_Infl(t) pro SST-Standardversicherungsbranche
B24: =_number -> Nr. | C24: =_NL_LOB_default -> SST-Standardversicherungsbranche | D24: 2023 | E24: 2024 | F24: 2025 | G24: 2026 | H24: 2027 | I24: 2028 | J24: 2029 | K24: 2030 | L24: 2031 | M24: 2032 | N24: 2033 | O24: 2034 | P24: 2035 | Q24: 2036 | R24: 2037 | S24: 2038 | T24: 2039 | U24: 2040 | V24: 2041 | W24: 2042 | X24: 2043 | Y24: 2044 | Z24: 2045 | AA24: 2046 | AB24: 2047 | AC24: 2048 | AD24: 2049 | AE24: 2050 | AF24: 2051 | AG24: 2052 | AH24: 2053 | AI24: 2054 | AJ24: 2055 | AK24: 2056 | AL24: 2057 | AM24: 2058 | AN24: 2059 | AO24: 2060 | AP24: 2061 | AQ24: 2062 | AR24: 2063 | AS24: 2064 | AT24: 2065 | AU24: 2066 | AV24: 2067 | AW24: 2068 | AX24: 2069 | AY24: 2070 | AZ24: 2071 | BA24: 2072
B25: 1 | C25: =_MTPL -> MFH | D25: =(1+$D$14*D$6) -> 1.036 | E25: =D25*(1+$D$14*E$6) -> 1.09816 | F25: 1.17722752 | G25: 1.247861171 | H25: 1.292784173 | I25: 1.330016358 | J25: 1.345976554 | K25: 1.345976554 | L25: 1.345976554 | M25: 1.345976554 | N25: 1.345976554 | O25: 1.345976554 | P25: 1.345976554 | Q25: 1.345976554 | R25: 1.345976554 | S25: 1.345976554 | T25: 1.345976554 | U25: 1.345976554 | V25: 1.345976554 | W25: 1.345976554 | X25: 1.345976554 | Y25: 1.345976554 | Z25: 1.345976554 | AA25: 1.345976554 | AB25: 1.345976554 | AC25: 1.345976554 | AD25: 1.345976554 | AE25: 1.345976554 | AF25: 1.345976554 | AG25: 1.345976554 | AH25: 1.345976554 | AI25: 1.345976554 | AJ25: 1.345976554 | AK25: =AJ25*(1+$D$14*AK$6) -> 1.345976554 | AL25: 1.345976554 | AM25: 1.345976554 | AN25: 1.345976554 | AO25: 1.345976554 | AP25: 1.345976554 | AQ25: 1.345976554 | AR25: 1.345976554 | AS25: 1.345976554 | AT25: 1.345976554 | AU25: 1.345976554 | AV25: 1.345976554 | AW25: 1.345976554 | AX25: 1.345976554 | AY25: 1.345976554 | AZ25: 1.345976554 | BA25: 1.345976554
B26: 2 | C26: =_MOD -> MFK | D26: =(1+$D$14*D$6) -> 1.036 | E26: =D26*(1+$D$14*E$6) -> 1.09816 | F26: 1.17722752 | G26: 1.247861171 | H26: 1.292784173 | I26: 1.330016358 | J26: 1.345976554 | K26: 1.345976554 | L26: 1.345976554 | M26: 1.345976554 | N26: 1.345976554 | O26: 1.345976554 | P26: 1.345976554 | Q26: 1.345976554 | R26: 1.345976554 | S26: 1.345976554 | T26: 1.345976554 | U26: 1.345976554 | V26: 1.345976554 | W26: 1.345976554 | X26: 1.345976554 | Y26: 1.345976554 | Z26: 1.345976554 | AA26: 1.345976554 | AB26: 1.345976554 | AC26: 1.345976554 | AD26: 1.345976554 | AE26: 1.345976554 | AF26: 1.345976554 | AG26: 1.345976554 | AH26: 1.345976554 | AI26: 1.345976554 | AJ26: 1.345976554 | AK26: =AJ26*(1+$D$14*AK$6) -> 1.345976554 | AL26: 1.345976554 | AM26: 1.345976554 | AN26: 1.345976554 | AO26: 1.345976554 | AP26: 1.345976554 | AQ26: 1.345976554 | AR26: 1.345976554 | AS26: 1.345976554 | AT26: 1.345976554 | AU26: 1.345976554 | AV26: 1.345976554 | AW26: 1.345976554 | AX26: 1.345976554 | AY26: 1.345976554 | AZ26: 1.345976554 | BA26: 1.345976554
B27: 3 | C27: =_Fire -> Sach | D27: =(1+$D$16*D$6) -> 1.033 | E27: =D27*(1+$D$16*E$6) -> 1.089815 | F27: 1.16174279 | G27: 1.225638643 | H27: 1.266084719 | I27: 1.299509355 | J27: 1.313803958 | K27: 1.313803958 | L27: 1.313803958 | M27: 1.313803958 | N27: 1.313803958 | O27: 1.313803958 | P27: 1.313803958 | Q27: 1.313803958 | R27: 1.313803958 | S27: 1.313803958 | T27: 1.313803958 | U27: 1.313803958 | V27: 1.313803958 | W27: 1.313803958 | X27: 1.313803958 | Y27: 1.313803958 | Z27: 1.313803958 | AA27: 1.313803958 | AB27: 1.313803958 | AC27: 1.313803958 | AD27: 1.313803958 | AE27: 1.313803958 | AF27: 1.313803958 | AG27: 1.313803958 | AH27: 1.313803958 | AI27: 1.313803958 | AJ27: 1.313803958 | AK27: =AJ27*(1+$D$16*AK$6) -> 1.313803958 | AL27: 1.313803958 | AM27: 1.313803958 | AN27: 1.313803958 | AO27: 1.313803958 | AP27: 1.313803958 | AQ27: 1.313803958 | AR27: 1.313803958 | AS27: 1.313803958 | AT27: 1.313803958 | AU27: 1.313803958 | AV27: 1.313803958 | AW27: 1.313803958 | AX27: 1.313803958 | AY27: 1.313803958 | AZ27: 1.313803958 | BA27: 1.313803958
B28: 3b | C28: (Elementarschadenpool) | D28: =(1+$D$16*D$6) -> 1.033 | E28: =D28*(1+$D$16*E$6) -> 1.089815 | F28: 1.16174279 | G28: 1.225638643 | H28: 1.266084719 | I28: 1.299509355 | J28: 1.313803958 | K28: 1.313803958 | L28: 1.313803958 | M28: 1.313803958 | N28: 1.313803958 | O28: 1.313803958 | P28: 1.313803958 | Q28: 1.313803958 | R28: 1.313803958 | S28: 1.313803958 | T28: 1.313803958 | U28: 1.313803958 | V28: 1.313803958 | W28: 1.313803958 | X28: 1.313803958 | Y28: 1.313803958 | Z28: 1.313803958 | AA28: 1.313803958 | AB28: 1.313803958 | AC28: 1.313803958 | AD28: 1.313803958 | AE28: 1.313803958 | AF28: 1.313803958 | AG28: 1.313803958 | AH28: 1.313803958 | AI28: 1.313803958 | AJ28: 1.313803958 | AK28: =AJ28*(1+$D$16*AK$6) -> 1.313803958 | AL28: 1.313803958 | AM28: 1.313803958 | AN28: 1.313803958 | AO28: 1.313803958 | AP28: 1.313803958 | AQ28: 1.313803958 | AR28: 1.313803958 | AS28: 1.313803958 | AT28: 1.313803958 | AU28: 1.313803958 | AV28: 1.313803958 | AW28: 1.313803958 | AX28: 1.313803958 | AY28: 1.313803958 | AZ28: 1.313803958 | BA28: 1.313803958
B29: 4 | C29: =_GL -> Haftpflicht | D29: =(1+$D$18*D$6) -> 1.0345 | E29: =D29*(1+$D$18*E$6) -> 1.09398375 | F29: 1.169468629 | G29: 1.236713075 | H29: 1.279379676 | I29: 1.314690555 | J29: 1.329809496 | K29: 1.329809496 | L29: 1.329809496 | M29: 1.329809496 | N29: 1.329809496 | O29: 1.329809496 | P29: 1.329809496 | Q29: 1.329809496 | R29: 1.329809496 | S29: 1.329809496 | T29: 1.329809496 | U29: 1.329809496 | V29: 1.329809496 | W29: 1.329809496 | X29: 1.329809496 | Y29: 1.329809496 | Z29: 1.329809496 | AA29: 1.329809496 | AB29: 1.329809496 | AC29: 1.329809496 | AD29: 1.329809496 | AE29: 1.329809496 | AF29: 1.329809496 | AG29: 1.329809496 | AH29: 1.329809496 | AI29: 1.329809496 | AJ29: 1.329809496 | AK29: =AJ29*(1+$D$18*AK$6) -> 1.329809496 | AL29: 1.329809496 | AM29: 1.329809496 | AN29: 1.329809496 | AO29: 1.329809496 | AP29: 1.329809496 | AQ29: 1.329809496 | AR29: 1.329809496 | AS29: 1.329809496 | AT29: 1.329809496 | AU29: 1.329809496 | AV29: 1.329809496 | AW29: 1.329809496 | AX29: 1.329809496 | AY29: 1.329809496 | AZ29: 1.329809496 | BA29: 1.329809496
B30: 5a | C30: =_AccMandatory_noAnnuities -> UVG, nicht verrentete Fälle | D30: 1 | E30: 1 | F30: 1 | G30: 1 | H30: 1 | I30: 1 | J30: 1 | K30: 1 | L30: 1 | M30: 1 | N30: 1 | O30: 1 | P30: 1 | Q30: 1 | R30: 1 | S30: 1 | T30: 1 | U30: 1 | V30: 1 | W30: 1 | X30: 1 | Y30: 1 | Z30: 1 | AA30: 1 | AB30: 1 | AC30: 1 | AD30: 1 | AE30: 1 | AF30: 1 | AG30: 1 | AH30: 1 | AI30: 1 | AJ30: 1 | AK30: 1 | AL30: 1 | AM30: 1 | AN30: 1 | AO30: 1 | AP30: 1 | AQ30: 1 | AR30: 1 | AS30: 1 | AT30: 1 | AU30: 1 | AV30: 1 | AW30: 1 | AX30: 1 | AY30: 1 | AZ30: 1 | BA30: 1
B31: 5b | C31: =_AccMandatory_Annuities -> UVG-Renten | D31: 1 | E31: 1 | F31: 1 | G31: 1 | H31: 1 | I31: 1 | J31: 1 | K31: 1 | L31: 1 | M31: 1 | N31: 1 | O31: 1 | P31: 1 | Q31: 1 | R31: 1 | S31: 1 | T31: 1 | U31: 1 | V31: 1 | W31: 1 | X31: 1 | Y31: 1 | Z31: 1 | AA31: 1 | AB31: 1 | AC31: 1 | AD31: 1 | AE31: 1 | AF31: 1 | AG31: 1 | AH31: 1 | AI31: 1 | AJ31: 1 | AK31: 1 | AL31: 1 | AM31: 1 | AN31: 1 | AO31: 1 | AP31: 1 | AQ31: 1 | AR31: 1 | AS31: 1 | AT31: 1 | AU31: 1 | AV31: 1 | AW31: 1 | AX31: 1 | AY31: 1 | AZ31: 1 | BA31: 1
B32: 6 | C32: =_AccOptional -> Unfall ohne UVG | D32: =(1+$D$13*D$6) -> 1.039 | E32: =D32*(1+$D$13*E$6) -> 1.106535 | F32: 1.19284473 | G32: 1.270379637 | H32: 1.319924443 | I32: 1.361106086 | J32: 1.378800465 | K32: 1.378800465 | L32: 1.378800465 | M32: 1.378800465 | N32: 1.378800465 | O32: 1.378800465 | P32: 1.378800465 | Q32: 1.378800465 | R32: 1.378800465 | S32: 1.378800465 | T32: 1.378800465 | U32: 1.378800465 | V32: 1.378800465 | W32: 1.378800465 | X32: 1.378800465 | Y32: 1.378800465 | Z32: 1.378800465 | AA32: 1.378800465 | AB32: 1.378800465 | AC32: 1.378800465 | AD32: 1.378800465 | AE32: 1.378800465 | AF32: 1.378800465 | AG32: 1.378800465 | AH32: 1.378800465 | AI32: 1.378800465 | AJ32: 1.378800465 | AK32: =AJ32*(1+$D$13*AK$6) -> 1.378800465 | AL32: 1.378800465 | AM32: 1.378800465 | AN32: 1.378800465 | AO32: 1.378800465 | AP32: 1.378800465 | AQ32: 1.378800465 | AR32: 1.378800465 | AS32: 1.378800465 | AT32: 1.378800465 | AU32: 1.378800465 | AV32: 1.378800465 | AW32: 1.378800465 | AX32: 1.378800465 | AY32: 1.378800465 | AZ32: 1.378800465 | BA32: 1.378800465
B33: 7 | C33: =_Health_Collective -> Kollektivtaggeld | D33: =(1+$D$19*D$6) -> 1.03 | E33: =D33*(1+$D$19*E$6) -> 1.0815 | F33: =E33*(1+$D$19*F$6) -> 1.14639 | G33: 1.2037095 | H33: 1.239820785 | I33: 1.269576484 | J33: 1.282272249 | K33: 1.282272249 | L33: 1.282272249 | M33: 1.282272249 | N33: 1.282272249 | O33: 1.282272249 | P33: 1.282272249 | Q33: 1.282272249 | R33: 1.282272249 | S33: 1.282272249 | T33: 1.282272249 | U33: 1.282272249 | V33: 1.282272249 | W33: 1.282272249 | X33: 1.282272249 | Y33: 1.282272249 | Z33: 1.282272249 | AA33: 1.282272249 | AB33: 1.282272249 | AC33: 1.282272249 | AD33: 1.282272249 | AE33: 1.282272249 | AF33: 1.282272249 | AG33: 1.282272249 | AH33: 1.282272249 | AI33: 1.282272249 | AJ33: 1.282272249 | AK33: 1.282272249 | AL33: 1.282272249 | AM33: 1.282272249 | AN33: 1.282272249 | AO33: 1.282272249 | AP33: 1.282272249 | AQ33: 1.282272249 | AR33: 1.282272249 | AS33: 1.282272249 | AT33: 1.282272249 | AU33: 1.282272249 | AV33: 1.282272249 | AW33: 1.282272249 | AX33: 1.282272249 | AY33: 1.282272249 | AZ33: 1.282272249 | BA33: 1.282272249
B34: 8 | C34: =_Health_Individual -> Einzelkranken | D34: =(1+$D$13*D$6) -> 1.039 | E34: =D34*(1+$D$13*E$6) -> 1.106535 | F34: 1.19284473 | G34: 1.270379637 | H34: 1.319924443 | I34: 1.361106086 | J34: 1.378800465 | K34: 1.378800465 | L34: 1.378800465 | M34: 1.378800465 | N34: 1.378800465 | O34: 1.378800465 | P34: 1.378800465 | Q34: 1.378800465 | R34: 1.378800465 | S34: 1.378800465 | T34: 1.378800465 | U34: 1.378800465 | V34: 1.378800465 | W34: 1.378800465 | X34: 1.378800465 | Y34: 1.378800465 | Z34: 1.378800465 | AA34: 1.378800465 | AB34: 1.378800465 | AC34: 1.378800465 | AD34: 1.378800465 | AE34: 1.378800465 | AF34: 1.378800465 | AG34: 1.378800465 | AH34: 1.378800465 | AI34: 1.378800465 | AJ34: 1.378800465 | AK34: =AJ34*(1+$D$13*AK$6) -> 1.378800465 | AL34: 1.378800465 | AM34: 1.378800465 | AN34: 1.378800465 | AO34: 1.378800465 | AP34: 1.378800465 | AQ34: 1.378800465 | AR34: 1.378800465 | AS34: 1.378800465 | AT34: 1.378800465 | AU34: 1.378800465 | AV34: 1.378800465 | AW34: 1.378800465 | AX34: 1.378800465 | AY34: 1.378800465 | AZ34: 1.378800465 | BA34: 1.378800465
B35: 9 | C35: =_Marine -> Transport | D35: =(1+$D$15*D$6) -> 1.03 | E35: =D35*(1+$D$15*E$6) -> 1.0815 | F35: 1.14639 | G35: 1.2037095 | H35: 1.239820785 | I35: 1.269576484 | J35: 1.282272249 | K35: 1.282272249 | L35: 1.282272249 | M35: 1.282272249 | N35: 1.282272249 | O35: 1.282272249 | P35: 1.282272249 | Q35: 1.282272249 | R35: 1.282272249 | S35: 1.282272249 | T35: 1.282272249 | U35: 1.282272249 | V35: 1.282272249 | W35: 1.282272249 | X35: 1.282272249 | Y35: 1.282272249 | Z35: 1.282272249 | AA35: 1.282272249 | AB35: 1.282272249 | AC35: 1.282272249 | AD35: 1.282272249 | AE35: 1.282272249 | AF35: 1.282272249 | AG35: 1.282272249 | AH35: 1.282272249 | AI35: 1.282272249 | AJ35: 1.282272249 | AK35: =AJ35*(1+$D$15*AK$6) -> 1.282272249 | AL35: 1.282272249 | AM35: 1.282272249 | AN35: 1.282272249 | AO35: 1.282272249 | AP35: 1.282272249 | AQ35: 1.282272249 | AR35: 1.282272249 | AS35: 1.282272249 | AT35: 1.282272249 | AU35: 1.282272249 | AV35: 1.282272249 | AW35: 1.282272249 | AX35: 1.282272249 | AY35: 1.282272249 | AZ35: 1.282272249 | BA35: 1.282272249
B36: 10 | C36: =_Aviation -> Luftfahrt | D36: =(1+$D$15*D$6) -> 1.03 | E36: =D36*(1+$D$15*E$6) -> 1.0815 | F36: 1.14639 | G36: 1.2037095 | H36: 1.239820785 | I36: 1.269576484 | J36: 1.282272249 | K36: 1.282272249 | L36: 1.282272249 | M36: 1.282272249 | N36: 1.282272249 | O36: 1.282272249 | P36: 1.282272249 | Q36: 1.282272249 | R36: 1.282272249 | S36: 1.282272249 | T36: 1.282272249 | U36: 1.282272249 | V36: 1.282272249 | W36: 1.282272249 | X36: 1.282272249 | Y36: 1.282272249 | Z36: 1.282272249 | AA36: 1.282272249 | AB36: 1.282272249 | AC36: 1.282272249 | AD36: 1.282272249 | AE36: 1.282272249 | AF36: 1.282272249 | AG36: 1.282272249 | AH36: 1.282272249 | AI36: 1.282272249 | AJ36: 1.282272249 | AK36: =AJ36*(1+$D$15*AK$6) -> 1.282272249 | AL36: 1.282272249 | AM36: 1.282272249 | AN36: 1.282272249 | AO36: 1.282272249 | AP36: 1.282272249 | AQ36: 1.282272249 | AR36: 1.282272249 | AS36: 1.282272249 | AT36: 1.282272249 | AU36: 1.282272249 | AV36: 1.282272249 | AW36: 1.282272249 | AX36: 1.282272249 | AY36: 1.282272249 | AZ36: 1.282272249 | BA36: 1.282272249
B37: 11 | C37: =_CreditSurety -> Finanz und Kaution | D37: =(1+$D$17*D$6) -> 1.024 | E37: =D37*(1+$D$17*E$6) -> 1.06496 | F37: 1.11607808 | G37: 1.160721203 | H37: 1.188578512 | I37: 1.21139922 | J37: 1.221090413 | K37: 1.221090413 | L37: 1.221090413 | M37: 1.221090413 | N37: 1.221090413 | O37: 1.221090413 | P37: 1.221090413 | Q37: 1.221090413 | R37: 1.221090413 | S37: 1.221090413 | T37: 1.221090413 | U37: 1.221090413 | V37: 1.221090413 | W37: 1.221090413 | X37: 1.221090413 | Y37: 1.221090413 | Z37: 1.221090413 | AA37: 1.221090413 | AB37: 1.221090413 | AC37: 1.221090413 | AD37: 1.221090413 | AE37: 1.221090413 | AF37: 1.221090413 | AG37: 1.221090413 | AH37: 1.221090413 | AI37: 1.221090413 | AJ37: 1.221090413 | AK37: =AJ37*(1+$D$17*AK$6) -> 1.221090413 | AL37: 1.221090413 | AM37: 1.221090413 | AN37: 1.221090413 | AO37: 1.221090413 | AP37: 1.221090413 | AQ37: 1.221090413 | AR37: 1.221090413 | AS37: 1.221090413 | AT37: 1.221090413 | AU37: 1.221090413 | AV37: 1.221090413 | AW37: 1.221090413 | AX37: 1.221090413 | AY37: 1.221090413 | AZ37: 1.221090413 | BA37: 1.221090413
B38: 12 | C38: =_Legal -> Rechtsschutz | D38: =(1+$D$19*D$6) -> 1.03 | E38: =D38*(1+$D$19*E$6) -> 1.0815 | F38: 1.14639 | G38: 1.2037095 | H38: 1.239820785 | I38: 1.269576484 | J38: 1.282272249 | K38: 1.282272249 | L38: 1.282272249 | M38: 1.282272249 | N38: 1.282272249 | O38: 1.282272249 | P38: 1.282272249 | Q38: 1.282272249 | R38: 1.282272249 | S38: 1.282272249 | T38: 1.282272249 | U38: 1.282272249 | V38: 1.282272249 | W38: 1.282272249 | X38: 1.282272249 | Y38: 1.282272249 | Z38: 1.282272249 | AA38: 1.282272249 | AB38: 1.282272249 | AC38: 1.282272249 | AD38: 1.282272249 | AE38: 1.282272249 | AF38: 1.282272249 | AG38: 1.282272249 | AH38: 1.282272249 | AI38: 1.282272249 | AJ38: 1.282272249 | AK38: =AJ38*(1+$D$19*AK$6) -> 1.282272249 | AL38: 1.282272249 | AM38: 1.282272249 | AN38: 1.282272249 | AO38: 1.282272249 | AP38: 1.282272249 | AQ38: 1.282272249 | AR38: 1.282272249 | AS38: 1.282272249 | AT38: 1.282272249 | AU38: 1.282272249 | AV38: 1.282272249 | AW38: 1.282272249 | AX38: 1.282272249 | AY38: 1.282272249 | AZ38: 1.282272249 | BA38: 1.282272249
B39: 13 | C39: =_Others -> Andere | D39: =(1+$D$19*D$6) -> 1.03 | E39: =D39*(1+$D$19*E$6) -> 1.0815 | F39: 1.14639 | G39: 1.2037095 | H39: 1.239820785 | I39: 1.269576484 | J39: 1.282272249 | K39: 1.282272249 | L39: 1.282272249 | M39: 1.282272249 | N39: 1.282272249 | O39: 1.282272249 | P39: 1.282272249 | Q39: 1.282272249 | R39: 1.282272249 | S39: 1.282272249 | T39: 1.282272249 | U39: 1.282272249 | V39: 1.282272249 | W39: 1.282272249 | X39: 1.282272249 | Y39: 1.282272249 | Z39: 1.282272249 | AA39: 1.282272249 | AB39: 1.282272249 | AC39: 1.282272249 | AD39: 1.282272249 | AE39: 1.282272249 | AF39: 1.282272249 | AG39: 1.282272249 | AH39: 1.282272249 | AI39: 1.282272249 | AJ39: 1.282272249 | AK39: =AJ39*(1+$D$19*AK$6) -> 1.282272249 | AL39: 1.282272249 | AM39: 1.282272249 | AN39: 1.282272249 | AO39: 1.282272249 | AP39: 1.282272249 | AQ39: 1.282272249 | AR39: 1.282272249 | AS39: 1.282272249 | AT39: 1.282272249 | AU39: 1.282272249 | AV39: 1.282272249 | AW39: 1.282272249 | AX39: 1.282272249 | AY39: 1.282272249 | AZ39: 1.282272249 | BA39: 1.282272249
B41: 5a_1 | C41: =_AccMandatory & " " & _KurzFrist -> UVG Kurzfristleistungen | D41: 1 | E41: 1 | F41: 1 | G41: 1 | H41: 1 | I41: 1 | J41: 1 | K41: 1 | L41: 1 | M41: 1 | N41: 1 | O41: 1 | P41: 1 | Q41: 1 | R41: 1 | S41: 1 | T41: 1 | U41: 1 | V41: 1 | W41: 1 | X41: 1 | Y41: 1 | Z41: 1 | AA41: 1 | AB41: 1 | AC41: 1 | AD41: 1 | AE41: 1 | AF41: 1 | AG41: 1 | AH41: 1 | AI41: 1 | AJ41: 1 | AK41: 1 | AL41: 1 | AM41: 1 | AN41: 1 | AO41: 1 | AP41: 1 | AQ41: 1 | AR41: 1 | AS41: 1 | AT41: 1 | AU41: 1 | AV41: 1 | AW41: 1 | AX41: 1 | AY41: 1 | AZ41: 1 | BA41: 1
B42: 5a_2 | C42: =_AccMandatory & " " & _LangFrist -> UVG Langfristleistungen | D42: 1 | E42: 1 | F42: 1 | G42: 1 | H42: 1 | I42: 1 | J42: 1 | K42: 1 | L42: 1 | M42: 1 | N42: 1 | O42: 1 | P42: 1 | Q42: 1 | R42: 1 | S42: 1 | T42: 1 | U42: 1 | V42: 1 | W42: 1 | X42: 1 | Y42: 1 | Z42: 1 | AA42: 1 | AB42: 1 | AC42: 1 | AD42: 1 | AE42: 1 | AF42: 1 | AG42: 1 | AH42: 1 | AI42: 1 | AJ42: 1 | AK42: 1 | AL42: 1 | AM42: 1 | AN42: 1 | AO42: 1 | AP42: 1 | AQ42: 1 | AR42: 1 | AS42: 1 | AT42: 1 | AU42: 1 | AV42: 1 | AW42: 1 | AX42: 1 | AY42: 1 | AZ42: 1 | BA42: 1
B44: =_Inflationfactors_NonCH -> Inflationsfaktoren f_Infl(t) auf Basis der Deltainflationsparameter r_Infl(t) pro LOB für Nichtschweizer Direktgeschäft
B46: =_Non_CH_lookup -> Inflationssegment für Non_CH-Direct | C46: LOB | D46: 2023 | E46: 2024 | F46: 2025 | G46: 2026 | H46: 2027 | I46: 2028 | J46: 2029 | K46: 2030 | L46: 2031 | M46: 2032 | N46: 2033 | O46: 2034 | P46: 2035 | Q46: 2036 | R46: 2037 | S46: 2038 | T46: 2039 | U46: 2040 | V46: 2041 | W46: 2042 | X46: 2043 | Y46: 2044 | Z46: 2045 | AA46: 2046 | AB46: 2047 | AC46: 2048 | AD46: 2049 | AE46: 2050 | AF46: 2051 | AG46: 2052 | AH46: 2053 | AI46: 2054 | AJ46: 2055 | AK46: 2056 | AL46: 2057 | AM46: 2058 | AN46: 2059 | AO46: 2060 | AP46: 2061 | AQ46: 2062 | AR46: 2063 | AS46: 2064 | AT46: 2065 | AU46: 2066 | AV46: 2067 | AW46: 2068 | AX46: 2069 | AY46: 2070 | AZ46: 2071 | BA46: 2072
B47: A&H | C47: Accident and Health | D47: =(1+$D13*D$7) -> 1.091 | E47: =D47*(1+$D13*E$7) -> 1.2115555 | F47: 1.369057715 | G47: 1.511439717 | H47: 1.609683299 | I47: 1.672460948 | J47: 1.69420294 | K47: 1.69420294 | L47: 1.69420294 | M47: 1.69420294 | N47: 1.69420294 | O47: 1.69420294 | P47: 1.69420294 | Q47: 1.69420294 | R47: 1.69420294 | S47: 1.69420294 | T47: 1.69420294 | U47: 1.69420294 | V47: 1.69420294 | W47: 1.69420294 | X47: 1.69420294 | Y47: 1.69420294 | Z47: 1.69420294 | AA47: 1.69420294 | AB47: 1.69420294 | AC47: 1.69420294 | AD47: 1.69420294 | AE47: 1.69420294 | AF47: 1.69420294 | AG47: 1.69420294 | AH47: 1.69420294 | AI47: 1.69420294 | AJ47: 1.69420294 | AK47: =AJ47*(1+$D13*AK$7) -> 1.69420294 | AL47: 1.69420294 | AM47: 1.69420294 | AN47: 1.69420294 | AO47: 1.69420294 | AP47: 1.69420294 | AQ47: 1.69420294 | AR47: 1.69420294 | AS47: 1.69420294 | AT47: 1.69420294 | AU47: 1.69420294 | AV47: 1.69420294 | AW47: 1.69420294 | AX47: 1.69420294 | AY47: 1.69420294 | AZ47: 1.69420294 | BA47: 1.69420294
B48: Motor | C48: Motor | D48: 1.084 | E48: =D48*(1+$D14*E$7) -> 1.194568 | F48: 1.33791616 | G48: 1.466356111 | H48: 1.554337478 | I48: 1.610293627 | J48: 1.629617151 | K48: 1.629617151 | L48: 1.629617151 | M48: 1.629617151 | N48: 1.629617151 | O48: 1.629617151 | P48: 1.629617151 | Q48: 1.629617151 | R48: 1.629617151 | S48: 1.629617151 | T48: 1.629617151 | U48: 1.629617151 | V48: 1.629617151 | W48: 1.629617151 | X48: 1.629617151 | Y48: 1.629617151 | Z48: 1.629617151 | AA48: 1.629617151 | AB48: 1.629617151 | AC48: 1.629617151 | AD48: 1.629617151 | AE48: 1.629617151 | AF48: 1.629617151 | AG48: 1.629617151 | AH48: 1.629617151 | AI48: 1.629617151 | AJ48: 1.629617151 | AK48: =AJ48*(1+$D14*AK$7) -> 1.629617151 | AL48: 1.629617151 | AM48: 1.629617151 | AN48: 1.629617151 | AO48: 1.629617151 | AP48: 1.629617151 | AQ48: 1.629617151 | AR48: 1.629617151 | AS48: 1.629617151 | AT48: 1.629617151 | AU48: 1.629617151 | AV48: 1.629617151 | AW48: 1.629617151 | AX48: 1.629617151 | AY48: 1.629617151 | AZ48: 1.629617151 | BA48: 1.629617151
B49: MAT | C49: Marine, Aviation and Other Transport | D49: 1.07 | E49: =D49*(1+$D15*E$7) -> 1.16095 | F49: 1.277045 | G49: 1.3792086 | H49: 1.44816903 | I49: 1.491614101 | J49: 1.506530242 | K49: 1.506530242 | L49: 1.506530242 | M49: 1.506530242 | N49: 1.506530242 | O49: 1.506530242 | P49: 1.506530242 | Q49: 1.506530242 | R49: 1.506530242 | S49: 1.506530242 | T49: 1.506530242 | U49: 1.506530242 | V49: 1.506530242 | W49: 1.506530242 | X49: 1.506530242 | Y49: 1.506530242 | Z49: 1.506530242 | AA49: 1.506530242 | AB49: 1.506530242 | AC49: 1.506530242 | AD49: 1.506530242 | AE49: 1.506530242 | AF49: 1.506530242 | AG49: 1.506530242 | AH49: 1.506530242 | AI49: 1.506530242 | AJ49: 1.506530242 | AK49: =AJ49*(1+$D15*AK$7) -> 1.506530242 | AL49: 1.506530242 | AM49: 1.506530242 | AN49: 1.506530242 | AO49: 1.506530242 | AP49: 1.506530242 | AQ49: 1.506530242 | AR49: 1.506530242 | AS49: 1.506530242 | AT49: 1.506530242 | AU49: 1.506530242 | AV49: 1.506530242 | AW49: 1.506530242 | AX49: 1.506530242 | AY49: 1.506530242 | AZ49: 1.506530242 | BA49: 1.506530242
B50: Sach | C50: Property | D50: 1.077 | E50: =D50*(1+$D16*E$7) -> 1.1776995 | F50: 1.307246445 | G50: 1.422284132 | H50: 1.500509759 | I50: 1.550026581 | J50: 1.567076874 | K50: 1.567076874 | L50: 1.567076874 | M50: 1.567076874 | N50: 1.567076874 | O50: 1.567076874 | P50: 1.567076874 | Q50: 1.567076874 | R50: 1.567076874 | S50: 1.567076874 | T50: 1.567076874 | U50: 1.567076874 | V50: 1.567076874 | W50: 1.567076874 | X50: 1.567076874 | Y50: 1.567076874 | Z50: 1.567076874 | AA50: 1.567076874 | AB50: 1.567076874 | AC50: 1.567076874 | AD50: 1.567076874 | AE50: 1.567076874 | AF50: 1.567076874 | AG50: 1.567076874 | AH50: 1.567076874 | AI50: 1.567076874 | AJ50: 1.567076874 | AK50: =AJ50*(1+$D16*AK$7) -> 1.567076874 | AL50: 1.567076874 | AM50: 1.567076874 | AN50: 1.567076874 | AO50: 1.567076874 | AP50: 1.567076874 | AQ50: 1.567076874 | AR50: 1.567076874 | AS50: 1.567076874 | AT50: 1.567076874 | AU50: 1.567076874 | AV50: 1.567076874 | AW50: 1.567076874 | AX50: 1.567076874 | AY50: 1.567076874 | AZ50: 1.567076874 | BA50: 1.567076874
B51: Fin | C51: Financial Losses | D51: 1.056 | E51: =D51*(1+$D17*E$7) -> 1.127808 | F51: 1.21803264 | G51: 1.295986729 | H51: 1.347826198 | I51: 1.380174027 | J51: 1.391215419 | K51: 1.391215419 | L51: 1.391215419 | M51: 1.391215419 | N51: 1.391215419 | O51: 1.391215419 | P51: 1.391215419 | Q51: 1.391215419 | R51: 1.391215419 | S51: 1.391215419 | T51: 1.391215419 | U51: 1.391215419 | V51: 1.391215419 | W51: 1.391215419 | X51: 1.391215419 | Y51: 1.391215419 | Z51: 1.391215419 | AA51: 1.391215419 | AB51: 1.391215419 | AC51: 1.391215419 | AD51: 1.391215419 | AE51: 1.391215419 | AF51: 1.391215419 | AG51: 1.391215419 | AH51: 1.391215419 | AI51: 1.391215419 | AJ51: 1.391215419 | AK51: =AJ51*(1+$D17*AK$7) -> 1.391215419 | AL51: 1.391215419 | AM51: 1.391215419 | AN51: 1.391215419 | AO51: 1.391215419 | AP51: 1.391215419 | AQ51: 1.391215419 | AR51: 1.391215419 | AS51: 1.391215419 | AT51: 1.391215419 | AU51: 1.391215419 | AV51: 1.391215419 | AW51: 1.391215419 | AX51: 1.391215419 | AY51: 1.391215419 | AZ51: 1.391215419 | BA51: 1.391215419
B52: GL | C52: General Liability | D52: 1.0805 | E52: =D52*(1+$D18*E$7) -> 1.186118875 | F52: 1.322522546 | G52: 1.44419462 | H52: 1.52723581 | I52: 1.579925446 | J52: 1.598094589 | K52: 1.598094589 | L52: 1.598094589 | M52: 1.598094589 | N52: 1.598094589 | O52: 1.598094589 | P52: 1.598094589 | Q52: 1.598094589 | R52: 1.598094589 | S52: 1.598094589 | T52: 1.598094589 | U52: 1.598094589 | V52: 1.598094589 | W52: 1.598094589 | X52: 1.598094589 | Y52: 1.598094589 | Z52: 1.598094589 | AA52: 1.598094589 | AB52: 1.598094589 | AC52: 1.598094589 | AD52: 1.598094589 | AE52: 1.598094589 | AF52: 1.598094589 | AG52: 1.598094589 | AH52: 1.598094589 | AI52: 1.598094589 | AJ52: 1.598094589 | AK52: =AJ52*(1+$D18*AK$7) -> 1.598094589 | AL52: 1.598094589 | AM52: 1.598094589 | AN52: 1.598094589 | AO52: 1.598094589 | AP52: 1.598094589 | AQ52: 1.598094589 | AR52: 1.598094589 | AS52: 1.598094589 | AT52: 1.598094589 | AU52: 1.598094589 | AV52: 1.598094589 | AW52: 1.598094589 | AX52: 1.598094589 | AY52: 1.598094589 | AZ52: 1.598094589 | BA52: 1.598094589
B53: Other | C53: Other Non-Life | D53: 1.07 | E53: =D53*(1+$D19*E$7) -> 1.16095 | F53: 1.277045 | G53: 1.3792086 | H53: 1.44816903 | I53: 1.491614101 | J53: 1.506530242 | K53: 1.506530242 | L53: 1.506530242 | M53: 1.506530242 | N53: 1.506530242 | O53: 1.506530242 | P53: 1.506530242 | Q53: 1.506530242 | R53: 1.506530242 | S53: 1.506530242 | T53: 1.506530242 | U53: 1.506530242 | V53: 1.506530242 | W53: 1.506530242 | X53: 1.506530242 | Y53: 1.506530242 | Z53: 1.506530242 | AA53: 1.506530242 | AB53: 1.506530242 | AC53: 1.506530242 | AD53: 1.506530242 | AE53: 1.506530242 | AF53: 1.506530242 | AG53: 1.506530242 | AH53: 1.506530242 | AI53: 1.506530242 | AJ53: 1.506530242 | AK53: =AJ53*(1+$D19*AK$7) -> 1.506530242 | AL53: 1.506530242 | AM53: 1.506530242 | AN53: 1.506530242 | AO53: 1.506530242 | AP53: 1.506530242 | AQ53: 1.506530242 | AR53: 1.506530242 | AS53: 1.506530242 | AT53: 1.506530242 | AU53: 1.506530242 | AV53: 1.506530242 | AW53: 1.506530242 | AX53: 1.506530242 | AY53: 1.506530242 | AZ53: 1.506530242 | BA53: 1.506530242
B55: =_Inflationfactors_ARI -> Inflationsfaktoren f_Infl(t) auf Basis der Deltainflationsparameter r_Infl(t) pro LOB für Aktive Rückversicherung
B57: =_ARI_lookup -> Inflationssegment für ActiveRI | C57: LOB | D57: Treaty_Type | E57: 2023 | F57: 2024 | G57: 2025 | H57: 2026 | I57: 2027 | J57: 2028 | K57: 2029 | L57: 2030 | M57: 2031 | N57: 2032 | O57: 2033 | P57: 2034 | Q57: 2035 | R57: 2036 | S57: 2037 | T57: 2038 | U57: 2039 | V57: 2040 | W57: 2041 | X57: 2042 | Y57: 2043 | Z57: 2044 | AA57: 2045 | AB57: 2046 | AC57: 2047 | AD57: 2048 | AE57: 2049 | AF57: 2050 | AG57: 2051 | AH57: 2052 | AI57: 2053 | AJ57: 2054 | AK57: 2055 | AL57: 2056 | AM57: 2057 | AN57: 2058 | AO57: 2059 | AP57: 2060 | AQ57: 2061 | AR57: 2062 | AS57: 2063 | AT57: 2064 | AU57: 2065 | AV57: 2066 | AW57: 2067 | AX57: 2068 | AY57: 2069 | AZ57: 2070 | BA57: 2071 | BB57: 2072
B58: ARI_A&H_prop | C58: Accident and Health | D58: prop | E58: =(1+$D13*D$7) -> 1.091 | F58: =E58*(1+$D13*E$7) -> 1.2115555 | G58: 1.369057715 | H58: 1.511439717 | I58: 1.609683299 | J58: 1.672460948 | K58: 1.69420294 | L58: 1.69420294 | M58: 1.69420294 | N58: 1.69420294 | O58: 1.69420294 | P58: 1.69420294 | Q58: 1.69420294 | R58: 1.69420294 | S58: 1.69420294 | T58: 1.69420294 | U58: 1.69420294 | V58: 1.69420294 | W58: 1.69420294 | X58: 1.69420294 | Y58: 1.69420294 | Z58: 1.69420294 | AA58: 1.69420294 | AB58: 1.69420294 | AC58: 1.69420294 | AD58: 1.69420294 | AE58: 1.69420294 | AF58: 1.69420294 | AG58: 1.69420294 | AH58: 1.69420294 | AI58: 1.69420294 | AJ58: 1.69420294 | AK58: 1.69420294 | AL58: =AK58*(1+$D13*AK$7) -> 1.69420294 | AM58: 1.69420294 | AN58: 1.69420294 | AO58: 1.69420294 | AP58: 1.69420294 | AQ58: 1.69420294 | AR58: 1.69420294 | AS58: 1.69420294 | AT58: 1.69420294 | AU58: 1.69420294 | AV58: 1.69420294 | AW58: 1.69420294 | AX58: 1.69420294 | AY58: 1.69420294 | AZ58: 1.69420294 | BA58: 1.69420294 | BB58: 1.69420294
B59: ARI_Motor_prop | C59: Motor | D59: prop | E59: 1.084 | F59: =E59*(1+$D14*E$7) -> 1.194568 | G59: 1.33791616 | H59: 1.466356111 | I59: 1.554337478 | J59: 1.610293627 | K59: 1.629617151 | L59: 1.629617151 | M59: 1.629617151 | N59: 1.629617151 | O59: 1.629617151 | P59: 1.629617151 | Q59: 1.629617151 | R59: 1.629617151 | S59: 1.629617151 | T59: 1.629617151 | U59: 1.629617151 | V59: 1.629617151 | W59: 1.629617151 | X59: 1.629617151 | Y59: 1.629617151 | Z59: 1.629617151 | AA59: 1.629617151 | AB59: 1.629617151 | AC59: 1.629617151 | AD59: 1.629617151 | AE59: 1.629617151 | AF59: 1.629617151 | AG59: 1.629617151 | AH59: 1.629617151 | AI59: 1.629617151 | AJ59: 1.629617151 | AK59: 1.629617151 | AL59: =AK59*(1+$D14*AK$7) -> 1.629617151 | AM59: 1.629617151 | AN59: 1.629617151 | AO59: 1.629617151 | AP59: 1.629617151 | AQ59: 1.629617151 | AR59: 1.629617151 | AS59: 1.629617151 | AT59: 1.629617151 | AU59: 1.629617151 | AV59: 1.629617151 | AW59: 1.629617151 | AX59: 1.629617151 | AY59: 1.629617151 | AZ59: 1.629617151 | BA59: 1.629617151 | BB59: 1.629617151
B60: ARI_MAT_prop | C60: Marine, Aviation and Other Transport | D60: prop | E60: 1.07 | F60: =E60*(1+$D15*E$7) -> 1.16095 | G60: 1.277045 | H60: 1.3792086 | I60: 1.44816903 | J60: 1.491614101 | K60: 1.506530242 | L60: 1.506530242 | M60: 1.506530242 | N60: 1.506530242 | O60: 1.506530242 | P60: 1.506530242 | Q60: 1.506530242 | R60: 1.506530242 | S60: 1.506530242 | T60: 1.506530242 | U60: 1.506530242 | V60: 1.506530242 | W60: 1.506530242 | X60: 1.506530242 | Y60: 1.506530242 | Z60: 1.506530242 | AA60: 1.506530242 | AB60: 1.506530242 | AC60: 1.506530242 | AD60: 1.506530242 | AE60: 1.506530242 | AF60: 1.506530242 | AG60: 1.506530242 | AH60: 1.506530242 | AI60: 1.506530242 | AJ60: 1.506530242 | AK60: 1.506530242 | AL60: =AK60*(1+$D15*AK$7) -> 1.506530242 | AM60: 1.506530242 | AN60: 1.506530242 | AO60: 1.506530242 | AP60: 1.506530242 | AQ60: 1.506530242 | AR60: 1.506530242 | AS60: 1.506530242 | AT60: 1.506530242 | AU60: 1.506530242 | AV60: 1.506530242 | AW60: 1.506530242 | AX60: 1.506530242 | AY60: 1.506530242 | AZ60: 1.506530242 | BA60: 1.506530242 | BB60: 1.506530242
B61: ARI_Sach_prop | C61: Property | D61: prop | E61: 1.077 | F61: =E61*(1+$D16*E$7) -> 1.1776995 | G61: 1.307246445 | H61: 1.422284132 | I61: 1.500509759 | J61: 1.550026581 | K61: 1.567076874 | L61: 1.567076874 | M61: 1.567076874 | N61: 1.567076874 | O61: 1.567076874 | P61: 1.567076874 | Q61: 1.567076874 | R61: 1.567076874 | S61: 1.567076874 | T61: 1.567076874 | U61: 1.567076874 | V61: 1.567076874 | W61: 1.567076874 | X61: 1.567076874 | Y61: 1.567076874 | Z61: 1.567076874 | AA61: 1.567076874 | AB61: 1.567076874 | AC61: 1.567076874 | AD61: 1.567076874 | AE61: 1.567076874 | AF61: 1.567076874 | AG61: 1.567076874 | AH61: 1.567076874 | AI61: 1.567076874 | AJ61: 1.567076874 | AK61: 1.567076874 | AL61: =AK61*(1+$D16*AK$7) -> 1.567076874 | AM61: 1.567076874 | AN61: 1.567076874 | AO61: 1.567076874 | AP61: 1.567076874 | AQ61: 1.567076874 | AR61: 1.567076874 | AS61: 1.567076874 | AT61: 1.567076874 | AU61: 1.567076874 | AV61: 1.567076874 | AW61: 1.567076874 | AX61: 1.567076874 | AY61: 1.567076874 | AZ61: 1.567076874 | BA61: 1.567076874 | BB61: 1.567076874
B62: ARI_Fin_prop | C62: Financial Losses | D62: prop | E62: 1.056 | F62: =E62*(1+$D17*E$7) -> 1.127808 | G62: 1.21803264 | H62: 1.295986729 | I62: 1.347826198 | J62: 1.380174027 | K62: 1.391215419 | L62: 1.391215419 | M62: 1.391215419 | N62: 1.391215419 | O62: 1.391215419 | P62: 1.391215419 | Q62: 1.391215419 | R62: 1.391215419 | S62: 1.391215419 | T62: 1.391215419 | U62: 1.391215419 | V62: 1.391215419 | W62: 1.391215419 | X62: 1.391215419 | Y62: 1.391215419 | Z62: 1.391215419 | AA62: 1.391215419 | AB62: 1.391215419 | AC62: 1.391215419 | AD62: 1.391215419 | AE62: 1.391215419 | AF62: 1.391215419 | AG62: 1.391215419 | AH62: 1.391215419 | AI62: 1.391215419 | AJ62: 1.391215419 | AK62: 1.391215419 | AL62: =AK62*(1+$D17*AK$7) -> 1.391215419 | AM62: 1.391215419 | AN62: 1.391215419 | AO62: 1.391215419 | AP62: 1.391215419 | AQ62: 1.391215419 | AR62: 1.391215419 | AS62: 1.391215419 | AT62: 1.391215419 | AU62: 1.391215419 | AV62: 1.391215419 | AW62: 1.391215419 | AX62: 1.391215419 | AY62: 1.391215419 | AZ62: 1.391215419 | BA62: 1.391215419 | BB62: 1.391215419
B63: ARI_GL_prop | C63: General Liability | D63: prop | E63: 1.0805 | F63: =E63*(1+$D18*E$7) -> 1.186118875 | G63: 1.322522546 | H63: 1.44419462 | I63: 1.52723581 | J63: 1.579925446 | K63: 1.598094589 | L63: 1.598094589 | M63: 1.598094589 | N63: 1.598094589 | O63: 1.598094589 | P63: 1.598094589 | Q63: 1.598094589 | R63: 1.598094589 | S63: 1.598094589 | T63: 1.598094589 | U63: 1.598094589 | V63: 1.598094589 | W63: 1.598094589 | X63: 1.598094589 | Y63: 1.598094589 | Z63: 1.598094589 | AA63: 1.598094589 | AB63: 1.598094589 | AC63: 1.598094589 | AD63: 1.598094589 | AE63: 1.598094589 | AF63: 1.598094589 | AG63: 1.598094589 | AH63: 1.598094589 | AI63: 1.598094589 | AJ63: 1.598094589 | AK63: 1.598094589 | AL63: =AK63*(1+$D18*AK$7) -> 1.598094589 | AM63: 1.598094589 | AN63: 1.598094589 | AO63: 1.598094589 | AP63: 1.598094589 | AQ63: 1.598094589 | AR63: 1.598094589 | AS63: 1.598094589 | AT63: 1.598094589 | AU63: 1.598094589 | AV63: 1.598094589 | AW63: 1.598094589 | AX63: 1.598094589 | AY63: 1.598094589 | AZ63: 1.598094589 | BA63: 1.598094589 | BB63: 1.598094589
B64: ARI_Other_prop | C64: Other Non-Life | D64: prop | E64: 1.07 | F64: =E64*(1+$D19*E$7) -> 1.16095 | G64: 1.277045 | H64: 1.3792086 | I64: 1.44816903 | J64: 1.491614101 | K64: 1.506530242 | L64: 1.506530242 | M64: 1.506530242 | N64: 1.506530242 | O64: 1.506530242 | P64: 1.506530242 | Q64: 1.506530242 | R64: 1.506530242 | S64: 1.506530242 | T64: 1.506530242 | U64: 1.506530242 | V64: 1.506530242 | W64: 1.506530242 | X64: 1.506530242 | Y64: 1.506530242 | Z64: 1.506530242 | AA64: 1.506530242 | AB64: 1.506530242 | AC64: 1.506530242 | AD64: 1.506530242 | AE64: 1.506530242 | AF64: 1.506530242 | AG64: 1.506530242 | AH64: 1.506530242 | AI64: 1.506530242 | AJ64: 1.506530242 | AK64: 1.506530242 | AL64: =AK64*(1+$D19*AK$7) -> 1.506530242 | AM64: 1.506530242 | AN64: 1.506530242 | AO64: 1.506530242 | AP64: 1.506530242 | AQ64: 1.506530242 | AR64: 1.506530242 | AS64: 1.506530242 | AT64: 1.506530242 | AU64: 1.506530242 | AV64: 1.506530242 | AW64: 1.506530242 | AX64: 1.506530242 | AY64: 1.506530242 | AZ64: 1.506530242 | BA64: 1.506530242 | BB64: 1.506530242
B65: ARI_A&H_NP | C65: Accident and Health | D65: NP | E65: =(1+$E13*D$7) -> 1.105 | F65: =E65*(1+$E13*E$7) -> 1.2458875 | G65: 1.432770625 | H65: 1.6047031 | I65: 1.725055832 | J65: 1.802683345 | K65: 1.829723595 | L65: 1.829723595 | M65: 1.829723595 | N65: 1.829723595 | O65: 1.829723595 | P65: 1.829723595 | Q65: 1.829723595 | R65: 1.829723595 | S65: 1.829723595 | T65: 1.829723595 | U65: 1.829723595 | V65: 1.829723595 | W65: 1.829723595 | X65: 1.829723595 | Y65: 1.829723595 | Z65: 1.829723595 | AA65: 1.829723595 | AB65: 1.829723595 | AC65: 1.829723595 | AD65: 1.829723595 | AE65: 1.829723595 | AF65: 1.829723595 | AG65: 1.829723595 | AH65: 1.829723595 | AI65: 1.829723595 | AJ65: 1.829723595 | AK65: 1.829723595 | AL65: =AK65*(1+$E13*AK$7) -> 1.829723595 | AM65: 1.829723595 | AN65: 1.829723595 | AO65: 1.829723595 | AP65: 1.829723595 | AQ65: 1.829723595 | AR65: 1.829723595 | AS65: 1.829723595 | AT65: 1.829723595 | AU65: 1.829723595 | AV65: 1.829723595 | AW65: 1.829723595 | AX65: 1.829723595 | AY65: 1.829723595 | AZ65: 1.829723595 | BA65: 1.829723595 | BB65: 1.829723595
B66: ARI_Motor_NP | C66: Motor | D66: NP | E66: 1.126 | F66: =E66*(1+$E14*E$7) -> 1.298278 | G66: 1.53196804 | H66: 1.752571438 | I66: 1.910302867 | J66: 2.013459222 | K66: 2.049701488 | L66: 2.049701488 | M66: 2.049701488 | N66: 2.049701488 | O66: 2.049701488 | P66: 2.049701488 | Q66: 2.049701488 | R66: 2.049701488 | S66: 2.049701488 | T66: 2.049701488 | U66: 2.049701488 | V66: 2.049701488 | W66: 2.049701488 | X66: 2.049701488 | Y66: 2.049701488 | Z66: 2.049701488 | AA66: 2.049701488 | AB66: 2.049701488 | AC66: 2.049701488 | AD66: 2.049701488 | AE66: 2.049701488 | AF66: 2.049701488 | AG66: 2.049701488 | AH66: 2.049701488 | AI66: 2.049701488 | AJ66: 2.049701488 | AK66: 2.049701488 | AL66: =AK66*(1+$E14*AK$7) -> 2.049701488 | AM66: 2.049701488 | AN66: 2.049701488 | AO66: 2.049701488 | AP66: 2.049701488 | AQ66: 2.049701488 | AR66: 2.049701488 | AS66: 2.049701488 | AT66: 2.049701488 | AU66: 2.049701488 | AV66: 2.049701488 | AW66: 2.049701488 | AX66: 2.049701488 | AY66: 2.049701488 | AZ66: 2.049701488 | BA66: 2.049701488 | BB66: 2.049701488
B67: ARI_MAT_NP | C67: Marine, Aviation and Other Transport | D67: NP | E67: 1.077 | F67: =E67*(1+$E15*E$7) -> 1.1776995 | G67: 1.307246445 | H67: 1.422284132 | I67: 1.500509759 | J67: 1.550026581 | K67: 1.567076874 | L67: 1.567076874 | M67: 1.567076874 | N67: 1.567076874 | O67: 1.567076874 | P67: 1.567076874 | Q67: 1.567076874 | R67: 1.567076874 | S67: 1.567076874 | T67: 1.567076874 | U67: 1.567076874 | V67: 1.567076874 | W67: 1.567076874 | X67: 1.567076874 | Y67: 1.567076874 | Z67: 1.567076874 | AA67: 1.567076874 | AB67: 1.567076874 | AC67: 1.567076874 | AD67: 1.567076874 | AE67: 1.567076874 | AF67: 1.567076874 | AG67: 1.567076874 | AH67: 1.567076874 | AI67: 1.567076874 | AJ67: 1.567076874 | AK67: 1.567076874 | AL67: =AK67*(1+$E15*AK$7) -> 1.567076874 | AM67: 1.567076874 | AN67: 1.567076874 | AO67: 1.567076874 | AP67: 1.567076874 | AQ67: 1.567076874 | AR67: 1.567076874 | AS67: 1.567076874 | AT67: 1.567076874 | AU67: 1.567076874 | AV67: 1.567076874 | AW67: 1.567076874 | AX67: 1.567076874 | AY67: 1.567076874 | AZ67: 1.567076874 | BA67: 1.567076874 | BB67: 1.567076874
B68: ARI_Sach_NP | C68: Property | D68: NP | E68: 1.084 | F68: =E68*(1+$E16*E$7) -> 1.194568 | G68: 1.33791616 | H68: 1.466356111 | I68: 1.554337478 | J68: 1.610293627 | K68: 1.629617151 | L68: 1.629617151 | M68: 1.629617151 | N68: 1.629617151 | O68: 1.629617151 | P68: 1.629617151 | Q68: 1.629617151 | R68: 1.629617151 | S68: 1.629617151 | T68: 1.629617151 | U68: 1.629617151 | V68: 1.629617151 | W68: 1.629617151 | X68: 1.629617151 | Y68: 1.629617151 | Z68: 1.629617151 | AA68: 1.629617151 | AB68: 1.629617151 | AC68: 1.629617151 | AD68: 1.629617151 | AE68: 1.629617151 | AF68: 1.629617151 | AG68: 1.629617151 | AH68: 1.629617151 | AI68: 1.629617151 | AJ68: 1.629617151 | AK68: 1.629617151 | AL68: =AK68*(1+$E16*AK$7) -> 1.629617151 | AM68: 1.629617151 | AN68: 1.629617151 | AO68: 1.629617151 | AP68: 1.629617151 | AQ68: 1.629617151 | AR68: 1.629617151 | AS68: 1.629617151 | AT68: 1.629617151 | AU68: 1.629617151 | AV68: 1.629617151 | AW68: 1.629617151 | AX68: 1.629617151 | AY68: 1.629617151 | AZ68: 1.629617151 | BA68: 1.629617151 | BB68: 1.629617151
B69: ARI_Fin_NP | C69: Financial Losses | D69: NP | E69: 1.084 | F69: =E69*(1+$E17*E$7) -> 1.194568 | G69: 1.33791616 | H69: 1.466356111 | I69: 1.554337478 | J69: 1.610293627 | K69: 1.629617151 | L69: 1.629617151 | M69: 1.629617151 | N69: 1.629617151 | O69: 1.629617151 | P69: 1.629617151 | Q69: 1.629617151 | R69: 1.629617151 | S69: 1.629617151 | T69: 1.629617151 | U69: 1.629617151 | V69: 1.629617151 | W69: 1.629617151 | X69: 1.629617151 | Y69: 1.629617151 | Z69: 1.629617151 | AA69: 1.629617151 | AB69: 1.629617151 | AC69: 1.629617151 | AD69: 1.629617151 | AE69: 1.629617151 | AF69: 1.629617151 | AG69: 1.629617151 | AH69: 1.629617151 | AI69: 1.629617151 | AJ69: 1.629617151 | AK69: 1.629617151 | AL69: =AK69*(1+$E17*AK$7) -> 1.629617151 | AM69: 1.629617151 | AN69: 1.629617151 | AO69: 1.629617151 | AP69: 1.629617151 | AQ69: 1.629617151 | AR69: 1.629617151 | AS69: 1.629617151 | AT69: 1.629617151 | AU69: 1.629617151 | AV69: 1.629617151 | AW69: 1.629617151 | AX69: 1.629617151 | AY69: 1.629617151 | AZ69: 1.629617151 | BA69: 1.629617151 | BB69: 1.629617151
B70: ARI_GL_NP | C70: General Liability | D70: NP | E70: 1.105 | F70: =E70*(1+$E18*E$7) -> 1.2458875 | G70: 1.432770625 | H70: 1.6047031 | I70: 1.725055832 | J70: 1.802683345 | K70: 1.829723595 | L70: 1.829723595 | M70: 1.829723595 | N70: 1.829723595 | O70: 1.829723595 | P70: 1.829723595 | Q70: 1.829723595 | R70: 1.829723595 | S70: 1.829723595 | T70: 1.829723595 | U70: 1.829723595 | V70: 1.829723595 | W70: 1.829723595 | X70: 1.829723595 | Y70: 1.829723595 | Z70: 1.829723595 | AA70: 1.829723595 | AB70: 1.829723595 | AC70: 1.829723595 | AD70: 1.829723595 | AE70: 1.829723595 | AF70: 1.829723595 | AG70: 1.829723595 | AH70: 1.829723595 | AI70: 1.829723595 | AJ70: 1.829723595 | AK70: 1.829723595 | AL70: =AK70*(1+$E18*AK$7) -> 1.829723595 | AM70: 1.829723595 | AN70: 1.829723595 | AO70: 1.829723595 | AP70: 1.829723595 | AQ70: 1.829723595 | AR70: 1.829723595 | AS70: 1.829723595 | AT70: 1.829723595 | AU70: 1.829723595 | AV70: 1.829723595 | AW70: 1.829723595 | AX70: 1.829723595 | AY70: 1.829723595 | AZ70: 1.829723595 | BA70: 1.829723595 | BB70: 1.829723595
B71: ARI_Other_NP | C71: Other Non-Life | D71: NP | E71: 1.105 | F71: =E71*(1+$E19*E$7) -> 1.2458875 | G71: 1.432770625 | H71: 1.6047031 | I71: 1.725055832 | J71: 1.802683345 | K71: 1.829723595 | L71: 1.829723595 | M71: 1.829723595 | N71: 1.829723595 | O71: 1.829723595 | P71: 1.829723595 | Q71: 1.829723595 | R71: 1.829723595 | S71: 1.829723595 | T71: 1.829723595 | U71: 1.829723595 | V71: 1.829723595 | W71: 1.829723595 | X71: 1.829723595 | Y71: 1.829723595 | Z71: 1.829723595 | AA71: 1.829723595 | AB71: 1.829723595 | AC71: 1.829723595 | AD71: 1.829723595 | AE71: 1.829723595 | AF71: 1.829723595 | AG71: 1.829723595 | AH71: 1.829723595 | AI71: 1.829723595 | AJ71: 1.829723595 | AK71: 1.829723595 | AL71: =AK71*(1+$E19*AK$7) -> 1.829723595 | AM71: 1.829723595 | AN71: 1.829723595 | AO71: 1.829723595 | AP71: 1.829723595 | AQ71: 1.829723595 | AR71: 1.829723595 | AS71: 1.829723595 | AT71: 1.829723595 | AU71: 1.829723595 | AV71: 1.829723595 | AW71: 1.829723595 | AX71: 1.829723595 | AY71: 1.829723595 | AZ71: 1.829723595 | BA71: 1.829723595 | BB71: 1.829723595

Sheet NL_LOB
A1: 6 | B1: =_NL_LOB -> Schadenversicherung: SST-Standardversicherungsbranchen
A4: =_number -> Nr. | B4: =_NL_LOB -> Schadenversicherung: SST-Standardversicherungsbranchen | C4: Erläuterung | D4: Explication | E4: Description
A6: 1 | B6: =_MTPL -> MFH | C6: Motorfahrzeughaftpflichtversicherung | D6: Assurance responsabilité civile véhicules à moteur | E6: Motor vehicle liability insurance
A7: 2 | B7: =_MOD -> MFK | C7: Motorfahrzeugkaskoversicherung | D7: Assurance casco véhicules à moteur | E7: Fully comprehensive motor vehicle insurance
A8: 3 | B8: =_Fire -> Sach | C8: Feuerversicherung | D8: Assurance incendie | E8: Fire insurance
C9: Elementarschadenversicherung | D9: Assurance des dommages dus à des événements naturels | E9: Insurance against natural hazards
C10: Bauwesenversicherung | D10: Assurance construction | E10: Contractors' all risk insurance
C11: Unternehmenssachversicherung | D11: Assurance de dommages aux biens des entreprises | E11: Corporate property insurance
C12: Engineering, Maschinenversicherung | D12: Engineering, assurance machines | E12: Engineering, machine insurance
C13: Diebstahlversicherung | D13: Assurance contre le vol | E13: Theft insurance
C14: Hausratversicherung (falls trennbar von Privathaftpflicht) | D14: Assurance ménage (si séparable de la responsabilité civile privée) | E14: Household contents insurance (if distinguishable from personal liability)
C15: Übrige Versicherungen gegen Sachschäden | D15: Autres assurances contre les dommages aux biens | E15: Other insurance types against property damage
A16: 4 | B16: =_GL -> Haftpflicht | C16: Gebäudehaftpflichtversicherung | D16: Assurance responsabilité civile des bâtiments | E16: Building liability insurance
C17: Privathaftpflichtversicherung | D17: Assurance responsabilité civile privée | E17: Personal liability insurance
C18: Unternehmenshaftpflichtverischerung | D18: Assurance responsabilité civile entreprise | E18: Company liability insurance
C19: Bauherrenhaftpflichtversicherung | D19: Assurance responsabilité civile du maître d’œuvre | E19: Builder's risk insurance
C20: Allgemeine Haftpflichtversicherungen | D20: Assurances responsabilité civile générales | E20: General liability insurance
A21: 5 | B21: =_AccMandatory -> UVG | C21: Obligatorische Berufsunfallversicherung | D21: Assurance accidents professionnels obligatoire | E21: Obligatory occupational accident insurance
C22: Obligatorische Nichtberufsunfallversicherung | D22: Assurance accidents non professionnels obligatoire | E22: Obligatory non-occupational accident insurance
C23: Freiwillige Versicherung nach UVG | D23: Assurance facultative selon la LAA | E23: Voluntary accident (UVG) cover
A24: 6 | B24: =_AccOptional -> Unfall ohne UVG | C24: Einzelunfallversicherung | D24: Assurance accidents individuelle | E24: Individual accident insurance
C25: UVG Zusatzversicherung | D25: Assurance complémentaire à la LAA | E25: Supplementary accident insurance (UVG)
C26: Motorfahrzeuginsassen-Unfallversicherung | D26: Assurance-accidents des occupants | E26: Motor vehicle passenger accident insurance
C27: Übrige Kollektivunfallversicherungen | D27: Autres assurances collectives contre les accidents | E27: Other group accident insurance
A28: 7 | B28: =_Health_Collective -> Kollektivtaggeld | C28: Kollektiv Taggeldversicherung | D28: Assurance collective d’indemnités journalières | E28: Group daily benefits insurance
A29: 8 | B29: =_Health_Individual -> Einzelkranken | C29: Übrige Krankenversicherung | D29: Autres assurances maladie | E29: Other health insurance
A30: 9 | B30: =_Marine -> Transport | C30: Transportgüterversicherung | D30: Assurance transports | E30: Transport insurance
C31: Schienenfahrzeugkaskoversicherung | D31: Assurance casco des véhicules ferroviaires | E31: Fully comprehensive railway vehicle insurance
C32: Wasserfahrzeugkaskoversicherung | D32: Assurance casco des embarcations | E32: Fully comprehensive watercraft insurance
C33: Wasserfahrzeughaftpflichtversicherung | D33: Assurance responsabilité civile des embarcations | E33: Watercraft liability insurance
A34: 10 | B34: =_Aviation -> Luftfahrt | C34: Luftfahrzeugkaskoversicherung | D34: Assurance casco des aéronefs | E34: Fully comprehensive aircraft insurance
C35: Luftfahrzeughaftpflichtversicherung | D35: Assurance responsabilité civile des aéronefs | E35: Aircraft liability insurance
A36: 11 | B36: =_CreditSurety -> Finanz und Kaution | C36: Kreditversicherung | D36: Assurance de crédit | E36: Credit insurance
C37: Kautionsversicherung | D37: Assurance de cautionnement | E37: Surety insurance
C38: Baugarantieversicherung | D38: Assurance de garantie de l’entrepreneur | E38: Building guarantee insurance
C39: Versicherungen gegen finanzielle Verluste | D39: Assurance contre les pertes pécuniaires | E39: Insurance against financial losses
A40: 12 | B40: =_Legal -> Rechtsschutz | C40: Rechtsschutzversicherung | D40: Assurance de protection juridique | E40: Legal expenses insurance
A41: 13 | B41: =_Others -> Andere | C41: Reise-, Touristen-, Verkehrsserviceversicherung | D41: Assurance touristique et de voyage, assurance de service de transport | E41: Travel, tourist, roadside assistance insurance
C42: Epidemieversicherung, etc. | D42: Assurance contre les épidémies, etc. | E42: Epidemic insurance, etc.

Sheet NL_SST_Default_Payment_Pattern
A1: 7 | B1: =_NL_SST_Default_Runoff_Pattern -> Schadenversicherung: Default-Zahlungsmuster
B3: =VLOOKUP("T.07.01",Translation,IF(Language="DE",2,IF(Language="FR",3,4)),FALSE) -> Für ausgewählte SST-Standardversicherungsbranchen werden Default-Auszahlungsmuster zur Verfügung gestellt.
B4: =VLOOKUP("T.07.02",Translation,IF(Language="DE",2,IF(Language="FR",3,4)),FALSE) -> Deren Verwendung ist zulässig im Fall, dass die unternehmenseigene Datenbasis zur Berechnung von Abwicklungsmustern nicht ausreichend ist.
A6: =_IncPP & " " & _ForOneAccYr_ex5b -> Inkrementelle Zahlungsmuster für ein Schadenjahr (ausser 5b)
C9: =_PV_Factor -> Barwertfaktor | D9: Duration [yr] | F9: =_DevYr -> Abwicklungsjahr
A10: =_number -> Nr. | B10: =_NL_LOB_default -> SST-Standardversicherungsbranche | C10: =_payments_in & "CHF" -> falls Zahlungen in CHF | F10: 0 | G10: 1 | H10: 2 | I10: 3 | J10: 4 | K10: 5 | L10: 6 | M10: 7 | N10: 8 | O10: 9 | P10: 10 | Q10: 11 | R10: 12 | S10: 13 | T10: 14 | U10: 15 | V10: 16 | W10: 17 | X10: 18 | Y10: 19 | Z10: 20 | AA10: 21 | AB10: 22 | AC10: 23 | AD10: 24 | AE10: 25 | AF10: 26 | AG10: 27 | AH10: 28 | AI10: 29 | AJ10: 30 | AK10: 31 | AL10: 32 | AM10: 33 | AN10: 34 | AO10: 35 | AP10: 36 | AQ10: 37 | AR10: 38 | AS10: 39 | AT10: 40 | AU10: 41 | AV10: 42 | AW10: 43 | AX10: 44 | AY10: 45 | AZ10: 46 | BA10: 47 | BB10: 48 | BC10: 49
A12: 1 | B12: =_MTPL -> MFH | C12: =SUMPRODUCT($F12:$BC12,Inputparam!$C$17:$AZ$17) -> 0.8846219015 | D12: =SUMPRODUCT(F12:BC12,$F$10:$BC$10+1) -> 4.6255 | F12: 0.4535 | G12: 0.2092 | H12: 0.0568 | I12: 0.0349 | J12: 0.0266 | K12: 0.0231 | L12: 0.0218 | M12: 0.018 | N12: 0.0159 | O12: 0.0133 | P12: 0.0129 | Q12: 0.0111 | R12: 0.0077 | S12: 0.008 | T12: 0.0074 | U12: 0.0067 | V12: 0.0061 | W12: 0.0056 | X12: 0.0052 | Y12: 0.0047 | Z12: 0.0044 | AA12: 0.004 | AB12: 0.0037 | AC12: 0.0035 | AD12: 0.0032 | AE12: 0.003 | AF12: 0.0028 | AG12: 0.0026 | AH12: 0.0025 | AI12: 0.0023 | AJ12: 0.0022 | AK12: 0.0021 | AL12: 0.0019 | AM12: 0.0018 | AN12: 0.0017 | AO12: 0.0016 | AP12: 0.0015 | AQ12: 0.0015 | AR12: 0.0014 | AS12: 0.0013 | AT12: 0.0013 | AU12: 0.0012
A13: 2 | B13: =_MOD -> MFK | C13: =SUMPRODUCT($F13:$BC13,Inputparam!$C$17:$AZ$17) -> 0.9628977664 | D13: =SUMPRODUCT(F13:BC13,$F$10:$BC$10+1) -> 1.1657 | F13: 0.839 | G13: 0.1573 | H13: 0.0031 | I13: 0.0003 | J13: 0.0002 | K13: 0.0001
A14: 3 | B14: =_Fire -> Sach | C14: =SUMPRODUCT($F14:$BC14,Inputparam!$C$17:$AZ$17) -> 0.9527930676 | D14: 1.50391 | F14: 0.59968 | G14: 0.33211 | H14: 0.04899 | I14: 0.01209 | J14: 0.00378 | K14: 0.00127 | L14: 0.00059 | M14: 0.0004 | N14: 0.00047 | O14: 0.00041 | P14: 0.00013 | Q14: 3e-05 | R14: 2e-05 | S14: 1e-05 | T14: 1e-05 | U14: 1e-05
A15: 4 | B15: =_GL -> Haftpflicht | C15: =SUMPRODUCT($F15:$BC15,Inputparam!$C$17:$AZ$17) -> 0.8888565291 | D15: 4.08714 | F15: 0.29263 | G15: 0.26364 | H15: 0.10904 | I15: 0.06717 | J15: 0.0504 | K15: 0.0378 | L15: 0.03699 | M15: 0.02404 | N15: 0.01571 | O15: 0.01848 | P15: 0.01405 | Q15: 0.01073 | R15: 0.00817 | S15: 0.00748 | T15: 0.00626 | U15: 0.00527 | V15: 0.00446 | W15: 0.00379 | X15: 0.00323 | Y15: 0.00277 | Z15: 0.00238 | AA15: 0.00205 | AB15: 0.00178 | AC15: 0.00154 | AD15: 0.00134 | AE15: 0.00117 | AF15: 0.00103 | AG15: 0.0009 | AH15: 0.00079 | AI15: 0.0007 | AJ15: 0.00062 | AK15: 0.00055 | AL15: 0.00048 | AM15: 0.00043 | AN15: 0.00038 | AO15: 0.00034 | AP15: 0.0003 | AQ15: 0.00027 | AR15: 0.00024 | AS15: 0.00022 | AT15: 0.0002 | AU15: 0.00018
A16: 5a | B16: =_AccMandatory_noAnnuities -> UVG, nicht verrentete Fälle | C16: =SUMPRODUCT($F16:$BC16,Inputparam!$C$17:$AZ$17) -> 0.9246521654 | D16: 2.6658 | F16: 0.48727 | G16: 0.27562 | H16: 0.06077 | I16: 0.03786 | J16: 0.03331 | K16: 0.02416 | L16: 0.02013 | M16: 0.01239 | N16: 0.0089 | O16: 0.00829 | P16: 0.00703 | Q16: 0.00324 | R16: 0.0027 | S16: 0.00244 | T16: 0.00176 | U16: 0.00146 | V16: 0.00122 | W16: 0.00104 | X16: 0.00091 | Y16: 0.00079 | Z16: 0.0007 | AA16: 0.00063 | AB16: 0.00057 | AC16: 0.0005 | AD16: 0.00046 | AE16: 0.00043 | AF16: 0.0004 | AG16: 0.00037 | AH16: 0.00035 | AI16: 0.00033 | AJ16: 0.00031 | AK16: 0.00029 | AL16: 0.00028 | AM16: 0.00026 | AN16: 0.00025 | AO16: 0.00024 | AP16: 0.00023 | AQ16: 0.00022 | AR16: 0.00021 | AS16: 0.0002 | AT16: 0.00019 | AU16: 0.00018 | AV16: 0.00018 | AW16: 0.00017 | AX16: 0.00016 | AY16: 0.00016 | AZ16: 0.00015 | BA16: 0.00015 | BB16: 0.00014
A17: 5a_1 | B17: =_AccMandatory & " " & _KurzFrist -> UVG Kurzfristleistungen | C17: =SUMPRODUCT($F17:$BC17,Inputparam!$C$17:$AZ$17) -> 0.9464470313 | D17: 1.74826 | F17: 0.57739 | G17: 0.3124 | H17: 0.04925 | I17: 0.0209 | J17: 0.01158 | K17: 0.00683 | L17: 0.00493 | M17: 0.0038 | N17: 0.00276 | O17: 0.00263 | P17: 0.00255 | Q17: 0.0011 | R17: 0.00112 | S17: 0.00103 | T17: 0.00051 | U17: 0.00037 | V17: 0.00026 | W17: 0.00019 | X17: 0.00014 | Y17: 0.0001 | Z17: 7e-05 | AA17: 5e-05 | AB17: 4e-05
A18: 5a_2 | B18: =_AccMandatory & " " & _LangFrist -> UVG Langfristleistungen | C18: =SUMPRODUCT($F18:$BC18,Inputparam!$C$17:$AZ$17) -> 0.8252503011 | D18: 6.851399 | F18: 0.076301 | G18: 0.107911 | H18: 0.113328 | I18: 0.115176 | J18: 0.132398 | K18: 0.103195 | L18: 0.089432 | M18: 0.051589 | N18: 0.036876 | O18: 0.034086 | P18: 0.027451 | Q18: 0.012976 | R18: 0.009902 | S18: 0.008873 | T18: 0.007479 | U18: 0.006422 | V18: 0.005596 | W18: 0.004937 | X18: 0.004399 | Y18: 0.003955 | Z18: 0.003582 | AA18: 0.003265 | AB18: 0.002993 | AC18: 0.002758 | AD18: 0.002553 | AE18: 0.002372 | AF18: 0.002212 | AG18: 0.00207 | AH18: 0.001943 | AI18: 0.001828 | AJ18: 0.001724 | AK18: 0.001631 | AL18: 0.001545 | AM18: 0.001467 | AN18: 0.001395 | AO18: 0.00133 | AP18: 0.001269 | AQ18: 0.001213 | AR18: 0.001161 | AS18: 0.001112 | AT18: 0.001067 | AU18: 0.001025 | AV18: 0.000986 | AW18: 0.000949 | AX18: 0.000915 | AY18: 0.000882 | AZ18: 0.000852 | BA18: 0.000823 | BB18: 0.000796
A19: 5b | B19: =_AccMandatory_Annuities -> UVG-Renten | C19: =SUMPRODUCT($F19:$BC19,Inputparam!$C$17:$AZ$17) -> 0.6557751034 | D19: 16.116 | F19: 0.042 | G19: 0.041 | H19: 0.04 | I19: 0.039 | J19: 0.039 | K19: 0.038 | L19: 0.037 | M19: 0.036 | N19: 0.035 | O19: 0.034 | P19: 0.033 | Q19: 0.032 | R19: 0.032 | S19: 0.031 | T19: 0.03 | U19: 0.029 | V19: 0.028 | W19: 0.027 | X19: 0.026 | Y19: 0.025 | Z19: 0.024 | AA19: 0.024 | AB19: 0.023 | AC19: 0.022 | AD19: 0.021 | AE19: 0.02 | AF19: 0.019 | AG19: 0.018 | AH19: 0.016 | AI19: 0.015 | AJ19: 0.014 | AK19: 0.013 | AL19: 0.012 | AM19: 0.011 | AN19: 0.01 | AO19: 0.009 | AP19: 0.008 | AQ19: 0.007 | AR19: 0.007 | AS19: 0.006 | AT19: 0.005 | AU19: 0.005 | AV19: 0.004 | AW19: 0.003 | AX19: 0.002 | AY19: 0.002 | AZ19: 0.002 | BA19: 0.002 | BB19: 0.001 | BC19: 0.001
A20: 6 | B20: =_AccOptional -> Unfall ohne UVG | C20: =SUMPRODUCT($F20:$BC20,Inputparam!$C$17:$AZ$17) -> 0.9339081643 | D20: 2.20999 | F20: 0.46574 | G20: 0.31448 | H20: 0.08318 | I20: 0.04731 | J20: 0.02907 | K20: 0.01841 | L20: 0.01079 | M20: 0.00798 | N20: 0.00626 | O20: 0.00411 | P20: 0.00321 | Q20: 0.00195 | R20: 0.00184 | S20: 0.00125 | T20: 0.00095 | U20: 0.00073 | V20: 0.00056 | W20: 0.00044 | X20: 0.00034 | Y20: 0.00027 | Z20: 0.00022 | AA20: 0.00017 | AB20: 0.00014 | AC20: 0.00011 | AD20: 9e-05 | AE20: 7e-05 | AF20: 6e-05 | AG20: 5e-05 | AH20: 4e-05 | AI20: 3e-05 | AJ20: 3e-05 | AK20: 2e-05 | AL20: 2e-05 | AM20: 2e-05 | AN20: 1e-05 | AO20: 1e-05 | AP20: 1e-05 | AQ20: 1e-05 | AR20: 1e-05 | AS20: 1e-05
A21: 7 | B21: =_Health_Collective -> Kollektivtaggeld | C21: =SUMPRODUCT($F21:$BC21,Inputparam!$C$17:$AZ$17) -> 0.9479624472 | D21: 1.658 | F21: 0.441 | G21: 0.46 | H21: 0.099
A22: 8 | B22: =_Health_Individual -> Einzelkranken | C22: =SUMPRODUCT($F22:$BC22,Inputparam!$C$17:$AZ$17) -> 0.9494701638 | D22: 1.61 | F22: 0.5 | G22: 0.4 | H22: 0.09 | I22: 0.01
A23: 9 | B23: =_Marine -> Transport | C23: =SUMPRODUCT($F23:$BC23,Inputparam!$C$17:$AZ$17) -> 0.9460295408 | D23: 1.7341 | F23: 0.456 | G23: 0.4295 | H23: 0.0835 | I23: 0.0141 | J23: 0.0065 | K23: 0.0059 | L23: 0.0009 | M23: 0.0007 | N23: 0.0006 | O23: 0.0006 | P23: 0.0005 | Q23: 0.0005 | R23: 0.0004 | S23: 0.0002 | T23: 0.0001
A24: 10 | B24: =_Aviation -> Luftfahrt | C24: =SUMPRODUCT($F24:$BC24,Inputparam!$C$17:$AZ$17) -> 0.938795778 | D24: =SUMPRODUCT(F24:BC24,$F$10:$BC$10+1) -> 2.0379 | F24: 0.5875 | G24: 0.2346 | H24: 0.0443 | I24: 0.0316 | J24: 0.0265 | K24: 0.0238 | L24: 0.0176 | M24: 0.0065 | N24: 0.0054 | O24: 0.0214 | P24: 0.0008
A25: 11 | B25: =_CreditSurety -> Finanz und Kaution | C25: =SUMPRODUCT($F25:$BC25,Inputparam!$C$17:$AZ$17) -> 0.9332933079 | D25: 2.1759 | F25: 0.2515 | G25: 0.4922 | H25: 0.1994 | I25: 0.0305 | J25: 0.0052 | K25: 0.004 | L25: 0.0033 | M25: 0.0028 | N25: 0.0024 | O25: 0.0021 | P25: 0.0019 | Q25: 0.0017 | R25: 0.0016 | S25: 0.0014
A26: 12 | B26: =_Legal -> Rechtsschutz | C26: =SUMPRODUCT($F26:$BC26,Inputparam!$C$17:$AZ$17) -> 0.9212033283 | D26: 2.6685 | F26: 0.3606 | G26: 0.3012 | H26: 0.1317 | I26: 0.0689 | J26: 0.0422 | K26: 0.0265 | L26: 0.0174 | M26: 0.0131 | N26: 0.0095 | O26: 0.0077 | P26: 0.0054 | Q26: 0.005 | R26: 0.0029 | S26: 0.0031 | T26: 0.0035 | U26: 0.0005 | V26: 0.0003 | W26: 0.0002 | X26: 0.0001 | Y26: 0.0001 | Z26: 0.0001 | AA26: 0
A27: 13 | B27: =_Others -> Andere | C27: =SUMPRODUCT($F27:$BC27,Inputparam!$C$17:$AZ$17) -> 0.9633932241 | D27: =SUMPRODUCT(F27:BC27,$F$10:$BC$10+1) -> 1.1499 | F27: 0.8584 | G27: 0.1366 | H27: 0.0027 | I27: 0.0014 | J27: 0.0008 | K27: 0.0001
B29: CY - Inflated Pattern
C31: =_Inflation_Factor_CY_default -> Default Inflationsfaktor für CY | F31: =_year -> Jahr
A32: =_number -> Nr. | B32: =_NL_LOB_default -> SST-Standardversicherungsbranche | F32: =current_year -> 2023 | G32: =F32+1 -> 2024 | H32: =G32+1 -> 2025 | I32: =H32+1 -> 2026 | J32: =I32+1 -> 2027 | K32: =J32+1 -> 2028 | L32: =K32+1 -> 2029 | M32: =L32+1 -> 2030 | N32: =M32+1 -> 2031 | O32: =N32+1 -> 2032 | P32: =O32+1 -> 2033 | Q32: =P32+1 -> 2034 | R32: =Q32+1 -> 2035 | S32: =R32+1 -> 2036 | T32: =S32+1 -> 2037 | U32: =T32+1 -> 2038 | V32: =U32+1 -> 2039 | W32: =V32+1 -> 2040 | X32: =W32+1 -> 2041 | Y32: =X32+1 -> 2042 | Z32: =Y32+1 -> 2043 | AA32: =Z32+1 -> 2044 | AB32: =AA32+1 -> 2045 | AC32: =AB32+1 -> 2046 | AD32: =AC32+1 -> 2047 | AE32: =AD32+1 -> 2048 | AF32: =AE32+1 -> 2049 | AG32: =AF32+1 -> 2050 | AH32: =AG32+1 -> 2051 | AI32: =AH32+1 -> 2052 | AJ32: =AI32+1 -> 2053 | AK32: =AJ32+1 -> 2054 | AL32: =AK32+1 -> 2055 | AM32: =AL32+1 -> 2056 | AN32: =AM32+1 -> 2057 | AO32: =AN32+1 -> 2058 | AP32: =AO32+1 -> 2059 | AQ32: =AP32+1 -> 2060 | AR32: =AQ32+1 -> 2061 | AS32: =AR32+1 -> 2062 | AT32: =AS32+1 -> 2063 | AU32: =AT32+1 -> 2064 | AV32: =AU32+1 -> 2065 | AW32: =AV32+1 -> 2066 | AX32: =AW32+1 -> 2067 | AY32: =AX32+1 -> 2068 | AZ32: =AY32+1 -> 2069 | BA32: =AZ32+1 -> 2070 | BB32: =BA32+1 -> 2071 | BC32: =BB32+1 -> 2072
A34: 1 | B34: =_MTPL -> MFH | C34: =SUM(F34:BC34) -> 1.138766194 | F34: =OFFSET(F$11,MATCH($A34,$A$12:$A$27,0),0)*OFFSET(Inflationparam!D$24,MATCH($A34,Inflationparam!$B$25:$B$42,0),0,1,1) -> 0.469826 | G34: =OFFSET(G$11,MATCH($A34,$A$12:$A$27,0),0)*OFFSET(Inflationparam!E$24,MATCH($A34,Inflationparam!$B$25:$B$42,0),0,1,1) -> 0.229735072 | H34: =OFFSET(H$11,MATCH($A34,$A$12:$A$27,0),0)*OFFSET(Inflationparam!F$24,MATCH($A34,Inflationparam!$B$25:$B$42,0),0,1,1) -> 0.06686652314 | I34: =OFFSET(I$11,MATCH($A34,$A$12:$A$27,0),0)*OFFSET(Inflationparam!G$24,MATCH($A34,Inflationparam!$B$25:$B$42,0),0,1,1) -> 0.04355035487 | J34: =OFFSET(J$11,MATCH($A34,$A$12:$A$27,0),0)*OFFSET(Inflationparam!H$24,MATCH($A34,Inflationparam!$B$25:$B$42,0),0,1,1) -> 0.03438805901 | K34: =OFFSET(K$11,MATCH($A34,$A$12:$A$27,0),0)*OFFSET(Inflationparam!I$24,MATCH($A34,Inflationparam!$B$25:$B$42,0),0,1,1) -> 0.03072337786 | L34: =OFFSET(L$11,MATCH($A34,$A$12:$A$27,0),0)*OFFSET(Inflationparam!J$24,MATCH($A34,Inflationparam!$B$25:$B$42,0),0,1,1) -> 0.02934228887 | M34: =OFFSET(M$11,MATCH($A34,$A$12:$A$27,0),0)*OFFSET(Inflationparam!K$24,MATCH($A34,Inflationparam!$B$25:$B$42,0),0,1,1) -> 0.02422757797 | N34: =OFFSET(N$11,MATCH($A34,$A$12:$A$27,0),0)*OFFSET(Inflationparam!L$24,MATCH($A34,Inflationparam!$B$25:$B$42,0),0,1,1) -> 0.02140102721 | O34: =OFFSET(O$11,MATCH($A34,$A$12:$A$27,0),0)*OFFSET(Inflationparam!M$24,MATCH($A34,Inflationparam!$B$25:$B$42,0),0,1,1) -> 0.01790148817 | P34: =OFFSET(P$11,MATCH($A34,$A$12:$A$27,0),0)*OFFSET(Inflationparam!N$24,MATCH($A34,Inflationparam!$B$25:$B$42,0),0,1,1) -> 0.01736309754 | Q34: =OFFSET(Q$11,MATCH($A34,$A$12:$A$27,0),0)*OFFSET(Inflationparam!O$24,MATCH($A34,Inflationparam!$B$25:$B$42,0),0,1,1) -> 0.01494033975 | R34: =OFFSET(R$11,MATCH($A34,$A$12:$A$27,0),0)*OFFSET(Inflationparam!P$24,MATCH($A34,Inflationparam!$B$25:$B$42,0),0,1,1) -> 0.01036401946 | S34: =OFFSET(S$11,MATCH($A34,$A$12:$A$27,0),0)*OFFSET(Inflationparam!Q$24,MATCH($A34,Inflationparam!$B$25:$B$42,0),0,1,1) -> 0.01076781243 | T34: =OFFSET(T$11,MATCH($A34,$A$12:$A$27,0),0)*OFFSET(Inflationparam!R$24,MATCH($A34,Inflationparam!$B$25:$B$42,0),0,1,1) -> 0.009960226498 | U34: =OFFSET(U$11,MATCH($A34,$A$12:$A$27,0),0)*OFFSET(Inflationparam!S$24,MATCH($A34,Inflationparam!$B$25:$B$42,0),0,1,1) -> 0.009018042911 | V34: =OFFSET(V$11,MATCH($A34,$A$12:$A$27,0),0)*OFFSET(Inflationparam!T$24,MATCH($A34,Inflationparam!$B$25:$B$42,0),0,1,1) -> 0.008210456978 | W34: =OFFSET(W$11,MATCH($A34,$A$12:$A$27,0),0)*OFFSET(Inflationparam!U$24,MATCH($A34,Inflationparam!$B$25:$B$42,0),0,1,1) -> 0.007537468702 | X34: =OFFSET(X$11,MATCH($A34,$A$12:$A$27,0),0)*OFFSET(Inflationparam!V$24,MATCH($A34,Inflationparam!$B$25:$B$42,0),0,1,1) -> 0.00699907808 | Y34: =OFFSET(Y$11,MATCH($A34,$A$12:$A$27,0),0)*OFFSET(Inflationparam!W$24,MATCH($A34,Inflationparam!$B$25:$B$42,0),0,1,1) -> 0.006326089803 | Z34: =OFFSET(Z$11,MATCH($A34,$A$12:$A$27,0),0)*OFFSET(Inflationparam!X$24,MATCH($A34,Inflationparam!$B$25:$B$42,0),0,1,1) -> 0.005922296837 | AA34: =OFFSET(AA$11,MATCH($A34,$A$12:$A$27,0),0)*OFFSET(Inflationparam!Y$24,MATCH($A34,Inflationparam!$B$25:$B$42,0),0,1,1) -> 0.005383906215 | AB34: =OFFSET(AB$11,MATCH($A34,$A$12:$A$27,0),0)*OFFSET(Inflationparam!Z$24,MATCH($A34,Inflationparam!$B$25:$B$42,0),0,1,1) -> 0.004980113249 | AC34: =OFFSET(AC$11,MATCH($A34,$A$12:$A$27,0),0)*OFFSET(Inflationparam!AA$24,MATCH($A34,Inflationparam!$B$25:$B$42,0),0,1,1) -> 0.004710917938 | AD34: =OFFSET(AD$11,MATCH($A34,$A$12:$A$27,0),0)*OFFSET(Inflationparam!AB$24,MATCH($A34,Inflationparam!$B$25:$B$42,0),0,1,1) -> 0.004307124972 | AE34: =OFFSET(AE$11,MATCH($A34,$A$12:$A$27,0),0)*OFFSET(Inflationparam!AC$24,MATCH($A34,Inflationparam!$B$25:$B$42,0),0,1,1) -> 0.004037929662 | AF34: =OFFSET(AF$11,MATCH($A34,$A$12:$A$27,0),0)*OFFSET(Inflationparam!AD$24,MATCH($A34,Inflationparam!$B$25:$B$42,0),0,1,1) -> 0.003768734351 | AG34: =OFFSET(AG$11,MATCH($A34,$A$12:$A$27,0),0)*OFFSET(Inflationparam!AE$24,MATCH($A34,Inflationparam!$B$25:$B$42,0),0,1,1) -> 0.00349953904 | AH34: =OFFSET(AH$11,MATCH($A34,$A$12:$A$27,0),0)*OFFSET(Inflationparam!AF$24,MATCH($A34,Inflationparam!$B$25:$B$42,0),0,1,1) -> 0.003364941385 | AI34: =OFFSET(AI$11,MATCH($A34,$A$12:$A$27,0),0)*OFFSET(Inflationparam!AG$24,MATCH($A34,Inflationparam!$B$25:$B$42,0),0,1,1) -> 0.003095746074 | AJ34: =OFFSET(AJ$11,MATCH($A34,$A$12:$A$27,0),0)*OFFSET(Inflationparam!AH$24,MATCH($A34,Inflationparam!$B$25:$B$42,0),0,1,1) -> 0.002961148418 | AK34: =OFFSET(AK$11,MATCH($A34,$A$12:$A$27,0),0)*OFFSET(Inflationparam!AI$24,MATCH($A34,Inflationparam!$B$25:$B$42,0),0,1,1) -> 0.002826550763 | AL34: =OFFSET(AL$11,MATCH($A34,$A$12:$A$27,0),0)*OFFSET(Inflationparam!AJ$24,MATCH($A34,Inflationparam!$B$25:$B$42,0),0,1,1) -> 0.002557355452 | AM34: =OFFSET(AM$11,MATCH($A34,$A$12:$A$27,0),0)*OFFSET(Inflationparam!AK$24,MATCH($A34,Inflationparam!$B$25:$B$42,0),0,1,1) -> 0.002422757797 | AN34: =OFFSET(AN$11,MATCH($A34,$A$12:$A$27,0),0)*OFFSET(Inflationparam!AL$24,MATCH($A34,Inflationparam!$B$25:$B$42,0),0,1,1) -> 0.002288160142 | AO34: =OFFSET(AO$11,MATCH($A34,$A$12:$A$27,0),0)*OFFSET(Inflationparam!AM$24,MATCH($A34,Inflationparam!$B$25:$B$42,0),0,1,1) -> 0.002153562486 | AP34: =OFFSET(AP$11,MATCH($A34,$A$12:$A$27,0),0)*OFFSET(Inflationparam!AN$24,MATCH($A34,Inflationparam!$B$25:$B$42,0),0,1,1) -> 0.002018964831 | AQ34: =OFFSET(AQ$11,MATCH($A34,$A$12:$A$27,0),0)*OFFSET(Inflationparam!AO$24,MATCH($A34,Inflationparam!$B$25:$B$42,0),0,1,1) -> 0.002018964831 | AR34: =OFFSET(AR$11,MATCH($A34,$A$12:$A$27,0),0)*OFFSET(Inflationparam!AP$24,MATCH($A34,Inflationparam!$B$25:$B$42,0),0,1,1) -> 0.001884367175 | AS34: =OFFSET(AS$11,MATCH($A34,$A$12:$A$27,0),0)*OFFSET(Inflationparam!AQ$24,MATCH($A34,Inflationparam!$B$25:$B$42,0),0,1,1) -> 0.00174976952 | AT34: =OFFSET(AT$11,MATCH($A34,$A$12:$A$27,0),0)*OFFSET(Inflationparam!AR$24,MATCH($A34,Inflationparam!$B$25:$B$42,0),0,1,1) -> 0.00174976952 | AU34: =OFFSET(AU$11,MATCH($A34,$A$12:$A$27,0),0)*OFFSET(Inflationparam!AS$24,MATCH($A34,Inflationparam!$B$25:$B$42,0),0,1,1) -> 0.001615171865 | AV34: =OFFSET(AV$11,MATCH($A34,$A$12:$A$27,0),0)*OFFSET(Inflationparam!AT$24,MATCH($A34,Inflationparam!$B$25:$B$42,0),0,1,1) -> 0 | AW34: =OFFSET(AW$11,MATCH($A34,$A$12:$A$27,0),0)*OFFSET(Inflationparam!AU$24,MATCH($A34,Inflationparam!$B$25:$B$42,0),0,1,1) -> 0 | AX34: =OFFSET(AX$11,MATCH($A34,$A$12:$A$27,0),0)*OFFSET(Inflationparam!AV$24,MATCH($A34,Inflationparam!$B$25:$B$42,0),0,1,1) -> 0 | AY34: =OFFSET(AY$11,MATCH($A34,$A$12:$A$27,0),0)*OFFSET(Inflationparam!AW$24,MATCH($A34,Inflationparam!$B$25:$B$42,0),0,1,1) -> 0 | AZ34: =OFFSET(AZ$11,MATCH($A34,$A$12:$A$27,0),0)*OFFSET(Inflationparam!AX$24,MATCH($A34,Inflationparam!$B$25:$B$42,0),0,1,1) -> 0 | BA34: =OFFSET(BA$11,MATCH($A34,$A$12:$A$27,0),0)*OFFSET(Inflationparam!AY$24,MATCH($A34,Inflationparam!$B$25:$B$42,0),0,1,1) -> 0 | BB34: =OFFSET(BB$11,MATCH($A34,$A$12:$A$27,0),0)*OFFSET(Inflationparam!AZ$24,MATCH($A34,Inflationparam!$B$25:$B$42,0),0,1,1) -> 0 | BC34: =OFFSET(BC$11,MATCH($A34,$A$12:$A$27,0),0)*OFFSET(Inflationparam!BA$24,MATCH($A34,Inflationparam!$B$25:$B$42,0),0,1,1) -> 0
A35: 2 | B35: =_MOD -> MFK | C35: =SUM(F35:BC35) -> 1.04635989 | F35: =OFFSET(F$11,MATCH($A35,$A$12:$A$27,0),0)*OFFSET(Inflationparam!D$24,MATCH($A35,Inflationparam!$B$25:$B$42,0),0,1,1) -> 0.869204 | G35: =OFFSET(G$11,MATCH($A35,$A$12:$A$27,0),0)*OFFSET(Inflationparam!E$24,MATCH($A35,Inflationparam!$B$25:$B$42,0),0,1,1) -> 0.172740568 | H35: =OFFSET(H$11,MATCH($A35,$A$12:$A$27,0),0)*OFFSET(Inflationparam!F$24,MATCH($A35,Inflationparam!$B$25:$B$42,0),0,1,1) -> 0.003649405312 | I35: =OFFSET(I$11,MATCH($A35,$A$12:$A$27,0),0)*OFFSET(Inflationparam!G$24,MATCH($A35,Inflationparam!$B$25:$B$42,0),0,1,1) -> 0.0003743583514 | J35: =OFFSET(J$11,MATCH($A35,$A$12:$A$27,0),0)*OFFSET(Inflationparam!H$24,MATCH($A35,Inflationparam!$B$25:$B$42,0),0,1,1) -> 0.0002585568347 | K35: =OFFSET(K$11,MATCH($A35,$A$12:$A$27,0),0)*OFFSET(Inflationparam!I$24,MATCH($A35,Inflationparam!$B$25:$B$42,0),0,1,1) -> 0.0001330016358 | L35: =OFFSET(L$11,MATCH($A35,$A$12:$A$27,0),0)*OFFSET(Inflationparam!J$24,MATCH($A35,Inflationparam!$B$25:$B$42,0),0,1,1) -> 0 | M35: =OFFSET(M$11,MATCH($A35,$A$12:$A$27,0),0)*OFFSET(Inflationparam!K$24,MATCH($A35,Inflationparam!$B$25:$B$42,0),0,1,1) -> 0 | N35: =OFFSET(N$11,MATCH($A35,$A$12:$A$27,0),0)*OFFSET(Inflationparam!L$24,MATCH($A35,Inflationparam!$B$25:$B$42,0),0,1,1) -> 0 | O35: =OFFSET(O$11,MATCH($A35,$A$12:$A$27,0),0)*OFFSET(Inflationparam!M$24,MATCH($A35,Inflationparam!$B$25:$B$42,0),0,1,1) -> 0 | P35: =OFFSET(P$11,MATCH($A35,$A$12:$A$27,0),0)*OFFSET(Inflationparam!N$24,MATCH($A35,Inflationparam!$B$25:$B$42,0),0,1,1) -> 0 | Q35: =OFFSET(Q$11,MATCH($A35,$A$12:$A$27,0),0)*OFFSET(Inflationparam!O$24,MATCH($A35,Inflationparam!$B$25:$B$42,0),0,1,1) -> 0 | R35: =OFFSET(R$11,MATCH($A35,$A$12:$A$27,0),0)*OFFSET(Inflationparam!P$24,MATCH($A35,Inflationparam!$B$25:$B$42,0),0,1,1) -> 0 | S35: =OFFSET(S$11,MATCH($A35,$A$12:$A$27,0),0)*OFFSET(Inflationparam!Q$24,MATCH($A35,Inflationparam!$B$25:$B$42,0),0,1,1) -> 0 | T35: =OFFSET(T$11,MATCH($A35,$A$12:$A$27,0),0)*OFFSET(Inflationparam!R$24,MATCH($A35,Inflationparam!$B$25:$B$42,0),0,1,1) -> 0 | U35: =OFFSET(U$11,MATCH($A35,$A$12:$A$27,0),0)*OFFSET(Inflationparam!S$24,MATCH($A35,Inflationparam!$B$25:$B$42,0),0,1,1) -> 0 | V35: =OFFSET(V$11,MATCH($A35,$A$12:$A$27,0),0)*OFFSET(Inflationparam!T$24,MATCH($A35,Inflationparam!$B$25:$B$42,0),0,1,1) -> 0 | W35: =OFFSET(W$11,MATCH($A35,$A$12:$A$27,0),0)*OFFSET(Inflationparam!U$24,MATCH($A35,Inflationparam!$B$25:$B$42,0),0,1,1) -> 0 | X35: =OFFSET(X$11,MATCH($A35,$A$12:$A$27,0),0)*OFFSET(Inflationparam!V$24,MATCH($A35,Inflationparam!$B$25:$B$42,0),0,1,1) -> 0 | Y35: =OFFSET(Y$11,MATCH($A35,$A$12:$A$27,0),0)*OFFSET(Inflationparam!W$24,MATCH($A35,Inflationparam!$B$25:$B$42,0),0,1,1) -> 0 | Z35: =OFFSET(Z$11,MATCH($A35,$A$12:$A$27,0),0)*OFFSET(Inflationparam!X$24,MATCH($A35,Inflationparam!$B$25:$B$42,0),0,1,1) -> 0 | AA35: =OFFSET(AA$11,MATCH($A35,$A$12:$A$27,0),0)*OFFSET(Inflationparam!Y$24,MATCH($A35,Inflationparam!$B$25:$B$42,0),0,1,1) -> 0 | AB35: =OFFSET(AB$11,MATCH($A35,$A$12:$A$27,0),0)*OFFSET(Inflationparam!Z$24,MATCH($A35,Inflationparam!$B$25:$B$42,0),0,1,1) -> 0 | AC35: =OFFSET(AC$11,MATCH($A35,$A$12:$A$27,0),0)*OFFSET(Inflationparam!AA$24,MATCH($A35,Inflationparam!$B$25:$B$42,0),0,1,1) -> 0 | AD35: =OFFSET(AD$11,MATCH($A35,$A$12:$A$27,0),0)*OFFSET(Inflationparam!AB$24,MATCH($A35,Inflationparam!$B$25:$B$42,0),0,1,1) -> 0 | AE35: =OFFSET(AE$11,MATCH($A35,$A$12:$A$27,0),0)*OFFSET(Inflationparam!AC$24,MATCH($A35,Inflationparam!$B$25:$B$42,0),0,1,1) -> 0 | AF35: =OFFSET(AF$11,MATCH($A35,$A$12:$A$27,0),0)*OFFSET(Inflationparam!AD$24,MATCH($A35,Inflationparam!$B$25:$B$42,0),0,1,1) -> 0 | AG35: =OFFSET(AG$11,MATCH($A35,$A$12:$A$27,0),0)*OFFSET(Inflationparam!AE$24,MATCH($A35,Inflationparam!$B$25:$B$42,0),0,1,1) -> 0 | AH35: =OFFSET(AH$11,MATCH($A35,$A$12:$A$27,0),0)*OFFSET(Inflationparam!AF$24,MATCH($A35,Inflationparam!$B$25:$B$42,0),0,1,1) -> 0 | AI35: =OFFSET(AI$11,MATCH($A35,$A$12:$A$27,0),0)*OFFSET(Inflationparam!AG$24,MATCH($A35,Inflationparam!$B$25:$B$42,0),0,1,1) -> 0 | AJ35: =OFFSET(AJ$11,MATCH($A35,$A$12:$A$27,0),0)*OFFSET(Inflationparam!AH$24,MATCH($A35,Inflationparam!$B$25:$B$42,0),0,1,1) -> 0 | AK35: =OFFSET(AK$11,MATCH($A35,$A$12:$A$27,0),0)*OFFSET(Inflationparam!AI$24,MATCH($A35,Inflationparam!$B$25:$B$42,0),0,1,1) -> 0 | AL35: =OFFSET(AL$11,MATCH($A35,$A$12:$A$27,0),0)*OFFSET(Inflationparam!AJ$24,MATCH($A35,Inflationparam!$B$25:$B$42,0),0,1,1) -> 0 | AM35: =OFFSET(AM$11,MATCH($A35,$A$12:$A$27,0),0)*OFFSET(Inflationparam!AK$24,MATCH($A35,Inflationparam!$B$25:$B$42,0),0,1,1) -> 0 | AN35: =OFFSET(AN$11,MATCH($A35,$A$12:$A$27,0),0)*OFFSET(Inflationparam!AL$24,MATCH($A35,Inflationparam!$B$25:$B$42,0),0,1,1) -> 0 | AO35: =OFFSET(AO$11,MATCH($A35,$A$12:$A$27,0),0)*OFFSET(Inflationparam!AM$24,MATCH($A35,Inflationparam!$B$25:$B$42,0),0,1,1) -> 0 | AP35: =OFFSET(AP$11,MATCH($A35,$A$12:$A$27,0),0)*OFFSET(Inflationparam!AN$24,MATCH($A35,Inflationparam!$B$25:$B$42,0),0,1,1) -> 0 | AQ35: =OFFSET(AQ$11,MATCH($A35,$A$12:$A$27,0),0)*OFFSET(Inflationparam!AO$24,MATCH($A35,Inflationparam!$B$25:$B$42,0),0,1,1) -> 0 | AR35: =OFFSET(AR$11,MATCH($A35,$A$12:$A$27,0),0)*OFFSET(Inflationparam!AP$24,MATCH($A35,Inflationparam!$B$25:$B$42,0),0,1,1) -> 0 | AS35: =OFFSET(AS$11,MATCH($A35,$A$12:$A$27,0),0)*OFFSET(Inflationparam!AQ$24,MATCH($A35,Inflationparam!$B$25:$B$42,0),0,1,1) -> 0 | AT35: =OFFSET(AT$11,MATCH($A35,$A$12:$A$27,0),0)*OFFSET(Inflationparam!AR$24,MATCH($A35,Inflationparam!$B$25:$B$42,0),0,1,1) -> 0 | AU35: =OFFSET(AU$11,MATCH($A35,$A$12:$A$27,0),0)*OFFSET(Inflationparam!AS$24,MATCH($A35,Inflationparam!$B$25:$B$42,0),0,1,1) -> 0 | AV35: =OFFSET(AV$11,MATCH($A35,$A$12:$A$27,0),0)*OFFSET(Inflationparam!AT$24,MATCH($A35,Inflationparam!$B$25:$B$42,0),0,1,1) -> 0 | AW35: =OFFSET(AW$11,MATCH($A35,$A$12:$A$27,0),0)*OFFSET(Inflationparam!AU$24,MATCH($A35,Inflationparam!$B$25:$B$42,0),0,1,1) -> 0 | AX35: =OFFSET(AX$11,MATCH($A35,$A$12:$A$27,0),0)*OFFSET(Inflationparam!AV$24,MATCH($A35,Inflationparam!$B$25:$B$42,0),0,1,1) -> 0 | AY35: =OFFSET(AY$11,MATCH($A35,$A$12:$A$27,0),0)*OFFSET(Inflationparam!AW$24,MATCH($A35,Inflationparam!$B$25:$B$42,0),0,1,1) -> 0 | AZ35: =OFFSET(AZ$11,MATCH($A35,$A$12:$A$27,0),0)*OFFSET(Inflationparam!AX$24,MATCH($A35,Inflationparam!$B$25:$B$42,0),0,1,1) -> 0 | BA35: =OFFSET(BA$11,MATCH($A35,$A$12:$A$27,0),0)*OFFSET(Inflationparam!AY$24,MATCH($A35,Inflationparam!$B$25:$B$42,0),0,1,1) -> 0 | BB35: =OFFSET(BB$11,MATCH($A35,$A$12:$A$27,0),0)*OFFSET(Inflationparam!AZ$24,MATCH($A35,Inflationparam!$B$25:$B$42,0),0,1,1) -> 0 | BC35: =OFFSET(BC$11,MATCH($A35,$A$12:$A$27,0),0)*OFFSET(Inflationparam!BA$24,MATCH($A35,Inflationparam!$B$25:$B$42,0),0,1,1) -> 0
A36: 3 | B36: =_Fire -> Sach | C36: 1.062308539 | F36: =OFFSET(F$11,MATCH($A36,$A$12:$A$27,0),0)*OFFSET(Inflationparam!D$24,MATCH($A36,Inflationparam!$B$25:$B$42,0),0,1,1) -> 0.61946944 | G36: =OFFSET(G$11,MATCH($A36,$A$12:$A$27,0),0)*OFFSET(Inflationparam!E$24,MATCH($A36,Inflationparam!$B$25:$B$42,0),0,1,1) -> 0.3619384596 | H36: =OFFSET(H$11,MATCH($A36,$A$12:$A$27,0),0)*OFFSET(Inflationparam!F$24,MATCH($A36,Inflationparam!$B$25:$B$42,0),0,1,1) -> 0.05691377928 | I36: =OFFSET(I$11,MATCH($A36,$A$12:$A$27,0),0)*OFFSET(Inflationparam!G$24,MATCH($A36,Inflationparam!$B$25:$B$42,0),0,1,1) -> 0.0148179712 | J36: =OFFSET(J$11,MATCH($A36,$A$12:$A$27,0),0)*OFFSET(Inflationparam!H$24,MATCH($A36,Inflationparam!$B$25:$B$42,0),0,1,1) -> 0.004785800237 | K36: =OFFSET(K$11,MATCH($A36,$A$12:$A$27,0),0)*OFFSET(Inflationparam!I$24,MATCH($A36,Inflationparam!$B$25:$B$42,0),0,1,1) -> 0.001650376881 | L36: =OFFSET(L$11,MATCH($A36,$A$12:$A$27,0),0)*OFFSET(Inflationparam!J$24,MATCH($A36,Inflationparam!$B$25:$B$42,0),0,1,1) -> 0.0007751443353 | M36: =OFFSET(M$11,MATCH($A36,$A$12:$A$27,0),0)*OFFSET(Inflationparam!K$24,MATCH($A36,Inflationparam!$B$25:$B$42,0),0,1,1) -> 0.0005255215833 | N36: =OFFSET(N$11,MATCH($A36,$A$12:$A$27,0),0)*OFFSET(Inflationparam!L$24,MATCH($A36,Inflationparam!$B$25:$B$42,0),0,1,1) -> 0.0006174878603 | O36: =OFFSET(O$11,MATCH($A36,$A$12:$A$27,0),0)*OFFSET(Inflationparam!M$24,MATCH($A36,Inflationparam!$B$25:$B$42,0),0,1,1) -> 0.0005386596228 | P36: =OFFSET(P$11,MATCH($A36,$A$12:$A$27,0),0)*OFFSET(Inflationparam!N$24,MATCH($A36,Inflationparam!$B$25:$B$42,0),0,1,1) -> 0.0001707945146 | Q36: =OFFSET(Q$11,MATCH($A36,$A$12:$A$27,0),0)*OFFSET(Inflationparam!O$24,MATCH($A36,Inflationparam!$B$25:$B$42,0),0,1,1) -> 3.941411874e-05 | R36: =OFFSET(R$11,MATCH($A36,$A$12:$A$27,0),0)*OFFSET(Inflationparam!P$24,MATCH($A36,Inflationparam!$B$25:$B$42,0),0,1,1) -> 2.627607916e-05 | S36: =OFFSET(S$11,MATCH($A36,$A$12:$A$27,0),0)*OFFSET(Inflationparam!Q$24,MATCH($A36,Inflationparam!$B$25:$B$42,0),0,1,1) -> 1.313803958e-05 | T36: =OFFSET(T$11,MATCH($A36,$A$12:$A$27,0),0)*OFFSET(Inflationparam!R$24,MATCH($A36,Inflationparam!$B$25:$B$42,0),0,1,1) -> 1.313803958e-05 | U36: =OFFSET(U$11,MATCH($A36,$A$12:$A$27,0),0)*OFFSET(Inflationparam!S$24,MATCH($A36,Inflationparam!$B$25:$B$42,0),0,1,1) -> 1.313803958e-05 | V36: =OFFSET(V$11,MATCH($A36,$A$12:$A$27,0),0)*OFFSET(Inflationparam!T$24,MATCH($A36,Inflationparam!$B$25:$B$42,0),0,1,1) -> 0 | W36: =OFFSET(W$11,MATCH($A36,$A$12:$A$27,0),0)*OFFSET(Inflationparam!U$24,MATCH($A36,Inflationparam!$B$25:$B$42,0),0,1,1) -> 0 | X36: =OFFSET(X$11,MATCH($A36,$A$12:$A$27,0),0)*OFFSET(Inflationparam!V$24,MATCH($A36,Inflationparam!$B$25:$B$42,0),0,1,1) -> 0 | Y36: =OFFSET(Y$11,MATCH($A36,$A$12:$A$27,0),0)*OFFSET(Inflationparam!W$24,MATCH($A36,Inflationparam!$B$25:$B$42,0),0,1,1) -> 0 | Z36: =OFFSET(Z$11,MATCH($A36,$A$12:$A$27,0),0)*OFFSET(Inflationparam!X$24,MATCH($A36,Inflationparam!$B$25:$B$42,0),0,1,1) -> 0 | AA36: =OFFSET(AA$11,MATCH($A36,$A$12:$A$27,0),0)*OFFSET(Inflationparam!Y$24,MATCH($A36,Inflationparam!$B$25:$B$42,0),0,1,1) -> 0 | AB36: =OFFSET(AB$11,MATCH($A36,$A$12:$A$27,0),0)*OFFSET(Inflationparam!Z$24,MATCH($A36,Inflationparam!$B$25:$B$42,0),0,1,1) -> 0 | AC36: =OFFSET(AC$11,MATCH($A36,$A$12:$A$27,0),0)*OFFSET(Inflationparam!AA$24,MATCH($A36,Inflationparam!$B$25:$B$42,0),0,1,1) -> 0 | AD36: =OFFSET(AD$11,MATCH($A36,$A$12:$A$27,0),0)*OFFSET(Inflationparam!AB$24,MATCH($A36,Inflationparam!$B$25:$B$42,0),0,1,1) -> 0 | AE36: =OFFSET(AE$11,MATCH($A36,$A$12:$A$27,0),0)*OFFSET(Inflationparam!AC$24,MATCH($A36,Inflationparam!$B$25:$B$42,0),0,1,1) -> 0 | AF36: =OFFSET(AF$11,MATCH($A36,$A$12:$A$27,0),0)*OFFSET(Inflationparam!AD$24,MATCH($A36,Inflationparam!$B$25:$B$42,0),0,1,1) -> 0 | AG36: =OFFSET(AG$11,MATCH($A36,$A$12:$A$27,0),0)*OFFSET(Inflationparam!AE$24,MATCH($A36,Inflationparam!$B$25:$B$42,0),0,1,1) -> 0 | AH36: =OFFSET(AH$11,MATCH($A36,$A$12:$A$27,0),0)*OFFSET(Inflationparam!AF$24,MATCH($A36,Inflationparam!$B$25:$B$42,0),0,1,1) -> 0 | AI36: =OFFSET(AI$11,MATCH($A36,$A$12:$A$27,0),0)*OFFSET(Inflationparam!AG$24,MATCH($A36,Inflationparam!$B$25:$B$42,0),0,1,1) -> 0 | AJ36: =OFFSET(AJ$11,MATCH($A36,$A$12:$A$27,0),0)*OFFSET(Inflationparam!AH$24,MATCH($A36,Inflationparam!$B$25:$B$42,0),0,1,1) -> 0 | AK36: =OFFSET(AK$11,MATCH($A36,$A$12:$A$27,0),0)*OFFSET(Inflationparam!AI$24,MATCH($A36,Inflationparam!$B$25:$B$42,0),0,1,1) -> 0 | AL36: =OFFSET(AL$11,MATCH($A36,$A$12:$A$27,0),0)*OFFSET(Inflationparam!AJ$24,MATCH($A36,Inflationparam!$B$25:$B$42,0),0,1,1) -> 0 | AM36: =OFFSET(AM$11,MATCH($A36,$A$12:$A$27,0),0)*OFFSET(Inflationparam!AK$24,MATCH($A36,Inflationparam!$B$25:$B$42,0),0,1,1) -> 0 | AN36: =OFFSET(AN$11,MATCH($A36,$A$12:$A$27,0),0)*OFFSET(Inflationparam!AL$24,MATCH($A36,Inflationparam!$B$25:$B$42,0),0,1,1) -> 0 | AO36: =OFFSET(AO$11,MATCH($A36,$A$12:$A$27,0),0)*OFFSET(Inflationparam!AM$24,MATCH($A36,Inflationparam!$B$25:$B$42,0),0,1,1) -> 0 | AP36: =OFFSET(AP$11,MATCH($A36,$A$12:$A$27,0),0)*OFFSET(Inflationparam!AN$24,MATCH($A36,Inflationparam!$B$25:$B$42,0),0,1,1) -> 0 | AQ36: =OFFSET(AQ$11,MATCH($A36,$A$12:$A$27,0),0)*OFFSET(Inflationparam!AO$24,MATCH($A36,Inflationparam!$B$25:$B$42,0),0,1,1) -> 0 | AR36: =OFFSET(AR$11,MATCH($A36,$A$12:$A$27,0),0)*OFFSET(Inflationparam!AP$24,MATCH($A36,Inflationparam!$B$25:$B$42,0),0,1,1) -> 0 | AS36: =OFFSET(AS$11,MATCH($A36,$A$12:$A$27,0),0)*OFFSET(Inflationparam!AQ$24,MATCH($A36,Inflationparam!$B$25:$B$42,0),0,1,1) -> 0 | AT36: =OFFSET(AT$11,MATCH($A36,$A$12:$A$27,0),0)*OFFSET(Inflationparam!AR$24,MATCH($A36,Inflationparam!$B$25:$B$42,0),0,1,1) -> 0 | AU36: =OFFSET(AU$11,MATCH($A36,$A$12:$A$27,0),0)*OFFSET(Inflationparam!AS$24,MATCH($A36,Inflationparam!$B$25:$B$42,0),0,1,1) -> 0 | AV36: =OFFSET(AV$11,MATCH($A36,$A$12:$A$27,0),0)*OFFSET(Inflationparam!AT$24,MATCH($A36,Inflationparam!$B$25:$B$42,0),0,1,1) -> 0 | AW36: =OFFSET(AW$11,MATCH($A36,$A$12:$A$27,0),0)*OFFSET(Inflationparam!AU$24,MATCH($A36,Inflationparam!$B$25:$B$42,0),0,1,1) -> 0 | AX36: =OFFSET(AX$11,MATCH($A36,$A$12:$A$27,0),0)*OFFSET(Inflationparam!AV$24,MATCH($A36,Inflationparam!$B$25:$B$42,0),0,1,1) -> 0 | AY36: =OFFSET(AY$11,MATCH($A36,$A$12:$A$27,0),0)*OFFSET(Inflationparam!AW$24,MATCH($A36,Inflationparam!$B$25:$B$42,0),0,1,1) -> 0 | AZ36: =OFFSET(AZ$11,MATCH($A36,$A$12:$A$27,0),0)*OFFSET(Inflationparam!AX$24,MATCH($A36,Inflationparam!$B$25:$B$42,0),0,1,1) -> 0 | BA36: =OFFSET(BA$11,MATCH($A36,$A$12:$A$27,0),0)*OFFSET(Inflationparam!AY$24,MATCH($A36,Inflationparam!$B$25:$B$42,0),0,1,1) -> 0 | BB36: =OFFSET(BB$11,MATCH($A36,$A$12:$A$27,0),0)*OFFSET(Inflationparam!AZ$24,MATCH($A36,Inflationparam!$B$25:$B$42,0),0,1,1) -> 0 | BC36: =OFFSET(BC$11,MATCH($A36,$A$12:$A$27,0),0)*OFFSET(Inflationparam!BA$24,MATCH($A36,Inflationparam!$B$25:$B$42,0),0,1,1) -> 0
A37: 4 | B37: =_GL -> Haftpflicht | C37: 1.154369965 | F37: =OFFSET(F$11,MATCH($A37,$A$12:$A$27,0),0)*OFFSET(Inflationparam!D$24,MATCH($A37,Inflationparam!$B$25:$B$42,0),0,1,1) -> 0.302725735 | G37: =OFFSET(G$11,MATCH($A37,$A$12:$A$27,0),0)*OFFSET(Inflationparam!E$24,MATCH($A37,Inflationparam!$B$25:$B$42,0),0,1,1) -> 0.2884178759 | H37: =OFFSET(H$11,MATCH($A37,$A$12:$A$27,0),0)*OFFSET(Inflationparam!F$24,MATCH($A37,Inflationparam!$B$25:$B$42,0),0,1,1) -> 0.1275188593 | I37: =OFFSET(I$11,MATCH($A37,$A$12:$A$27,0),0)*OFFSET(Inflationparam!G$24,MATCH($A37,Inflationparam!$B$25:$B$42,0),0,1,1) -> 0.08307001724 | J37: =OFFSET(J$11,MATCH($A37,$A$12:$A$27,0),0)*OFFSET(Inflationparam!H$24,MATCH($A37,Inflationparam!$B$25:$B$42,0),0,1,1) -> 0.06448073567 | K37: =OFFSET(K$11,MATCH($A37,$A$12:$A$27,0),0)*OFFSET(Inflationparam!I$24,MATCH($A37,Inflationparam!$B$25:$B$42,0),0,1,1) -> 0.04969530298 | L37: =OFFSET(L$11,MATCH($A37,$A$12:$A$27,0),0)*OFFSET(Inflationparam!J$24,MATCH($A37,Inflationparam!$B$25:$B$42,0),0,1,1) -> 0.04918965327 | M37: =OFFSET(M$11,MATCH($A37,$A$12:$A$27,0),0)*OFFSET(Inflationparam!K$24,MATCH($A37,Inflationparam!$B$25:$B$42,0),0,1,1) -> 0.03196862029 | N37: =OFFSET(N$11,MATCH($A37,$A$12:$A$27,0),0)*OFFSET(Inflationparam!L$24,MATCH($A37,Inflationparam!$B$25:$B$42,0),0,1,1) -> 0.02089130719 | O37: =OFFSET(O$11,MATCH($A37,$A$12:$A$27,0),0)*OFFSET(Inflationparam!M$24,MATCH($A37,Inflationparam!$B$25:$B$42,0),0,1,1) -> 0.02457487949 | P37: =OFFSET(P$11,MATCH($A37,$A$12:$A$27,0),0)*OFFSET(Inflationparam!N$24,MATCH($A37,Inflationparam!$B$25:$B$42,0),0,1,1) -> 0.01868382342 | Q37: =OFFSET(Q$11,MATCH($A37,$A$12:$A$27,0),0)*OFFSET(Inflationparam!O$24,MATCH($A37,Inflationparam!$B$25:$B$42,0),0,1,1) -> 0.0142688559 | R37: =OFFSET(R$11,MATCH($A37,$A$12:$A$27,0),0)*OFFSET(Inflationparam!P$24,MATCH($A37,Inflationparam!$B$25:$B$42,0),0,1,1) -> 0.01086454359 | S37: =OFFSET(S$11,MATCH($A37,$A$12:$A$27,0),0)*OFFSET(Inflationparam!Q$24,MATCH($A37,Inflationparam!$B$25:$B$42,0),0,1,1) -> 0.009946975033 | T37: =OFFSET(T$11,MATCH($A37,$A$12:$A$27,0),0)*OFFSET(Inflationparam!R$24,MATCH($A37,Inflationparam!$B$25:$B$42,0),0,1,1) -> 0.008324607448 | U37: =OFFSET(U$11,MATCH($A37,$A$12:$A$27,0),0)*OFFSET(Inflationparam!S$24,MATCH($A37,Inflationparam!$B$25:$B$42,0),0,1,1) -> 0.007008096046 | V37: =OFFSET(V$11,MATCH($A37,$A$12:$A$27,0),0)*OFFSET(Inflationparam!T$24,MATCH($A37,Inflationparam!$B$25:$B$42,0),0,1,1) -> 0.005930950354 | W37: =OFFSET(W$11,MATCH($A37,$A$12:$A$27,0),0)*OFFSET(Inflationparam!U$24,MATCH($A37,Inflationparam!$B$25:$B$42,0),0,1,1) -> 0.005039977991 | X37: =OFFSET(X$11,MATCH($A37,$A$12:$A$27,0),0)*OFFSET(Inflationparam!V$24,MATCH($A37,Inflationparam!$B$25:$B$42,0),0,1,1) -> 0.004295284673 | Y37: =OFFSET(Y$11,MATCH($A37,$A$12:$A$27,0),0)*OFFSET(Inflationparam!W$24,MATCH($A37,Inflationparam!$B$25:$B$42,0),0,1,1) -> 0.003683572305 | Z37: =OFFSET(Z$11,MATCH($A37,$A$12:$A$27,0),0)*OFFSET(Inflationparam!X$24,MATCH($A37,Inflationparam!$B$25:$B$42,0),0,1,1) -> 0.003164946601 | AA37: =OFFSET(AA$11,MATCH($A37,$A$12:$A$27,0),0)*OFFSET(Inflationparam!Y$24,MATCH($A37,Inflationparam!$B$25:$B$42,0),0,1,1) -> 0.002726109468 | AB37: =OFFSET(AB$11,MATCH($A37,$A$12:$A$27,0),0)*OFFSET(Inflationparam!Z$24,MATCH($A37,Inflationparam!$B$25:$B$42,0),0,1,1) -> 0.002367060904 | AC37: =OFFSET(AC$11,MATCH($A37,$A$12:$A$27,0),0)*OFFSET(Inflationparam!AA$24,MATCH($A37,Inflationparam!$B$25:$B$42,0),0,1,1) -> 0.002047906624 | AD37: =OFFSET(AD$11,MATCH($A37,$A$12:$A$27,0),0)*OFFSET(Inflationparam!AB$24,MATCH($A37,Inflationparam!$B$25:$B$42,0),0,1,1) -> 0.001781944725 | AE37: =OFFSET(AE$11,MATCH($A37,$A$12:$A$27,0),0)*OFFSET(Inflationparam!AC$24,MATCH($A37,Inflationparam!$B$25:$B$42,0),0,1,1) -> 0.001555877111 | AF37: =OFFSET(AF$11,MATCH($A37,$A$12:$A$27,0),0)*OFFSET(Inflationparam!AD$24,MATCH($A37,Inflationparam!$B$25:$B$42,0),0,1,1) -> 0.001369703781 | AG37: =OFFSET(AG$11,MATCH($A37,$A$12:$A$27,0),0)*OFFSET(Inflationparam!AE$24,MATCH($A37,Inflationparam!$B$25:$B$42,0),0,1,1) -> 0.001196828547 | AH37: =OFFSET(AH$11,MATCH($A37,$A$12:$A$27,0),0)*OFFSET(Inflationparam!AF$24,MATCH($A37,Inflationparam!$B$25:$B$42,0),0,1,1) -> 0.001050549502 | AI37: =OFFSET(AI$11,MATCH($A37,$A$12:$A$27,0),0)*OFFSET(Inflationparam!AG$24,MATCH($A37,Inflationparam!$B$25:$B$42,0),0,1,1) -> 0.0009308666475 | AJ37: =OFFSET(AJ$11,MATCH($A37,$A$12:$A$27,0),0)*OFFSET(Inflationparam!AH$24,MATCH($A37,Inflationparam!$B$25:$B$42,0),0,1,1) -> 0.0008244818878 | AK37: =OFFSET(AK$11,MATCH($A37,$A$12:$A$27,0),0)*OFFSET(Inflationparam!AI$24,MATCH($A37,Inflationparam!$B$25:$B$42,0),0,1,1) -> 0.000731395223 | AL37: =OFFSET(AL$11,MATCH($A37,$A$12:$A$27,0),0)*OFFSET(Inflationparam!AJ$24,MATCH($A37,Inflationparam!$B$25:$B$42,0),0,1,1) -> 0.0006383085583 | AM37: =OFFSET(AM$11,MATCH($A37,$A$12:$A$27,0),0)*OFFSET(Inflationparam!AK$24,MATCH($A37,Inflationparam!$B$25:$B$42,0),0,1,1) -> 0.0005718180835 | AN37: =OFFSET(AN$11,MATCH($A37,$A$12:$A$27,0),0)*OFFSET(Inflationparam!AL$24,MATCH($A37,Inflationparam!$B$25:$B$42,0),0,1,1) -> 0.0005053276086 | AO37: =OFFSET(AO$11,MATCH($A37,$A$12:$A$27,0),0)*OFFSET(Inflationparam!AM$24,MATCH($A37,Inflationparam!$B$25:$B$42,0),0,1,1) -> 0.0004521352288 | AP37: =OFFSET(AP$11,MATCH($A37,$A$12:$A$27,0),0)*OFFSET(Inflationparam!AN$24,MATCH($A37,Inflationparam!$B$25:$B$42,0),0,1,1) -> 0.0003989428489 | AQ37: =OFFSET(AQ$11,MATCH($A37,$A$12:$A$27,0),0)*OFFSET(Inflationparam!AO$24,MATCH($A37,Inflationparam!$B$25:$B$42,0),0,1,1) -> 0.000359048564 | AR37: =OFFSET(AR$11,MATCH($A37,$A$12:$A$27,0),0)*OFFSET(Inflationparam!AP$24,MATCH($A37,Inflationparam!$B$25:$B$42,0),0,1,1) -> 0.0003191542791 | AS37: =OFFSET(AS$11,MATCH($A37,$A$12:$A$27,0),0)*OFFSET(Inflationparam!AQ$24,MATCH($A37,Inflationparam!$B$25:$B$42,0),0,1,1) -> 0.0002925580892 | AT37: =OFFSET(AT$11,MATCH($A37,$A$12:$A$27,0),0)*OFFSET(Inflationparam!AR$24,MATCH($A37,Inflationparam!$B$25:$B$42,0),0,1,1) -> 0.0002659618993 | AU37: =OFFSET(AU$11,MATCH($A37,$A$12:$A$27,0),0)*OFFSET(Inflationparam!AS$24,MATCH($A37,Inflationparam!$B$25:$B$42,0),0,1,1) -> 0.0002393657094 | AV37: =OFFSET(AV$11,MATCH($A37,$A$12:$A$27,0),0)*OFFSET(Inflationparam!AT$24,MATCH($A37,Inflationparam!$B$25:$B$42,0),0,1,1) -> 0 | AW37: =OFFSET(AW$11,MATCH($A37,$A$12:$A$27,0),0)*OFFSET(Inflationparam!AU$24,MATCH($A37,Inflationparam!$B$25:$B$42,0),0,1,1) -> 0 | AX37: =OFFSET(AX$11,MATCH($A37,$A$12:$A$27,0),0)*OFFSET(Inflationparam!AV$24,MATCH($A37,Inflationparam!$B$25:$B$42,0),0,1,1) -> 0 | AY37: =OFFSET(AY$11,MATCH($A37,$A$12:$A$27,0),0)*OFFSET(Inflationparam!AW$24,MATCH($A37,Inflationparam!$B$25:$B$42,0),0,1,1) -> 0 | AZ37: =OFFSET(AZ$11,MATCH($A37,$A$12:$A$27,0),0)*OFFSET(Inflationparam!AX$24,MATCH($A37,Inflationparam!$B$25:$B$42,0),0,1,1) -> 0 | BA37: =OFFSET(BA$11,MATCH($A37,$A$12:$A$27,0),0)*OFFSET(Inflationparam!AY$24,MATCH($A37,Inflationparam!$B$25:$B$42,0),0,1,1) -> 0 | BB37: =OFFSET(BB$11,MATCH($A37,$A$12:$A$27,0),0)*OFFSET(Inflationparam!AZ$24,MATCH($A37,Inflationparam!$B$25:$B$42,0),0,1,1) -> 0 | BC37: =OFFSET(BC$11,MATCH($A37,$A$12:$A$27,0),0)*OFFSET(Inflationparam!BA$24,MATCH($A37,Inflationparam!$B$25:$B$42,0),0,1,1) -> 0
A38: 5a | B38: =_AccMandatory_noAnnuities -> UVG, nicht verrentete Fälle | C38: 1 | F38: =OFFSET(F$11,MATCH($A38,$A$12:$A$27,0),0)*OFFSET(Inflationparam!D$24,MATCH($A38,Inflationparam!$B$25:$B$42,0),0,1,1) -> 0.48727 | G38: =OFFSET(G$11,MATCH($A38,$A$12:$A$27,0),0)*OFFSET(Inflationparam!E$24,MATCH($A38,Inflationparam!$B$25:$B$42,0),0,1,1) -> 0.27562 | H38: =OFFSET(H$11,MATCH($A38,$A$12:$A$27,0),0)*OFFSET(Inflationparam!F$24,MATCH($A38,Inflationparam!$B$25:$B$42,0),0,1,1) -> 0.06077 | I38: =OFFSET(I$11,MATCH($A38,$A$12:$A$27,0),0)*OFFSET(Inflationparam!G$24,MATCH($A38,Inflationparam!$B$25:$B$42,0),0,1,1) -> 0.03786 | J38: =OFFSET(J$11,MATCH($A38,$A$12:$A$27,0),0)*OFFSET(Inflationparam!H$24,MATCH($A38,Inflationparam!$B$25:$B$42,0),0,1,1) -> 0.03331 | K38: =OFFSET(K$11,MATCH($A38,$A$12:$A$27,0),0)*OFFSET(Inflationparam!I$24,MATCH($A38,Inflationparam!$B$25:$B$42,0),0,1,1) -> 0.02416 | L38: =OFFSET(L$11,MATCH($A38,$A$12:$A$27,0),0)*OFFSET(Inflationparam!J$24,MATCH($A38,Inflationparam!$B$25:$B$42,0),0,1,1) -> 0.02013 | M38: =OFFSET(M$11,MATCH($A38,$A$12:$A$27,0),0)*OFFSET(Inflationparam!K$24,MATCH($A38,Inflationparam!$B$25:$B$42,0),0,1,1) -> 0.01239 | N38: =OFFSET(N$11,MATCH($A38,$A$12:$A$27,0),0)*OFFSET(Inflationparam!L$24,MATCH($A38,Inflationparam!$B$25:$B$42,0),0,1,1) -> 0.0089 | O38: =OFFSET(O$11,MATCH($A38,$A$12:$A$27,0),0)*OFFSET(Inflationparam!M$24,MATCH($A38,Inflationparam!$B$25:$B$42,0),0,1,1) -> 0.00829 | P38: =OFFSET(P$11,MATCH($A38,$A$12:$A$27,0),0)*OFFSET(Inflationparam!N$24,MATCH($A38,Inflationparam!$B$25:$B$42,0),0,1,1) -> 0.00703 | Q38: =OFFSET(Q$11,MATCH($A38,$A$12:$A$27,0),0)*OFFSET(Inflationparam!O$24,MATCH($A38,Inflationparam!$B$25:$B$42,0),0,1,1) -> 0.00324 | R38: =OFFSET(R$11,MATCH($A38,$A$12:$A$27,0),0)*OFFSET(Inflationparam!P$24,MATCH($A38,Inflationparam!$B$25:$B$42,0),0,1,1) -> 0.0027 | S38: =OFFSET(S$11,MATCH($A38,$A$12:$A$27,0),0)*OFFSET(Inflationparam!Q$24,MATCH($A38,Inflationparam!$B$25:$B$42,0),0,1,1) -> 0.00244 | T38: =OFFSET(T$11,MATCH($A38,$A$12:$A$27,0),0)*OFFSET(Inflationparam!R$24,MATCH($A38,Inflationparam!$B$25:$B$42,0),0,1,1) -> 0.00176 | U38: =OFFSET(U$11,MATCH($A38,$A$12:$A$27,0),0)*OFFSET(Inflationparam!S$24,MATCH($A38,Inflationparam!$B$25:$B$42,0),0,1,1) -> 0.00146 | V38: =OFFSET(V$11,MATCH($A38,$A$12:$A$27,0),0)*OFFSET(Inflationparam!T$24,MATCH($A38,Inflationparam!$B$25:$B$42,0),0,1,1) -> 0.00122 | W38: =OFFSET(W$11,MATCH($A38,$A$12:$A$27,0),0)*OFFSET(Inflationparam!U$24,MATCH($A38,Inflationparam!$B$25:$B$42,0),0,1,1) -> 0.00104 | X38: =OFFSET(X$11,MATCH($A38,$A$12:$A$27,0),0)*OFFSET(Inflationparam!V$24,MATCH($A38,Inflationparam!$B$25:$B$42,0),0,1,1) -> 0.00091 | Y38: =OFFSET(Y$11,MATCH($A38,$A$12:$A$27,0),0)*OFFSET(Inflationparam!W$24,MATCH($A38,Inflationparam!$B$25:$B$42,0),0,1,1) -> 0.00079 | Z38: =OFFSET(Z$11,MATCH($A38,$A$12:$A$27,0),0)*OFFSET(Inflationparam!X$24,MATCH($A38,Inflationparam!$B$25:$B$42,0),0,1,1) -> 0.0007 | AA38: =OFFSET(AA$11,MATCH($A38,$A$12:$A$27,0),0)*OFFSET(Inflationparam!Y$24,MATCH($A38,Inflationparam!$B$25:$B$42,0),0,1,1) -> 0.00063 | AB38: =OFFSET(AB$11,MATCH($A38,$A$12:$A$27,0),0)*OFFSET(Inflationparam!Z$24,MATCH($A38,Inflationparam!$B$25:$B$42,0),0,1,1) -> 0.00057 | AC38: =OFFSET(AC$11,MATCH($A38,$A$12:$A$27,0),0)*OFFSET(Inflationparam!AA$24,MATCH($A38,Inflationparam!$B$25:$B$42,0),0,1,1) -> 0.0005 | AD38: =OFFSET(AD$11,MATCH($A38,$A$12:$A$27,0),0)*OFFSET(Inflationparam!AB$24,MATCH($A38,Inflationparam!$B$25:$B$42,0),0,1,1) -> 0.00046 | AE38: =OFFSET(AE$11,MATCH($A38,$A$12:$A$27,0),0)*OFFSET(Inflationparam!AC$24,MATCH($A38,Inflationparam!$B$25:$B$42,0),0,1,1) -> 0.00043 | AF38: =OFFSET(AF$11,MATCH($A38,$A$12:$A$27,0),0)*OFFSET(Inflationparam!AD$24,MATCH($A38,Inflationparam!$B$25:$B$42,0),0,1,1) -> 0.0004 | AG38: =OFFSET(AG$11,MATCH($A38,$A$12:$A$27,0),0)*OFFSET(Inflationparam!AE$24,MATCH($A38,Inflationparam!$B$25:$B$42,0),0,1,1) -> 0.00037 | AH38: =OFFSET(AH$11,MATCH($A38,$A$12:$A$27,0),0)*OFFSET(Inflationparam!AF$24,MATCH($A38,Inflationparam!$B$25:$B$42,0),0,1,1) -> 0.00035 | AI38: =OFFSET(AI$11,MATCH($A38,$A$12:$A$27,0),0)*OFFSET(Inflationparam!AG$24,MATCH($A38,Inflationparam!$B$25:$B$42,0),0,1,1) -> 0.00033 | AJ38: =OFFSET(AJ$11,MATCH($A38,$A$12:$A$27,0),0)*OFFSET(Inflationparam!AH$24,MATCH($A38,Inflationparam!$B$25:$B$42,0),0,1,1) -> 0.00031 | AK38: =OFFSET(AK$11,MATCH($A38,$A$12:$A$27,0),0)*OFFSET(Inflationparam!AI$24,MATCH($A38,Inflationparam!$B$25:$B$42,0),0,1,1) -> 0.00029 | AL38: =OFFSET(AL$11,MATCH($A38,$A$12:$A$27,0),0)*OFFSET(Inflationparam!AJ$24,MATCH($A38,Inflationparam!$B$25:$B$42,0),0,1,1) -> 0.00028 | AM38: =OFFSET(AM$11,MATCH($A38,$A$12:$A$27,0),0)*OFFSET(Inflationparam!AK$24,MATCH($A38,Inflationparam!$B$25:$B$42,0),0,1,1) -> 0.00026 | AN38: =OFFSET(AN$11,MATCH($A38,$A$12:$A$27,0),0)*OFFSET(Inflationparam!AL$24,MATCH($A38,Inflationparam!$B$25:$B$42,0),0,1,1) -> 0.00025 | AO38: =OFFSET(AO$11,MATCH($A38,$A$12:$A$27,0),0)*OFFSET(Inflationparam!AM$24,MATCH($A38,Inflationparam!$B$25:$B$42,0),0,1,1) -> 0.00024 | AP38: =OFFSET(AP$11,MATCH($A38,$A$12:$A$27,0),0)*OFFSET(Inflationparam!AN$24,MATCH($A38,Inflationparam!$B$25:$B$42,0),0,1,1) -> 0.00023 | AQ38: =OFFSET(AQ$11,MATCH($A38,$A$12:$A$27,0),0)*OFFSET(Inflationparam!AO$24,MATCH($A38,Inflationparam!$B$25:$B$42,0),0,1,1) -> 0.00022 | AR38: =OFFSET(AR$11,MATCH($A38,$A$12:$A$27,0),0)*OFFSET(Inflationparam!AP$24,MATCH($A38,Inflationparam!$B$25:$B$42,0),0,1,1) -> 0.00021 | AS38: =OFFSET(AS$11,MATCH($A38,$A$12:$A$27,0),0)*OFFSET(Inflationparam!AQ$24,MATCH($A38,Inflationparam!$B$25:$B$42,0),0,1,1) -> 0.0002 | AT38: =OFFSET(AT$11,MATCH($A38,$A$12:$A$27,0),0)*OFFSET(Inflationparam!AR$24,MATCH($A38,Inflationparam!$B$25:$B$42,0),0,1,1) -> 0.00019 | AU38: =OFFSET(AU$11,MATCH($A38,$A$12:$A$27,0),0)*OFFSET(Inflationparam!AS$24,MATCH($A38,Inflationparam!$B$25:$B$42,0),0,1,1) -> 0.00018 | AV38: =OFFSET(AV$11,MATCH($A38,$A$12:$A$27,0),0)*OFFSET(Inflationparam!AT$24,MATCH($A38,Inflationparam!$B$25:$B$42,0),0,1,1) -> 0.00018 | AW38: =OFFSET(AW$11,MATCH($A38,$A$12:$A$27,0),0)*OFFSET(Inflationparam!AU$24,MATCH($A38,Inflationparam!$B$25:$B$42,0),0,1,1) -> 0.00017 | AX38: =OFFSET(AX$11,MATCH($A38,$A$12:$A$27,0),0)*OFFSET(Inflationparam!AV$24,MATCH($A38,Inflationparam!$B$25:$B$42,0),0,1,1) -> 0.00016 | AY38: =OFFSET(AY$11,MATCH($A38,$A$12:$A$27,0),0)*OFFSET(Inflationparam!AW$24,MATCH($A38,Inflationparam!$B$25:$B$42,0),0,1,1) -> 0.00016 | AZ38: =OFFSET(AZ$11,MATCH($A38,$A$12:$A$27,0),0)*OFFSET(Inflationparam!AX$24,MATCH($A38,Inflationparam!$B$25:$B$42,0),0,1,1) -> 0.00015 | BA38: =OFFSET(BA$11,MATCH($A38,$A$12:$A$27,0),0)*OFFSET(Inflationparam!AY$24,MATCH($A38,Inflationparam!$B$25:$B$42,0),0,1,1) -> 0.00015 | BB38: =OFFSET(BB$11,MATCH($A38,$A$12:$A$27,0),0)*OFFSET(Inflationparam!AZ$24,MATCH($A38,Inflationparam!$B$25:$B$42,0),0,1,1) -> 0.00014 | BC38: =OFFSET(BC$11,MATCH($A38,$A$12:$A$27,0),0)*OFFSET(Inflationparam!BA$24,MATCH($A38,Inflationparam!$B$25:$B$42,0),0,1,1) -> 0
A39: 5a_1 | B39: =_AccMandatory & " " & _KurzFrist -> UVG Kurzfristleistungen | C39: 1 | F39: =OFFSET(F$11,MATCH($A39,$A$12:$A$27,0),0)*OFFSET(Inflationparam!D$24,MATCH($A39,Inflationparam!$B$25:$B$42,0),0,1,1) -> 0.57739 | G39: =OFFSET(G$11,MATCH($A39,$A$12:$A$27,0),0)*OFFSET(Inflationparam!E$24,MATCH($A39,Inflationparam!$B$25:$B$42,0),0,1,1) -> 0.3124 | H39: =OFFSET(H$11,MATCH($A39,$A$12:$A$27,0),0)*OFFSET(Inflationparam!F$24,MATCH($A39,Inflationparam!$B$25:$B$42,0),0,1,1) -> 0.04925 | I39: =OFFSET(I$11,MATCH($A39,$A$12:$A$27,0),0)*OFFSET(Inflationparam!G$24,MATCH($A39,Inflationparam!$B$25:$B$42,0),0,1,1) -> 0.0209 | J39: =OFFSET(J$11,MATCH($A39,$A$12:$A$27,0),0)*OFFSET(Inflationparam!H$24,MATCH($A39,Inflationparam!$B$25:$B$42,0),0,1,1) -> 0.01158 | K39: =OFFSET(K$11,MATCH($A39,$A$12:$A$27,0),0)*OFFSET(Inflationparam!I$24,MATCH($A39,Inflationparam!$B$25:$B$42,0),0,1,1) -> 0.00683 | L39: =OFFSET(L$11,MATCH($A39,$A$12:$A$27,0),0)*OFFSET(Inflationparam!J$24,MATCH($A39,Inflationparam!$B$25:$B$42,0),0,1,1) -> 0.00493 | M39: =OFFSET(M$11,MATCH($A39,$A$12:$A$27,0),0)*OFFSET(Inflationparam!K$24,MATCH($A39,Inflationparam!$B$25:$B$42,0),0,1,1) -> 0.0038 | N39: =OFFSET(N$11,MATCH($A39,$A$12:$A$27,0),0)*OFFSET(Inflationparam!L$24,MATCH($A39,Inflationparam!$B$25:$B$42,0),0,1,1) -> 0.00276 | O39: =OFFSET(O$11,MATCH($A39,$A$12:$A$27,0),0)*OFFSET(Inflationparam!M$24,MATCH($A39,Inflationparam!$B$25:$B$42,0),0,1,1) -> 0.00263 | P39: =OFFSET(P$11,MATCH($A39,$A$12:$A$27,0),0)*OFFSET(Inflationparam!N$24,MATCH($A39,Inflationparam!$B$25:$B$42,0),0,1,1) -> 0.00255 | Q39: =OFFSET(Q$11,MATCH($A39,$A$12:$A$27,0),0)*OFFSET(Inflationparam!O$24,MATCH($A39,Inflationparam!$B$25:$B$42,0),0,1,1) -> 0.0011 | R39: =OFFSET(R$11,MATCH($A39,$A$12:$A$27,0),0)*OFFSET(Inflationparam!P$24,MATCH($A39,Inflationparam!$B$25:$B$42,0),0,1,1) -> 0.00112 | S39: =OFFSET(S$11,MATCH($A39,$A$12:$A$27,0),0)*OFFSET(Inflationparam!Q$24,MATCH($A39,Inflationparam!$B$25:$B$42,0),0,1,1) -> 0.00103 | T39: =OFFSET(T$11,MATCH($A39,$A$12:$A$27,0),0)*OFFSET(Inflationparam!R$24,MATCH($A39,Inflationparam!$B$25:$B$42,0),0,1,1) -> 0.00051 | U39: =OFFSET(U$11,MATCH($A39,$A$12:$A$27,0),0)*OFFSET(Inflationparam!S$24,MATCH($A39,Inflationparam!$B$25:$B$42,0),0,1,1) -> 0.00037 | V39: =OFFSET(V$11,MATCH($A39,$A$12:$A$27,0),0)*OFFSET(Inflationparam!T$24,MATCH($A39,Inflationparam!$B$25:$B$42,0),0,1,1) -> 0.00026 | W39: =OFFSET(W$11,MATCH($A39,$A$12:$A$27,0),0)*OFFSET(Inflationparam!U$24,MATCH($A39,Inflationparam!$B$25:$B$42,0),0,1,1) -> 0.00019 | X39: =OFFSET(X$11,MATCH($A39,$A$12:$A$27,0),0)*OFFSET(Inflationparam!V$24,MATCH($A39,Inflationparam!$B$25:$B$42,0),0,1,1) -> 0.00014 | Y39: =OFFSET(Y$11,MATCH($A39,$A$12:$A$27,0),0)*OFFSET(Inflationparam!W$24,MATCH($A39,Inflationparam!$B$25:$B$42,0),0,1,1) -> 0.0001 | Z39: =OFFSET(Z$11,MATCH($A39,$A$12:$A$27,0),0)*OFFSET(Inflationparam!X$24,MATCH($A39,Inflationparam!$B$25:$B$42,0),0,1,1) -> 7e-05 | AA39: =OFFSET(AA$11,MATCH($A39,$A$12:$A$27,0),0)*OFFSET(Inflationparam!Y$24,MATCH($A39,Inflationparam!$B$25:$B$42,0),0,1,1) -> 5e-05 | AB39: =OFFSET(AB$11,MATCH($A39,$A$12:$A$27,0),0)*OFFSET(Inflationparam!Z$24,MATCH($A39,Inflationparam!$B$25:$B$42,0),0,1,1) -> 4e-05 | AC39: =OFFSET(AC$11,MATCH($A39,$A$12:$A$27,0),0)*OFFSET(Inflationparam!AA$24,MATCH($A39,Inflationparam!$B$25:$B$42,0),0,1,1) -> 0 | AD39: =OFFSET(AD$11,MATCH($A39,$A$12:$A$27,0),0)*OFFSET(Inflationparam!AB$24,MATCH($A39,Inflationparam!$B$25:$B$42,0),0,1,1) -> 0 | AE39: =OFFSET(AE$11,MATCH($A39,$A$12:$A$27,0),0)*OFFSET(Inflationparam!AC$24,MATCH($A39,Inflationparam!$B$25:$B$42,0),0,1,1) -> 0 | AF39: =OFFSET(AF$11,MATCH($A39,$A$12:$A$27,0),0)*OFFSET(Inflationparam!AD$24,MATCH($A39,Inflationparam!$B$25:$B$42,0),0,1,1) -> 0 | AG39: =OFFSET(AG$11,MATCH($A39,$A$12:$A$27,0),0)*OFFSET(Inflationparam!AE$24,MATCH($A39,Inflationparam!$B$25:$B$42,0),0,1,1) -> 0 | AH39: =OFFSET(AH$11,MATCH($A39,$A$12:$A$27,0),0)*OFFSET(Inflationparam!AF$24,MATCH($A39,Inflationparam!$B$25:$B$42,0),0,1,1) -> 0 | AI39: =OFFSET(AI$11,MATCH($A39,$A$12:$A$27,0),0)*OFFSET(Inflationparam!AG$24,MATCH($A39,Inflationparam!$B$25:$B$42,0),0,1,1) -> 0 | AJ39: =OFFSET(AJ$11,MATCH($A39,$A$12:$A$27,0),0)*OFFSET(Inflationparam!AH$24,MATCH($A39,Inflationparam!$B$25:$B$42,0),0,1,1) -> 0 | AK39: =OFFSET(AK$11,MATCH($A39,$A$12:$A$27,0),0)*OFFSET(Inflationparam!AI$24,MATCH($A39,Inflationparam!$B$25:$B$42,0),0,1,1) -> 0 | AL39: =OFFSET(AL$11,MATCH($A39,$A$12:$A$27,0),0)*OFFSET(Inflationparam!AJ$24,MATCH($A39,Inflationparam!$B$25:$B$42,0),0,1,1) -> 0 | AM39: =OFFSET(AM$11,MATCH($A39,$A$12:$A$27,0),0)*OFFSET(Inflationparam!AK$24,MATCH($A39,Inflationparam!$B$25:$B$42,0),0,1,1) -> 0 | AN39: =OFFSET(AN$11,MATCH($A39,$A$12:$A$27,0),0)*OFFSET(Inflationparam!AL$24,MATCH($A39,Inflationparam!$B$25:$B$42,0),0,1,1) -> 0 | AO39: =OFFSET(AO$11,MATCH($A39,$A$12:$A$27,0),0)*OFFSET(Inflationparam!AM$24,MATCH($A39,Inflationparam!$B$25:$B$42,0),0,1,1) -> 0 | AP39: =OFFSET(AP$11,MATCH($A39,$A$12:$A$27,0),0)*OFFSET(Inflationparam!AN$24,MATCH($A39,Inflationparam!$B$25:$B$42,0),0,1,1) -> 0 | AQ39: =OFFSET(AQ$11,MATCH($A39,$A$12:$A$27,0),0)*OFFSET(Inflationparam!AO$24,MATCH($A39,Inflationparam!$B$25:$B$42,0),0,1,1) -> 0 | AR39: =OFFSET(AR$11,MATCH($A39,$A$12:$A$27,0),0)*OFFSET(Inflationparam!AP$24,MATCH($A39,Inflationparam!$B$25:$B$42,0),0,1,1) -> 0 | AS39: =OFFSET(AS$11,MATCH($A39,$A$12:$A$27,0),0)*OFFSET(Inflationparam!AQ$24,MATCH($A39,Inflationparam!$B$25:$B$42,0),0,1,1) -> 0 | AT39: =OFFSET(AT$11,MATCH($A39,$A$12:$A$27,0),0)*OFFSET(Inflationparam!AR$24,MATCH($A39,Inflationparam!$B$25:$B$42,0),0,1,1) -> 0 | AU39: =OFFSET(AU$11,MATCH($A39,$A$12:$A$27,0),0)*OFFSET(Inflationparam!AS$24,MATCH($A39,Inflationparam!$B$25:$B$42,0),0,1,1) -> 0 | AV39: =OFFSET(AV$11,MATCH($A39,$A$12:$A$27,0),0)*OFFSET(Inflationparam!AT$24,MATCH($A39,Inflationparam!$B$25:$B$42,0),0,1,1) -> 0 | AW39: =OFFSET(AW$11,MATCH($A39,$A$12:$A$27,0),0)*OFFSET(Inflationparam!AU$24,MATCH($A39,Inflationparam!$B$25:$B$42,0),0,1,1) -> 0 | AX39: =OFFSET(AX$11,MATCH($A39,$A$12:$A$27,0),0)*OFFSET(Inflationparam!AV$24,MATCH($A39,Inflationparam!$B$25:$B$42,0),0,1,1) -> 0 | AY39: =OFFSET(AY$11,MATCH($A39,$A$12:$A$27,0),0)*OFFSET(Inflationparam!AW$24,MATCH($A39,Inflationparam!$B$25:$B$42,0),0,1,1) -> 0 | AZ39: =OFFSET(AZ$11,MATCH($A39,$A$12:$A$27,0),0)*OFFSET(Inflationparam!AX$24,MATCH($A39,Inflationparam!$B$25:$B$42,0),0,1,1) -> 0 | BA39: =OFFSET(BA$11,MATCH($A39,$A$12:$A$27,0),0)*OFFSET(Inflationparam!AY$24,MATCH($A39,Inflationparam!$B$25:$B$42,0),0,1,1) -> 0 | BB39: =OFFSET(BB$11,MATCH($A39,$A$12:$A$27,0),0)*OFFSET(Inflationparam!AZ$24,MATCH($A39,Inflationparam!$B$25:$B$42,0),0,1,1) -> 0 | BC39: =OFFSET(BC$11,MATCH($A39,$A$12:$A$27,0),0)*OFFSET(Inflationparam!BA$24,MATCH($A39,Inflationparam!$B$25:$B$42,0),0,1,1) -> 0
A40: 5a_2 | B40: =_AccMandatory & " " & _LangFrist -> UVG Langfristleistungen | C40: 1 | F40: =OFFSET(F$11,MATCH($A40,$A$12:$A$27,0),0)*OFFSET(Inflationparam!D$24,MATCH($A40,Inflationparam!$B$25:$B$42,0),0,1,1) -> 0.076301 | G40: =OFFSET(G$11,MATCH($A40,$A$12:$A$27,0),0)*OFFSET(Inflationparam!E$24,MATCH($A40,Inflationparam!$B$25:$B$42,0),0,1,1) -> 0.107911 | H40: =OFFSET(H$11,MATCH($A40,$A$12:$A$27,0),0)*OFFSET(Inflationparam!F$24,MATCH($A40,Inflationparam!$B$25:$B$42,0),0,1,1) -> 0.113328 | I40: =OFFSET(I$11,MATCH($A40,$A$12:$A$27,0),0)*OFFSET(Inflationparam!G$24,MATCH($A40,Inflationparam!$B$25:$B$42,0),0,1,1) -> 0.115176 | J40: =OFFSET(J$11,MATCH($A40,$A$12:$A$27,0),0)*OFFSET(Inflationparam!H$24,MATCH($A40,Inflationparam!$B$25:$B$42,0),0,1,1) -> 0.132398 | K40: =OFFSET(K$11,MATCH($A40,$A$12:$A$27,0),0)*OFFSET(Inflationparam!I$24,MATCH($A40,Inflationparam!$B$25:$B$42,0),0,1,1) -> 0.103195 | L40: =OFFSET(L$11,MATCH($A40,$A$12:$A$27,0),0)*OFFSET(Inflationparam!J$24,MATCH($A40,Inflationparam!$B$25:$B$42,0),0,1,1) -> 0.089432 | M40: =OFFSET(M$11,MATCH($A40,$A$12:$A$27,0),0)*OFFSET(Inflationparam!K$24,MATCH($A40,Inflationparam!$B$25:$B$42,0),0,1,1) -> 0.051589 | N40: =OFFSET(N$11,MATCH($A40,$A$12:$A$27,0),0)*OFFSET(Inflationparam!L$24,MATCH($A40,Inflationparam!$B$25:$B$42,0),0,1,1) -> 0.036876 | O40: =OFFSET(O$11,MATCH($A40,$A$12:$A$27,0),0)*OFFSET(Inflationparam!M$24,MATCH($A40,Inflationparam!$B$25:$B$42,0),0,1,1) -> 0.034086 | P40: =OFFSET(P$11,MATCH($A40,$A$12:$A$27,0),0)*OFFSET(Inflationparam!N$24,MATCH($A40,Inflationparam!$B$25:$B$42,0),0,1,1) -> 0.027451 | Q40: =OFFSET(Q$11,MATCH($A40,$A$12:$A$27,0),0)*OFFSET(Inflationparam!O$24,MATCH($A40,Inflationparam!$B$25:$B$42,0),0,1,1) -> 0.012976 | R40: =OFFSET(R$11,MATCH($A40,$A$12:$A$27,0),0)*OFFSET(Inflationparam!P$24,MATCH($A40,Inflationparam!$B$25:$B$42,0),0,1,1) -> 0.009902 | S40: =OFFSET(S$11,MATCH($A40,$A$12:$A$27,0),0)*OFFSET(Inflationparam!Q$24,MATCH($A40,Inflationparam!$B$25:$B$42,0),0,1,1) -> 0.008873 | T40: =OFFSET(T$11,MATCH($A40,$A$12:$A$27,0),0)*OFFSET(Inflationparam!R$24,MATCH($A40,Inflationparam!$B$25:$B$42,0),0,1,1) -> 0.007479 | U40: =OFFSET(U$11,MATCH($A40,$A$12:$A$27,0),0)*OFFSET(Inflationparam!S$24,MATCH($A40,Inflationparam!$B$25:$B$42,0),0,1,1) -> 0.006422 | V40: =OFFSET(V$11,MATCH($A40,$A$12:$A$27,0),0)*OFFSET(Inflationparam!T$24,MATCH($A40,Inflationparam!$B$25:$B$42,0),0,1,1) -> 0.005596 | W40: =OFFSET(W$11,MATCH($A40,$A$12:$A$27,0),0)*OFFSET(Inflationparam!U$24,MATCH($A40,Inflationparam!$B$25:$B$42,0),0,1,1) -> 0.004937 | X40: =OFFSET(X$11,MATCH($A40,$A$12:$A$27,0),0)*OFFSET(Inflationparam!V$24,MATCH($A40,Inflationparam!$B$25:$B$42,0),0,1,1) -> 0.004399 | Y40: =OFFSET(Y$11,MATCH($A40,$A$12:$A$27,0),0)*OFFSET(Inflationparam!W$24,MATCH($A40,Inflationparam!$B$25:$B$42,0),0,1,1) -> 0.003955 | Z40: =OFFSET(Z$11,MATCH($A40,$A$12:$A$27,0),0)*OFFSET(Inflationparam!X$24,MATCH($A40,Inflationparam!$B$25:$B$42,0),0,1,1) -> 0.003582 | AA40: =OFFSET(AA$11,MATCH($A40,$A$12:$A$27,0),0)*OFFSET(Inflationparam!Y$24,MATCH($A40,Inflationparam!$B$25:$B$42,0),0,1,1) -> 0.003265 | AB40: =OFFSET(AB$11,MATCH($A40,$A$12:$A$27,0),0)*OFFSET(Inflationparam!Z$24,MATCH($A40,Inflationparam!$B$25:$B$42,0),0,1,1) -> 0.002993 | AC40: =OFFSET(AC$11,MATCH($A40,$A$12:$A$27,0),0)*OFFSET(Inflationparam!AA$24,MATCH($A40,Inflationparam!$B$25:$B$42,0),0,1,1) -> 0.002758 | AD40: =OFFSET(AD$11,MATCH($A40,$A$12:$A$27,0),0)*OFFSET(Inflationparam!AB$24,MATCH($A40,Inflationparam!$B$25:$B$42,0),0,1,1) -> 0.002553 | AE40: =OFFSET(AE$11,MATCH($A40,$A$12:$A$27,0),0)*OFFSET(Inflationparam!AC$24,MATCH($A40,Inflationparam!$B$25:$B$42,0),0,1,1) -> 0.002372 | AF40: =OFFSET(AF$11,MATCH($A40,$A$12:$A$27,0),0)*OFFSET(Inflationparam!AD$24,MATCH($A40,Inflationparam!$B$25:$B$42,0),0,1,1) -> 0.002212 | AG40: =OFFSET(AG$11,MATCH($A40,$A$12:$A$27,0),0)*OFFSET(Inflationparam!AE$24,MATCH($A40,Inflationparam!$B$25:$B$42,0),0,1,1) -> 0.00207 | AH40: =OFFSET(AH$11,MATCH($A40,$A$12:$A$27,0),0)*OFFSET(Inflationparam!AF$24,MATCH($A40,Inflationparam!$B$25:$B$42,0),0,1,1) -> 0.001943 | AI40: =OFFSET(AI$11,MATCH($A40,$A$12:$A$27,0),0)*OFFSET(Inflationparam!AG$24,MATCH($A40,Inflationparam!$B$25:$B$42,0),0,1,1) -> 0.001828 | AJ40: =OFFSET(AJ$11,MATCH($A40,$A$12:$A$27,0),0)*OFFSET(Inflationparam!AH$24,MATCH($A40,Inflationparam!$B$25:$B$42,0),0,1,1) -> 0.001724 | AK40: =OFFSET(AK$11,MATCH($A40,$A$12:$A$27,0),0)*OFFSET(Inflationparam!AI$24,MATCH($A40,Inflationparam!$B$25:$B$42,0),0,1,1) -> 0.001631 | AL40: =OFFSET(AL$11,MATCH($A40,$A$12:$A$27,0),0)*OFFSET(Inflationparam!AJ$24,MATCH($A40,Inflationparam!$B$25:$B$42,0),0,1,1) -> 0.001545 | AM40: =OFFSET(AM$11,MATCH($A40,$A$12:$A$27,0),0)*OFFSET(Inflationparam!AK$24,MATCH($A40,Inflationparam!$B$25:$B$42,0),0,1,1) -> 0.001467 | AN40: =OFFSET(AN$11,MATCH($A40,$A$12:$A$27,0),0)*OFFSET(Inflationparam!AL$24,MATCH($A40,Inflationparam!$B$25:$B$42,0),0,1,1) -> 0.001395 | AO40: =OFFSET(AO$11,MATCH($A40,$A$12:$A$27,0),0)*OFFSET(Inflationparam!AM$24,MATCH($A40,Inflationparam!$B$25:$B$42,0),0,1,1) -> 0.00133 | AP40: =OFFSET(AP$11,MATCH($A40,$A$12:$A$27,0),0)*OFFSET(Inflationparam!AN$24,MATCH($A40,Inflationparam!$B$25:$B$42,0),0,1,1) -> 0.001269 | AQ40: =OFFSET(AQ$11,MATCH($A40,$A$12:$A$27,0),0)*OFFSET(Inflationparam!AO$24,MATCH($A40,Inflationparam!$B$25:$B$42,0),0,1,1) -> 0.001213 | AR40: =OFFSET(AR$11,MATCH($A40,$A$12:$A$27,0),0)*OFFSET(Inflationparam!AP$24,MATCH($A40,Inflationparam!$B$25:$B$42,0),0,1,1) -> 0.001161 | AS40: =OFFSET(AS$11,MATCH($A40,$A$12:$A$27,0),0)*OFFSET(Inflationparam!AQ$24,MATCH($A40,Inflationparam!$B$25:$B$42,0),0,1,1) -> 0.001112 | AT40: =OFFSET(AT$11,MATCH($A40,$A$12:$A$27,0),0)*OFFSET(Inflationparam!AR$24,MATCH($A40,Inflationparam!$B$25:$B$42,0),0,1,1) -> 0.001067 | AU40: =OFFSET(AU$11,MATCH($A40,$A$12:$A$27,0),0)*OFFSET(Inflationparam!AS$24,MATCH($A40,Inflationparam!$B$25:$B$42,0),0,1,1) -> 0.001025 | AV40: =OFFSET(AV$11,MATCH($A40,$A$12:$A$27,0),0)*OFFSET(Inflationparam!AT$24,MATCH($A40,Inflationparam!$B$25:$B$42,0),0,1,1) -> 0.000986 | AW40: =OFFSET(AW$11,MATCH($A40,$A$12:$A$27,0),0)*OFFSET(Inflationparam!AU$24,MATCH($A40,Inflationparam!$B$25:$B$42,0),0,1,1) -> 0.000949 | AX40: =OFFSET(AX$11,MATCH($A40,$A$12:$A$27,0),0)*OFFSET(Inflationparam!AV$24,MATCH($A40,Inflationparam!$B$25:$B$42,0),0,1,1) -> 0.000915 | AY40: =OFFSET(AY$11,MATCH($A40,$A$12:$A$27,0),0)*OFFSET(Inflationparam!AW$24,MATCH($A40,Inflationparam!$B$25:$B$42,0),0,1,1) -> 0.000882 | AZ40: =OFFSET(AZ$11,MATCH($A40,$A$12:$A$27,0),0)*OFFSET(Inflationparam!AX$24,MATCH($A40,Inflationparam!$B$25:$B$42,0),0,1,1) -> 0.000852 | BA40: =OFFSET(BA$11,MATCH($A40,$A$12:$A$27,0),0)*OFFSET(Inflationparam!AY$24,MATCH($A40,Inflationparam!$B$25:$B$42,0),0,1,1) -> 0.000823 | BB40: =OFFSET(BB$11,MATCH($A40,$A$12:$A$27,0),0)*OFFSET(Inflationparam!AZ$24,MATCH($A40,Inflationparam!$B$25:$B$42,0),0,1,1) -> 0.000796 | BC40: =OFFSET(BC$11,MATCH($A40,$A$12:$A$27,0),0)*OFFSET(Inflationparam!BA$24,MATCH($A40,Inflationparam!$B$25:$B$42,0),0,1,1) -> 0
A41: 5b | B41: =_AccMandatory_Annuities -> UVG-Renten | C41: 1 | F41: =OFFSET(F$11,MATCH($A41,$A$12:$A$27,0),0)*OFFSET(Inflationparam!D$24,MATCH($A41,Inflationparam!$B$25:$B$42,0),0,1,1) -> 0.042 | G41: =OFFSET(G$11,MATCH($A41,$A$12:$A$27,0),0)*OFFSET(Inflationparam!E$24,MATCH($A41,Inflationparam!$B$25:$B$42,0),0,1,1) -> 0.041 | H41: =OFFSET(H$11,MATCH($A41,$A$12:$A$27,0),0)*OFFSET(Inflationparam!F$24,MATCH($A41,Inflationparam!$B$25:$B$42,0),0,1,1) -> 0.04 | I41: =OFFSET(I$11,MATCH($A41,$A$12:$A$27,0),0)*OFFSET(Inflationparam!G$24,MATCH($A41,Inflationparam!$B$25:$B$42,0),0,1,1) -> 0.039 | J41: =OFFSET(J$11,MATCH($A41,$A$12:$A$27,0),0)*OFFSET(Inflationparam!H$24,MATCH($A41,Inflationparam!$B$25:$B$42,0),0,1,1) -> 0.039 | K41: =OFFSET(K$11,MATCH($A41,$A$12:$A$27,0),0)*OFFSET(Inflationparam!I$24,MATCH($A41,Inflationparam!$B$25:$B$42,0),0,1,1) -> 0.038 | L41: =OFFSET(L$11,MATCH($A41,$A$12:$A$27,0),0)*OFFSET(Inflationparam!J$24,MATCH($A41,Inflationparam!$B$25:$B$42,0),0,1,1) -> 0.037 | M41: =OFFSET(M$11,MATCH($A41,$A$12:$A$27,0),0)*OFFSET(Inflationparam!K$24,MATCH($A41,Inflationparam!$B$25:$B$42,0),0,1,1) -> 0.036 | N41: =OFFSET(N$11,MATCH($A41,$A$12:$A$27,0),0)*OFFSET(Inflationparam!L$24,MATCH($A41,Inflationparam!$B$25:$B$42,0),0,1,1) -> 0.035 | O41: =OFFSET(O$11,MATCH($A41,$A$12:$A$27,0),0)*OFFSET(Inflationparam!M$24,MATCH($A41,Inflationparam!$B$25:$B$42,0),0,1,1) -> 0.034 | P41: =OFFSET(P$11,MATCH($A41,$A$12:$A$27,0),0)*OFFSET(Inflationparam!N$24,MATCH($A41,Inflationparam!$B$25:$B$42,0),0,1,1) -> 0.033 | Q41: =OFFSET(Q$11,MATCH($A41,$A$12:$A$27,0),0)*OFFSET(Inflationparam!O$24,MATCH($A41,Inflationparam!$B$25:$B$42,0),0,1,1) -> 0.032 | R41: =OFFSET(R$11,MATCH($A41,$A$12:$A$27,0),0)*OFFSET(Inflationparam!P$24,MATCH($A41,Inflationparam!$B$25:$B$42,0),0,1,1) -> 0.032 | S41: =OFFSET(S$11,MATCH($A41,$A$12:$A$27,0),0)*OFFSET(Inflationparam!Q$24,MATCH($A41,Inflationparam!$B$25:$B$42,0),0,1,1) -> 0.031 | T41: =OFFSET(T$11,MATCH($A41,$A$12:$A$27,0),0)*OFFSET(Inflationparam!R$24,MATCH($A41,Inflationparam!$B$25:$B$42,0),0,1,1) -> 0.03 | U41: =OFFSET(U$11,MATCH($A41,$A$12:$A$27,0),0)*OFFSET(Inflationparam!S$24,MATCH($A41,Inflationparam!$B$25:$B$42,0),0,1,1) -> 0.029 | V41: =OFFSET(V$11,MATCH($A41,$A$12:$A$27,0),0)*OFFSET(Inflationparam!T$24,MATCH($A41,Inflationparam!$B$25:$B$42,0),0,1,1) -> 0.028 | W41: =OFFSET(W$11,MATCH($A41,$A$12:$A$27,0),0)*OFFSET(Inflationparam!U$24,MATCH($A41,Inflationparam!$B$25:$B$42,0),0,1,1) -> 0.027 | X41: =OFFSET(X$11,MATCH($A41,$A$12:$A$27,0),0)*OFFSET(Inflationparam!V$24,MATCH($A41,Inflationparam!$B$25:$B$42,0),0,1,1) -> 0.026 | Y41: =OFFSET(Y$11,MATCH($A41,$A$12:$A$27,0),0)*OFFSET(Inflationparam!W$24,MATCH($A41,Inflationparam!$B$25:$B$42,0),0,1,1) -> 0.025 | Z41: =OFFSET(Z$11,MATCH($A41,$A$12:$A$27,0),0)*OFFSET(Inflationparam!X$24,MATCH($A41,Inflationparam!$B$25:$B$42,0),0,1,1) -> 0.024 | AA41: =OFFSET(AA$11,MATCH($A41,$A$12:$A$27,0),0)*OFFSET(Inflationparam!Y$24,MATCH($A41,Inflationparam!$B$25:$B$42,0),0,1,1) -> 0.024 | AB41: =OFFSET(AB$11,MATCH($A41,$A$12:$A$27,0),0)*OFFSET(Inflationparam!Z$24,MATCH($A41,Inflationparam!$B$25:$B$42,0),0,1,1) -> 0.023 | AC41: =OFFSET(AC$11,MATCH($A41,$A$12:$A$27,0),0)*OFFSET(Inflationparam!AA$24,MATCH($A41,Inflationparam!$B$25:$B$42,0),0,1,1) -> 0.022 | AD41: =OFFSET(AD$11,MATCH($A41,$A$12:$A$27,0),0)*OFFSET(Inflationparam!AB$24,MATCH($A41,Inflationparam!$B$25:$B$42,0),0,1,1) -> 0.021 | AE41: =OFFSET(AE$11,MATCH($A41,$A$12:$A$27,0),0)*OFFSET(Inflationparam!AC$24,MATCH($A41,Inflationparam!$B$25:$B$42,0),0,1,1) -> 0.02 | AF41: =OFFSET(AF$11,MATCH($A41,$A$12:$A$27,0),0)*OFFSET(Inflationparam!AD$24,MATCH($A41,Inflationparam!$B$25:$B$42,0),0,1,1) -> 0.019 | AG41: =OFFSET(AG$11,MATCH($A41,$A$12:$A$27,0),0)*OFFSET(Inflationparam!AE$24,MATCH($A41,Inflationparam!$B$25:$B$42,0),0,1,1) -> 0.018 | AH41: =OFFSET(AH$11,MATCH($A41,$A$12:$A$27,0),0)*OFFSET(Inflationparam!AF$24,MATCH($A41,Inflationparam!$B$25:$B$42,0),0,1,1) -> 0.016 | AI41: =OFFSET(AI$11,MATCH($A41,$A$12:$A$27,0),0)*OFFSET(Inflationparam!AG$24,MATCH($A41,Inflationparam!$B$25:$B$42,0),0,1,1) -> 0.015 | AJ41: =OFFSET(AJ$11,MATCH($A41,$A$12:$A$27,0),0)*OFFSET(Inflationparam!AH$24,MATCH($A41,Inflationparam!$B$25:$B$42,0),0,1,1) -> 0.014 | AK41: =OFFSET(AK$11,MATCH($A41,$A$12:$A$27,0),0)*OFFSET(Inflationparam!AI$24,MATCH($A41,Inflationparam!$B$25:$B$42,0),0,1,1) -> 0.013 | AL41: =OFFSET(AL$11,MATCH($A41,$A$12:$A$27,0),0)*OFFSET(Inflationparam!AJ$24,MATCH($A41,Inflationparam!$B$25:$B$42,0),0,1,1) -> 0.012 | AM41: =OFFSET(AM$11,MATCH($A41,$A$12:$A$27,0),0)*OFFSET(Inflationparam!AK$24,MATCH($A41,Inflationparam!$B$25:$B$42,0),0,1,1) -> 0.011 | AN41: =OFFSET(AN$11,MATCH($A41,$A$12:$A$27,0),0)*OFFSET(Inflationparam!AL$24,MATCH($A41,Inflationparam!$B$25:$B$42,0),0,1,1) -> 0.01 | AO41: =OFFSET(AO$11,MATCH($A41,$A$12:$A$27,0),0)*OFFSET(Inflationparam!AM$24,MATCH($A41,Inflationparam!$B$25:$B$42,0),0,1,1) -> 0.009 | AP41: =OFFSET(AP$11,MATCH($A41,$A$12:$A$27,0),0)*OFFSET(Inflationparam!AN$24,MATCH($A41,Inflationparam!$B$25:$B$42,0),0,1,1) -> 0.008 | AQ41: =OFFSET(AQ$11,MATCH($A41,$A$12:$A$27,0),0)*OFFSET(Inflationparam!AO$24,MATCH($A41,Inflationparam!$B$25:$B$42,0),0,1,1) -> 0.007 | AR41: =OFFSET(AR$11,MATCH($A41,$A$12:$A$27,0),0)*OFFSET(Inflationparam!AP$24,MATCH($A41,Inflationparam!$B$25:$B$42,0),0,1,1) -> 0.007 | AS41: =OFFSET(AS$11,MATCH($A41,$A$12:$A$27,0),0)*OFFSET(Inflationparam!AQ$24,MATCH($A41,Inflationparam!$B$25:$B$42,0),0,1,1) -> 0.006 | AT41: =OFFSET(AT$11,MATCH($A41,$A$12:$A$27,0),0)*OFFSET(Inflationparam!AR$24,MATCH($A41,Inflationparam!$B$25:$B$42,0),0,1,1) -> 0.005 | AU41: =OFFSET(AU$11,MATCH($A41,$A$12:$A$27,0),0)*OFFSET(Inflationparam!AS$24,MATCH($A41,Inflationparam!$B$25:$B$42,0),0,1,1) -> 0.005 | AV41: =OFFSET(AV$11,MATCH($A41,$A$12:$A$27,0),0)*OFFSET(Inflationparam!AT$24,MATCH($A41,Inflationparam!$B$25:$B$42,0),0,1,1) -> 0.004 | AW41: =OFFSET(AW$11,MATCH($A41,$A$12:$A$27,0),0)*OFFSET(Inflationparam!AU$24,MATCH($A41,Inflationparam!$B$25:$B$42,0),0,1,1) -> 0.003 | AX41: =OFFSET(AX$11,MATCH($A41,$A$12:$A$27,0),0)*OFFSET(Inflationparam!AV$24,MATCH($A41,Inflationparam!$B$25:$B$42,0),0,1,1) -> 0.002 | AY41: =OFFSET(AY$11,MATCH($A41,$A$12:$A$27,0),0)*OFFSET(Inflationparam!AW$24,MATCH($A41,Inflationparam!$B$25:$B$42,0),0,1,1) -> 0.002 | AZ41: =OFFSET(AZ$11,MATCH($A41,$A$12:$A$27,0),0)*OFFSET(Inflationparam!AX$24,MATCH($A41,Inflationparam!$B$25:$B$42,0),0,1,1) -> 0.002 | BA41: =OFFSET(BA$11,MATCH($A41,$A$12:$A$27,0),0)*OFFSET(Inflationparam!AY$24,MATCH($A41,Inflationparam!$B$25:$B$42,0),0,1,1) -> 0.002 | BB41: =OFFSET(BB$11,MATCH($A41,$A$12:$A$27,0),0)*OFFSET(Inflationparam!AZ$24,MATCH($A41,Inflationparam!$B$25:$B$42,0),0,1,1) -> 0.001 | BC41: =OFFSET(BC$11,MATCH($A41,$A$12:$A$27,0),0)*OFFSET(Inflationparam!BA$24,MATCH($A41,Inflationparam!$B$25:$B$42,0),0,1,1) -> 0.001
A42: 6 | B42: =_AccOptional -> Unfall ohne UVG | C42: 1.112285286 | F42: =OFFSET(F$11,MATCH($A42,$A$12:$A$27,0),0)*OFFSET(Inflationparam!D$24,MATCH($A42,Inflationparam!$B$25:$B$42,0),0,1,1) -> 0.48390386 | G42: =OFFSET(G$11,MATCH($A42,$A$12:$A$27,0),0)*OFFSET(Inflationparam!E$24,MATCH($A42,Inflationparam!$B$25:$B$42,0),0,1,1) -> 0.3479831268 | H42: =OFFSET(H$11,MATCH($A42,$A$12:$A$27,0),0)*OFFSET(Inflationparam!F$24,MATCH($A42,Inflationparam!$B$25:$B$42,0),0,1,1) -> 0.09922082464 | I42: =OFFSET(I$11,MATCH($A42,$A$12:$A$27,0),0)*OFFSET(Inflationparam!G$24,MATCH($A42,Inflationparam!$B$25:$B$42,0),0,1,1) -> 0.06010166065 | J42: =OFFSET(J$11,MATCH($A42,$A$12:$A$27,0),0)*OFFSET(Inflationparam!H$24,MATCH($A42,Inflationparam!$B$25:$B$42,0),0,1,1) -> 0.03837020357 | K42: =OFFSET(K$11,MATCH($A42,$A$12:$A$27,0),0)*OFFSET(Inflationparam!I$24,MATCH($A42,Inflationparam!$B$25:$B$42,0),0,1,1) -> 0.02505796304 | L42: =OFFSET(L$11,MATCH($A42,$A$12:$A$27,0),0)*OFFSET(Inflationparam!J$24,MATCH($A42,Inflationparam!$B$25:$B$42,0),0,1,1) -> 0.01487725702 | M42: =OFFSET(M$11,MATCH($A42,$A$12:$A$27,0),0)*OFFSET(Inflationparam!K$24,MATCH($A42,Inflationparam!$B$25:$B$42,0),0,1,1) -> 0.01100282771 | N42: =OFFSET(N$11,MATCH($A42,$A$12:$A$27,0),0)*OFFSET(Inflationparam!L$24,MATCH($A42,Inflationparam!$B$25:$B$42,0),0,1,1) -> 0.008631290911 | O42: =OFFSET(O$11,MATCH($A42,$A$12:$A$27,0),0)*OFFSET(Inflationparam!M$24,MATCH($A42,Inflationparam!$B$25:$B$42,0),0,1,1) -> 0.005666869911 | P42: =OFFSET(P$11,MATCH($A42,$A$12:$A$27,0),0)*OFFSET(Inflationparam!N$24,MATCH($A42,Inflationparam!$B$25:$B$42,0),0,1,1) -> 0.004425949493 | Q42: =OFFSET(Q$11,MATCH($A42,$A$12:$A$27,0),0)*OFFSET(Inflationparam!O$24,MATCH($A42,Inflationparam!$B$25:$B$42,0),0,1,1) -> 0.002688660907 | R42: =OFFSET(R$11,MATCH($A42,$A$12:$A$27,0),0)*OFFSET(Inflationparam!P$24,MATCH($A42,Inflationparam!$B$25:$B$42,0),0,1,1) -> 0.002536992856 | S42: =OFFSET(S$11,MATCH($A42,$A$12:$A$27,0),0)*OFFSET(Inflationparam!Q$24,MATCH($A42,Inflationparam!$B$25:$B$42,0),0,1,1) -> 0.001723500581 | T42: =OFFSET(T$11,MATCH($A42,$A$12:$A$27,0),0)*OFFSET(Inflationparam!R$24,MATCH($A42,Inflationparam!$B$25:$B$42,0),0,1,1) -> 0.001309860442 | U42: =OFFSET(U$11,MATCH($A42,$A$12:$A$27,0),0)*OFFSET(Inflationparam!S$24,MATCH($A42,Inflationparam!$B$25:$B$42,0),0,1,1) -> 0.001006524339 | V42: =OFFSET(V$11,MATCH($A42,$A$12:$A$27,0),0)*OFFSET(Inflationparam!T$24,MATCH($A42,Inflationparam!$B$25:$B$42,0),0,1,1) -> 0.0007721282604 | W42: =OFFSET(W$11,MATCH($A42,$A$12:$A$27,0),0)*OFFSET(Inflationparam!U$24,MATCH($A42,Inflationparam!$B$25:$B$42,0),0,1,1) -> 0.0006066722046 | X42: =OFFSET(X$11,MATCH($A42,$A$12:$A$27,0),0)*OFFSET(Inflationparam!V$24,MATCH($A42,Inflationparam!$B$25:$B$42,0),0,1,1) -> 0.0004687921581 | Y42: =OFFSET(Y$11,MATCH($A42,$A$12:$A$27,0),0)*OFFSET(Inflationparam!W$24,MATCH($A42,Inflationparam!$B$25:$B$42,0),0,1,1) -> 0.0003722761256 | Z42: =OFFSET(Z$11,MATCH($A42,$A$12:$A$27,0),0)*OFFSET(Inflationparam!X$24,MATCH($A42,Inflationparam!$B$25:$B$42,0),0,1,1) -> 0.0003033361023 | AA42: =OFFSET(AA$11,MATCH($A42,$A$12:$A$27,0),0)*OFFSET(Inflationparam!Y$24,MATCH($A42,Inflationparam!$B$25:$B$42,0),0,1,1) -> 0.0002343960791 | AB42: =OFFSET(AB$11,MATCH($A42,$A$12:$A$27,0),0)*OFFSET(Inflationparam!Z$24,MATCH($A42,Inflationparam!$B$25:$B$42,0),0,1,1) -> 0.0001930320651 | AC42: =OFFSET(AC$11,MATCH($A42,$A$12:$A$27,0),0)*OFFSET(Inflationparam!AA$24,MATCH($A42,Inflationparam!$B$25:$B$42,0),0,1,1) -> 0.0001516680512 | AD42: =OFFSET(AD$11,MATCH($A42,$A$12:$A$27,0),0)*OFFSET(Inflationparam!AB$24,MATCH($A42,Inflationparam!$B$25:$B$42,0),0,1,1) -> 0.0001240920419 | AE42: =OFFSET(AE$11,MATCH($A42,$A$12:$A$27,0),0)*OFFSET(Inflationparam!AC$24,MATCH($A42,Inflationparam!$B$25:$B$42,0),0,1,1) -> 9.651603255e-05 | AF42: =OFFSET(AF$11,MATCH($A42,$A$12:$A$27,0),0)*OFFSET(Inflationparam!AD$24,MATCH($A42,Inflationparam!$B$25:$B$42,0),0,1,1) -> 8.27280279e-05 | AG42: =OFFSET(AG$11,MATCH($A42,$A$12:$A$27,0),0)*OFFSET(Inflationparam!AE$24,MATCH($A42,Inflationparam!$B$25:$B$42,0),0,1,1) -> 6.894002325e-05 | AH42: =OFFSET(AH$11,MATCH($A42,$A$12:$A$27,0),0)*OFFSET(Inflationparam!AF$24,MATCH($A42,Inflationparam!$B$25:$B$42,0),0,1,1) -> 5.51520186e-05 | AI42: =OFFSET(AI$11,MATCH($A42,$A$12:$A$27,0),0)*OFFSET(Inflationparam!AG$24,MATCH($A42,Inflationparam!$B$25:$B$42,0),0,1,1) -> 4.136401395e-05 | AJ42: =OFFSET(AJ$11,MATCH($A42,$A$12:$A$27,0),0)*OFFSET(Inflationparam!AH$24,MATCH($A42,Inflationparam!$B$25:$B$42,0),0,1,1) -> 4.136401395e-05 | AK42: =OFFSET(AK$11,MATCH($A42,$A$12:$A$27,0),0)*OFFSET(Inflationparam!AI$24,MATCH($A42,Inflationparam!$B$25:$B$42,0),0,1,1) -> 2.75760093e-05 | AL42: =OFFSET(AL$11,MATCH($A42,$A$12:$A$27,0),0)*OFFSET(Inflationparam!AJ$24,MATCH($A42,Inflationparam!$B$25:$B$42,0),0,1,1) -> 2.75760093e-05 | AM42: =OFFSET(AM$11,MATCH($A42,$A$12:$A$27,0),0)*OFFSET(Inflationparam!AK$24,MATCH($A42,Inflationparam!$B$25:$B$42,0),0,1,1) -> 2.75760093e-05 | AN42: =OFFSET(AN$11,MATCH($A42,$A$12:$A$27,0),0)*OFFSET(Inflationparam!AL$24,MATCH($A42,Inflationparam!$B$25:$B$42,0),0,1,1) -> 1.378800465e-05 | AO42: =OFFSET(AO$11,MATCH($A42,$A$12:$A$27,0),0)*OFFSET(Inflationparam!AM$24,MATCH($A42,Inflationparam!$B$25:$B$42,0),0,1,1) -> 1.378800465e-05 | AP42: =OFFSET(AP$11,MATCH($A42,$A$12:$A$27,0),0)*OFFSET(Inflationparam!AN$24,MATCH($A42,Inflationparam!$B$25:$B$42,0),0,1,1) -> 1.378800465e-05 | AQ42: =OFFSET(AQ$11,MATCH($A42,$A$12:$A$27,0),0)*OFFSET(Inflationparam!AO$24,MATCH($A42,Inflationparam!$B$25:$B$42,0),0,1,1) -> 1.378800465e-05 | AR42: =OFFSET(AR$11,MATCH($A42,$A$12:$A$27,0),0)*OFFSET(Inflationparam!AP$24,MATCH($A42,Inflationparam!$B$25:$B$42,0),0,1,1) -> 1.378800465e-05 | AS42: =OFFSET(AS$11,MATCH($A42,$A$12:$A$27,0),0)*OFFSET(Inflationparam!AQ$24,MATCH($A42,Inflationparam!$B$25:$B$42,0),0,1,1) -> 1.378800465e-05 | AT42: =OFFSET(AT$11,MATCH($A42,$A$12:$A$27,0),0)*OFFSET(Inflationparam!AR$24,MATCH($A42,Inflationparam!$B$25:$B$42,0),0,1,1) -> 0 | AU42: =OFFSET(AU$11,MATCH($A42,$A$12:$A$27,0),0)*OFFSET(Inflationparam!AS$24,MATCH($A42,Inflationparam!$B$25:$B$42,0),0,1,1) -> 0 | AV42: =OFFSET(AV$11,MATCH($A42,$A$12:$A$27,0),0)*OFFSET(Inflationparam!AT$24,MATCH($A42,Inflationparam!$B$25:$B$42,0),0,1,1) -> 0 | AW42: =OFFSET(AW$11,MATCH($A42,$A$12:$A$27,0),0)*OFFSET(Inflationparam!AU$24,MATCH($A42,Inflationparam!$B$25:$B$42,0),0,1,1) -> 0 | AX42: =OFFSET(AX$11,MATCH($A42,$A$12:$A$27,0),0)*OFFSET(Inflationparam!AV$24,MATCH($A42,Inflationparam!$B$25:$B$42,0),0,1,1) -> 0 | AY42: =OFFSET(AY$11,MATCH($A42,$A$12:$A$27,0),0)*OFFSET(Inflationparam!AW$24,MATCH($A42,Inflationparam!$B$25:$B$42,0),0,1,1) -> 0 | AZ42: =OFFSET(AZ$11,MATCH($A42,$A$12:$A$27,0),0)*OFFSET(Inflationparam!AX$24,MATCH($A42,Inflationparam!$B$25:$B$42,0),0,1,1) -> 0 | BA42: =OFFSET(BA$11,MATCH($A42,$A$12:$A$27,0),0)*OFFSET(Inflationparam!AY$24,MATCH($A42,Inflationparam!$B$25:$B$42,0),0,1,1) -> 0 | BB42: =OFFSET(BB$11,MATCH($A42,$A$12:$A$27,0),0)*OFFSET(Inflationparam!AZ$24,MATCH($A42,Inflationparam!$B$25:$B$42,0),0,1,1) -> 0 | BC42: =OFFSET(BC$11,MATCH($A42,$A$12:$A$27,0),0)*OFFSET(Inflationparam!BA$24,MATCH($A42,Inflationparam!$B$25:$B$42,0),0,1,1) -> 0
A43: 7 | B43: =_Health_Collective -> Kollektivtaggeld | C43: 1.06521261 | F43: =OFFSET(F$11,MATCH($A43,$A$12:$A$27,0),0)*OFFSET(Inflationparam!D$24,MATCH($A43,Inflationparam!$B$25:$B$42,0),0,1,1) -> 0.45423 | G43: =OFFSET(G$11,MATCH($A43,$A$12:$A$27,0),0)*OFFSET(Inflationparam!E$24,MATCH($A43,Inflationparam!$B$25:$B$42,0),0,1,1) -> 0.49749 | H43: =OFFSET(H$11,MATCH($A43,$A$12:$A$27,0),0)*OFFSET(Inflationparam!F$24,MATCH($A43,Inflationparam!$B$25:$B$42,0),0,1,1) -> 0.11349261 | I43: =OFFSET(I$11,MATCH($A43,$A$12:$A$27,0),0)*OFFSET(Inflationparam!G$24,MATCH($A43,Inflationparam!$B$25:$B$42,0),0,1,1) -> 0 | J43: =OFFSET(J$11,MATCH($A43,$A$12:$A$27,0),0)*OFFSET(Inflationparam!H$24,MATCH($A43,Inflationparam!$B$25:$B$42,0),0,1,1) -> 0 | K43: =OFFSET(K$11,MATCH($A43,$A$12:$A$27,0),0)*OFFSET(Inflationparam!I$24,MATCH($A43,Inflationparam!$B$25:$B$42,0),0,1,1) -> 0 | L43: =OFFSET(L$11,MATCH($A43,$A$12:$A$27,0),0)*OFFSET(Inflationparam!J$24,MATCH($A43,Inflationparam!$B$25:$B$42,0),0,1,1) -> 0 | M43: =OFFSET(M$11,MATCH($A43,$A$12:$A$27,0),0)*OFFSET(Inflationparam!K$24,MATCH($A43,Inflationparam!$B$25:$B$42,0),0,1,1) -> 0 | N43: =OFFSET(N$11,MATCH($A43,$A$12:$A$27,0),0)*OFFSET(Inflationparam!L$24,MATCH($A43,Inflationparam!$B$25:$B$42,0),0,1,1) -> 0 | O43: =OFFSET(O$11,MATCH($A43,$A$12:$A$27,0),0)*OFFSET(Inflationparam!M$24,MATCH($A43,Inflationparam!$B$25:$B$42,0),0,1,1) -> 0 | P43: =OFFSET(P$11,MATCH($A43,$A$12:$A$27,0),0)*OFFSET(Inflationparam!N$24,MATCH($A43,Inflationparam!$B$25:$B$42,0),0,1,1) -> 0 | Q43: =OFFSET(Q$11,MATCH($A43,$A$12:$A$27,0),0)*OFFSET(Inflationparam!O$24,MATCH($A43,Inflationparam!$B$25:$B$42,0),0,1,1) -> 0 | R43: =OFFSET(R$11,MATCH($A43,$A$12:$A$27,0),0)*OFFSET(Inflationparam!P$24,MATCH($A43,Inflationparam!$B$25:$B$42,0),0,1,1) -> 0 | S43: =OFFSET(S$11,MATCH($A43,$A$12:$A$27,0),0)*OFFSET(Inflationparam!Q$24,MATCH($A43,Inflationparam!$B$25:$B$42,0),0,1,1) -> 0 | T43: =OFFSET(T$11,MATCH($A43,$A$12:$A$27,0),0)*OFFSET(Inflationparam!R$24,MATCH($A43,Inflationparam!$B$25:$B$42,0),0,1,1) -> 0 | U43: =OFFSET(U$11,MATCH($A43,$A$12:$A$27,0),0)*OFFSET(Inflationparam!S$24,MATCH($A43,Inflationparam!$B$25:$B$42,0),0,1,1) -> 0 | V43: =OFFSET(V$11,MATCH($A43,$A$12:$A$27,0),0)*OFFSET(Inflationparam!T$24,MATCH($A43,Inflationparam!$B$25:$B$42,0),0,1,1) -> 0 | W43: =OFFSET(W$11,MATCH($A43,$A$12:$A$27,0),0)*OFFSET(Inflationparam!U$24,MATCH($A43,Inflationparam!$B$25:$B$42,0),0,1,1) -> 0 | X43: =OFFSET(X$11,MATCH($A43,$A$12:$A$27,0),0)*OFFSET(Inflationparam!V$24,MATCH($A43,Inflationparam!$B$25:$B$42,0),0,1,1) -> 0 | Y43: =OFFSET(Y$11,MATCH($A43,$A$12:$A$27,0),0)*OFFSET(Inflationparam!W$24,MATCH($A43,Inflationparam!$B$25:$B$42,0),0,1,1) -> 0 | Z43: =OFFSET(Z$11,MATCH($A43,$A$12:$A$27,0),0)*OFFSET(Inflationparam!X$24,MATCH($A43,Inflationparam!$B$25:$B$42,0),0,1,1) -> 0 | AA43: =OFFSET(AA$11,MATCH($A43,$A$12:$A$27,0),0)*OFFSET(Inflationparam!Y$24,MATCH($A43,Inflationparam!$B$25:$B$42,0),0,1,1) -> 0 | AB43: =OFFSET(AB$11,MATCH($A43,$A$12:$A$27,0),0)*OFFSET(Inflationparam!Z$24,MATCH($A43,Inflationparam!$B$25:$B$42,0),0,1,1) -> 0 | AC43: =OFFSET(AC$11,MATCH($A43,$A$12:$A$27,0),0)*OFFSET(Inflationparam!AA$24,MATCH($A43,Inflationparam!$B$25:$B$42,0),0,1,1) -> 0 | AD43: =OFFSET(AD$11,MATCH($A43,$A$12:$A$27,0),0)*OFFSET(Inflationparam!AB$24,MATCH($A43,Inflationparam!$B$25:$B$42,0),0,1,1) -> 0 | AE43: =OFFSET(AE$11,MATCH($A43,$A$12:$A$27,0),0)*OFFSET(Inflationparam!AC$24,MATCH($A43,Inflationparam!$B$25:$B$42,0),0,1,1) -> 0 | AF43: =OFFSET(AF$11,MATCH($A43,$A$12:$A$27,0),0)*OFFSET(Inflationparam!AD$24,MATCH($A43,Inflationparam!$B$25:$B$42,0),0,1,1) -> 0 | AG43: =OFFSET(AG$11,MATCH($A43,$A$12:$A$27,0),0)*OFFSET(Inflationparam!AE$24,MATCH($A43,Inflationparam!$B$25:$B$42,0),0,1,1) -> 0 | AH43: =OFFSET(AH$11,MATCH($A43,$A$12:$A$27,0),0)*OFFSET(Inflationparam!AF$24,MATCH($A43,Inflationparam!$B$25:$B$42,0),0,1,1) -> 0 | AI43: =OFFSET(AI$11,MATCH($A43,$A$12:$A$27,0),0)*OFFSET(Inflationparam!AG$24,MATCH($A43,Inflationparam!$B$25:$B$42,0),0,1,1) -> 0 | AJ43: =OFFSET(AJ$11,MATCH($A43,$A$12:$A$27,0),0)*OFFSET(Inflationparam!AH$24,MATCH($A43,Inflationparam!$B$25:$B$42,0),0,1,1) -> 0 | AK43: =OFFSET(AK$11,MATCH($A43,$A$12:$A$27,0),0)*OFFSET(Inflationparam!AI$24,MATCH($A43,Inflationparam!$B$25:$B$42,0),0,1,1) -> 0 | AL43: =OFFSET(AL$11,MATCH($A43,$A$12:$A$27,0),0)*OFFSET(Inflationparam!AJ$24,MATCH($A43,Inflationparam!$B$25:$B$42,0),0,1,1) -> 0 | AM43: =OFFSET(AM$11,MATCH($A43,$A$12:$A$27,0),0)*OFFSET(Inflationparam!AK$24,MATCH($A43,Inflationparam!$B$25:$B$42,0),0,1,1) -> 0 | AN43: =OFFSET(AN$11,MATCH($A43,$A$12:$A$27,0),0)*OFFSET(Inflationparam!AL$24,MATCH($A43,Inflationparam!$B$25:$B$42,0),0,1,1) -> 0 | AO43: =OFFSET(AO$11,MATCH($A43,$A$12:$A$27,0),0)*OFFSET(Inflationparam!AM$24,MATCH($A43,Inflationparam!$B$25:$B$42,0),0,1,1) -> 0 | AP43: =OFFSET(AP$11,MATCH($A43,$A$12:$A$27,0),0)*OFFSET(Inflationparam!AN$24,MATCH($A43,Inflationparam!$B$25:$B$42,0),0,1,1) -> 0 | AQ43: =OFFSET(AQ$11,MATCH($A43,$A$12:$A$27,0),0)*OFFSET(Inflationparam!AO$24,MATCH($A43,Inflationparam!$B$25:$B$42,0),0,1,1) -> 0 | AR43: =OFFSET(AR$11,MATCH($A43,$A$12:$A$27,0),0)*OFFSET(Inflationparam!AP$24,MATCH($A43,Inflationparam!$B$25:$B$42,0),0,1,1) -> 0 | AS43: =OFFSET(AS$11,MATCH($A43,$A$12:$A$27,0),0)*OFFSET(Inflationparam!AQ$24,MATCH($A43,Inflationparam!$B$25:$B$42,0),0,1,1) -> 0 | AT43: =OFFSET(AT$11,MATCH($A43,$A$12:$A$27,0),0)*OFFSET(Inflationparam!AR$24,MATCH($A43,Inflationparam!$B$25:$B$42,0),0,1,1) -> 0 | AU43: =OFFSET(AU$11,MATCH($A43,$A$12:$A$27,0),0)*OFFSET(Inflationparam!AS$24,MATCH($A43,Inflationparam!$B$25:$B$42,0),0,1,1) -> 0 | AV43: =OFFSET(AV$11,MATCH($A43,$A$12:$A$27,0),0)*OFFSET(Inflationparam!AT$24,MATCH($A43,Inflationparam!$B$25:$B$42,0),0,1,1) -> 0 | AW43: =OFFSET(AW$11,MATCH($A43,$A$12:$A$27,0),0)*OFFSET(Inflationparam!AU$24,MATCH($A43,Inflationparam!$B$25:$B$42,0),0,1,1) -> 0 | AX43: =OFFSET(AX$11,MATCH($A43,$A$12:$A$27,0),0)*OFFSET(Inflationparam!AV$24,MATCH($A43,Inflationparam!$B$25:$B$42,0),0,1,1) -> 0 | AY43: =OFFSET(AY$11,MATCH($A43,$A$12:$A$27,0),0)*OFFSET(Inflationparam!AW$24,MATCH($A43,Inflationparam!$B$25:$B$42,0),0,1,1) -> 0 | AZ43: =OFFSET(AZ$11,MATCH($A43,$A$12:$A$27,0),0)*OFFSET(Inflationparam!AX$24,MATCH($A43,Inflationparam!$B$25:$B$42,0),0,1,1) -> 0 | BA43: =OFFSET(BA$11,MATCH($A43,$A$12:$A$27,0),0)*OFFSET(Inflationparam!AY$24,MATCH($A43,Inflationparam!$B$25:$B$42,0),0,1,1) -> 0 | BB43: =OFFSET(BB$11,MATCH($A43,$A$12:$A$27,0),0)*OFFSET(Inflationparam!AZ$24,MATCH($A43,Inflationparam!$B$25:$B$42,0),0,1,1) -> 0 | BC43: =OFFSET(BC$11,MATCH($A43,$A$12:$A$27,0),0)*OFFSET(Inflationparam!BA$24,MATCH($A43,Inflationparam!$B$25:$B$42,0),0,1,1) -> 0
A44: 8 | B44: =_Health_Individual -> Einzelkranken | C44: 1.082173822 | F44: =OFFSET(F$11,MATCH($A44,$A$12:$A$27,0),0)*OFFSET(Inflationparam!D$24,MATCH($A44,Inflationparam!$B$25:$B$42,0),0,1,1) -> 0.5195 | G44: =OFFSET(G$11,MATCH($A44,$A$12:$A$27,0),0)*OFFSET(Inflationparam!E$24,MATCH($A44,Inflationparam!$B$25:$B$42,0),0,1,1) -> 0.442614 | H44: =OFFSET(H$11,MATCH($A44,$A$12:$A$27,0),0)*OFFSET(Inflationparam!F$24,MATCH($A44,Inflationparam!$B$25:$B$42,0),0,1,1) -> 0.1073560257 | I44: =OFFSET(I$11,MATCH($A44,$A$12:$A$27,0),0)*OFFSET(Inflationparam!G$24,MATCH($A44,Inflationparam!$B$25:$B$42,0),0,1,1) -> 0.01270379637 | J44: =OFFSET(J$11,MATCH($A44,$A$12:$A$27,0),0)*OFFSET(Inflationparam!H$24,MATCH($A44,Inflationparam!$B$25:$B$42,0),0,1,1) -> 0 | K44: =OFFSET(K$11,MATCH($A44,$A$12:$A$27,0),0)*OFFSET(Inflationparam!I$24,MATCH($A44,Inflationparam!$B$25:$B$42,0),0,1,1) -> 0 | L44: =OFFSET(L$11,MATCH($A44,$A$12:$A$27,0),0)*OFFSET(Inflationparam!J$24,MATCH($A44,Inflationparam!$B$25:$B$42,0),0,1,1) -> 0 | M44: =OFFSET(M$11,MATCH($A44,$A$12:$A$27,0),0)*OFFSET(Inflationparam!K$24,MATCH($A44,Inflationparam!$B$25:$B$42,0),0,1,1) -> 0 | N44: =OFFSET(N$11,MATCH($A44,$A$12:$A$27,0),0)*OFFSET(Inflationparam!L$24,MATCH($A44,Inflationparam!$B$25:$B$42,0),0,1,1) -> 0 | O44: =OFFSET(O$11,MATCH($A44,$A$12:$A$27,0),0)*OFFSET(Inflationparam!M$24,MATCH($A44,Inflationparam!$B$25:$B$42,0),0,1,1) -> 0 | P44: =OFFSET(P$11,MATCH($A44,$A$12:$A$27,0),0)*OFFSET(Inflationparam!N$24,MATCH($A44,Inflationparam!$B$25:$B$42,0),0,1,1) -> 0 | Q44: =OFFSET(Q$11,MATCH($A44,$A$12:$A$27,0),0)*OFFSET(Inflationparam!O$24,MATCH($A44,Inflationparam!$B$25:$B$42,0),0,1,1) -> 0 | R44: =OFFSET(R$11,MATCH($A44,$A$12:$A$27,0),0)*OFFSET(Inflationparam!P$24,MATCH($A44,Inflationparam!$B$25:$B$42,0),0,1,1) -> 0 | S44: =OFFSET(S$11,MATCH($A44,$A$12:$A$27,0),0)*OFFSET(Inflationparam!Q$24,MATCH($A44,Inflationparam!$B$25:$B$42,0),0,1,1) -> 0 | T44: =OFFSET(T$11,MATCH($A44,$A$12:$A$27,0),0)*OFFSET(Inflationparam!R$24,MATCH($A44,Inflationparam!$B$25:$B$42,0),0,1,1) -> 0 | U44: =OFFSET(U$11,MATCH($A44,$A$12:$A$27,0),0)*OFFSET(Inflationparam!S$24,MATCH($A44,Inflationparam!$B$25:$B$42,0),0,1,1) -> 0 | V44: =OFFSET(V$11,MATCH($A44,$A$12:$A$27,0),0)*OFFSET(Inflationparam!T$24,MATCH($A44,Inflationparam!$B$25:$B$42,0),0,1,1) -> 0 | W44: =OFFSET(W$11,MATCH($A44,$A$12:$A$27,0),0)*OFFSET(Inflationparam!U$24,MATCH($A44,Inflationparam!$B$25:$B$42,0),0,1,1) -> 0 | X44: =OFFSET(X$11,MATCH($A44,$A$12:$A$27,0),0)*OFFSET(Inflationparam!V$24,MATCH($A44,Inflationparam!$B$25:$B$42,0),0,1,1) -> 0 | Y44: =OFFSET(Y$11,MATCH($A44,$A$12:$A$27,0),0)*OFFSET(Inflationparam!W$24,MATCH($A44,Inflationparam!$B$25:$B$42,0),0,1,1) -> 0 | Z44: =OFFSET(Z$11,MATCH($A44,$A$12:$A$27,0),0)*OFFSET(Inflationparam!X$24,MATCH($A44,Inflationparam!$B$25:$B$42,0),0,1,1) -> 0 | AA44: =OFFSET(AA$11,MATCH($A44,$A$12:$A$27,0),0)*OFFSET(Inflationparam!Y$24,MATCH($A44,Inflationparam!$B$25:$B$42,0),0,1,1) -> 0 | AB44: =OFFSET(AB$11,MATCH($A44,$A$12:$A$27,0),0)*OFFSET(Inflationparam!Z$24,MATCH($A44,Inflationparam!$B$25:$B$42,0),0,1,1) -> 0 | AC44: =OFFSET(AC$11,MATCH($A44,$A$12:$A$27,0),0)*OFFSET(Inflationparam!AA$24,MATCH($A44,Inflationparam!$B$25:$B$42,0),0,1,1) -> 0 | AD44: =OFFSET(AD$11,MATCH($A44,$A$12:$A$27,0),0)*OFFSET(Inflationparam!AB$24,MATCH($A44,Inflationparam!$B$25:$B$42,0),0,1,1) -> 0 | AE44: =OFFSET(AE$11,MATCH($A44,$A$12:$A$27,0),0)*OFFSET(Inflationparam!AC$24,MATCH($A44,Inflationparam!$B$25:$B$42,0),0,1,1) -> 0 | AF44: =OFFSET(AF$11,MATCH($A44,$A$12:$A$27,0),0)*OFFSET(Inflationparam!AD$24,MATCH($A44,Inflationparam!$B$25:$B$42,0),0,1,1) -> 0 | AG44: =OFFSET(AG$11,MATCH($A44,$A$12:$A$27,0),0)*OFFSET(Inflationparam!AE$24,MATCH($A44,Inflationparam!$B$25:$B$42,0),0,1,1) -> 0 | AH44: =OFFSET(AH$11,MATCH($A44,$A$12:$A$27,0),0)*OFFSET(Inflationparam!AF$24,MATCH($A44,Inflationparam!$B$25:$B$42,0),0,1,1) -> 0 | AI44: =OFFSET(AI$11,MATCH($A44,$A$12:$A$27,0),0)*OFFSET(Inflationparam!AG$24,MATCH($A44,Inflationparam!$B$25:$B$42,0),0,1,1) -> 0 | AJ44: =OFFSET(AJ$11,MATCH($A44,$A$12:$A$27,0),0)*OFFSET(Inflationparam!AH$24,MATCH($A44,Inflationparam!$B$25:$B$42,0),0,1,1) -> 0 | AK44: =OFFSET(AK$11,MATCH($A44,$A$12:$A$27,0),0)*OFFSET(Inflationparam!AI$24,MATCH($A44,Inflationparam!$B$25:$B$42,0),0,1,1) -> 0 | AL44: =OFFSET(AL$11,MATCH($A44,$A$12:$A$27,0),0)*OFFSET(Inflationparam!AJ$24,MATCH($A44,Inflationparam!$B$25:$B$42,0),0,1,1) -> 0 | AM44: =OFFSET(AM$11,MATCH($A44,$A$12:$A$27,0),0)*OFFSET(Inflationparam!AK$24,MATCH($A44,Inflationparam!$B$25:$B$42,0),0,1,1) -> 0 | AN44: =OFFSET(AN$11,MATCH($A44,$A$12:$A$27,0),0)*OFFSET(Inflationparam!AL$24,MATCH($A44,Inflationparam!$B$25:$B$42,0),0,1,1) -> 0 | AO44: =OFFSET(AO$11,MATCH($A44,$A$12:$A$27,0),0)*OFFSET(Inflationparam!AM$24,MATCH($A44,Inflationparam!$B$25:$B$42,0),0,1,1) -> 0 | AP44: =OFFSET(AP$11,MATCH($A44,$A$12:$A$27,0),0)*OFFSET(Inflationparam!AN$24,MATCH($A44,Inflationparam!$B$25:$B$42,0),0,1,1) -> 0 | AQ44: =OFFSET(AQ$11,MATCH($A44,$A$12:$A$27,0),0)*OFFSET(Inflationparam!AO$24,MATCH($A44,Inflationparam!$B$25:$B$42,0),0,1,1) -> 0 | AR44: =OFFSET(AR$11,MATCH($A44,$A$12:$A$27,0),0)*OFFSET(Inflationparam!AP$24,MATCH($A44,Inflationparam!$B$25:$B$42,0),0,1,1) -> 0 | AS44: =OFFSET(AS$11,MATCH($A44,$A$12:$A$27,0),0)*OFFSET(Inflationparam!AQ$24,MATCH($A44,Inflationparam!$B$25:$B$42,0),0,1,1) -> 0 | AT44: =OFFSET(AT$11,MATCH($A44,$A$12:$A$27,0),0)*OFFSET(Inflationparam!AR$24,MATCH($A44,Inflationparam!$B$25:$B$42,0),0,1,1) -> 0 | AU44: =OFFSET(AU$11,MATCH($A44,$A$12:$A$27,0),0)*OFFSET(Inflationparam!AS$24,MATCH($A44,Inflationparam!$B$25:$B$42,0),0,1,1) -> 0 | AV44: =OFFSET(AV$11,MATCH($A44,$A$12:$A$27,0),0)*OFFSET(Inflationparam!AT$24,MATCH($A44,Inflationparam!$B$25:$B$42,0),0,1,1) -> 0 | AW44: =OFFSET(AW$11,MATCH($A44,$A$12:$A$27,0),0)*OFFSET(Inflationparam!AU$24,MATCH($A44,Inflationparam!$B$25:$B$42,0),0,1,1) -> 0 | AX44: =OFFSET(AX$11,MATCH($A44,$A$12:$A$27,0),0)*OFFSET(Inflationparam!AV$24,MATCH($A44,Inflationparam!$B$25:$B$42,0),0,1,1) -> 0 | AY44: =OFFSET(AY$11,MATCH($A44,$A$12:$A$27,0),0)*OFFSET(Inflationparam!AW$24,MATCH($A44,Inflationparam!$B$25:$B$42,0),0,1,1) -> 0 | AZ44: =OFFSET(AZ$11,MATCH($A44,$A$12:$A$27,0),0)*OFFSET(Inflationparam!AX$24,MATCH($A44,Inflationparam!$B$25:$B$42,0),0,1,1) -> 0 | BA44: =OFFSET(BA$11,MATCH($A44,$A$12:$A$27,0),0)*OFFSET(Inflationparam!AY$24,MATCH($A44,Inflationparam!$B$25:$B$42,0),0,1,1) -> 0 | BB44: =OFFSET(BB$11,MATCH($A44,$A$12:$A$27,0),0)*OFFSET(Inflationparam!AZ$24,MATCH($A44,Inflationparam!$B$25:$B$42,0),0,1,1) -> 0 | BC44: =OFFSET(BC$11,MATCH($A44,$A$12:$A$27,0),0)*OFFSET(Inflationparam!BA$24,MATCH($A44,Inflationparam!$B$25:$B$42,0),0,1,1) -> 0
A45: 9 | B45: =_Marine -> Transport | C45: 1.06819968 | F45: =OFFSET(F$11,MATCH($A45,$A$12:$A$27,0),0)*OFFSET(Inflationparam!D$24,MATCH($A45,Inflationparam!$B$25:$B$42,0),0,1,1) -> 0.46968 | G45: =OFFSET(G$11,MATCH($A45,$A$12:$A$27,0),0)*OFFSET(Inflationparam!E$24,MATCH($A45,Inflationparam!$B$25:$B$42,0),0,1,1) -> 0.46450425 | H45: =OFFSET(H$11,MATCH($A45,$A$12:$A$27,0),0)*OFFSET(Inflationparam!F$24,MATCH($A45,Inflationparam!$B$25:$B$42,0),0,1,1) -> 0.095723565 | I45: =OFFSET(I$11,MATCH($A45,$A$12:$A$27,0),0)*OFFSET(Inflationparam!G$24,MATCH($A45,Inflationparam!$B$25:$B$42,0),0,1,1) -> 0.01697230395 | J45: =OFFSET(J$11,MATCH($A45,$A$12:$A$27,0),0)*OFFSET(Inflationparam!H$24,MATCH($A45,Inflationparam!$B$25:$B$42,0),0,1,1) -> 0.008058835103 | K45: =OFFSET(K$11,MATCH($A45,$A$12:$A$27,0),0)*OFFSET(Inflationparam!I$24,MATCH($A45,Inflationparam!$B$25:$B$42,0),0,1,1) -> 0.007490501255 | L45: =OFFSET(L$11,MATCH($A45,$A$12:$A$27,0),0)*OFFSET(Inflationparam!J$24,MATCH($A45,Inflationparam!$B$25:$B$42,0),0,1,1) -> 0.001154045024 | M45: =OFFSET(M$11,MATCH($A45,$A$12:$A$27,0),0)*OFFSET(Inflationparam!K$24,MATCH($A45,Inflationparam!$B$25:$B$42,0),0,1,1) -> 0.0008975905741 | N45: =OFFSET(N$11,MATCH($A45,$A$12:$A$27,0),0)*OFFSET(Inflationparam!L$24,MATCH($A45,Inflationparam!$B$25:$B$42,0),0,1,1) -> 0.0007693633492 | O45: =OFFSET(O$11,MATCH($A45,$A$12:$A$27,0),0)*OFFSET(Inflationparam!M$24,MATCH($A45,Inflationparam!$B$25:$B$42,0),0,1,1) -> 0.0007693633492 | P45: =OFFSET(P$11,MATCH($A45,$A$12:$A$27,0),0)*OFFSET(Inflationparam!N$24,MATCH($A45,Inflationparam!$B$25:$B$42,0),0,1,1) -> 0.0006411361243 | Q45: =OFFSET(Q$11,MATCH($A45,$A$12:$A$27,0),0)*OFFSET(Inflationparam!O$24,MATCH($A45,Inflationparam!$B$25:$B$42,0),0,1,1) -> 0.0006411361243 | R45: =OFFSET(R$11,MATCH($A45,$A$12:$A$27,0),0)*OFFSET(Inflationparam!P$24,MATCH($A45,Inflationparam!$B$25:$B$42,0),0,1,1) -> 0.0005129088995 | S45: =OFFSET(S$11,MATCH($A45,$A$12:$A$27,0),0)*OFFSET(Inflationparam!Q$24,MATCH($A45,Inflationparam!$B$25:$B$42,0),0,1,1) -> 0.0002564544497 | T45: =OFFSET(T$11,MATCH($A45,$A$12:$A$27,0),0)*OFFSET(Inflationparam!R$24,MATCH($A45,Inflationparam!$B$25:$B$42,0),0,1,1) -> 0.0001282272249 | U45: =OFFSET(U$11,MATCH($A45,$A$12:$A$27,0),0)*OFFSET(Inflationparam!S$24,MATCH($A45,Inflationparam!$B$25:$B$42,0),0,1,1) -> 0 | V45: =OFFSET(V$11,MATCH($A45,$A$12:$A$27,0),0)*OFFSET(Inflationparam!T$24,MATCH($A45,Inflationparam!$B$25:$B$42,0),0,1,1) -> 0 | W45: =OFFSET(W$11,MATCH($A45,$A$12:$A$27,0),0)*OFFSET(Inflationparam!U$24,MATCH($A45,Inflationparam!$B$25:$B$42,0),0,1,1) -> 0 | X45: =OFFSET(X$11,MATCH($A45,$A$12:$A$27,0),0)*OFFSET(Inflationparam!V$24,MATCH($A45,Inflationparam!$B$25:$B$42,0),0,1,1) -> 0 | Y45: =OFFSET(Y$11,MATCH($A45,$A$12:$A$27,0),0)*OFFSET(Inflationparam!W$24,MATCH($A45,Inflationparam!$B$25:$B$42,0),0,1,1) -> 0 | Z45: =OFFSET(Z$11,MATCH($A45,$A$12:$A$27,0),0)*OFFSET(Inflationparam!X$24,MATCH($A45,Inflationparam!$B$25:$B$42,0),0,1,1) -> 0 | AA45: =OFFSET(AA$11,MATCH($A45,$A$12:$A$27,0),0)*OFFSET(Inflationparam!Y$24,MATCH($A45,Inflationparam!$B$25:$B$42,0),0,1,1) -> 0 | AB45: =OFFSET(AB$11,MATCH($A45,$A$12:$A$27,0),0)*OFFSET(Inflationparam!Z$24,MATCH($A45,Inflationparam!$B$25:$B$42,0),0,1,1) -> 0 | AC45: =OFFSET(AC$11,MATCH($A45,$A$12:$A$27,0),0)*OFFSET(Inflationparam!AA$24,MATCH($A45,Inflationparam!$B$25:$B$42,0),0,1,1) -> 0 | AD45: =OFFSET(AD$11,MATCH($A45,$A$12:$A$27,0),0)*OFFSET(Inflationparam!AB$24,MATCH($A45,Inflationparam!$B$25:$B$42,0),0,1,1) -> 0 | AE45: =OFFSET(AE$11,MATCH($A45,$A$12:$A$27,0),0)*OFFSET(Inflationparam!AC$24,MATCH($A45,Inflationparam!$B$25:$B$42,0),0,1,1) -> 0 | AF45: =OFFSET(AF$11,MATCH($A45,$A$12:$A$27,0),0)*OFFSET(Inflationparam!AD$24,MATCH($A45,Inflationparam!$B$25:$B$42,0),0,1,1) -> 0 | AG45: =OFFSET(AG$11,MATCH($A45,$A$12:$A$27,0),0)*OFFSET(Inflationparam!AE$24,MATCH($A45,Inflationparam!$B$25:$B$42,0),0,1,1) -> 0 | AH45: =OFFSET(AH$11,MATCH($A45,$A$12:$A$27,0),0)*OFFSET(Inflationparam!AF$24,MATCH($A45,Inflationparam!$B$25:$B$42,0),0,1,1) -> 0 | AI45: =OFFSET(AI$11,MATCH($A45,$A$12:$A$27,0),0)*OFFSET(Inflationparam!AG$24,MATCH($A45,Inflationparam!$B$25:$B$42,0),0,1,1) -> 0 | AJ45: =OFFSET(AJ$11,MATCH($A45,$A$12:$A$27,0),0)*OFFSET(Inflationparam!AH$24,MATCH($A45,Inflationparam!$B$25:$B$42,0),0,1,1) -> 0 | AK45: =OFFSET(AK$11,MATCH($A45,$A$12:$A$27,0),0)*OFFSET(Inflationparam!AI$24,MATCH($A45,Inflationparam!$B$25:$B$42,0),0,1,1) -> 0 | AL45: =OFFSET(AL$11,MATCH($A45,$A$12:$A$27,0),0)*OFFSET(Inflationparam!AJ$24,MATCH($A45,Inflationparam!$B$25:$B$42,0),0,1,1) -> 0 | AM45: =OFFSET(AM$11,MATCH($A45,$A$12:$A$27,0),0)*OFFSET(Inflationparam!AK$24,MATCH($A45,Inflationparam!$B$25:$B$42,0),0,1,1) -> 0 | AN45: =OFFSET(AN$11,MATCH($A45,$A$12:$A$27,0),0)*OFFSET(Inflationparam!AL$24,MATCH($A45,Inflationparam!$B$25:$B$42,0),0,1,1) -> 0 | AO45: =OFFSET(AO$11,MATCH($A45,$A$12:$A$27,0),0)*OFFSET(Inflationparam!AM$24,MATCH($A45,Inflationparam!$B$25:$B$42,0),0,1,1) -> 0 | AP45: =OFFSET(AP$11,MATCH($A45,$A$12:$A$27,0),0)*OFFSET(Inflationparam!AN$24,MATCH($A45,Inflationparam!$B$25:$B$42,0),0,1,1) -> 0 | AQ45: =OFFSET(AQ$11,MATCH($A45,$A$12:$A$27,0),0)*OFFSET(Inflationparam!AO$24,MATCH($A45,Inflationparam!$B$25:$B$42,0),0,1,1) -> 0 | AR45: =OFFSET(AR$11,MATCH($A45,$A$12:$A$27,0),0)*OFFSET(Inflationparam!AP$24,MATCH($A45,Inflationparam!$B$25:$B$42,0),0,1,1) -> 0 | AS45: =OFFSET(AS$11,MATCH($A45,$A$12:$A$27,0),0)*OFFSET(Inflationparam!AQ$24,MATCH($A45,Inflationparam!$B$25:$B$42,0),0,1,1) -> 0 | AT45: =OFFSET(AT$11,MATCH($A45,$A$12:$A$27,0),0)*OFFSET(Inflationparam!AR$24,MATCH($A45,Inflationparam!$B$25:$B$42,0),0,1,1) -> 0 | AU45: =OFFSET(AU$11,MATCH($A45,$A$12:$A$27,0),0)*OFFSET(Inflationparam!AS$24,MATCH($A45,Inflationparam!$B$25:$B$42,0),0,1,1) -> 0 | AV45: =OFFSET(AV$11,MATCH($A45,$A$12:$A$27,0),0)*OFFSET(Inflationparam!AT$24,MATCH($A45,Inflationparam!$B$25:$B$42,0),0,1,1) -> 0 | AW45: =OFFSET(AW$11,MATCH($A45,$A$12:$A$27,0),0)*OFFSET(Inflationparam!AU$24,MATCH($A45,Inflationparam!$B$25:$B$42,0),0,1,1) -> 0 | AX45: =OFFSET(AX$11,MATCH($A45,$A$12:$A$27,0),0)*OFFSET(Inflationparam!AV$24,MATCH($A45,Inflationparam!$B$25:$B$42,0),0,1,1) -> 0 | AY45: =OFFSET(AY$11,MATCH($A45,$A$12:$A$27,0),0)*OFFSET(Inflationparam!AW$24,MATCH($A45,Inflationparam!$B$25:$B$42,0),0,1,1) -> 0 | AZ45: =OFFSET(AZ$11,MATCH($A45,$A$12:$A$27,0),0)*OFFSET(Inflationparam!AX$24,MATCH($A45,Inflationparam!$B$25:$B$42,0),0,1,1) -> 0 | BA45: =OFFSET(BA$11,MATCH($A45,$A$12:$A$27,0),0)*OFFSET(Inflationparam!AY$24,MATCH($A45,Inflationparam!$B$25:$B$42,0),0,1,1) -> 0 | BB45: =OFFSET(BB$11,MATCH($A45,$A$12:$A$27,0),0)*OFFSET(Inflationparam!AZ$24,MATCH($A45,Inflationparam!$B$25:$B$42,0),0,1,1) -> 0 | BC45: =OFFSET(BC$11,MATCH($A45,$A$12:$A$27,0),0)*OFFSET(Inflationparam!BA$24,MATCH($A45,Inflationparam!$B$25:$B$42,0),0,1,1) -> 0
A46: 10 | B46: =_Aviation -> Luftfahrt | C46: 1.077031844 | F46: =OFFSET(F$11,MATCH($A46,$A$12:$A$27,0),0)*OFFSET(Inflationparam!D$24,MATCH($A46,Inflationparam!$B$25:$B$42,0),0,1,1) -> 0.605125 | G46: =OFFSET(G$11,MATCH($A46,$A$12:$A$27,0),0)*OFFSET(Inflationparam!E$24,MATCH($A46,Inflationparam!$B$25:$B$42,0),0,1,1) -> 0.2537199 | H46: =OFFSET(H$11,MATCH($A46,$A$12:$A$27,0),0)*OFFSET(Inflationparam!F$24,MATCH($A46,Inflationparam!$B$25:$B$42,0),0,1,1) -> 0.050785077 | I46: =OFFSET(I$11,MATCH($A46,$A$12:$A$27,0),0)*OFFSET(Inflationparam!G$24,MATCH($A46,Inflationparam!$B$25:$B$42,0),0,1,1) -> 0.0380372202 | J46: =OFFSET(J$11,MATCH($A46,$A$12:$A$27,0),0)*OFFSET(Inflationparam!H$24,MATCH($A46,Inflationparam!$B$25:$B$42,0),0,1,1) -> 0.0328552508 | K46: =OFFSET(K$11,MATCH($A46,$A$12:$A$27,0),0)*OFFSET(Inflationparam!I$24,MATCH($A46,Inflationparam!$B$25:$B$42,0),0,1,1) -> 0.03021592032 | L46: =OFFSET(L$11,MATCH($A46,$A$12:$A$27,0),0)*OFFSET(Inflationparam!J$24,MATCH($A46,Inflationparam!$B$25:$B$42,0),0,1,1) -> 0.02256799158 | M46: =OFFSET(M$11,MATCH($A46,$A$12:$A$27,0),0)*OFFSET(Inflationparam!K$24,MATCH($A46,Inflationparam!$B$25:$B$42,0),0,1,1) -> 0.008334769616 | N46: =OFFSET(N$11,MATCH($A46,$A$12:$A$27,0),0)*OFFSET(Inflationparam!L$24,MATCH($A46,Inflationparam!$B$25:$B$42,0),0,1,1) -> 0.006924270143 | O46: =OFFSET(O$11,MATCH($A46,$A$12:$A$27,0),0)*OFFSET(Inflationparam!M$24,MATCH($A46,Inflationparam!$B$25:$B$42,0),0,1,1) -> 0.02744062612 | P46: =OFFSET(P$11,MATCH($A46,$A$12:$A$27,0),0)*OFFSET(Inflationparam!N$24,MATCH($A46,Inflationparam!$B$25:$B$42,0),0,1,1) -> 0.001025817799 | Q46: =OFFSET(Q$11,MATCH($A46,$A$12:$A$27,0),0)*OFFSET(Inflationparam!O$24,MATCH($A46,Inflationparam!$B$25:$B$42,0),0,1,1) -> 0 | R46: =OFFSET(R$11,MATCH($A46,$A$12:$A$27,0),0)*OFFSET(Inflationparam!P$24,MATCH($A46,Inflationparam!$B$25:$B$42,0),0,1,1) -> 0 | S46: =OFFSET(S$11,MATCH($A46,$A$12:$A$27,0),0)*OFFSET(Inflationparam!Q$24,MATCH($A46,Inflationparam!$B$25:$B$42,0),0,1,1) -> 0 | T46: =OFFSET(T$11,MATCH($A46,$A$12:$A$27,0),0)*OFFSET(Inflationparam!R$24,MATCH($A46,Inflationparam!$B$25:$B$42,0),0,1,1) -> 0 | U46: =OFFSET(U$11,MATCH($A46,$A$12:$A$27,0),0)*OFFSET(Inflationparam!S$24,MATCH($A46,Inflationparam!$B$25:$B$42,0),0,1,1) -> 0 | V46: =OFFSET(V$11,MATCH($A46,$A$12:$A$27,0),0)*OFFSET(Inflationparam!T$24,MATCH($A46,Inflationparam!$B$25:$B$42,0),0,1,1) -> 0 | W46: =OFFSET(W$11,MATCH($A46,$A$12:$A$27,0),0)*OFFSET(Inflationparam!U$24,MATCH($A46,Inflationparam!$B$25:$B$42,0),0,1,1) -> 0 | X46: =OFFSET(X$11,MATCH($A46,$A$12:$A$27,0),0)*OFFSET(Inflationparam!V$24,MATCH($A46,Inflationparam!$B$25:$B$42,0),0,1,1) -> 0 | Y46: =OFFSET(Y$11,MATCH($A46,$A$12:$A$27,0),0)*OFFSET(Inflationparam!W$24,MATCH($A46,Inflationparam!$B$25:$B$42,0),0,1,1) -> 0 | Z46: =OFFSET(Z$11,MATCH($A46,$A$12:$A$27,0),0)*OFFSET(Inflationparam!X$24,MATCH($A46,Inflationparam!$B$25:$B$42,0),0,1,1) -> 0 | AA46: =OFFSET(AA$11,MATCH($A46,$A$12:$A$27,0),0)*OFFSET(Inflationparam!Y$24,MATCH($A46,Inflationparam!$B$25:$B$42,0),0,1,1) -> 0 | AB46: =OFFSET(AB$11,MATCH($A46,$A$12:$A$27,0),0)*OFFSET(Inflationparam!Z$24,MATCH($A46,Inflationparam!$B$25:$B$42,0),0,1,1) -> 0 | AC46: =OFFSET(AC$11,MATCH($A46,$A$12:$A$27,0),0)*OFFSET(Inflationparam!AA$24,MATCH($A46,Inflationparam!$B$25:$B$42,0),0,1,1) -> 0 | AD46: =OFFSET(AD$11,MATCH($A46,$A$12:$A$27,0),0)*OFFSET(Inflationparam!AB$24,MATCH($A46,Inflationparam!$B$25:$B$42,0),0,1,1) -> 0 | AE46: =OFFSET(AE$11,MATCH($A46,$A$12:$A$27,0),0)*OFFSET(Inflationparam!AC$24,MATCH($A46,Inflationparam!$B$25:$B$42,0),0,1,1) -> 0 | AF46: =OFFSET(AF$11,MATCH($A46,$A$12:$A$27,0),0)*OFFSET(Inflationparam!AD$24,MATCH($A46,Inflationparam!$B$25:$B$42,0),0,1,1) -> 0 | AG46: =OFFSET(AG$11,MATCH($A46,$A$12:$A$27,0),0)*OFFSET(Inflationparam!AE$24,MATCH($A46,Inflationparam!$B$25:$B$42,0),0,1,1) -> 0 | AH46: =OFFSET(AH$11,MATCH($A46,$A$12:$A$27,0),0)*OFFSET(Inflationparam!AF$24,MATCH($A46,Inflationparam!$B$25:$B$42,0),0,1,1) -> 0 | AI46: =OFFSET(AI$11,MATCH($A46,$A$12:$A$27,0),0)*OFFSET(Inflationparam!AG$24,MATCH($A46,Inflationparam!$B$25:$B$42,0),0,1,1) -> 0 | AJ46: =OFFSET(AJ$11,MATCH($A46,$A$12:$A$27,0),0)*OFFSET(Inflationparam!AH$24,MATCH($A46,Inflationparam!$B$25:$B$42,0),0,1,1) -> 0 | AK46: =OFFSET(AK$11,MATCH($A46,$A$12:$A$27,0),0)*OFFSET(Inflationparam!AI$24,MATCH($A46,Inflationparam!$B$25:$B$42,0),0,1,1) -> 0 | AL46: =OFFSET(AL$11,MATCH($A46,$A$12:$A$27,0),0)*OFFSET(Inflationparam!AJ$24,MATCH($A46,Inflationparam!$B$25:$B$42,0),0,1,1) -> 0 | AM46: =OFFSET(AM$11,MATCH($A46,$A$12:$A$27,0),0)*OFFSET(Inflationparam!AK$24,MATCH($A46,Inflationparam!$B$25:$B$42,0),0,1,1) -> 0 | AN46: =OFFSET(AN$11,MATCH($A46,$A$12:$A$27,0),0)*OFFSET(Inflationparam!AL$24,MATCH($A46,Inflationparam!$B$25:$B$42,0),0,1,1) -> 0 | AO46: =OFFSET(AO$11,MATCH($A46,$A$12:$A$27,0),0)*OFFSET(Inflationparam!AM$24,MATCH($A46,Inflationparam!$B$25:$B$42,0),0,1,1) -> 0 | AP46: =OFFSET(AP$11,MATCH($A46,$A$12:$A$27,0),0)*OFFSET(Inflationparam!AN$24,MATCH($A46,Inflationparam!$B$25:$B$42,0),0,1,1) -> 0 | AQ46: =OFFSET(AQ$11,MATCH($A46,$A$12:$A$27,0),0)*OFFSET(Inflationparam!AO$24,MATCH($A46,Inflationparam!$B$25:$B$42,0),0,1,1) -> 0 | AR46: =OFFSET(AR$11,MATCH($A46,$A$12:$A$27,0),0)*OFFSET(Inflationparam!AP$24,MATCH($A46,Inflationparam!$B$25:$B$42,0),0,1,1) -> 0 | AS46: =OFFSET(AS$11,MATCH($A46,$A$12:$A$27,0),0)*OFFSET(Inflationparam!AQ$24,MATCH($A46,Inflationparam!$B$25:$B$42,0),0,1,1) -> 0 | AT46: =OFFSET(AT$11,MATCH($A46,$A$12:$A$27,0),0)*OFFSET(Inflationparam!AR$24,MATCH($A46,Inflationparam!$B$25:$B$42,0),0,1,1) -> 0 | AU46: =OFFSET(AU$11,MATCH($A46,$A$12:$A$27,0),0)*OFFSET(Inflationparam!AS$24,MATCH($A46,Inflationparam!$B$25:$B$42,0),0,1,1) -> 0 | AV46: =OFFSET(AV$11,MATCH($A46,$A$12:$A$27,0),0)*OFFSET(Inflationparam!AT$24,MATCH($A46,Inflationparam!$B$25:$B$42,0),0,1,1) -> 0 | AW46: =OFFSET(AW$11,MATCH($A46,$A$12:$A$27,0),0)*OFFSET(Inflationparam!AU$24,MATCH($A46,Inflationparam!$B$25:$B$42,0),0,1,1) -> 0 | AX46: =OFFSET(AX$11,MATCH($A46,$A$12:$A$27,0),0)*OFFSET(Inflationparam!AV$24,MATCH($A46,Inflationparam!$B$25:$B$42,0),0,1,1) -> 0 | AY46: =OFFSET(AY$11,MATCH($A46,$A$12:$A$27,0),0)*OFFSET(Inflationparam!AW$24,MATCH($A46,Inflationparam!$B$25:$B$42,0),0,1,1) -> 0 | AZ46: =OFFSET(AZ$11,MATCH($A46,$A$12:$A$27,0),0)*OFFSET(Inflationparam!AX$24,MATCH($A46,Inflationparam!$B$25:$B$42,0),0,1,1) -> 0 | BA46: =OFFSET(BA$11,MATCH($A46,$A$12:$A$27,0),0)*OFFSET(Inflationparam!AY$24,MATCH($A46,Inflationparam!$B$25:$B$42,0),0,1,1) -> 0 | BB46: =OFFSET(BB$11,MATCH($A46,$A$12:$A$27,0),0)*OFFSET(Inflationparam!AZ$24,MATCH($A46,Inflationparam!$B$25:$B$42,0),0,1,1) -> 0 | BC46: =OFFSET(BC$11,MATCH($A46,$A$12:$A$27,0),0)*OFFSET(Inflationparam!BA$24,MATCH($A46,Inflationparam!$B$25:$B$42,0),0,1,1) -> 0
A47: 11 | B47: =_CreditSurety -> Finanz und Kaution | C47: 1.071686238 | F47: =OFFSET(F$11,MATCH($A47,$A$12:$A$27,0),0)*OFFSET(Inflationparam!D$24,MATCH($A47,Inflationparam!$B$25:$B$42,0),0,1,1) -> 0.257536 | G47: =OFFSET(G$11,MATCH($A47,$A$12:$A$27,0),0)*OFFSET(Inflationparam!E$24,MATCH($A47,Inflationparam!$B$25:$B$42,0),0,1,1) -> 0.524173312 | H47: =OFFSET(H$11,MATCH($A47,$A$12:$A$27,0),0)*OFFSET(Inflationparam!F$24,MATCH($A47,Inflationparam!$B$25:$B$42,0),0,1,1) -> 0.2225459692 | I47: =OFFSET(I$11,MATCH($A47,$A$12:$A$27,0),0)*OFFSET(Inflationparam!G$24,MATCH($A47,Inflationparam!$B$25:$B$42,0),0,1,1) -> 0.0354019967 | J47: =OFFSET(J$11,MATCH($A47,$A$12:$A$27,0),0)*OFFSET(Inflationparam!H$24,MATCH($A47,Inflationparam!$B$25:$B$42,0),0,1,1) -> 0.006180608263 | K47: =OFFSET(K$11,MATCH($A47,$A$12:$A$27,0),0)*OFFSET(Inflationparam!I$24,MATCH($A47,Inflationparam!$B$25:$B$42,0),0,1,1) -> 0.004845596878 | L47: =OFFSET(L$11,MATCH($A47,$A$12:$A$27,0),0)*OFFSET(Inflationparam!J$24,MATCH($A47,Inflationparam!$B$25:$B$42,0),0,1,1) -> 0.004029598364 | M47: =OFFSET(M$11,MATCH($A47,$A$12:$A$27,0),0)*OFFSET(Inflationparam!K$24,MATCH($A47,Inflationparam!$B$25:$B$42,0),0,1,1) -> 0.003419053157 | N47: =OFFSET(N$11,MATCH($A47,$A$12:$A$27,0),0)*OFFSET(Inflationparam!L$24,MATCH($A47,Inflationparam!$B$25:$B$42,0),0,1,1) -> 0.002930616992 | O47: =OFFSET(O$11,MATCH($A47,$A$12:$A$27,0),0)*OFFSET(Inflationparam!M$24,MATCH($A47,Inflationparam!$B$25:$B$42,0),0,1,1) -> 0.002564289868 | P47: =OFFSET(P$11,MATCH($A47,$A$12:$A$27,0),0)*OFFSET(Inflationparam!N$24,MATCH($A47,Inflationparam!$B$25:$B$42,0),0,1,1) -> 0.002320071785 | Q47: =OFFSET(Q$11,MATCH($A47,$A$12:$A$27,0),0)*OFFSET(Inflationparam!O$24,MATCH($A47,Inflationparam!$B$25:$B$42,0),0,1,1) -> 0.002075853703 | R47: =OFFSET(R$11,MATCH($A47,$A$12:$A$27,0),0)*OFFSET(Inflationparam!P$24,MATCH($A47,Inflationparam!$B$25:$B$42,0),0,1,1) -> 0.001953744661 | S47: =OFFSET(S$11,MATCH($A47,$A$12:$A$27,0),0)*OFFSET(Inflationparam!Q$24,MATCH($A47,Inflationparam!$B$25:$B$42,0),0,1,1) -> 0.001709526579 | T47: =OFFSET(T$11,MATCH($A47,$A$12:$A$27,0),0)*OFFSET(Inflationparam!R$24,MATCH($A47,Inflationparam!$B$25:$B$42,0),0,1,1) -> 0 | U47: =OFFSET(U$11,MATCH($A47,$A$12:$A$27,0),0)*OFFSET(Inflationparam!S$24,MATCH($A47,Inflationparam!$B$25:$B$42,0),0,1,1) -> 0 | V47: =OFFSET(V$11,MATCH($A47,$A$12:$A$27,0),0)*OFFSET(Inflationparam!T$24,MATCH($A47,Inflationparam!$B$25:$B$42,0),0,1,1) -> 0 | W47: =OFFSET(W$11,MATCH($A47,$A$12:$A$27,0),0)*OFFSET(Inflationparam!U$24,MATCH($A47,Inflationparam!$B$25:$B$42,0),0,1,1) -> 0 | X47: =OFFSET(X$11,MATCH($A47,$A$12:$A$27,0),0)*OFFSET(Inflationparam!V$24,MATCH($A47,Inflationparam!$B$25:$B$42,0),0,1,1) -> 0 | Y47: =OFFSET(Y$11,MATCH($A47,$A$12:$A$27,0),0)*OFFSET(Inflationparam!W$24,MATCH($A47,Inflationparam!$B$25:$B$42,0),0,1,1) -> 0 | Z47: =OFFSET(Z$11,MATCH($A47,$A$12:$A$27,0),0)*OFFSET(Inflationparam!X$24,MATCH($A47,Inflationparam!$B$25:$B$42,0),0,1,1) -> 0 | AA47: =OFFSET(AA$11,MATCH($A47,$A$12:$A$27,0),0)*OFFSET(Inflationparam!Y$24,MATCH($A47,Inflationparam!$B$25:$B$42,0),0,1,1) -> 0 | AB47: =OFFSET(AB$11,MATCH($A47,$A$12:$A$27,0),0)*OFFSET(Inflationparam!Z$24,MATCH($A47,Inflationparam!$B$25:$B$42,0),0,1,1) -> 0 | AC47: =OFFSET(AC$11,MATCH($A47,$A$12:$A$27,0),0)*OFFSET(Inflationparam!AA$24,MATCH($A47,Inflationparam!$B$25:$B$42,0),0,1,1) -> 0 | AD47: =OFFSET(AD$11,MATCH($A47,$A$12:$A$27,0),0)*OFFSET(Inflationparam!AB$24,MATCH($A47,Inflationparam!$B$25:$B$42,0),0,1,1) -> 0 | AE47: =OFFSET(AE$11,MATCH($A47,$A$12:$A$27,0),0)*OFFSET(Inflationparam!AC$24,MATCH($A47,Inflationparam!$B$25:$B$42,0),0,1,1) -> 0 | AF47: =OFFSET(AF$11,MATCH($A47,$A$12:$A$27,0),0)*OFFSET(Inflationparam!AD$24,MATCH($A47,Inflationparam!$B$25:$B$42,0),0,1,1) -> 0 | AG47: =OFFSET(AG$11,MATCH($A47,$A$12:$A$27,0),0)*OFFSET(Inflationparam!AE$24,MATCH($A47,Inflationparam!$B$25:$B$42,0),0,1,1) -> 0 | AH47: =OFFSET(AH$11,MATCH($A47,$A$12:$A$27,0),0)*OFFSET(Inflationparam!AF$24,MATCH($A47,Inflationparam!$B$25:$B$42,0),0,1,1) -> 0 | AI47: =OFFSET(AI$11,MATCH($A47,$A$12:$A$27,0),0)*OFFSET(Inflationparam!AG$24,MATCH($A47,Inflationparam!$B$25:$B$42,0),0,1,1) -> 0 | AJ47: =OFFSET(AJ$11,MATCH($A47,$A$12:$A$27,0),0)*OFFSET(Inflationparam!AH$24,MATCH($A47,Inflationparam!$B$25:$B$42,0),0,1,1) -> 0 | AK47: =OFFSET(AK$11,MATCH($A47,$A$12:$A$27,0),0)*OFFSET(Inflationparam!AI$24,MATCH($A47,Inflationparam!$B$25:$B$42,0),0,1,1) -> 0 | AL47: =OFFSET(AL$11,MATCH($A47,$A$12:$A$27,0),0)*OFFSET(Inflationparam!AJ$24,MATCH($A47,Inflationparam!$B$25:$B$42,0),0,1,1) -> 0 | AM47: =OFFSET(AM$11,MATCH($A47,$A$12:$A$27,0),0)*OFFSET(Inflationparam!AK$24,MATCH($A47,Inflationparam!$B$25:$B$42,0),0,1,1) -> 0 | AN47: =OFFSET(AN$11,MATCH($A47,$A$12:$A$27,0),0)*OFFSET(Inflationparam!AL$24,MATCH($A47,Inflationparam!$B$25:$B$42,0),0,1,1) -> 0 | AO47: =OFFSET(AO$11,MATCH($A47,$A$12:$A$27,0),0)*OFFSET(Inflationparam!AM$24,MATCH($A47,Inflationparam!$B$25:$B$42,0),0,1,1) -> 0 | AP47: =OFFSET(AP$11,MATCH($A47,$A$12:$A$27,0),0)*OFFSET(Inflationparam!AN$24,MATCH($A47,Inflationparam!$B$25:$B$42,0),0,1,1) -> 0 | AQ47: =OFFSET(AQ$11,MATCH($A47,$A$12:$A$27,0),0)*OFFSET(Inflationparam!AO$24,MATCH($A47,Inflationparam!$B$25:$B$42,0),0,1,1) -> 0 | AR47: =OFFSET(AR$11,MATCH($A47,$A$12:$A$27,0),0)*OFFSET(Inflationparam!AP$24,MATCH($A47,Inflationparam!$B$25:$B$42,0),0,1,1) -> 0 | AS47: =OFFSET(AS$11,MATCH($A47,$A$12:$A$27,0),0)*OFFSET(Inflationparam!AQ$24,MATCH($A47,Inflationparam!$B$25:$B$42,0),0,1,1) -> 0 | AT47: =OFFSET(AT$11,MATCH($A47,$A$12:$A$27,0),0)*OFFSET(Inflationparam!AR$24,MATCH($A47,Inflationparam!$B$25:$B$42,0),0,1,1) -> 0 | AU47: =OFFSET(AU$11,MATCH($A47,$A$12:$A$27,0),0)*OFFSET(Inflationparam!AS$24,MATCH($A47,Inflationparam!$B$25:$B$42,0),0,1,1) -> 0 | AV47: =OFFSET(AV$11,MATCH($A47,$A$12:$A$27,0),0)*OFFSET(Inflationparam!AT$24,MATCH($A47,Inflationparam!$B$25:$B$42,0),0,1,1) -> 0 | AW47: =OFFSET(AW$11,MATCH($A47,$A$12:$A$27,0),0)*OFFSET(Inflationparam!AU$24,MATCH($A47,Inflationparam!$B$25:$B$42,0),0,1,1) -> 0 | AX47: =OFFSET(AX$11,MATCH($A47,$A$12:$A$27,0),0)*OFFSET(Inflationparam!AV$24,MATCH($A47,Inflationparam!$B$25:$B$42,0),0,1,1) -> 0 | AY47: =OFFSET(AY$11,MATCH($A47,$A$12:$A$27,0),0)*OFFSET(Inflationparam!AW$24,MATCH($A47,Inflationparam!$B$25:$B$42,0),0,1,1) -> 0 | AZ47: =OFFSET(AZ$11,MATCH($A47,$A$12:$A$27,0),0)*OFFSET(Inflationparam!AX$24,MATCH($A47,Inflationparam!$B$25:$B$42,0),0,1,1) -> 0 | BA47: =OFFSET(BA$11,MATCH($A47,$A$12:$A$27,0),0)*OFFSET(Inflationparam!AY$24,MATCH($A47,Inflationparam!$B$25:$B$42,0),0,1,1) -> 0 | BB47: =OFFSET(BB$11,MATCH($A47,$A$12:$A$27,0),0)*OFFSET(Inflationparam!AZ$24,MATCH($A47,Inflationparam!$B$25:$B$42,0),0,1,1) -> 0 | BC47: =OFFSET(BC$11,MATCH($A47,$A$12:$A$27,0),0)*OFFSET(Inflationparam!BA$24,MATCH($A47,Inflationparam!$B$25:$B$42,0),0,1,1) -> 0
A48: 12 | B48: =_Legal -> Rechtsschutz | C48: 1.105393719 | F48: =OFFSET(F$11,MATCH($A48,$A$12:$A$27,0),0)*OFFSET(Inflationparam!D$24,MATCH($A48,Inflationparam!$B$25:$B$42,0),0,1,1) -> 0.371418 | G48: =OFFSET(G$11,MATCH($A48,$A$12:$A$27,0),0)*OFFSET(Inflationparam!E$24,MATCH($A48,Inflationparam!$B$25:$B$42,0),0,1,1) -> 0.3257478 | H48: =OFFSET(H$11,MATCH($A48,$A$12:$A$27,0),0)*OFFSET(Inflationparam!F$24,MATCH($A48,Inflationparam!$B$25:$B$42,0),0,1,1) -> 0.150979563 | I48: =OFFSET(I$11,MATCH($A48,$A$12:$A$27,0),0)*OFFSET(Inflationparam!G$24,MATCH($A48,Inflationparam!$B$25:$B$42,0),0,1,1) -> 0.08293558455 | J48: =OFFSET(J$11,MATCH($A48,$A$12:$A$27,0),0)*OFFSET(Inflationparam!H$24,MATCH($A48,Inflationparam!$B$25:$B$42,0),0,1,1) -> 0.05232043713 | K48: =OFFSET(K$11,MATCH($A48,$A$12:$A$27,0),0)*OFFSET(Inflationparam!I$24,MATCH($A48,Inflationparam!$B$25:$B$42,0),0,1,1) -> 0.03364377682 | L48: =OFFSET(L$11,MATCH($A48,$A$12:$A$27,0),0)*OFFSET(Inflationparam!J$24,MATCH($A48,Inflationparam!$B$25:$B$42,0),0,1,1) -> 0.02231153713 | M48: =OFFSET(M$11,MATCH($A48,$A$12:$A$27,0),0)*OFFSET(Inflationparam!K$24,MATCH($A48,Inflationparam!$B$25:$B$42,0),0,1,1) -> 0.01679776646 | N48: =OFFSET(N$11,MATCH($A48,$A$12:$A$27,0),0)*OFFSET(Inflationparam!L$24,MATCH($A48,Inflationparam!$B$25:$B$42,0),0,1,1) -> 0.01218158636 | O48: =OFFSET(O$11,MATCH($A48,$A$12:$A$27,0),0)*OFFSET(Inflationparam!M$24,MATCH($A48,Inflationparam!$B$25:$B$42,0),0,1,1) -> 0.009873496315 | P48: =OFFSET(P$11,MATCH($A48,$A$12:$A$27,0),0)*OFFSET(Inflationparam!N$24,MATCH($A48,Inflationparam!$B$25:$B$42,0),0,1,1) -> 0.006924270143 | Q48: =OFFSET(Q$11,MATCH($A48,$A$12:$A$27,0),0)*OFFSET(Inflationparam!O$24,MATCH($A48,Inflationparam!$B$25:$B$42,0),0,1,1) -> 0.006411361243 | R48: =OFFSET(R$11,MATCH($A48,$A$12:$A$27,0),0)*OFFSET(Inflationparam!P$24,MATCH($A48,Inflationparam!$B$25:$B$42,0),0,1,1) -> 0.003718589521 | S48: =OFFSET(S$11,MATCH($A48,$A$12:$A$27,0),0)*OFFSET(Inflationparam!Q$24,MATCH($A48,Inflationparam!$B$25:$B$42,0),0,1,1) -> 0.003975043971 | T48: =OFFSET(T$11,MATCH($A48,$A$12:$A$27,0),0)*OFFSET(Inflationparam!R$24,MATCH($A48,Inflationparam!$B$25:$B$42,0),0,1,1) -> 0.00448795287 | U48: =OFFSET(U$11,MATCH($A48,$A$12:$A$27,0),0)*OFFSET(Inflationparam!S$24,MATCH($A48,Inflationparam!$B$25:$B$42,0),0,1,1) -> 0.0006411361243 | V48: =OFFSET(V$11,MATCH($A48,$A$12:$A$27,0),0)*OFFSET(Inflationparam!T$24,MATCH($A48,Inflationparam!$B$25:$B$42,0),0,1,1) -> 0.0003846816746 | W48: =OFFSET(W$11,MATCH($A48,$A$12:$A$27,0),0)*OFFSET(Inflationparam!U$24,MATCH($A48,Inflationparam!$B$25:$B$42,0),0,1,1) -> 0.0002564544497 | X48: =OFFSET(X$11,MATCH($A48,$A$12:$A$27,0),0)*OFFSET(Inflationparam!V$24,MATCH($A48,Inflationparam!$B$25:$B$42,0),0,1,1) -> 0.0001282272249 | Y48: =OFFSET(Y$11,MATCH($A48,$A$12:$A$27,0),0)*OFFSET(Inflationparam!W$24,MATCH($A48,Inflationparam!$B$25:$B$42,0),0,1,1) -> 0.0001282272249 | Z48: =OFFSET(Z$11,MATCH($A48,$A$12:$A$27,0),0)*OFFSET(Inflationparam!X$24,MATCH($A48,Inflationparam!$B$25:$B$42,0),0,1,1) -> 0.0001282272249 | AA48: =OFFSET(AA$11,MATCH($A48,$A$12:$A$27,0),0)*OFFSET(Inflationparam!Y$24,MATCH($A48,Inflationparam!$B$25:$B$42,0),0,1,1) -> 0 | AB48: =OFFSET(AB$11,MATCH($A48,$A$12:$A$27,0),0)*OFFSET(Inflationparam!Z$24,MATCH($A48,Inflationparam!$B$25:$B$42,0),0,1,1) -> 0 | AC48: =OFFSET(AC$11,MATCH($A48,$A$12:$A$27,0),0)*OFFSET(Inflationparam!AA$24,MATCH($A48,Inflationparam!$B$25:$B$42,0),0,1,1) -> 0 | AD48: =OFFSET(AD$11,MATCH($A48,$A$12:$A$27,0),0)*OFFSET(Inflationparam!AB$24,MATCH($A48,Inflationparam!$B$25:$B$42,0),0,1,1) -> 0 | AE48: =OFFSET(AE$11,MATCH($A48,$A$12:$A$27,0),0)*OFFSET(Inflationparam!AC$24,MATCH($A48,Inflationparam!$B$25:$B$42,0),0,1,1) -> 0 | AF48: =OFFSET(AF$11,MATCH($A48,$A$12:$A$27,0),0)*OFFSET(Inflationparam!AD$24,MATCH($A48,Inflationparam!$B$25:$B$42,0),0,1,1) -> 0 | AG48: =OFFSET(AG$11,MATCH($A48,$A$12:$A$27,0),0)*OFFSET(Inflationparam!AE$24,MATCH($A48,Inflationparam!$B$25:$B$42,0),0,1,1) -> 0 | AH48: =OFFSET(AH$11,MATCH($A48,$A$12:$A$27,0),0)*OFFSET(Inflationparam!AF$24,MATCH($A48,Inflationparam!$B$25:$B$42,0),0,1,1) -> 0 | AI48: =OFFSET(AI$11,MATCH($A48,$A$12:$A$27,0),0)*OFFSET(Inflationparam!AG$24,MATCH($A48,Inflationparam!$B$25:$B$42,0),0,1,1) -> 0 | AJ48: =OFFSET(AJ$11,MATCH($A48,$A$12:$A$27,0),0)*OFFSET(Inflationparam!AH$24,MATCH($A48,Inflationparam!$B$25:$B$42,0),0,1,1) -> 0 | AK48: =OFFSET(AK$11,MATCH($A48,$A$12:$A$27,0),0)*OFFSET(Inflationparam!AI$24,MATCH($A48,Inflationparam!$B$25:$B$42,0),0,1,1) -> 0 | AL48: =OFFSET(AL$11,MATCH($A48,$A$12:$A$27,0),0)*OFFSET(Inflationparam!AJ$24,MATCH($A48,Inflationparam!$B$25:$B$42,0),0,1,1) -> 0 | AM48: =OFFSET(AM$11,MATCH($A48,$A$12:$A$27,0),0)*OFFSET(Inflationparam!AK$24,MATCH($A48,Inflationparam!$B$25:$B$42,0),0,1,1) -> 0 | AN48: =OFFSET(AN$11,MATCH($A48,$A$12:$A$27,0),0)*OFFSET(Inflationparam!AL$24,MATCH($A48,Inflationparam!$B$25:$B$42,0),0,1,1) -> 0 | AO48: =OFFSET(AO$11,MATCH($A48,$A$12:$A$27,0),0)*OFFSET(Inflationparam!AM$24,MATCH($A48,Inflationparam!$B$25:$B$42,0),0,1,1) -> 0 | AP48: =OFFSET(AP$11,MATCH($A48,$A$12:$A$27,0),0)*OFFSET(Inflationparam!AN$24,MATCH($A48,Inflationparam!$B$25:$B$42,0),0,1,1) -> 0 | AQ48: =OFFSET(AQ$11,MATCH($A48,$A$12:$A$27,0),0)*OFFSET(Inflationparam!AO$24,MATCH($A48,Inflationparam!$B$25:$B$42,0),0,1,1) -> 0 | AR48: =OFFSET(AR$11,MATCH($A48,$A$12:$A$27,0),0)*OFFSET(Inflationparam!AP$24,MATCH($A48,Inflationparam!$B$25:$B$42,0),0,1,1) -> 0 | AS48: =OFFSET(AS$11,MATCH($A48,$A$12:$A$27,0),0)*OFFSET(Inflationparam!AQ$24,MATCH($A48,Inflationparam!$B$25:$B$42,0),0,1,1) -> 0 | AT48: =OFFSET(AT$11,MATCH($A48,$A$12:$A$27,0),0)*OFFSET(Inflationparam!AR$24,MATCH($A48,Inflationparam!$B$25:$B$42,0),0,1,1) -> 0 | AU48: =OFFSET(AU$11,MATCH($A48,$A$12:$A$27,0),0)*OFFSET(Inflationparam!AS$24,MATCH($A48,Inflationparam!$B$25:$B$42,0),0,1,1) -> 0 | AV48: =OFFSET(AV$11,MATCH($A48,$A$12:$A$27,0),0)*OFFSET(Inflationparam!AT$24,MATCH($A48,Inflationparam!$B$25:$B$42,0),0,1,1) -> 0 | AW48: =OFFSET(AW$11,MATCH($A48,$A$12:$A$27,0),0)*OFFSET(Inflationparam!AU$24,MATCH($A48,Inflationparam!$B$25:$B$42,0),0,1,1) -> 0 | AX48: =OFFSET(AX$11,MATCH($A48,$A$12:$A$27,0),0)*OFFSET(Inflationparam!AV$24,MATCH($A48,Inflationparam!$B$25:$B$42,0),0,1,1) -> 0 | AY48: =OFFSET(AY$11,MATCH($A48,$A$12:$A$27,0),0)*OFFSET(Inflationparam!AW$24,MATCH($A48,Inflationparam!$B$25:$B$42,0),0,1,1) -> 0 | AZ48: =OFFSET(AZ$11,MATCH($A48,$A$12:$A$27,0),0)*OFFSET(Inflationparam!AX$24,MATCH($A48,Inflationparam!$B$25:$B$42,0),0,1,1) -> 0 | BA48: =OFFSET(BA$11,MATCH($A48,$A$12:$A$27,0),0)*OFFSET(Inflationparam!AY$24,MATCH($A48,Inflationparam!$B$25:$B$42,0),0,1,1) -> 0 | BB48: =OFFSET(BB$11,MATCH($A48,$A$12:$A$27,0),0)*OFFSET(Inflationparam!AZ$24,MATCH($A48,Inflationparam!$B$25:$B$42,0),0,1,1) -> 0 | BC48: =OFFSET(BC$11,MATCH($A48,$A$12:$A$27,0),0)*OFFSET(Inflationparam!BA$24,MATCH($A48,Inflationparam!$B$25:$B$42,0),0,1,1) -> 0
A49: 13 | B49: =_Others -> Andere | C49: 1.037784161 | F49: =OFFSET(F$11,MATCH($A49,$A$12:$A$27,0),0)*OFFSET(Inflationparam!D$24,MATCH($A49,Inflationparam!$B$25:$B$42,0),0,1,1) -> 0.884152 | G49: =OFFSET(G$11,MATCH($A49,$A$12:$A$27,0),0)*OFFSET(Inflationparam!E$24,MATCH($A49,Inflationparam!$B$25:$B$42,0),0,1,1) -> 0.1477329 | H49: =OFFSET(H$11,MATCH($A49,$A$12:$A$27,0),0)*OFFSET(Inflationparam!F$24,MATCH($A49,Inflationparam!$B$25:$B$42,0),0,1,1) -> 0.003095253 | I49: =OFFSET(I$11,MATCH($A49,$A$12:$A$27,0),0)*OFFSET(Inflationparam!G$24,MATCH($A49,Inflationparam!$B$25:$B$42,0),0,1,1) -> 0.0016851933 | J49: =OFFSET(J$11,MATCH($A49,$A$12:$A$27,0),0)*OFFSET(Inflationparam!H$24,MATCH($A49,Inflationparam!$B$25:$B$42,0),0,1,1) -> 0.000991856628 | K49: =OFFSET(K$11,MATCH($A49,$A$12:$A$27,0),0)*OFFSET(Inflationparam!I$24,MATCH($A49,Inflationparam!$B$25:$B$42,0),0,1,1) -> 0.0001269576484 | L49: =OFFSET(L$11,MATCH($A49,$A$12:$A$27,0),0)*OFFSET(Inflationparam!J$24,MATCH($A49,Inflationparam!$B$25:$B$42,0),0,1,1) -> 0 | M49: =OFFSET(M$11,MATCH($A49,$A$12:$A$27,0),0)*OFFSET(Inflationparam!K$24,MATCH($A49,Inflationparam!$B$25:$B$42,0),0,1,1) -> 0 | N49: =OFFSET(N$11,MATCH($A49,$A$12:$A$27,0),0)*OFFSET(Inflationparam!L$24,MATCH($A49,Inflationparam!$B$25:$B$42,0),0,1,1) -> 0 | O49: =OFFSET(O$11,MATCH($A49,$A$12:$A$27,0),0)*OFFSET(Inflationparam!M$24,MATCH($A49,Inflationparam!$B$25:$B$42,0),0,1,1) -> 0 | P49: =OFFSET(P$11,MATCH($A49,$A$12:$A$27,0),0)*OFFSET(Inflationparam!N$24,MATCH($A49,Inflationparam!$B$25:$B$42,0),0,1,1) -> 0 | Q49: =OFFSET(Q$11,MATCH($A49,$A$12:$A$27,0),0)*OFFSET(Inflationparam!O$24,MATCH($A49,Inflationparam!$B$25:$B$42,0),0,1,1) -> 0 | R49: =OFFSET(R$11,MATCH($A49,$A$12:$A$27,0),0)*OFFSET(Inflationparam!P$24,MATCH($A49,Inflationparam!$B$25:$B$42,0),0,1,1) -> 0 | S49: =OFFSET(S$11,MATCH($A49,$A$12:$A$27,0),0)*OFFSET(Inflationparam!Q$24,MATCH($A49,Inflationparam!$B$25:$B$42,0),0,1,1) -> 0 | T49: =OFFSET(T$11,MATCH($A49,$A$12:$A$27,0),0)*OFFSET(Inflationparam!R$24,MATCH($A49,Inflationparam!$B$25:$B$42,0),0,1,1) -> 0 | U49: =OFFSET(U$11,MATCH($A49,$A$12:$A$27,0),0)*OFFSET(Inflationparam!S$24,MATCH($A49,Inflationparam!$B$25:$B$42,0),0,1,1) -> 0 | V49: =OFFSET(V$11,MATCH($A49,$A$12:$A$27,0),0)*OFFSET(Inflationparam!T$24,MATCH($A49,Inflationparam!$B$25:$B$42,0),0,1,1) -> 0 | W49: =OFFSET(W$11,MATCH($A49,$A$12:$A$27,0),0)*OFFSET(Inflationparam!U$24,MATCH($A49,Inflationparam!$B$25:$B$42,0),0,1,1) -> 0 | X49: =OFFSET(X$11,MATCH($A49,$A$12:$A$27,0),0)*OFFSET(Inflationparam!V$24,MATCH($A49,Inflationparam!$B$25:$B$42,0),0,1,1) -> 0 | Y49: =OFFSET(Y$11,MATCH($A49,$A$12:$A$27,0),0)*OFFSET(Inflationparam!W$24,MATCH($A49,Inflationparam!$B$25:$B$42,0),0,1,1) -> 0 | Z49: =OFFSET(Z$11,MATCH($A49,$A$12:$A$27,0),0)*OFFSET(Inflationparam!X$24,MATCH($A49,Inflationparam!$B$25:$B$42,0),0,1,1) -> 0 | AA49: =OFFSET(AA$11,MATCH($A49,$A$12:$A$27,0),0)*OFFSET(Inflationparam!Y$24,MATCH($A49,Inflationparam!$B$25:$B$42,0),0,1,1) -> 0 | AB49: =OFFSET(AB$11,MATCH($A49,$A$12:$A$27,0),0)*OFFSET(Inflationparam!Z$24,MATCH($A49,Inflationparam!$B$25:$B$42,0),0,1,1) -> 0 | AC49: =OFFSET(AC$11,MATCH($A49,$A$12:$A$27,0),0)*OFFSET(Inflationparam!AA$24,MATCH($A49,Inflationparam!$B$25:$B$42,0),0,1,1) -> 0 | AD49: =OFFSET(AD$11,MATCH($A49,$A$12:$A$27,0),0)*OFFSET(Inflationparam!AB$24,MATCH($A49,Inflationparam!$B$25:$B$42,0),0,1,1) -> 0 | AE49: =OFFSET(AE$11,MATCH($A49,$A$12:$A$27,0),0)*OFFSET(Inflationparam!AC$24,MATCH($A49,Inflationparam!$B$25:$B$42,0),0,1,1) -> 0 | AF49: =OFFSET(AF$11,MATCH($A49,$A$12:$A$27,0),0)*OFFSET(Inflationparam!AD$24,MATCH($A49,Inflationparam!$B$25:$B$42,0),0,1,1) -> 0 | AG49: =OFFSET(AG$11,MATCH($A49,$A$12:$A$27,0),0)*OFFSET(Inflationparam!AE$24,MATCH($A49,Inflationparam!$B$25:$B$42,0),0,1,1) -> 0 | AH49: =OFFSET(AH$11,MATCH($A49,$A$12:$A$27,0),0)*OFFSET(Inflationparam!AF$24,MATCH($A49,Inflationparam!$B$25:$B$42,0),0,1,1) -> 0 | AI49: =OFFSET(AI$11,MATCH($A49,$A$12:$A$27,0),0)*OFFSET(Inflationparam!AG$24,MATCH($A49,Inflationparam!$B$25:$B$42,0),0,1,1) -> 0 | AJ49: =OFFSET(AJ$11,MATCH($A49,$A$12:$A$27,0),0)*OFFSET(Inflationparam!AH$24,MATCH($A49,Inflationparam!$B$25:$B$42,0),0,1,1) -> 0 | AK49: =OFFSET(AK$11,MATCH($A49,$A$12:$A$27,0),0)*OFFSET(Inflationparam!AI$24,MATCH($A49,Inflationparam!$B$25:$B$42,0),0,1,1) -> 0 | AL49: =OFFSET(AL$11,MATCH($A49,$A$12:$A$27,0),0)*OFFSET(Inflationparam!AJ$24,MATCH($A49,Inflationparam!$B$25:$B$42,0),0,1,1) -> 0 | AM49: =OFFSET(AM$11,MATCH($A49,$A$12:$A$27,0),0)*OFFSET(Inflationparam!AK$24,MATCH($A49,Inflationparam!$B$25:$B$42,0),0,1,1) -> 0 | AN49: =OFFSET(AN$11,MATCH($A49,$A$12:$A$27,0),0)*OFFSET(Inflationparam!AL$24,MATCH($A49,Inflationparam!$B$25:$B$42,0),0,1,1) -> 0 | AO49: =OFFSET(AO$11,MATCH($A49,$A$12:$A$27,0),0)*OFFSET(Inflationparam!AM$24,MATCH($A49,Inflationparam!$B$25:$B$42,0),0,1,1) -> 0 | AP49: =OFFSET(AP$11,MATCH($A49,$A$12:$A$27,0),0)*OFFSET(Inflationparam!AN$24,MATCH($A49,Inflationparam!$B$25:$B$42,0),0,1,1) -> 0 | AQ49: =OFFSET(AQ$11,MATCH($A49,$A$12:$A$27,0),0)*OFFSET(Inflationparam!AO$24,MATCH($A49,Inflationparam!$B$25:$B$42,0),0,1,1) -> 0 | AR49: =OFFSET(AR$11,MATCH($A49,$A$12:$A$27,0),0)*OFFSET(Inflationparam!AP$24,MATCH($A49,Inflationparam!$B$25:$B$42,0),0,1,1) -> 0 | AS49: =OFFSET(AS$11,MATCH($A49,$A$12:$A$27,0),0)*OFFSET(Inflationparam!AQ$24,MATCH($A49,Inflationparam!$B$25:$B$42,0),0,1,1) -> 0 | AT49: =OFFSET(AT$11,MATCH($A49,$A$12:$A$27,0),0)*OFFSET(Inflationparam!AR$24,MATCH($A49,Inflationparam!$B$25:$B$42,0),0,1,1) -> 0 | AU49: =OFFSET(AU$11,MATCH($A49,$A$12:$A$27,0),0)*OFFSET(Inflationparam!AS$24,MATCH($A49,Inflationparam!$B$25:$B$42,0),0,1,1) -> 0 | AV49: =OFFSET(AV$11,MATCH($A49,$A$12:$A$27,0),0)*OFFSET(Inflationparam!AT$24,MATCH($A49,Inflationparam!$B$25:$B$42,0),0,1,1) -> 0 | AW49: =OFFSET(AW$11,MATCH($A49,$A$12:$A$27,0),0)*OFFSET(Inflationparam!AU$24,MATCH($A49,Inflationparam!$B$25:$B$42,0),0,1,1) -> 0 | AX49: =OFFSET(AX$11,MATCH($A49,$A$12:$A$27,0),0)*OFFSET(Inflationparam!AV$24,MATCH($A49,Inflationparam!$B$25:$B$42,0),0,1,1) -> 0 | AY49: =OFFSET(AY$11,MATCH($A49,$A$12:$A$27,0),0)*OFFSET(Inflationparam!AW$24,MATCH($A49,Inflationparam!$B$25:$B$42,0),0,1,1) -> 0 | AZ49: =OFFSET(AZ$11,MATCH($A49,$A$12:$A$27,0),0)*OFFSET(Inflationparam!AX$24,MATCH($A49,Inflationparam!$B$25:$B$42,0),0,1,1) -> 0 | BA49: =OFFSET(BA$11,MATCH($A49,$A$12:$A$27,0),0)*OFFSET(Inflationparam!AY$24,MATCH($A49,Inflationparam!$B$25:$B$42,0),0,1,1) -> 0 | BB49: =OFFSET(BB$11,MATCH($A49,$A$12:$A$27,0),0)*OFFSET(Inflationparam!AZ$24,MATCH($A49,Inflationparam!$B$25:$B$42,0),0,1,1) -> 0 | BC49: =OFFSET(BC$11,MATCH($A49,$A$12:$A$27,0),0)*OFFSET(Inflationparam!BA$24,MATCH($A49,Inflationparam!$B$25:$B$42,0),0,1,1) -> 0
B51: new normalized CY Pattern
F53: =_year -> Jahr
A54: =_number -> Nr. | B54: =_NL_LOB_default -> SST-Standardversicherungsbranche | F54: =current_year -> 2023 | G54: =F54+1 -> 2024 | H54: =G54+1 -> 2025 | I54: 2026 | J54: 2027 | K54: 2028 | L54: 2029 | M54: 2030 | N54: 2031 | O54: 2032 | P54: 2033 | Q54: 2034 | R54: 2035 | S54: 2036 | T54: 2037 | U54: 2038 | V54: 2039 | W54: 2040 | X54: 2041 | Y54: 2042 | Z54: 2043 | AA54: 2044 | AB54: 2045 | AC54: 2046 | AD54: 2047 | AE54: 2048 | AF54: 2049 | AG54: 2050 | AH54: 2051 | AI54: 2052 | AJ54: 2053 | AK54: 2054 | AL54: 2055 | AM54: 2056 | AN54: 2057 | AO54: 2058 | AP54: 2059 | AQ54: 2060 | AR54: 2061 | AS54: 2062 | AT54: 2063 | AU54: 2064 | AV54: 2065 | AW54: 2066 | AX54: 2067 | AY54: 2068 | AZ54: 2069 | BA54: 2070 | BB54: 2071 | BC54: 2072
A56: 1 | B56: =_MTPL -> MFH | C56: =SUM(F56:BC56) -> 1 | F56: =F34/$C34 -> 0.4125745939 | G56: =G34/$C34 -> 0.2017403338 | H56: 0.05871839496 | I56: 0.03824345604 | J56: 0.03019764654 | K56: 0.02697953103 | L56: 0.02576673687 | M56: 0.02127528733 | N56: 0.01879317047 | O56: 0.01572007341 | P56: 0.01524728925 | Q56: 0.01311976052 | R56: 0.009101095134 | S56: 0.009455683256 | T56: 0.008746507012 | U56: 0.007919134727 | V56: 0.007209958483 | W56: 0.006618978279 | X56: 0.006146194116 | Y56: 0.005555213913 | Z56: 0.005200625791 | AA56: 0.004727841628 | AB56: 0.004373253506 | AC56: 0.004136861424 | AD56: 0.003782273302 | AE56: 0.003545881221 | AF56: 0.00330948914 | AG56: 0.003073097058 | AH56: 0.002954901017 | AI56: 0.002718508936 | AJ56: 0.002600312895 | AK56: 0.002482116855 | AL56: 0.002245724773 | AM56: 0.002127528733 | AN56: 0.002009332692 | AO56: 0.001891136651 | AP56: 0.00177294061 | AQ56: 0.00177294061 | AR56: 0.00165474457 | AS56: 0.001536548529 | AT56: 0.001536548529 | AU56: 0.001418352488 | AV56: 0 | AW56: 0 | AX56: 0 | AY56: 0 | AZ56: 0 | BA56: 0 | BB56: 0 | BC56: 0
A57: 2 | B57: =_MOD -> MFK | C57: =SUM(F57:BC57) -> 1 | F57: =F35/$C35 -> 0.8306931565 | G57: 0.165087146 | H57: 0.003487715218 | I57: 0.0003577720772 | J57: 0.000247101248 | K57: 0.000127108882 | L57: 0 | M57: 0 | N57: 0 | O57: 0 | P57: 0 | Q57: 0 | R57: 0 | S57: 0 | T57: 0 | U57: 0 | V57: 0 | W57: 0 | X57: 0 | Y57: 0 | Z57: 0 | AA57: 0 | AB57: 0 | AC57: 0 | AD57: 0 | AE57: 0 | AF57: 0 | AG57: 0 | AH57: 0 | AI57: 0 | AJ57: 0 | AK57: 0 | AL57: 0 | AM57: 0 | AN57: 0 | AO57: 0 | AP57: 0 | AQ57: 0 | AR57: 0 | AS57: 0 | AT57: 0 | AU57: 0 | AV57: 0 | AW57: 0 | AX57: 0 | AY57: 0 | AZ57: 0 | BA57: 0 | BB57: 0 | BC57: 0
A58: 3 | B58: =_Fire -> Sach | C58: 1 | F58: =F36/$C36 -> 0.583135141 | G58: 0.3407093572 | H58: 0.05357556413 | I58: 0.01394883939 | J58: 0.004505094385 | K58: 0.00155357584 | L58: 0.0007296790965 | M58: 0.0004946976926 | N58: 0.0005812697888 | O58: 0.0005070651349 | P58: 0.0001607767501 | Q58: 3.710232694e-05 | R58: 2.473488463e-05 | S58: 1.236744231e-05 | T58: 1.236744231e-05 | U58: 1.236744231e-05 | V58: 0 | W58: 0 | X58: 0 | Y58: 0 | Z58: 0 | AA58: 0 | AB58: 0 | AC58: 0 | AD58: 0 | AE58: 0 | AF58: 0 | AG58: 0 | AH58: 0 | AI58: 0 | AJ58: 0 | AK58: 0 | AL58: 0 | AM58: 0 | AN58: 0 | AO58: 0 | AP58: 0 | AQ58: 0 | AR58: 0 | AS58: 0 | AT58: 0 | AU58: 0 | AV58: 0 | AW58: 0 | AX58: 0 | AY58: 0 | AZ58: 0 | BA58: 0 | BB58: 0 | BC58: 0
A59: 4 | B59: =_GL -> Haftpflicht | C59: 1 | F59: =F37/$C37 -> 0.2622432532 | G59: 0.2498487353 | H59: 0.1104661964 | I59: 0.07196134668 | J59: 0.05585794644 | K59: 0.04304971932 | L59: 0.04261168843 | M59: 0.02769356555 | N59: 0.01809758381 | O59: 0.02128856453 | P59: 0.01618529933 | Q59: 0.01236073038 | R59: 0.009411665165 | S59: 0.00861679993 | T59: 0.007211386038 | U59: 0.006070927224 | V59: 0.005137824557 | W59: 0.004365998895 | X59: 0.003720890879 | Y59: 0.003190980723 | Z59: 0.002741709069 | AA59: 0.002361556131 | AB59: 0.002050521909 | AC59: 0.001774047044 | AD59: 0.001543651324 | AE59: 0.001347814962 | AF59: 0.001186537958 | AG59: 0.00103678074 | AH59: 0.0009100630942 | AI59: 0.0008063850202 | AJ59: 0.0007142267322 | AK59: 0.0006335882302 | AL59: 0.0005529497281 | AM59: 0.0004953507981 | AN59: 0.0004377518681 | AO59: 0.0003916727241 | AP59: 0.0003455935801 | AQ59: 0.0003110342221 | AR59: 0.0002764748641 | AS59: 0.0002534352921 | AT59: 0.0002303957201 | AU59: 0.0002073561481 | AV59: 0 | AW59: 0 | AX59: 0 | AY59: 0 | AZ59: 0 | BA59: 0 | BB59: 0 | BC59: 0
A60: 5a | B60: =_AccMandatory_noAnnuities -> UVG, nicht verrentete Fälle | C60: 1 | F60: =F38/$C38 -> 0.48727 | G60: 0.27562 | H60: 0.06077 | I60: 0.03786 | J60: 0.03331 | K60: 0.02416 | L60: 0.02013 | M60: 0.01239 | N60: 0.0089 | O60: 0.00829 | P60: 0.00703 | Q60: 0.00324 | R60: 0.0027 | S60: 0.00244 | T60: 0.00176 | U60: 0.00146 | V60: 0.00122 | W60: 0.00104 | X60: 0.00091 | Y60: 0.00079 | Z60: 0.0007 | AA60: 0.00063 | AB60: 0.00057 | AC60: 0.0005 | AD60: 0.00046 | AE60: 0.00043 | AF60: 0.0004 | AG60: 0.00037 | AH60: 0.00035 | AI60: 0.00033 | AJ60: 0.00031 | AK60: 0.00029 | AL60: 0.00028 | AM60: 0.00026 | AN60: 0.00025 | AO60: 0.00024 | AP60: 0.00023 | AQ60: 0.00022 | AR60: 0.00021 | AS60: 0.0002 | AT60: 0.00019 | AU60: 0.00018 | AV60: 0.00018 | AW60: 0.00017 | AX60: 0.00016 | AY60: 0.00016 | AZ60: 0.00015 | BA60: 0.00015 | BB60: 0.00014 | BC60: 0
A61: 5a_1 | B61: =_AccMandatory & " " & _KurzFrist -> UVG Kurzfristleistungen | C61: 1 | F61: =F39/$C39 -> 0.57739 | G61: 0.3124 | H61: 0.04925 | I61: 0.0209 | J61: 0.01158 | K61: 0.00683 | L61: 0.00493 | M61: 0.0038 | N61: 0.00276 | O61: 0.00263 | P61: 0.00255 | Q61: 0.0011 | R61: 0.00112 | S61: 0.00103 | T61: 0.00051 | U61: 0.00037 | V61: 0.00026 | W61: 0.00019 | X61: 0.00014 | Y61: 0.0001 | Z61: 7e-05 | AA61: 5e-05 | AB61: 4e-05 | AC61: 0 | AD61: 0 | AE61: 0 | AF61: 0 | AG61: 0 | AH61: 0 | AI61: 0 | AJ61: 0 | AK61: 0 | AL61: 0 | AM61: 0 | AN61: 0 | AO61: 0 | AP61: 0 | AQ61: 0 | AR61: 0 | AS61: 0 | AT61: 0 | AU61: 0 | AV61: 0 | AW61: 0 | AX61: 0 | AY61: 0 | AZ61: 0 | BA61: 0 | BB61: 0 | BC61: 0
A62: 5a_2 | B62: =_AccMandatory & " " & _LangFrist -> UVG Langfristleistungen | C62: 1 | F62: =F40/$C40 -> 0.076301 | G62: 0.107911 | H62: 0.113328 | I62: 0.115176 | J62: 0.132398 | K62: 0.103195 | L62: 0.089432 | M62: 0.051589 | N62: 0.036876 | O62: 0.034086 | P62: 0.027451 | Q62: 0.012976 | R62: 0.009902 | S62: 0.008873 | T62: 0.007479 | U62: 0.006422 | V62: 0.005596 | W62: 0.004937 | X62: 0.004399 | Y62: 0.003955 | Z62: 0.003582 | AA62: 0.003265 | AB62: 0.002993 | AC62: 0.002758 | AD62: 0.002553 | AE62: 0.002372 | AF62: 0.002212 | AG62: 0.00207 | AH62: 0.001943 | AI62: 0.001828 | AJ62: 0.001724 | AK62: 0.001631 | AL62: 0.001545 | AM62: 0.001467 | AN62: 0.001395 | AO62: 0.00133 | AP62: 0.001269 | AQ62: 0.001213 | AR62: 0.001161 | AS62: 0.001112 | AT62: 0.001067 | AU62: 0.001025 | AV62: 0.000986 | AW62: 0.000949 | AX62: 0.000915 | AY62: 0.000882 | AZ62: 0.000852 | BA62: 0.000823 | BB62: 0.000796 | BC62: 0
A63: 5b | B63: =_AccMandatory_Annuities -> UVG-Renten | C63: 1 | F63: =F41/$C41 -> 0.042 | G63: 0.041 | H63: 0.04 | I63: 0.039 | J63: 0.039 | K63: 0.038 | L63: 0.037 | M63: 0.036 | N63: 0.035 | O63: 0.034 | P63: 0.033 | Q63: 0.032 | R63: 0.032 | S63: 0.031 | T63: 0.03 | U63: 0.029 | V63: 0.028 | W63: 0.027 | X63: 0.026 | Y63: 0.025 | Z63: 0.024 | AA63: 0.024 | AB63: 0.023 | AC63: 0.022 | AD63: 0.021 | AE63: 0.02 | AF63: 0.019 | AG63: 0.018 | AH63: 0.016 | AI63: 0.015 | AJ63: 0.014 | AK63: 0.013 | AL63: 0.012 | AM63: 0.011 | AN63: 0.01 | AO63: 0.009 | AP63: 0.008 | AQ63: 0.007 | AR63: 0.007 | AS63: 0.006 | AT63: 0.005 | AU63: 0.005 | AV63: 0.004 | AW63: 0.003 | AX63: 0.002 | AY63: 0.002 | AZ63: 0.002 | BA63: 0.002 | BB63: 0.001 | BC63: 0.001
A64: 6 | B64: =_AccOptional -> Unfall ohne UVG | C64: 1 | F64: =F42/$C42 -> 0.4350537277 | G64: 0.3128542031 | H64: 0.08920447468 | I64: 0.05403439333 | J64: 0.03449672853 | K64: 0.02252835972 | L64: 0.01337539676 | M64: 0.009892091398 | N64: 0.007759961422 | O64: 0.005094798953 | P64: 0.003979149547 | Q64: 0.002417240379 | R64: 0.00228088323 | S64: 0.001549513064 | T64: 0.001177629928 | U64: 0.0009049156291 | V64: 0.0006941818525 | W64: 0.0005454285984 | X64: 0.0004214675533 | Y64: 0.0003346948217 | Z64: 0.0002727142992 | AA64: 0.0002107337766 | AB64: 0.0001735454631 | AC64: 0.0001363571496 | AD64: 0.0001115649406 | AE64: 8.677273156e-05 | AF64: 7.437662705e-05 | AG64: 6.198052254e-05 | AH64: 4.958441804e-05 | AI64: 3.718831353e-05 | AJ64: 3.718831353e-05 | AK64: 2.479220902e-05 | AL64: 2.479220902e-05 | AM64: 2.479220902e-05 | AN64: 1.239610451e-05 | AO64: 1.239610451e-05 | AP64: 1.239610451e-05 | AQ64: 1.239610451e-05 | AR64: 1.239610451e-05 | AS64: 1.239610451e-05 | AT64: 0 | AU64: 0 | AV64: 0 | AW64: 0 | AX64: 0 | AY64: 0 | AZ64: 0 | BA64: 0 | BB64: 0 | BC64: 0
A65: 7 | B65: =_Health_Collective -> Kollektivtaggeld | C65: 1 | F65: =F43/$C43 -> 0.426421914 | G65: 0.4670335249 | H65: 0.1065445611 | I65: 0 | J65: 0 | K65: 0 | L65: 0 | M65: 0 | N65: 0 | O65: 0 | P65: 0 | Q65: 0 | R65: 0 | S65: 0 | T65: 0 | U65: 0 | V65: 0 | W65: 0 | X65: 0 | Y65: 0 | Z65: 0 | AA65: 0 | AB65: 0 | AC65: 0 | AD65: 0 | AE65: 0 | AF65: 0 | AG65: 0 | AH65: 0 | AI65: 0 | AJ65: 0 | AK65: 0 | AL65: 0 | AM65: 0 | AN65: 0 | AO65: 0 | AP65: 0 | AQ65: 0 | AR65: 0 | AS65: 0 | AT65: 0 | AU65: 0 | AV65: 0 | AW65: 0 | AX65: 0 | AY65: 0 | AZ65: 0 | BA65: 0 | BB65: 0 | BC65: 0
A66: 8 | B66: =_Health_Individual -> Einzelkranken | C66: 1 | F66: =F44/$C44 -> 0.4800522702 | G66: 0.4090045342 | H66: 0.09920404977 | I66: 0.01173914589 | J66: 0 | K66: 0 | L66: 0 | M66: 0 | N66: 0 | O66: 0 | P66: 0 | Q66: 0 | R66: 0 | S66: 0 | T66: 0 | U66: 0 | V66: 0 | W66: 0 | X66: 0 | Y66: 0 | Z66: 0 | AA66: 0 | AB66: 0 | AC66: 0 | AD66: 0 | AE66: 0 | AF66: 0 | AG66: 0 | AH66: 0 | AI66: 0 | AJ66: 0 | AK66: 0 | AL66: 0 | AM66: 0 | AN66: 0 | AO66: 0 | AP66: 0 | AQ66: 0 | AR66: 0 | AS66: 0 | AT66: 0 | AU66: 0 | AV66: 0 | AW66: 0 | AX66: 0 | AY66: 0 | AZ66: 0 | BA66: 0 | BB66: 0 | BC66: 0
A67: 9 | B67: =_Marine -> Transport | C67: 1 | F67: =F45/$C45 -> 0.4396930729 | G67: 0.434847771 | H67: 0.08961205171 | I67: 0.01588869971 | J67: 0.007544315216 | K67: 0.007012266893 | L67: 0.00108036451 | M67: 0.0008402835074 | N67: 0.0007202430063 | O67: 0.0007202430063 | P67: 0.0006002025053 | Q67: 0.0006002025053 | R67: 0.0004801620042 | S67: 0.0002400810021 | T67: 0.0001200405011 | U67: 0 | V67: 0 | W67: 0 | X67: 0 | Y67: 0 | Z67: 0 | AA67: 0 | AB67: 0 | AC67: 0 | AD67: 0 | AE67: 0 | AF67: 0 | AG67: 0 | AH67: 0 | AI67: 0 | AJ67: 0 | AK67: 0 | AL67: 0 | AM67: 0 | AN67: 0 | AO67: 0 | AP67: 0 | AQ67: 0 | AR67: 0 | AS67: 0 | AT67: 0 | AU67: 0 | AV67: 0 | AW67: 0 | AX67: 0 | AY67: 0 | AZ67: 0 | BA67: 0 | BB67: 0 | BC67: 0
A68: 10 | B68: =_Aviation -> Luftfahrt | C68: 1 | F68: =F46/$C46 -> 0.5618450407 | G68: 0.2355732577 | H68: 0.04715280918 | I68: 0.035316709 | J68: 0.0305053662 | K68: 0.02805480682 | L68: 0.02095387589 | M68: 0.007738647345 | N68: 0.006429030102 | O68: 0.02547800818 | P68: 0.000952448904 | Q68: 0 | R68: 0 | S68: 0 | T68: 0 | U68: 0 | V68: 0 | W68: 0 | X68: 0 | Y68: 0 | Z68: 0 | AA68: 0 | AB68: 0 | AC68: 0 | AD68: 0 | AE68: 0 | AF68: 0 | AG68: 0 | AH68: 0 | AI68: 0 | AJ68: 0 | AK68: 0 | AL68: 0 | AM68: 0 | AN68: 0 | AO68: 0 | AP68: 0 | AQ68: 0 | AR68: 0 | AS68: 0 | AT68: 0 | AU68: 0 | AV68: 0 | AW68: 0 | AX68: 0 | AY68: 0 | AZ68: 0 | BA68: 0 | BB68: 0 | BC68: 0
A69: 11 | B69: =_CreditSurety -> Finanz und Kaution | C69: 1 | F69: =F47/$C47 -> 0.2403091417 | G69: 0.4891107988 | H69: 0.2076596314 | I69: 0.03303391929 | J69: 0.005767180769 | K69: 0.004521469723 | L69: 0.003760054222 | M69: 0.003190349036 | N69: 0.002734584888 | O69: 0.002392761777 | P69: 0.002164879703 | Q69: 0.001936997629 | R69: 0.001823056592 | S69: 0.001595174518 | T69: 0 | U69: 0 | V69: 0 | W69: 0 | X69: 0 | Y69: 0 | Z69: 0 | AA69: 0 | AB69: 0 | AC69: 0 | AD69: 0 | AE69: 0 | AF69: 0 | AG69: 0 | AH69: 0 | AI69: 0 | AJ69: 0 | AK69: 0 | AL69: 0 | AM69: 0 | AN69: 0 | AO69: 0 | AP69: 0 | AQ69: 0 | AR69: 0 | AS69: 0 | AT69: 0 | AU69: 0 | AV69: 0 | AW69: 0 | AX69: 0 | AY69: 0 | AZ69: 0 | BA69: 0 | BB69: 0 | BC69: 0
A70: 12 | B70: =_Legal -> Rechtsschutz | C70: 1 | F70: =F48/$C48 -> 0.3360051658 | G70: 0.2946893892 | H70: 0.1365844227 | I70: 0.0750280946 | J70: 0.04733194717 | K70: 0.03043601228 | L70: 0.02018424452 | M70: 0.01519618409 | N70: 0.0110201335 | O70: 0.008932108208 | P70: 0.006264075886 | Q70: 0.005800070265 | R70: 0.003364040754 | S70: 0.003596043564 | T70: 0.004060049186 | U70: 0.0005800070265 | V70: 0.0003480042159 | W70: 0.0002320028106 | X70: 0.0001160014053 | Y70: 0.0001160014053 | Z70: 0.0001160014053 | AA70: 0 | AB70: 0 | AC70: 0 | AD70: 0 | AE70: 0 | AF70: 0 | AG70: 0 | AH70: 0 | AI70: 0 | AJ70: 0 | AK70: 0 | AL70: 0 | AM70: 0 | AN70: 0 | AO70: 0 | AP70: 0 | AQ70: 0 | AR70: 0 | AS70: 0 | AT70: 0 | AU70: 0 | AV70: 0 | AW70: 0 | AX70: 0 | AY70: 0 | AZ70: 0 | BA70: 0 | BB70: 0 | BC70: 0
A71: 13 | B71: =_Others -> Andere | C71: 1 | F71: =F49/$C49 -> 0.8519613553 | G71: 0.1423541673 | H71: 0.002982559493 | I71: 0.001623837946 | J71: 0.0009557446198 | K71: 0.0001223353113 | L71: 0 | M71: 0 | N71: 0 | O71: 0 | P71: 0 | Q71: 0 | R71: 0 | S71: 0 | T71: 0 | U71: 0 | V71: 0 | W71: 0 | X71: 0 | Y71: 0 | Z71: 0 | AA71: 0 | AB71: 0 | AC71: 0 | AD71: 0 | AE71: 0 | AF71: 0 | AG71: 0 | AH71: 0 | AI71: 0 | AJ71: 0 | AK71: 0 | AL71: 0 | AM71: 0 | AN71: 0 | AO71: 0 | AP71: 0 | AQ71: 0 | AR71: 0 | AS71: 0 | AT71: 0 | AU71: 0 | AV71: 0 | AW71: 0 | AX71: 0 | AY71: 0 | AZ71: 0 | BA71: 0 | BB71: 0 | BC71: 0

Sheet NL_Default_Parameter
A1: 8 | B1: =_NL_Default_Parameter -> Schadenversicherung: Default-Parameter
B3: ="PY - " & _Claims -> PY - Schäden
B5: =_risk -> Risiko | C5: =_number -> Nr. | D5: =_NL_LOB_default -> SST-Standardversicherungsbranche | E5: =_CV & CHAR(10) & _Model_risk -> Variationskoeffizient Modellrisiko | F5: =_CV & CHAR(10) & _Parameter_risk -> Variationskoeffizient Parameterrisiko | G5: =_CV & CHAR(10) & _Model_risk & ": " & _CautionMonoliner -> Variationskoeffizient Modellrisiko: Mietkautionsmonoliner | H5: =_CV & CHAR(10) & _Parameter_risk & ": " & _CautionMonoliner -> Variationskoeffizient Parameterrisiko: Mietkautionsmonoliner
B6: PY | C6: 1 | D6: =_MTPL -> MFH | E6: 0.028 | F6: 0.035
B7: PY | C7: 2 | D7: =_MOD -> MFK | E7: 0.036 | F7: 0.045
B8: PY | C8: 3 | D8: =_Fire -> Sach | E8: 0.028 | F8: 0.035
B9: PY | C9: 4 | D9: =_GL -> Haftpflicht | E9: 0.036 | F9: 0.045
B10: PY | C10: 5a | D10: =_AccMandatory_noAnnuities -> UVG, nicht verrentete Fälle | E10: 0.04 | F10: 0.05
B11: PY | C11: 5b | D11: =_AccMandatory_Annuities -> UVG-Renten | E11: 0.016 | F11: 0.02
B12: PY | C12: 6 | D12: =_AccOptional -> Unfall ohne UVG | E12: 0.04 | F12: 0.05
B13: PY | C13: 7 | D13: =_Health_Collective -> Kollektivtaggeld | E13: 0.024 | F13: 0.03
B14: PY | C14: 8 | D14: =_Health_Individual -> Einzelkranken | E14: 0.04 | F14: 0.05
B15: PY | C15: 9 | D15: =_Marine -> Transport | E15: 0.052 | F15: 0.065
B16: PY | C16: 10 | D16: =_Aviation -> Luftfahrt | E16: 0.04 | F16: 0.05
B17: PY | C17: 11 | D17: =_CreditSurety -> Finanz und Kaution | E17: 0.08 | F17: 0.1 | G17: 0.04 | H17: 0.05
B18: PY | C18: 12 | D18: =_Legal -> Rechtsschutz | E18: 0.028 | F18: 0.035
B19: PY | C19: 13 | D19: =_Others -> Andere | E19: 0.04 | F19: 0.05
B21: ="CY - " &_Attritional -> CY - Normalschäden
B23: =_risk -> Risiko | C23: =_number -> Nr. | D23: =_NL_LOB_default -> SST-Standardversicherungsbranche | E23: =_CV & CHAR(10) & _Parameter_risk & " " & _for_single_risks -> Variationskoeffizient Parameterrisiko für Einzelschäden kleiner als
E24: ="CHF 0.5" & MID(_million,3,LEN(_million)-2) -> CHF 0.5 Mio. | F24: ="CHF 1" & MID(_million,3,LEN(_million)-2) -> CHF 1 Mio. | G24: ="CHF 2" & MID(_million,3,LEN(_million)-2) -> CHF 2 Mio. | H24: ="CHF 5" & MID(_million,3,LEN(_million)-2) -> CHF 5 Mio.
B25: CY | C25: 1 | D25: =_MTPL -> MFH | E25: 0.067 | F25: 0.072 | G25: 0.082 | H25: 0.084
B26: CY | C26: 2 | D26: =_MOD -> MFK | E26: 0.07 | F26: 0.07 | G26: 0.07 | H26: 0.07
B27: CY | C27: 3a | D27: =_Fire_no_Elementar -> Sach ohne Elementarschadenpool | E27: 0.069 | F27: 0.07 | G27: 0.071 | H27: 0.073
B28: CY | C28: 4 | D28: =_GL -> Haftpflicht | E28: 0.08 | F28: 0.08 | G28: 0.08 | H28: 0.08
B29: CY | C29: 5a | D29: =_AccMandatory -> UVG | E29: 0.08 | F29: 0.08 | G29: 0.08 | H29: 0.08
B30: CY | C30: 6 | D30: =_AccOptional -> Unfall ohne UVG | E30: 0.06 | F30: 0.06 | G30: 0.06 | H30: 0.06
B31: CY | C31: 7 | D31: =_Health_Collective -> Kollektivtaggeld | E31: 0.078 | F31: 0.078 | G31: 0.078 | H31: 0.078
B32: CY | C32: 8 | D32: =_Health_Individual -> Einzelkranken | E32: 0.16 | F32: 0.16 | G32: 0.16 | H32: 0.16
B33: CY | C33: 9 | D33: =_Marine -> Transport | E33: 0.08 | F33: 0.08 | G33: 0.08 | H33: 0.09
B34: CY | C34: 10 | D34: =_Aviation -> Luftfahrt | E34: 0.12 | F34: 0.12 | G34: 0.12 | H34: 0.12
B35: CY | C35: 11 | D35: =_CreditSurety -> Finanz und Kaution | E35: 0.1 | F35: 0.1 | G35: 0.1 | H35: 0.1
B36: CY | C36: 12 | D36: =_Legal -> Rechtsschutz | E36: 0.075 | F36: 0.075 | G36: 0.075 | H36: 0.075
B37: CY | C37: 13 | D37: =_Others -> Andere | E37: 0.09 | F37: 0.09 | G37: 0.09 | H37: 0.09
B39: =_risk -> Risiko | C39: =_number -> Nr. | D39: =_NL_LOB_default -> SST-Standardversicherungsbranche | E39: =_CV & CHAR(10) & _Estimation_Risk & " " & _for_single_risks -> Variationskoeffizient Zufallsrisiko für Einzelschäden kleiner als | I39: =_CV & CHAR(10) & _Estimation_Risk -> Variationskoeffizient Zufallsrisiko
E40: ="CHF 0.5" & MID(_million,3,LEN(_million)-2) -> CHF 0.5 Mio. | F40: ="CHF 1" & MID(_million,3,LEN(_million)-2) -> CHF 1 Mio. | G40: ="CHF 2" & MID(_million,3,LEN(_million)-2) -> CHF 2 Mio. | H40: ="CHF 5" & MID(_million,3,LEN(_million)-2) -> CHF 5 Mio. | I40: =_CautionMonoliner -> Mietkautionsmonoliner
B41: CY | C41: 1 | D41: =_MTPL -> MFH | E41: 3.5 | F41: 5 | G41: 6.5 | H41: 8
B42: CY | C42: 2 | D42: =_MOD -> MFK | E42: 2.5 | F42: 2.5 | G42: 2.5 | H42: 2.5
B43: CY | C43: 3a | D43: =_Fire_no_Elementar -> Sach ohne Elementarschadenpool | E43: 4 | F43: 4.5 | G43: 6 | H43: 7.5
B44: CY | C44: 4 | D44: =_GL -> Haftpflicht | E44: 5 | F44: 6.5 | G44: 8 | H44: 10
B45: CY | C45: 5a | D45: =_AccMandatory -> UVG | E45: 4 | F45: 6 | G45: 7 | H45: 9.5
B46: CY | C46: 6 | D46: =_AccOptional -> Unfall ohne UVG | E46: 3.5 | F46: 4.5 | G46: 4.8 | H46: 5.5
B47: CY | C47: 7 | D47: =_Health_Collective -> Kollektivtaggeld | E47: 2 | F47: 2 | G47: 2 | H47: 2
B48: CY | C48: 8 | D48: =_Health_Individual -> Einzelkranken | E48: 2.3 | F48: 2.3 | G48: 2.3 | H48: 2.3
B49: CY | C49: 9 | D49: =_Marine -> Transport | E49: 3.5 | F49: 4.5 | G49: 5 | H49: 6
B50: CY | C50: 10 | D50: =_Aviation -> Luftfahrt | E50: 1.5 | F50: 2 | G50: 2.5 | H50: 3.5
B51: CY | C51: 11 | D51: =_CreditSurety -> Finanz und Kaution | E51: 3 | F51: 3.5 | G51: 4 | H51: 5 | I51: 1.7
B52: CY | C52: 12 | D52: =_Legal -> Rechtsschutz | E52: 3 | F52: 3 | G52: 3 | H52: 3
B53: CY | C53: 13 | D53: =_Others -> Andere | E53: 5 | F53: 5 | G53: 5 | H53: 5
B55: ="CY - " &_Large -> CY - Grossschäden
B57: =_risk -> Risiko | C57: =_number -> Nr. | D57: =_NL_LOB_default -> SST-Standardversicherungsbranche | E57: =VLOOKUP("T.08.01",Translation,IF(Language="DE",2,IF(Language="FR",3,4)),FALSE) -> Anteil der Anzahl Grossschäden bezüglich der Anzahl der Normalschäden bei einer Grossschadengrenze von | F57: =VLOOKUP("T.08.02",Translation,IF(Language="DE",2,IF(Language="FR",3,4)),FALSE) -> Einzelschadenverteilung: Pareto - a bei einer Grossschadengrenze von | J57: =VLOOKUP("T.08.01",Translation,IF(Language="DE",2,IF(Language="FR",3,4)),FALSE) -> Anteil der Anzahl Grossschäden bezüglich der Anzahl der Normalschäden bei einer Grossschadengrenze von
E58: ="CHF 0.5" & MID(_million,3,LEN(_million)-2) -> CHF 0.5 Mio. | F58: ="CHF 0.5" & MID(_million,3,LEN(_million)-2) -> CHF 0.5 Mio. | G58: ="CHF 1" & MID(_million,3,LEN(_million)-2) -> CHF 1 Mio. | H58: ="CHF 2" & MID(_million,3,LEN(_million)-2) -> CHF 2 Mio. | I58: ="CHF 5" & MID(_million,3,LEN(_million)-2) -> CHF 5 Mio. | J58: ="CHF 0.5" & MID(_million,3,LEN(_million)-2) -> CHF 0.5 Mio.
B59: CY | C59: 1 | D59: =_MTPL -> MFH | E59: =VLOOKUP($C59,NL_InflationImpact_Default_CY,3,FALSE)^$F59*$J59 -> 0.001093690295 | F59: 1.5 | G59: 1.8 | H59: 2 | I59: 2.3 | J59: 0.0009
B60: CY | C60: 2 | D60: =_MOD -> MFK
B61: CY | C61: 3a | D61: =_Fire_no_Elementar -> Sach ohne Elementarschadenpool | E61: =VLOOKUP(LEFT($C61,1)*1,NL_InflationImpact_Default_CY,3,FALSE)^$F61*$J61 -> 0.0002873127299 | F61: 1.4 | G61: 1.4 | H61: 1.5 | I61: 1.5 | J61: 0.000264
B62: CY | C62: 4 | D62: =_GL -> Haftpflicht | E62: =VLOOKUP($C62,NL_InflationImpact_Default_CY,3,FALSE)^$F62*$J62 -> 0.0009029192394 | F62: 1.5 | G62: 1.6 | H62: 1.8 | I62: 1.9 | J62: 0.000728
B63: CY | C63: 5a | D63: =_AccMandatory -> UVG | E63: =VLOOKUP($C63,NL_InflationImpact_Default_CY,3,FALSE)^$F63*$J63 -> 0.000448 | F63: 1.5 | G63: 2.1 | H63: 2.7 | I63: 2.8 | J63: 0.000448
B64: CY | C64: 6 | D64: =_AccOptional -> Unfall ohne UVG | E64: =VLOOKUP($C64,NL_InflationImpact_Default_CY,3,FALSE)^$F64*$J64 -> 0.0007920072764 | F64: 2.5 | G64: 2.5 | H64: 2.5 | I64: 2.5 | J64: 0.000607
B65: CY | C65: 7 | D65: =_Health_Collective -> Kollektivtaggeld
B66: CY | C66: 8 | D66: =_Health_Individual -> Einzelkranken
B67: CY | C67: 9 | D67: =_Marine -> Transport | E67: =VLOOKUP($C67,NL_InflationImpact_Default_CY,3,FALSE)^$F67*$J67 -> 0.0008946224458 | F67: 1.6 | G67: 1.9 | H67: 1.9 | I67: 1.9 | J67: 0.000805
B68: CY | C68: 10 | D68: =_Aviation -> Luftfahrt | E68: =VLOOKUP($C68,NL_InflationImpact_Default_CY,3,FALSE)^$F68*$J68 -> 0.0002843364067 | F68: 1 | G68: 1.1 | H68: 1.5 | I68: 2.5 | J68: 0.000264
B69: CY | C69: 11 | D69: =_CreditSurety -> Finanz und Kaution | E69: =VLOOKUP($C69,NL_InflationImpact_Default_CY,3,FALSE)^$F69*$J69 -> 0.006420833155 | F69: 1.1 | G69: 1.2 | H69: 1.2 | I69: 1.2 | J69: 0.00595
B70: CY | C70: 12 | D70: =_Legal -> Rechtsschutz
B71: CY | C71: 13 | D71: =_Others -> Andere
B73: ="CY - " & _Event -> CY - Kumulschäden
B75: =_risk -> Risiko | C75: =_number -> Nr. | D75: =_NL_LOB_default -> SST-Standardversicherungsbranche | E75: =_CY_EL_No_market -> Erwartete Anzahl der Ereignisse (Marktgrossschäden) | F75: Pareto | G75: =_CY_EL_lwrBd -> Marktgrossschadengrenze (untere Grenze der Paretoverteilung) | H75: =_CY_EL_uprBd -> Obere Grenze der Paretoverteilung | I75: =_CY_EL_No_market -> Erwartete Anzahl der Ereignisse (Marktgrossschäden)
F76: a | H76: g
G77: =_million & " CHF" -> in Mio. CHF | H77: =_million & " CHF" -> in Mio. CHF
B78: CY | C78: 2 | D78: MFK (Hagel) | E78: =VLOOKUP($C78,NL_InflationImpact_Default_CY,3,FALSE)^$F78*$I78 -> 0.9787065934 | F78: 1.85 | G78: 45 | H78: 1500 | I78: 0.9
B80: =_ES_AVO_param -> Parameter für Elementarschadenversicherung
B82: =_risk -> Risiko | C82: =_number -> Nr. | D82: =_NL_LOB_default -> SST-Standardversicherungsbranche | E82: =VLOOKUP("T.08.05",Translation,IF(Language="DE",2,IF(Language="FR",3,4)),FALSE) -> Zielgruppe | F82: =_EX & " " & _million & " CHF" -> Erwartungswert in Mio. CHF | G82: =_SD & " " & _million & " CHF" -> Standardabweichung in Mio. CHF | H82: =_CV -> Variationskoeffizient
B83: CY | C83: 3_ES1 | D83: =_ESV & CHAR(10) & _Attritional -> Elementarschadenversicherung ES-AVO Normalschäden | E83: =VLOOKUP("T.08.06",Translation,IF(Language="DE",2,IF(Language="FR",3,4)),FALSE) -> ESP - Mitglied | F83: 100.944 | G83: 31.354 | H83: 0.3106
B84: CY | C84: 3_ES1 | D84: =_ESV & CHAR(10) & _Attritional -> Elementarschadenversicherung ES-AVO Normalschäden | E84: =VLOOKUP("T.08.07",Translation,IF(Language="DE",2,IF(Language="FR",3,4)),FALSE) -> übrige ES-AVO Versicherer | F84: 112.16 | G84: 34.838 | H84: 0.3106
B86: =_risk -> Risiko | C86: =_number -> Nr. | D86: =_NL_LOB_default -> SST-Standardversicherungsbranche | E86: =VLOOKUP("T.08.05",Translation,IF(Language="DE",2,IF(Language="FR",3,4)),FALSE) -> Zielgruppe | F86: =_CY_EL_No_market -> Erwartete Anzahl der Ereignisse (Marktgrossschäden) | H86: Pareto | I86: =_ScaleParameter -> Skalierungsparameter | J86: =_CY_EL_lwrBd -> Marktgrossschadengrenze (untere Grenze der Paretoverteilung) | K86: =_CY_EL_uprBd -> Obere Grenze der Paretoverteilung | L86: =_CY_EL_No_market -> Erwartete Anzahl der Ereignisse (Marktgrossschäden)
F87: nneu | G87: pneu | H87: a | I87: b | K87: g | L87: nalt | M87: palt | N87: Negativ-Binomialverteilung alt | R87: Negativ-Binomialverteilung neu
F88: NegBin (Opt-in Version Overdispersion) | I88: =_million & " CHF" -> in Mio. CHF | J88: =_million & " CHF" -> in Mio. CHF | K88: =_million & " CHF" -> in Mio. CHF | L88: NegBin (Opt-in Version Overdispersion) | N88: EX | O88: Var | P88: SD | Q88: VK | R88: EX | S88: Var | T88: SD | U88: VK
B89: CY | C89: 3_ES1 | D89: =_ESV & CHAR(10) & _Large -> Elementarschadenversicherung ES-AVO Grossschäden | E89: =VLOOKUP("T.08.06",Translation,IF(Language="DE",2,IF(Language="FR",3,4)),FALSE) -> ESP - Mitglied | F89: =S89*(1-G89)^2/G89 -> 2.585260437 | G89: =1-R89/S89 -> 0.2226139664 | H89: 1.1491 | I89: 1.0395 | J89: 50 | K89: 1800 | L89: 3.4524 | M89: 0.1667 | N89: =L89*M89/(1-M89) -> 0.6906457218 | O89: =L89*M89/(1-M89)^2 -> 0.8288080185 | P89: =SQRT(O89) -> 0.910388938 | Q89: =P89/N89 -> 1.318170676 | R89: =VLOOKUP(3,NL_InflationImpact_Default_CY,3,FALSE)^$H89*N89 -> 0.7403208382 | S89: =T89^2 -> 0.952320734 | T89: =R89*U89 -> 0.9758692197 | U89: =Q89 -> 1.318170676
B90: CY | C90: 3_ES1 | D90: =_ESV & CHAR(10) & _Large -> Elementarschadenversicherung ES-AVO Grossschäden | E90: =VLOOKUP("T.08.07",Translation,IF(Language="DE",2,IF(Language="FR",3,4)),FALSE) -> übrige ES-AVO Versicherer | F90: =S90*(1-G90)^2/G90 -> 2.585260437 | G90: =1-R90/S90 -> 0.2226139664 | H90: 1.1491 | I90: 1.155 | J90: 55.6 | K90: 2000 | L90: 3.4524 | M90: 0.1667 | N90: =L90*M90/(1-M90) -> 0.6906457218 | O90: =L90*M90/(1-M90)^2 -> 0.8288080185 | P90: =SQRT(O90) -> 0.910388938 | Q90: =P90/N90 -> 1.318170676 | R90: =VLOOKUP(3,NL_InflationImpact_Default_CY,3,FALSE)^$H90*N90 -> 0.7403208382 | S90: =T90^2 -> 0.952320734 | T90: =R90*U90 -> 0.9758692197 | U90: =Q90 -> 1.318170676
B91: CY | C91: 3_ES2 | D91: =VLOOKUP("T.08.04",Translation,IF(Language="DE",2,IF(Language="FR",3,4)),FALSE) -> Übrige Elementarschäden | E91: =VLOOKUP("T.08.08",Translation,IF(Language="DE",2,IF(Language="FR",3,4)),FALSE) -> Alle | F91: =S91*(1-G91)^2/G91 -> 2.585260437 | G91: =1-R91/S91 -> 0.2226139664 | H91: 1.1491 | I91: =I90*0.2 -> 0.231 | J91: 11.12 | K91: 1000 | L91: 3.4524 | M91: 0.1667 | N91: =L91*M91/(1-M91) -> 0.6906457218 | O91: =L91*M91/(1-M91)^2 -> 0.8288080185 | P91: =SQRT(O91) -> 0.910388938 | Q91: =P91/N91 -> 1.318170676 | R91: =VLOOKUP(3,NL_InflationImpact_Default_CY,3,FALSE)^$H91*N91 -> 0.7403208382 | S91: =T91^2 -> 0.952320734 | T91: =R91*U91 -> 0.9758692197 | U91: =Q91 -> 1.318170676
B93: ="URR - " &_Claims -> URR - Schäden
B95: =_risk -> Risiko | C95: =_number -> Nr. | D95: =_NL_LOB_default -> SST-Standardversicherungsbranche | E95: =_CV & " " & _Parameter_risk -> Variationskoeffizient Parameterrisiko
E96: ="CHF 0.5" & MID(_million,3,LEN(_million)-2) -> CHF 0.5 Mio. | F96: ="CHF 1" & MID(_million,3,LEN(_million)-2) -> CHF 1 Mio. | G96: ="CHF 2" & MID(_million,3,LEN(_million)-2) -> CHF 2 Mio. | H96: ="CHF 5" & MID(_million,3,LEN(_million)-2) -> CHF 5 Mio.
B97: URR | C97: 1 | D97: =_MTPL -> MFH | E97: =E25 -> 0.067 | F97: 0.072 | G97: 0.082 | H97: 0.084
B98: URR | C98: 2 | D98: =_MOD -> MFK | E98: 0.07 | F98: 0.07 | G98: 0.07 | H98: 0.07
B99: URR | C99: 3a | D99: =_Fire_no_Elementar -> Sach ohne Elementarschadenpool | E99: 0.069 | F99: 0.07 | G99: 0.071 | H99: 0.073
B100: URR | C100: 4 | D100: =_GL -> Haftpflicht | E100: 0.08 | F100: 0.08 | G100: 0.08 | H100: 0.08
B101: URR | C101: 5a | D101: =_AccMandatory -> UVG | E101: 0.08 | F101: 0.08 | G101: 0.08 | H101: 0.08
B102: URR | C102: 6 | D102: =_AccOptional -> Unfall ohne UVG | E102: 0.06 | F102: 0.06 | G102: 0.06 | H102: 0.06
B103: URR | C103: 7 | D103: =_Health_Collective -> Kollektivtaggeld | E103: 0.078 | F103: 0.078 | G103: 0.078 | H103: 0.078
B104: URR | C104: 8 | D104: =_Health_Individual -> Einzelkranken | E104: 0.16 | F104: 0.16 | G104: 0.16 | H104: 0.16
B105: URR | C105: 9 | D105: =_Marine -> Transport | E105: 0.08 | F105: 0.08 | G105: 0.08 | H105: 0.09
B106: URR | C106: 10 | D106: =_Aviation -> Luftfahrt | E106: 0.12 | F106: 0.12 | G106: 0.12 | H106: 0.12
B107: URR | C107: 11 | D107: =_CreditSurety -> Finanz und Kaution | E107: 0.1 | F107: 0.1 | G107: 0.1 | H107: 0.1
B108: URR | C108: 12 | D108: =_Legal -> Rechtsschutz | E108: =E36 -> 0.075 | F108: 0.075 | G108: 0.075 | H108: 0.075
B109: URR | C109: 13 | D109: =_Others -> Andere | E109: =E37 -> 0.09 | F109: 0.09 | G109: 0.09 | H109: 0.09

Sheet NL_Default_Correlations
A1: 9 | B1: =_NL_DefaultCorr -> Schadenversicherung: Default-Korrelationsmatrix
B3: =_risk -> Risiko | E3: PY | T3: CY | AI3: URR
C4: =_number -> Nr. | D4: =_NL_LOB_default -> SST-Standardversicherungsbranche | E4: =TRANSPOSE(D5:D19) -> MFH | F4: MFK | G4: Sach | H4: (Elementarschadenpool) | I4: Haftpflicht | J4: UVG, nicht verrentete Fälle | K4: UVG-Renten | L4: Unfall ohne UVG | M4: Kollektivtaggeld | N4: Einzelkranken | O4: Transport | P4: Luftfahrt | Q4: Finanz und Kaution | R4: Rechtsschutz | S4: Andere | T4: =TRANSPOSE(D20:D34) -> MFH | U4: MFK | V4: Sach ohne Elementarschadenpool | W4: Elementarschadenpool | X4: Haftpflicht | Y4: UVG, nicht verrentete Fälle | Z4: UVG-Renten | AA4: Unfall ohne UVG | AB4: Kollektivtaggeld | AC4: Einzelkranken | AD4: Transport | AE4: Luftfahrt | AF4: Finanz und Kaution | AG4: Rechtsschutz | AH4: Andere | AI4: =TRANSPOSE(D35:D49) -> MFH | AJ4: MFK | AK4: Sach ohne Elementarschadenpool | AL4: Elementarschadenpool | AM4: Haftpflicht | AN4: UVG, nicht verrentete Fälle | AO4: UVG-Renten | AP4: Unfall ohne UVG | AQ4: Kollektivtaggeld | AR4: Einzelkranken | AS4: Transport | AT4: Luftfahrt | AU4: Finanz und Kaution | AV4: Rechtsschutz | AW4: Andere
B5: PY | C5: 1 | D5: =_MTPL -> MFH | E5: 1 | F5: 0.15 | G5: 0.15 | H5: 0.15 | I5: 0.25 | J5: 0.5 | K5: 0 | L5: 0.5 | M5: 0.25 | N5: 0.15 | O5: 0.15 | P5: 0.25 | Q5: 0.25 | R5: 0.25 | S5: 0.25 | T5: 0.5 | U5: 0.5 | V5: 0.15 | W5: 0.15 | X5: 0.25 | Y5: 0.25 | Z5: 0 | AA5: 0.25 | AB5: 0.25 | AC5: 0.15 | AD5: 0.15 | AE5: 0.25 | AF5: 0.25 | AG5: 0.25 | AH5: 0.25 | AI5: =E35 -> 0.25 | AJ5: =F35 -> 0 | AK5: =G35 -> 0 | AL5: =H35 -> 0 | AM5: =I35 -> 0 | AN5: =J35 -> 0 | AO5: =K35 -> 0 | AP5: =L35 -> 0 | AQ5: =M35 -> 0 | AR5: =N35 -> 0 | AS5: =O35 -> 0 | AT5: =P35 -> 0 | AU5: =Q35 -> 0 | AV5: =R35 -> 0 | AW5: =S35 -> 0
C6: 2 | D6: =_MOD -> MFK | E6: 0.15 | F6: 1 | G6: 0.15 | H6: 0.15 | I6: 0.15 | J6: 0.15 | K6: 0 | L6: 0.15 | M6: 0.15 | N6: 0.15 | O6: 0.15 | P6: 0.15 | Q6: 0.15 | R6: 0.15 | S6: 0.25 | T6: 0.5 | U6: 0.5 | V6: 0.25 | W6: 0.25 | X6: 0.15 | Y6: 0.25 | Z6: 0 | AA6: 0.25 | AB6: 0.15 | AC6: 0.15 | AD6: 0.15 | AE6: 0.15 | AF6: 0.15 | AG6: 0.15 | AH6: 0.25 | AI6: 0 | AJ6: 0.25 | AK6: 0 | AL6: 0 | AM6: 0 | AN6: 0 | AO6: 0 | AP6: 0 | AQ6: 0 | AR6: 0 | AS6: 0 | AT6: 0 | AU6: 0 | AV6: 0 | AW6: 0
C7: 3 | D7: =_Fire -> Sach | E7: 0.15 | F7: 0.15 | G7: 1 | H7: 0.15 | I7: 0.15 | J7: 0.15 | K7: 0 | L7: 0.15 | M7: 0.15 | N7: 0.15 | O7: 0.15 | P7: 0.15 | Q7: 0.15 | R7: 0.15 | S7: 0.25 | T7: 0.15 | U7: 0.25 | V7: 0.5 | W7: 0.25 | X7: 0.25 | Y7: 0.15 | Z7: 0 | AA7: 0.15 | AB7: 0.15 | AC7: 0.15 | AD7: 0.15 | AE7: 0.15 | AF7: 0.15 | AG7: 0.15 | AH7: 0.25 | AI7: 0 | AJ7: 0 | AK7: 0.25 | AL7: 0 | AM7: 0 | AN7: 0 | AO7: 0 | AP7: 0 | AQ7: 0 | AR7: 0 | AS7: 0 | AT7: 0 | AU7: 0 | AV7: 0 | AW7: 0
C8: 3b | D8: =_ESP_in_Parenthesis -> (Elementarschadenpool) | E8: 0.15 | F8: 0.15 | G8: 0.15 | H8: 1 | I8: 0.15 | J8: 0.15 | K8: 0 | L8: 0.15 | M8: 0.15 | N8: 0.15 | O8: 0.15 | P8: 0.15 | Q8: 0.15 | R8: 0.15 | S8: 0.25 | T8: 0.15 | U8: 0.25 | V8: 0.25 | W8: 0.5 | X8: 0.15 | Y8: 0.15 | Z8: 0 | AA8: 0.15 | AB8: 0.15 | AC8: 0.15 | AD8: 0.15 | AE8: 0.15 | AF8: 0.15 | AG8: 0.15 | AH8: 0.25 | AI8: 0 | AJ8: 0 | AK8: 0 | AL8: 0.25 | AM8: 0 | AN8: 0 | AO8: 0 | AP8: 0 | AQ8: 0 | AR8: 0 | AS8: 0 | AT8: 0 | AU8: 0 | AV8: 0 | AW8: 0
C9: 4 | D9: =_GL -> Haftpflicht | E9: 0.25 | F9: 0.15 | G9: 0.15 | H9: 0.15 | I9: 1 | J9: 0.25 | K9: 0 | L9: 0.25 | M9: 0.15 | N9: 0.15 | O9: 0.15 | P9: 0.25 | Q9: 0.15 | R9: 0.15 | S9: 0.25 | T9: 0.25 | U9: 0.15 | V9: 0.25 | W9: 0.15 | X9: 0.5 | Y9: 0.15 | Z9: 0 | AA9: 0.15 | AB9: 0.15 | AC9: 0.15 | AD9: 0.15 | AE9: 0.25 | AF9: 0.15 | AG9: 0.15 | AH9: 0.25 | AI9: 0 | AJ9: 0 | AK9: 0 | AL9: 0 | AM9: 0.25 | AN9: 0 | AO9: 0 | AP9: 0 | AQ9: 0 | AR9: 0 | AS9: 0 | AT9: 0 | AU9: 0 | AV9: 0 | AW9: 0
C10: 5a | D10: =_AccMandatory_noAnnuities -> UVG, nicht verrentete Fälle | E10: 0.5 | F10: 0.15 | G10: 0.15 | H10: 0.15 | I10: 0.25 | J10: 1 | K10: 0 | L10: 0.5 | M10: 0.25 | N10: 0.15 | O10: 0.15 | P10: 0.25 | Q10: 0.25 | R10: 0.25 | S10: 0.25 | T10: 0.25 | U10: 0.25 | V10: 0.15 | W10: 0.15 | X10: 0.15 | Y10: 0.5 | Z10: 0 | AA10: 0.5 | AB10: 0.25 | AC10: 0.15 | AD10: 0.15 | AE10: 0.25 | AF10: 0.25 | AG10: 0.25 | AH10: 0.25 | AI10: 0 | AJ10: 0 | AK10: 0 | AL10: 0 | AM10: 0 | AN10: 0.25 | AO10: 0 | AP10: 0 | AQ10: 0 | AR10: 0 | AS10: 0 | AT10: 0 | AU10: 0 | AV10: 0 | AW10: 0
C11: 5b | D11: =_AccMandatory_Annuities -> UVG-Renten | E11: 0 | F11: 0 | G11: 0 | H11: 0 | I11: 0 | J11: 0 | K11: 1 | L11: 0 | M11: 0 | N11: 0 | O11: 0 | P11: 0 | Q11: 0 | R11: 0 | S11: 0 | T11: 0 | U11: 0 | V11: 0 | W11: 0 | X11: 0 | Y11: 0 | Z11: 0.5 | AA11: 0 | AB11: 0 | AC11: 0 | AD11: 0 | AE11: 0 | AF11: 0 | AG11: 0 | AH11: 0 | AI11: 0 | AJ11: 0 | AK11: 0 | AL11: 0 | AM11: 0 | AN11: 0 | AO11: 0.25 | AP11: 0 | AQ11: 0 | AR11: 0 | AS11: 0 | AT11: 0 | AU11: 0 | AV11: 0 | AW11: 0
C12: 6 | D12: =_AccOptional -> Unfall ohne UVG | E12: 0.5 | F12: 0.15 | G12: 0.15 | H12: 0.15 | I12: 0.25 | J12: 0.5 | K12: 0 | L12: 1 | M12: 0.25 | N12: 0.15 | O12: 0.15 | P12: 0.25 | Q12: 0.25 | R12: 0.25 | S12: 0.25 | T12: 0.25 | U12: 0.25 | V12: 0.15 | W12: 0.15 | X12: 0.15 | Y12: 0.5 | Z12: 0 | AA12: 0.5 | AB12: 0.25 | AC12: 0.15 | AD12: 0.15 | AE12: 0.25 | AF12: 0.25 | AG12: 0.25 | AH12: 0.25 | AI12: 0 | AJ12: 0 | AK12: 0 | AL12: 0 | AM12: 0 | AN12: 0 | AO12: 0 | AP12: 0.25 | AQ12: 0 | AR12: 0 | AS12: 0 | AT12: 0 | AU12: 0 | AV12: 0 | AW12: 0
C13: 7 | D13: =_Health_Collective -> Kollektivtaggeld | E13: 0.25 | F13: 0.15 | G13: 0.15 | H13: 0.15 | I13: 0.15 | J13: 0.25 | K13: 0 | L13: 0.25 | M13: 1 | N13: 0.15 | O13: 0.15 | P13: 0.15 | Q13: 0.25 | R13: 0.25 | S13: 0.25 | T13: 0.25 | U13: 0.15 | V13: 0.15 | W13: 0.15 | X13: 0.15 | Y13: 0.25 | Z13: 0 | AA13: 0.25 | AB13: 0.5 | AC13: 0.25 | AD13: 0.15 | AE13: 0.15 | AF13: 0.25 | AG13: 0.25 | AH13: 0.25 | AI13: 0 | AJ13: 0 | AK13: 0 | AL13: 0 | AM13: 0 | AN13: 0 | AO13: 0 | AP13: 0 | AQ13: 0.25 | AR13: 0 | AS13: 0 | AT13: 0 | AU13: 0 | AV13: 0 | AW13: 0
C14: 8 | D14: =_Health_Individual -> Einzelkranken | E14: 0.15 | F14: 0.15 | G14: 0.15 | H14: 0.15 | I14: 0.15 | J14: 0.15 | K14: 0 | L14: 0.15 | M14: 0.15 | N14: 1 | O14: 0.15 | P14: 0.15 | Q14: 0.15 | R14: 0.15 | S14: 0.25 | T14: 0.15 | U14: 0.15 | V14: 0.15 | W14: 0.15 | X14: 0.15 | Y14: 0.15 | Z14: 0 | AA14: 0.15 | AB14: 0.25 | AC14: 0.5 | AD14: 0.15 | AE14: 0.15 | AF14: 0.15 | AG14: 0.15 | AH14: 0.25 | AI14: 0 | AJ14: 0 | AK14: 0 | AL14: 0 | AM14: 0 | AN14: 0 | AO14: 0 | AP14: 0 | AQ14: 0 | AR14: 0.25 | AS14: 0 | AT14: 0 | AU14: 0 | AV14: 0 | AW14: 0
C15: 9 | D15: =_Marine -> Transport | E15: 0.15 | F15: 0.15 | G15: 0.15 | H15: 0.15 | I15: 0.15 | J15: 0.15 | K15: 0 | L15: 0.15 | M15: 0.15 | N15: 0.15 | O15: 1 | P15: 0.15 | Q15: 0.15 | R15: 0.15 | S15: 0.25 | T15: 0.15 | U15: 0.15 | V15: 0.15 | W15: 0.15 | X15: 0.15 | Y15: 0.15 | Z15: 0 | AA15: 0.15 | AB15: 0.15 | AC15: 0.15 | AD15: 0.5 | AE15: 0.15 | AF15: 0.15 | AG15: 0.15 | AH15: 0.25 | AI15: 0 | AJ15: 0 | AK15: 0 | AL15: 0 | AM15: 0 | AN15: 0 | AO15: 0 | AP15: 0 | AQ15: 0 | AR15: 0 | AS15: 0.25 | AT15: 0 | AU15: 0 | AV15: 0 | AW15: 0
C16: 10 | D16: =_Aviation -> Luftfahrt | E16: 0.25 | F16: 0.15 | G16: 0.15 | H16: 0.15 | I16: 0.25 | J16: 0.25 | K16: 0 | L16: 0.25 | M16: 0.15 | N16: 0.15 | O16: 0.15 | P16: 1 | Q16: 0.15 | R16: 0.15 | S16: 0.25 | T16: 0.25 | U16: 0.15 | V16: 0.15 | W16: 0.15 | X16: 0.25 | Y16: 0.25 | Z16: 0 | AA16: 0.25 | AB16: 0.15 | AC16: 0.15 | AD16: 0.15 | AE16: 0.5 | AF16: 0.15 | AG16: 0.15 | AH16: 0.25 | AI16: 0 | AJ16: 0 | AK16: 0 | AL16: 0 | AM16: 0 | AN16: 0 | AO16: 0 | AP16: 0 | AQ16: 0 | AR16: 0 | AS16: 0 | AT16: 0.25 | AU16: 0 | AV16: 0 | AW16: 0
C17: 11 | D17: =_CreditSurety -> Finanz und Kaution | E17: 0.25 | F17: 0.15 | G17: 0.15 | H17: 0.15 | I17: 0.15 | J17: 0.25 | K17: 0 | L17: 0.25 | M17: 0.25 | N17: 0.15 | O17: 0.15 | P17: 0.15 | Q17: 1 | R17: 0.15 | S17: 0.25 | T17: 0.25 | U17: 0.15 | V17: 0.15 | W17: 0.15 | X17: 0.15 | Y17: 0.25 | Z17: 0 | AA17: 0.25 | AB17: 0.25 | AC17: 0.15 | AD17: 0.15 | AE17: 0.15 | AF17: 0.5 | AG17: 0.15 | AH17: 0.25 | AI17: 0 | AJ17: 0 | AK17: 0 | AL17: 0 | AM17: 0 | AN17: 0 | AO17: 0 | AP17: 0 | AQ17: 0 | AR17: 0 | AS17: 0 | AT17: 0 | AU17: 0.25 | AV17: 0 | AW17: 0
C18: 12 | D18: =_Legal -> Rechtsschutz | E18: 0.25 | F18: 0.15 | G18: 0.15 | H18: 0.15 | I18: 0.15 | J18: 0.25 | K18: 0 | L18: 0.25 | M18: 0.25 | N18: 0.15 | O18: 0.15 | P18: 0.15 | Q18: 0.15 | R18: 1 | S18: 0.25 | T18: 0.25 | U18: 0.15 | V18: 0.15 | W18: 0.15 | X18: 0.15 | Y18: 0.25 | Z18: 0 | AA18: 0.25 | AB18: 0.25 | AC18: 0.15 | AD18: 0.15 | AE18: 0.15 | AF18: 0.15 | AG18: 0.5 | AH18: 0.25 | AI18: 0 | AJ18: 0 | AK18: 0 | AL18: 0 | AM18: 0 | AN18: 0 | AO18: 0 | AP18: 0 | AQ18: 0 | AR18: 0 | AS18: 0 | AT18: 0 | AU18: 0 | AV18: 0.25 | AW18: 0
C19: 13 | D19: =_Others -> Andere | E19: 0.25 | F19: 0.25 | G19: 0.25 | H19: 0.25 | I19: 0.25 | J19: 0.25 | K19: 0 | L19: 0.25 | M19: 0.25 | N19: 0.25 | O19: 0.25 | P19: 0.25 | Q19: 0.25 | R19: 0.25 | S19: 1 | T19: 0.25 | U19: 0.25 | V19: 0.25 | W19: 0.25 | X19: 0.25 | Y19: 0.25 | Z19: 0 | AA19: 0.25 | AB19: 0.25 | AC19: 0.25 | AD19: 0.25 | AE19: 0.25 | AF19: 0.25 | AG19: 0.25 | AH19: 0.5 | AI19: 0 | AJ19: 0 | AK19: 0 | AL19: 0 | AM19: 0 | AN19: 0 | AO19: 0 | AP19: 0 | AQ19: 0 | AR19: 0 | AS19: 0 | AT19: 0 | AU19: 0 | AV19: 0 | AW19: 0.25
B20: CY | C20: 1 | D20: =_MTPL -> MFH | E20: 0.5 | F20: 0.5 | G20: 0.15 | H20: 0.15 | I20: 0.25 | J20: 0.25 | K20: 0 | L20: 0.25 | M20: 0.25 | N20: 0.15 | O20: 0.15 | P20: 0.25 | Q20: 0.25 | R20: 0.25 | S20: 0.25 | T20: 1 | U20: 0.5 | V20: 0.15 | W20: 0.15 | X20: 0.25 | Y20: 0.25 | Z20: 0 | AA20: 0.25 | AB20: 0.15 | AC20: 0.15 | AD20: 0.15 | AE20: 0.25 | AF20: 0.15 | AG20: 0.15 | AH20: 0.25 | AI20: =T35 -> 0.5 | AJ20: =U35 -> 0.25 | AK20: =V35 -> 0.075 | AL20: =W35 -> 0.075 | AM20: =X35 -> 0.125 | AN20: =Y35 -> 0.125 | AO20: =Z35 -> 0 | AP20: =AA35 -> 0.125 | AQ20: =AB35 -> 0.075 | AR20: =AC35 -> 0.075 | AS20: =AD35 -> 0.075 | AT20: =AE35 -> 0.125 | AU20: =AF35 -> 0.075 | AV20: =AG35 -> 0.075 | AW20: =AH35 -> 0.125
C21: 2 | D21: =_MOD -> MFK | E21: 0.5 | F21: 0.5 | G21: 0.25 | H21: 0.25 | I21: 0.15 | J21: 0.25 | K21: 0 | L21: 0.25 | M21: 0.15 | N21: 0.15 | O21: 0.15 | P21: 0.15 | Q21: 0.15 | R21: 0.15 | S21: 0.25 | T21: 0.5 | U21: 1 | V21: 0.25 | W21: 0.25 | X21: 0.15 | Y21: 0.25 | Z21: 0 | AA21: 0.25 | AB21: 0.15 | AC21: 0.15 | AD21: 0.15 | AE21: 0.15 | AF21: 0.15 | AG21: 0.15 | AH21: 0.25 | AI21: 0.25 | AJ21: 0.5 | AK21: 0.125 | AL21: 0.125 | AM21: 0.075 | AN21: 0.125 | AO21: 0 | AP21: 0.125 | AQ21: 0.075 | AR21: 0.075 | AS21: 0.075 | AT21: 0.075 | AU21: 0.075 | AV21: 0.075 | AW21: 0.125
C22: 3a | D22: =_Fire_no_Elementar -> Sach ohne Elementarschadenpool | E22: 0.15 | F22: 0.25 | G22: 0.5 | H22: 0.25 | I22: 0.25 | J22: 0.15 | K22: 0 | L22: 0.15 | M22: 0.15 | N22: 0.15 | O22: 0.15 | P22: 0.15 | Q22: 0.15 | R22: 0.15 | S22: 0.25 | T22: 0.15 | U22: 0.25 | V22: 1 | W22: 0.25 | X22: 0.25 | Y22: 0.15 | Z22: 0 | AA22: 0.15 | AB22: 0.15 | AC22: 0.15 | AD22: 0.15 | AE22: 0.15 | AF22: 0.15 | AG22: 0.15 | AH22: 0.25 | AI22: 0.075 | AJ22: 0.125 | AK22: 0.5 | AL22: 0.125 | AM22: 0.125 | AN22: 0.075 | AO22: 0 | AP22: 0.075 | AQ22: 0.075 | AR22: 0.075 | AS22: 0.075 | AT22: 0.075 | AU22: 0.075 | AV22: 0.075 | AW22: 0.125
C23: 3b | D23: =_ESP -> Elementarschadenpool | E23: 0.15 | F23: 0.25 | G23: 0.25 | H23: 0.5 | I23: 0.15 | J23: 0.15 | K23: 0 | L23: 0.15 | M23: 0.15 | N23: 0.15 | O23: 0.15 | P23: 0.15 | Q23: 0.15 | R23: 0.15 | S23: 0.25 | T23: 0.15 | U23: 0.25 | V23: 0.25 | W23: 1 | X23: 0.15 | Y23: 0.15 | Z23: 0 | AA23: 0.15 | AB23: 0.15 | AC23: 0.15 | AD23: 0.15 | AE23: 0.15 | AF23: 0.15 | AG23: 0.15 | AH23: 0.25 | AI23: 0.075 | AJ23: 0.125 | AK23: 0.125 | AL23: 0.5 | AM23: 0.075 | AN23: 0.075 | AO23: 0 | AP23: 0.075 | AQ23: 0.075 | AR23: 0.075 | AS23: 0.075 | AT23: 0.075 | AU23: 0.075 | AV23: 0.075 | AW23: 0.125
C24: 4 | D24: =_GL -> Haftpflicht | E24: 0.25 | F24: 0.15 | G24: 0.25 | H24: 0.15 | I24: 0.5 | J24: 0.15 | K24: 0 | L24: 0.15 | M24: 0.15 | N24: 0.15 | O24: 0.15 | P24: 0.25 | Q24: 0.15 | R24: 0.15 | S24: 0.25 | T24: 0.25 | U24: 0.15 | V24: 0.25 | W24: 0.15 | X24: 1 | Y24: 0.15 | Z24: 0 | AA24: 0.15 | AB24: 0.15 | AC24: 0.15 | AD24: 0.15 | AE24: 0.25 | AF24: 0.15 | AG24: 0.15 | AH24: 0.25 | AI24: 0.125 | AJ24: 0.075 | AK24: 0.125 | AL24: 0.075 | AM24: 0.5 | AN24: 0.075 | AO24: 0 | AP24: 0.075 | AQ24: 0.075 | AR24: 0.075 | AS24: 0.075 | AT24: 0.125 | AU24: 0.075 | AV24: 0.075 | AW24: 0.125
C25: 5a | D25: =_AccMandatory_noAnnuities -> UVG, nicht verrentete Fälle | E25: 0.25 | F25: 0.25 | G25: 0.15 | H25: 0.15 | I25: 0.15 | J25: 0.5 | K25: 0 | L25: 0.5 | M25: 0.25 | N25: 0.15 | O25: 0.15 | P25: 0.25 | Q25: 0.25 | R25: 0.25 | S25: 0.25 | T25: 0.25 | U25: 0.25 | V25: 0.15 | W25: 0.15 | X25: 0.15 | Y25: 1 | Z25: 0 | AA25: 0.5 | AB25: 0.25 | AC25: 0.15 | AD25: 0.15 | AE25: 0.25 | AF25: 0.25 | AG25: 0.25 | AH25: 0.25 | AI25: 0.125 | AJ25: 0.125 | AK25: 0.075 | AL25: 0.075 | AM25: 0.075 | AN25: 0.5 | AO25: 0 | AP25: 0.25 | AQ25: 0.125 | AR25: 0.075 | AS25: 0.075 | AT25: 0.125 | AU25: 0.125 | AV25: 0.125 | AW25: 0.125
C26: 5b | D26: =_AccMandatory_Annuities -> UVG-Renten | E26: 0 | F26: 0 | G26: 0 | H26: 0 | I26: 0 | J26: 0 | K26: 0.5 | L26: 0 | M26: 0 | N26: 0 | O26: 0 | P26: 0 | Q26: 0 | R26: 0 | S26: 0 | T26: 0 | U26: 0 | V26: 0 | W26: 0 | X26: 0 | Y26: 0 | Z26: 1 | AA26: 0 | AB26: 0 | AC26: 0 | AD26: 0 | AE26: 0 | AF26: 0 | AG26: 0 | AH26: 0 | AI26: 0 | AJ26: 0 | AK26: 0 | AL26: 0 | AM26: 0 | AN26: 0 | AO26: 0.5 | AP26: 0 | AQ26: 0 | AR26: 0 | AS26: 0 | AT26: 0 | AU26: 0 | AV26: 0 | AW26: 0
C27: 6 | D27: =_AccOptional -> Unfall ohne UVG | E27: 0.25 | F27: 0.25 | G27: 0.15 | H27: 0.15 | I27: 0.15 | J27: 0.5 | K27: 0 | L27: 0.5 | M27: 0.25 | N27: 0.15 | O27: 0.15 | P27: 0.25 | Q27: 0.25 | R27: 0.25 | S27: 0.25 | T27: 0.25 | U27: 0.25 | V27: 0.15 | W27: 0.15 | X27: 0.15 | Y27: 0.5 | Z27: 0 | AA27: 1 | AB27: 0.25 | AC27: 0.15 | AD27: 0.15 | AE27: 0.25 | AF27: 0.25 | AG27: 0.25 | AH27: 0.25 | AI27: 0.125 | AJ27: 0.125 | AK27: 0.075 | AL27: 0.075 | AM27: 0.075 | AN27: 0.25 | AO27: 0 | AP27: 0.5 | AQ27: 0.125 | AR27: 0.075 | AS27: 0.075 | AT27: 0.125 | AU27: 0.125 | AV27: 0.125 | AW27: 0.125
C28: 7 | D28: =_Health_Collective -> Kollektivtaggeld | E28: 0.25 | F28: 0.15 | G28: 0.15 | H28: 0.15 | I28: 0.15 | J28: 0.25 | K28: 0 | L28: 0.25 | M28: 0.5 | N28: 0.25 | O28: 0.15 | P28: 0.15 | Q28: 0.25 | R28: 0.25 | S28: 0.25 | T28: 0.15 | U28: 0.15 | V28: 0.15 | W28: 0.15 | X28: 0.15 | Y28: 0.25 | Z28: 0 | AA28: 0.25 | AB28: 1 | AC28: 0.25 | AD28: 0.15 | AE28: 0.15 | AF28: 0.25 | AG28: 0.25 | AH28: 0.25 | AI28: 0.075 | AJ28: 0.075 | AK28: 0.075 | AL28: 0.075 | AM28: 0.075 | AN28: 0.125 | AO28: 0 | AP28: 0.125 | AQ28: 0.5 | AR28: 0.125 | AS28: 0.075 | AT28: 0.075 | AU28: 0.125 | AV28: 0.125 | AW28: 0.125
C29: 8 | D29: =_Health_Individual -> Einzelkranken | E29: 0.15 | F29: 0.15 | G29: 0.15 | H29: 0.15 | I29: 0.15 | J29: 0.15 | K29: 0 | L29: 0.15 | M29: 0.25 | N29: 0.5 | O29: 0.15 | P29: 0.15 | Q29: 0.15 | R29: 0.15 | S29: 0.25 | T29: 0.15 | U29: 0.15 | V29: 0.15 | W29: 0.15 | X29: 0.15 | Y29: 0.15 | Z29: 0 | AA29: 0.15 | AB29: 0.25 | AC29: 1 | AD29: 0.15 | AE29: 0.15 | AF29: 0.15 | AG29: 0.15 | AH29: 0.25 | AI29: 0.075 | AJ29: 0.075 | AK29: 0.075 | AL29: 0.075 | AM29: 0.075 | AN29: 0.075 | AO29: 0 | AP29: 0.075 | AQ29: 0.125 | AR29: 0.5 | AS29: 0.075 | AT29: 0.075 | AU29: 0.075 | AV29: 0.075 | AW29: 0.125
C30: 9 | D30: =_Marine -> Transport | E30: 0.15 | F30: 0.15 | G30: 0.15 | H30: 0.15 | I30: 0.15 | J30: 0.15 | K30: 0 | L30: 0.15 | M30: 0.15 | N30: 0.15 | O30: 0.5 | P30: 0.15 | Q30: 0.15 | R30: 0.15 | S30: 0.25 | T30: 0.15 | U30: 0.15 | V30: 0.15 | W30: 0.15 | X30: 0.15 | Y30: 0.15 | Z30: 0 | AA30: 0.15 | AB30: 0.15 | AC30: 0.15 | AD30: 1 | AE30: 0.15 | AF30: 0.15 | AG30: 0.15 | AH30: 0.25 | AI30: 0.075 | AJ30: 0.075 | AK30: 0.075 | AL30: 0.075 | AM30: 0.075 | AN30: 0.075 | AO30: 0 | AP30: 0.075 | AQ30: 0.075 | AR30: 0.075 | AS30: 0.5 | AT30: 0.075 | AU30: 0.075 | AV30: 0.075 | AW30: 0.125
C31: 10 | D31: =_Aviation -> Luftfahrt | E31: 0.25 | F31: 0.15 | G31: 0.15 | H31: 0.15 | I31: 0.25 | J31: 0.25 | K31: 0 | L31: 0.25 | M31: 0.15 | N31: 0.15 | O31: 0.15 | P31: 0.5 | Q31: 0.15 | R31: 0.15 | S31: 0.25 | T31: 0.25 | U31: 0.15 | V31: 0.15 | W31: 0.15 | X31: 0.25 | Y31: 0.25 | Z31: 0 | AA31: 0.25 | AB31: 0.15 | AC31: 0.15 | AD31: 0.15 | AE31: 1 | AF31: 0.15 | AG31: 0.15 | AH31: 0.25 | AI31: 0.125 | AJ31: 0.075 | AK31: 0.075 | AL31: 0.075 | AM31: 0.125 | AN31: 0.125 | AO31: 0 | AP31: 0.125 | AQ31: 0.075 | AR31: 0.075 | AS31: 0.075 | AT31: 0.5 | AU31: 0.075 | AV31: 0.075 | AW31: 0.125
C32: 11 | D32: =_CreditSurety -> Finanz und Kaution | E32: 0.25 | F32: 0.15 | G32: 0.15 | H32: 0.15 | I32: 0.15 | J32: 0.25 | K32: 0 | L32: 0.25 | M32: 0.25 | N32: 0.15 | O32: 0.15 | P32: 0.15 | Q32: 0.5 | R32: 0.15 | S32: 0.25 | T32: 0.15 | U32: 0.15 | V32: 0.15 | W32: 0.15 | X32: 0.15 | Y32: 0.25 | Z32: 0 | AA32: 0.25 | AB32: 0.25 | AC32: 0.15 | AD32: 0.15 | AE32: 0.15 | AF32: 1 | AG32: 0.15 | AH32: 0.25 | AI32: 0.075 | AJ32: 0.075 | AK32: 0.075 | AL32: 0.075 | AM32: 0.075 | AN32: 0.125 | AO32: 0 | AP32: 0.125 | AQ32: 0.125 | AR32: 0.075 | AS32: 0.075 | AT32: 0.075 | AU32: 0.5 | AV32: 0.075 | AW32: 0.125
C33: 12 | D33: =_Legal -> Rechtsschutz | E33: 0.25 | F33: 0.15 | G33: 0.15 | H33: 0.15 | I33: 0.15 | J33: 0.25 | K33: 0 | L33: 0.25 | M33: 0.25 | N33: 0.15 | O33: 0.15 | P33: 0.15 | Q33: 0.15 | R33: 0.5 | S33: 0.25 | T33: 0.15 | U33: 0.15 | V33: 0.15 | W33: 0.15 | X33: 0.15 | Y33: 0.25 | Z33: 0 | AA33: 0.25 | AB33: 0.25 | AC33: 0.15 | AD33: 0.15 | AE33: 0.15 | AF33: 0.15 | AG33: 1 | AH33: 0.25 | AI33: 0.075 | AJ33: 0.075 | AK33: 0.075 | AL33: 0.075 | AM33: 0.075 | AN33: 0.125 | AO33: 0 | AP33: 0.125 | AQ33: 0.125 | AR33: 0.075 | AS33: 0.075 | AT33: 0.075 | AU33: 0.075 | AV33: 0.5 | AW33: 0.125
C34: 13 | D34: =_Others -> Andere | E34: 0.25 | F34: 0.25 | G34: 0.25 | H34: 0.25 | I34: 0.25 | J34: 0.25 | K34: 0 | L34: 0.25 | M34: 0.25 | N34: 0.25 | O34: 0.25 | P34: 0.25 | Q34: 0.25 | R34: 0.25 | S34: 0.5 | T34: 0.25 | U34: 0.25 | V34: 0.25 | W34: 0.25 | X34: 0.25 | Y34: 0.25 | Z34: 0 | AA34: 0.25 | AB34: 0.25 | AC34: 0.25 | AD34: 0.25 | AE34: 0.25 | AF34: 0.25 | AG34: 0.25 | AH34: 1 | AI34: 0.125 | AJ34: 0.125 | AK34: 0.125 | AL34: 0.125 | AM34: 0.125 | AN34: 0.125 | AO34: 0 | AP34: 0.125 | AQ34: 0.125 | AR34: 0.125 | AS34: 0.125 | AT34: 0.125 | AU34: 0.125 | AV34: 0.125 | AW34: 0.5
B35: URR | C35: 1 | D35: =_MTPL -> MFH | E35: 0.25 | F35: 0 | G35: 0 | H35: 0 | I35: 0 | J35: 0 | K35: 0 | L35: 0 | M35: 0 | N35: 0 | O35: 0 | P35: 0 | Q35: 0 | R35: 0 | S35: 0 | T35: =0.5*T20 -> 0.5 | U35: 0.25 | V35: 0.075 | W35: 0.075 | X35: 0.125 | Y35: 0.125 | Z35: 0 | AA35: 0.125 | AB35: 0.075 | AC35: 0.075 | AD35: 0.075 | AE35: 0.125 | AF35: 0.075 | AG35: 0.075 | AH35: 0.125 | AI35: 1 | AJ35: 0.5 | AK35: 0.15 | AL35: 0.15 | AM35: 0.25 | AN35: 0.25 | AO35: 0 | AP35: 0.25 | AQ35: 0.15 | AR35: 0.15 | AS35: 0.15 | AT35: 0.25 | AU35: 0.15 | AV35: 0.15 | AW35: 0.25
